Workbook

Sheet Introduction
C4: Joint Monitoring Programme for Water Supply, Sanitation and Hygiene
C6: Estimates on household water, sanitation and hygiene by wealth quintile and sub-national region in
C7: =+Water!B5 -> Nicaragua
C9: Updated May 2021
C11: Follow the links below to find the following information:
C13: JMP Estimates
C14: WASH status and trends by wealth quintile (customized quintiles made without water and sanitation assets)
C15: Water
C16: Sanitation
C17: Hygiene
C19: Data inputs
C20: customized wealth quintiles and subnational data:
C21: =IF(INDIRECT(CONCATENATE("Water","!B105"))=0,"",INDIRECT(CONCATENATE("Water","!B105"))) -> DHS01
C22: =IF(INDIRECT(CONCATENATE("Water","!B106"))=0,"",INDIRECT(CONCATENATE("Water","!B106"))) -> ENDESA11
C23: =IF(INDIRECT(CONCATENATE("Water","!B107"))=0,"",INDIRECT(CONCATENATE("Water","!B107"))) -> 
C24: =IF(INDIRECT(CONCATENATE("Water","!B108"))=0,"",INDIRECT(CONCATENATE("Water","!B108"))) -> 
C25: =IF(INDIRECT(CONCATENATE("Water","!B109"))=0,"",INDIRECT(CONCATENATE("Water","!B109"))) -> 
C26: =IF(INDIRECT(CONCATENATE("Water","!B110"))=0,"",INDIRECT(CONCATENATE("Water","!B110"))) -> 
C27: =IF(INDIRECT(CONCATENATE("Water","!B111"))=0,"",INDIRECT(CONCATENATE("Water","!B111"))) -> 
C28: =IF(INDIRECT(CONCATENATE("Water","!B112"))=0,"",INDIRECT(CONCATENATE("Water","!B112"))) -> 
C29: =IF(INDIRECT(CONCATENATE("Water","!B113"))=0,"",INDIRECT(CONCATENATE("Water","!B113"))) -> 
C30: =IF(INDIRECT(CONCATENATE("Water","!B114"))=0,"",INDIRECT(CONCATENATE("Water","!B114"))) -> 
C31: =IF(INDIRECT(CONCATENATE("Water","!B115"))=0,"",INDIRECT(CONCATENATE("Water","!B115"))) -> 
C32: =IF(INDIRECT(CONCATENATE("Water","!B116"))=0,"",INDIRECT(CONCATENATE("Water","!B116"))) -> 
L55: =+IF(ISNUMBER(M48), "", "Insufficient data to estimate safely managed sanitation services at national level") -> Insufficient data to estimate safely managed sanitation services at national level

Sheet Water
A1: BGD
B4: Summary of trends in use of drinking water by wealth quintile (%)
B5: =IF(ISERROR(INDIRECT(CONCATENATE($B105,"!A2"))),"",INDIRECT(CONCATENATE($B105,"!A2"))) -> Nicaragua
B7: =B118 -> National use of drinking water sources, 2000–2017 | J7: =B218 -> Urban use of drinking water sources, 2000–2017 | R7: =B318 -> Rural use of drinking water sources, 2000–2017
B31: =IF(ISERROR(INDIRECT(CONCATENATE($B105,"!A2"))),"",INDIRECT(CONCATENATE($B105,"!A2"))) -> Nicaragua | F31: Poorest | J31: Poor | N31: Middle | R31: Rich | V31: Richest
F32: Basic | G32: Limited | H32: Unimproved | I32: Surface water | J32: Basic | K32: Limited | L32: Unimproved | M32: Surface water | N32: Basic | O32: Limited | P32: Unimproved | Q32: Surface water | R32: Basic | S32: Limited | T32: Unimproved | U32: Surface water | V32: Basic | W32: Limited | X32: Unimproved | Y32: Surface water
B33: NATIONAL | D33: Estimate | E33: =C99 -> 2000 | F33: =E99 -> 53.14002737 | G33: =F99 -> 0 | H33: 31.86192814 | I33: 14.99804449 | J33: =J99 -> 69.93227324 | K33: =K99 -> 0 | L33: 24.26076114 | M33: 5.80696562 | N33: =O99 -> 90.59745067 | O33: =P99 -> 0 | P33: 8.862130961 | Q33: 0.540418373 | R33: =T99 -> 96.08711609 | S33: =U99 -> 0 | T33: 3.912883912 | U33: 0 | V33: =Y99 -> 98.10513419 | W33: =Z99 -> 0 | X33: 1.89486581 | Y33: 0
E34: =C100 -> 2017 | F34: =E100 -> 50.98070783 | G34: 0 | H34: 32.22357193 | I34: 16.79572024 | J34: =J100 -> 78.84992541 | K34: 0 | L34: 16.18069404 | M34: 4.969380545 | N34: =O100 -> 89.24946018 | O34: 0 | P34: 9.092924476 | Q34: 1.657615345 | R34: =T100 -> 95.45098712 | S34: 0 | T34: 4.081248235 | U34: 0.4677646415 | V34: =Y100 -> 98.08446404 | W34: 0 | X34: 1.733529759 | Y34: 0.1820062031
B36: URBAN | D36: Estimate | E36: =C199 -> 2000 | F36: =E199 -> 89.13748323 | G36: =F199 -> 0 | H36: 9.848469461 | I36: 1.014047309 | J36: =J199 -> 95.83084729 | K36: =K199 -> 0 | L36: 4.087531536 | M36: 0.08162116934 | N36: =O199 -> 97.0418383 | O36: =P199 -> 0 | P36: 2.958161703 | Q36: 0 | R36: =T199 -> 98.07024073 | S36: =U199 -> 0 | T36: 1.929759272 | U36: 0 | V36: =Y199 -> 98.75497594 | W36: =Z199 -> 0 | X36: 1.245024062 | Y36: 0
E37: =C200 -> 2017 | F37: =E200 -> 94.43301607 | G37: 0 | H37: 4.130755953 | I37: 1.436227978 | J37: =J200 -> 95.54718796 | K37: 0 | L37: 4.31152709 | M37: 0.1412849529 | N37: =O200 -> 97.36811632 | O37: 0 | P37: 2.420618852 | Q37: 0.2112648251 | R37: =T200 -> 98.58562124 | S37: 0 | T37: 1.288290023 | U37: 0.1260887399 | V37: =Y200 -> 98.96949399 | W37: 0 | X37: 1.030506011 | Y37: 0
B39: RURAL | D39: Estimate | E39: =C299 -> 2000 | F39: =E299 -> 48.36352816 | G39: =F299 -> 0 | H39: 34.00644383 | I39: 17.63002801 | J39: =J299 -> 51.8324521 | K39: =K299 -> 0 | L39: 33.36891548 | M39: 14.79863242 | N39: =O299 -> 57.61451371 | O39: =P299 -> 0 | P39: 30.99381308 | Q39: 11.39167321 | R39: =T299 -> 71.85015379 | S39: =U299 -> 0 | T39: 24.91614518 | U39: 3.233701031 | V39: =Y299 -> 85.13692899 | W39: =Z299 -> 0 | X39: 14.03458476 | Y39: 0.828486244
E40: =C300 -> 2017 | F40: =E300 -> 43.2909655 | G40: 0 | H40: 35.46646321 | I40: 21.24257129 | J40: =J300 -> 52.60630255 | K40: 0 | L40: 32.27077257 | M40: 15.12292489 | N40: =O300 -> 66.90689176 | O40: 0 | P40: 25.81318362 | Q40: 7.279924617 | R40: =T300 -> 74.54205353 | S40: 0 | T40: 19.04592653 | U40: 6.412019943 | V40: =Y300 -> 79.45152383 | W40: 0 | X40: 17.16417659 | Y40: 3.38429958
A97: NATIONAL | D97: Poorest | I97: Poor | N97: Middle | S97: Rich | X97: Richest
D98: Improved | E98: Basic | F98: Limited | G98: Unimproved | H98: Surface water | I98: Improved | J98: Basic | K98: Limited | L98: Unimproved | M98: Surface water | N98: Improved | O98: Basic | P98: Limited | Q98: Unimproved | R98: Surface water | S98: Improved | T98: Basic | U98: Limited | V98: Unimproved | W98: Surface water | X98: Improved | Y98: Basic | Z98: Limited | AA98: Unimproved | AB98: Surface water
A99: Forecast period: | C99: =MinBase(C105:C116) -> 2000 | D99: =IF((D101+H101)>100,D101*100/(D101+H101),D101) -> 53.14002737 | E99: =D99*AVERAGEIF(E105:E116,">0")/100 -> 53.14002737 | F99: =D99*(100-AVERAGEIF(E105:E116,">0"))/100 -> 0 | G99: =100-(E99+F99+H99) -> 31.86192814 | H99: =IF((D101+H101)>100,H101*100/(D101+H101),H101) -> 14.99804449 | I99: =IF((I101+M101)>100,I101*100/(I101+M101),I101) -> 69.93227324 | J99: =I99*AVERAGEIF(J105:J116,">0")/100 -> 69.93227324 | K99: =I99*(100-AVERAGEIF(J105:J116,">0"))/100 -> 0 | L99: =100-(J99+K99+M99) -> 24.26076114 | M99: =IF((I101+M101)>100,M101*100/(I101+M101),M101) -> 5.80696562 | N99: =IF((N101+R101)>100,N101*100/(N101+R101),N101) -> 90.59745067 | O99: =N99*AVERAGEIF(O105:O116,">0")/100 -> 90.59745067 | P99: =N99*(100-AVERAGEIF(O105:O116,">0"))/100 -> 0 | Q99: =100-(O99+P99+R99) -> 8.862130961 | R99: =IF((N101+R101)>100,R101*100/(N101+R101),R101) -> 0.540418373 | S99: =IF((S101+W101)>100,S101*100/(S101+W101),S101) -> 96.08711609 | T99: =S99*AVERAGEIF(T105:T116,">0")/100 -> 96.08711609 | U99: =S99*(100-AVERAGEIF(T105:T116,">0"))/100 -> 0 | V99: =100-(T99+U99+W99) -> 3.912883912 | W99: =IF((S101+W101)>100,W101*100/(S101+W101),W101) -> 0 | X99: =IF((X101+AB101)>100,X101*100/(X101+AB101),X101) -> 98.10513419 | Y99: =X99*AVERAGEIF(Y105:Y116,">0")/100 -> 98.10513419 | Z99: =X99*(100-AVERAGEIF(Y105:Y116,">0"))/100 -> 0 | AA99: =100-(Y99+Z99+AB99) -> 1.89486581 | AB99: =IF((X101+AB101)>100,AB101*100/(X101+AB101),AB101) -> 0
C100: =MaxTarget(C105:C116) -> 2017 | D100: =IF((D102+H102)>100,D102*100/(D102+H102),D102) -> 50.98070783 | E100: =D100*AVERAGEIF(E105:E116,">0")/100 -> 50.98070783 | F100: =D100*(100-AVERAGEIF(E105:E116,">0"))/100 -> 0 | G100: =100-(E100+F100+H100) -> 32.22357193 | H100: =IF((D102+H102)>100,H102*100/(D102+H102),H102) -> 16.79572024 | I100: =IF((I102+M102)>100,I102*100/(I102+M102),I102) -> 78.84992541 | J100: =I100*AVERAGEIF(J105:J116,">0")/100 -> 78.84992541 | K100: =I100*(100-AVERAGEIF(J105:J116,">0"))/100 -> 0 | L100: =100-(J100+K100+M100) -> 16.18069404 | M100: =IF((I102+M102)>100,M102*100/(I102+M102),M102) -> 4.969380545 | N100: =IF((N102+R102)>100,N102*100/(N102+R102),N102) -> 89.24946018 | O100: =N100*AVERAGEIF(O105:O116,">0")/100 -> 89.24946018 | P100: =N100*(100-AVERAGEIF(O105:O116,">0"))/100 -> 0 | Q100: =100-(O100+P100+R100) -> 9.092924476 | R100: =IF((N102+R102)>100,R102*100/(N102+R102),R102) -> 1.657615345 | S100: =IF((S102+W102)>100,S102*100/(S102+W102),S102) -> 95.45098712 | T100: =S100*AVERAGEIF(T105:T116,">0")/100 -> 95.45098712 | U100: =S100*(100-AVERAGEIF(T105:T116,">0"))/100 -> 0 | V100: =100-(T100+U100+W100) -> 4.081248235 | W100: =IF((S102+W102)>100,W102*100/(S102+W102),W102) -> 0.4677646415 | X100: =IF((X102+AB102)>100,X102*100/(X102+AB102),X102) -> 98.08446404 | Y100: =X100*AVERAGEIF(Y105:Y116,">0")/100 -> 98.08446404 | Z100: =X100*(100-AVERAGEIF(Y105:Y116,">0"))/100 -> 0 | AA100: =100-(Y100+Z100+AB100) -> 1.733529759 | AB100: =IF((X102+AB102)>100,AB102*100/(X102+AB102),AB102) -> 0.1820062031
A101: Regression period: | C101: =MinRegYear(C99,C105:C116) -> 2000 | D101: =IF(MAX(C105:C116)-MIN(C105:C116)<5,AVERAGEIF(C105:C116,">0",D105:D116), IF(FORECAST($C101,D$105:D$116,$C$105:$C$116)<0,0, IF(FORECAST($C101,D$105:D$116,$C$105:$C$116)>100,100, FORECAST($C101,D$105:D$116,$C$105:$C$116)))) -> 53.14002737 | H101: =IF(MAX(C105:C116)-MIN(C105:C116)<5,AVERAGEIF(C105:C116,">0",H105:H116), IF(FORECAST($C101,H$105:H$116,$C$105:$C$116)<0,0, IF(FORECAST($C101,H$105:H$116,$C$105:$C$116)>100,100, FORECAST($C101,H$105:H$116,$C$105:$C$116)))) -> 14.99804449 | I101: =IF(MAX(C105:C116)-MIN(C105:C116)<5,AVERAGEIF(C105:C116,">0",I105:I116), IF(FORECAST($C101,I$105:I$116,$C$105:$C$116)<0,0, IF(FORECAST($C101,I$105:I$116,$C$105:$C$116)>100,100, FORECAST($C101,I$105:I$116,$C$105:$C$116)))) -> 69.93227324 | M101: =IF(MAX(C105:C116)-MIN(C105:C116)<5,AVERAGEIF(C105:C116,">0",M105:M116), IF(FORECAST($C101,M$105:M$116,$C$105:$C$116)<0,0, IF(FORECAST($C101,M$105:M$116,$C$105:$C$116)>100,100, FORECAST($C101,M$105:M$116,$C$105:$C$116)))) -> 5.80696562 | N101: =IF(MAX(C105:C116)-MIN(C105:C116)<5,AVERAGEIF(C105:C116,">0",N105:N116), IF(FORECAST($C101,N$105:N$116,$C$105:$C$116)<0,0, IF(FORECAST($C101,N$105:N$116,$C$105:$C$116)>100,100, FORECAST($C101,N$105:N$116,$C$105:$C$116)))) -> 90.59745067 | R101: =IF(MAX(C105:C116)-MIN(C105:C116)<5,AVERAGEIF(C105:C116,">0",R105:R116), IF(FORECAST($C101,R$105:R$116,$C$105:$C$116)<0,0, IF(FORECAST($C101,R$105:R$116,$C$105:$C$116)>100,100, FORECAST($C101,R$105:R$116,$C$105:$C$116)))) -> 0.540418373 | S101: =IF(MAX(C105:C116)-MIN(C105:C116)<5,AVERAGEIF(C105:C116,">0",S105:S116), IF(FORECAST($C101,S$105:S$116,$C$105:$C$116)<0,0, IF(FORECAST($C101,S$105:S$116,$C$105:$C$116)>100,100, FORECAST($C101,S$105:S$116,$C$105:$C$116)))) -> 96.08711609 | W101: =IF(MAX(C105:C116)-MIN(C105:C116)<5,AVERAGEIF(C105:C116,">0",W105:W116), IF(FORECAST($C101,W$105:W$116,$C$105:$C$116)<0,0, IF(FORECAST($C101,W$105:W$116,$C$105:$C$116)>100,100, FORECAST($C101,W$105:W$116,$C$105:$C$116)))) -> 0 | X101: =IF(MAX(C105:C116)-MIN(C105:C116)<5,AVERAGEIF(C105:C116,">0",X105:X116), IF(FORECAST($C101,X$105:X$116,$C$105:$C$116)<0,0, IF(FORECAST($C101,X$105:X$116,$C$105:$C$116)>100,100, FORECAST($C101,X$105:X$116,$C$105:$C$116)))) -> 98.10513419 | AB101: =IF(MAX(C105:C116)-MIN(C105:C116)<5,AVERAGEIF(C105:C116,">0",AB105:AB116), IF(FORECAST($C101,AB$105:AB$116,$C$105:$C$116)<0,0, IF(FORECAST($C101,AB$105:AB$116,$C$105:$C$116)>100,100, FORECAST($C101,AB$105:AB$116,$C$105:$C$116)))) -> 0
C102: =MaxRegYear(C100,C105:C116) -> 2013 | D102: =IF(MAX(C105:C116)-MIN(C105:C116)<5,AVERAGEIF(C105:C116,">0",D105:D116), IF(FORECAST($C102,D$105:D$116,$C$105:$C$116)<0,0, IF(FORECAST($C102,D$105:D$116,$C$105:$C$116)>100,100, FORECAST($C102,D$105:D$116,$C$105:$C$116)))) -> 50.98070783 | H102: =IF(MAX(C105:C116)-MIN(C105:C116)<5,AVERAGEIF(C105:C116,">0",H105:H116), IF(FORECAST($C102,H$105:H$116,$C$105:$C$116)<0,0, IF(FORECAST($C102,H$105:H$116,$C$105:$C$116)>100,100, FORECAST($C102,H$105:H$116,$C$105:$C$116)))) -> 16.79572024 | I102: =IF(MAX(C105:C116)-MIN(C105:C116)<5,AVERAGEIF(C105:C116,">0",I105:I116), IF(FORECAST($C102,I$105:I$116,$C$105:$C$116)<0,0, IF(FORECAST($C102,I$105:I$116,$C$105:$C$116)>100,100, FORECAST($C102,I$105:I$116,$C$105:$C$116)))) -> 78.84992541 | M102: =IF(MAX(C105:C116)-MIN(C105:C116)<5,AVERAGEIF(C105:C116,">0",M105:M116), IF(FORECAST($C102,M$105:M$116,$C$105:$C$116)<0,0, IF(FORECAST($C102,M$105:M$116,$C$105:$C$116)>100,100, FORECAST($C102,M$105:M$116,$C$105:$C$116)))) -> 4.969380545 | N102: =IF(MAX(C105:C116)-MIN(C105:C116)<5,AVERAGEIF(C105:C116,">0",N105:N116), IF(FORECAST($C102,N$105:N$116,$C$105:$C$116)<0,0, IF(FORECAST($C102,N$105:N$116,$C$105:$C$116)>100,100, FORECAST($C102,N$105:N$116,$C$105:$C$116)))) -> 89.24946018 | R102: =IF(MAX(C105:C116)-MIN(C105:C116)<5,AVERAGEIF(C105:C116,">0",R105:R116), IF(FORECAST($C102,R$105:R$116,$C$105:$C$116)<0,0, IF(FORECAST($C102,R$105:R$116,$C$105:$C$116)>100,100, FORECAST($C102,R$105:R$116,$C$105:$C$116)))) -> 1.657615345 | S102: =IF(MAX(C105:C116)-MIN(C105:C116)<5,AVERAGEIF(C105:C116,">0",S105:S116), IF(FORECAST($C102,S$105:S$116,$C$105:$C$116)<0,0, IF(FORECAST($C102,S$105:S$116,$C$105:$C$116)>100,100, FORECAST($C102,S$105:S$116,$C$105:$C$116)))) -> 95.45098712 | W102: =IF(MAX(C105:C116)-MIN(C105:C116)<5,AVERAGEIF(C105:C116,">0",W105:W116), IF(FORECAST($C102,W$105:W$116,$C$105:$C$116)<0,0, IF(FORECAST($C102,W$105:W$116,$C$105:$C$116)>100,100, FORECAST($C102,W$105:W$116,$C$105:$C$116)))) -> 0.4677646415 | X102: =IF(MAX(C105:C116)-MIN(C105:C116)<5,AVERAGEIF(C105:C116,">0",X105:X116), IF(FORECAST($C102,X$105:X$116,$C$105:$C$116)<0,0, IF(FORECAST($C102,X$105:X$116,$C$105:$C$116)>100,100, FORECAST($C102,X$105:X$116,$C$105:$C$116)))) -> 98.08446404 | AB102: =IF(MAX(C105:C116)-MIN(C105:C116)<5,AVERAGEIF(C105:C116,">0",AB105:AB116), IF(FORECAST($C102,AB$105:AB$116,$C$105:$C$116)<0,0, IF(FORECAST($C102,AB$105:AB$116,$C$105:$C$116)>100,100, FORECAST($C102,AB$105:AB$116,$C$105:$C$116)))) -> 0.1820062031
B104: Survey | C104: Year | D104: Improved | E104: % Improved < = 30min | H104: Surface water | I104: Improved | J104: % Improved < = 30min | M104: Surface water | N104: Improved | O104: % Improved < = 30min | R104: Surface water | S104: Improved | T104: % Improved < = 30min | W104: Surface water | X104: Improved | Y104: % Improved < = 30min | AB104: Surface water
B105: DHS01 | C105: 2001 | D105: =IF(ISERROR(INDIRECT(CONCATENATE($B105,"!C16"))),"",INDIRECT(CONCATENATE($B105,"!C16"))) -> 52.97392587 | E105: =IF(ISERROR(INDIRECT(CONCATENATE($B105,"!C23"))),"",INDIRECT(CONCATENATE($B105,"!C23"))) -> N/A | H105: =IF(ISERROR(INDIRECT(CONCATENATE($B105,"!C21"))),"",INDIRECT(CONCATENATE($B105,"!C21"))) -> 15.13632724 | I105: =IF(ISERROR(INDIRECT(CONCATENATE($B105,"!D16"))),"",INDIRECT(CONCATENATE($B105,"!D16"))) -> 70.61824648 | J105: =IF(ISERROR(INDIRECT(CONCATENATE($B105,"!D23"))),"",INDIRECT(CONCATENATE($B105,"!D23"))) -> N/A | M105: =IF(ISERROR(INDIRECT(CONCATENATE($B105,"!D21"))),"",INDIRECT(CONCATENATE($B105,"!D21"))) -> 5.742535999 | N105: =IF(ISERROR(INDIRECT(CONCATENATE($B105,"!E16"))),"",INDIRECT(CONCATENATE($B105,"!E16"))) -> 90.49375909 | O105: =IF(ISERROR(INDIRECT(CONCATENATE($B105,"!E23"))),"",INDIRECT(CONCATENATE($B105,"!E23"))) -> N/A | R105: =IF(ISERROR(INDIRECT(CONCATENATE($B105,"!E21"))),"",INDIRECT(CONCATENATE($B105,"!E21"))) -> 0.6263566016 | S105: =IF(ISERROR(INDIRECT(CONCATENATE($B105,"!F16"))),"",INDIRECT(CONCATENATE($B105,"!F16"))) -> 96.03818309 | T105: =IF(ISERROR(INDIRECT(CONCATENATE($B105,"!F23"))),"",INDIRECT(CONCATENATE($B105,"!F23"))) -> N/A | W105: =IF(ISERROR(INDIRECT(CONCATENATE($B105,"!F21"))),"",INDIRECT(CONCATENATE($B105,"!F21"))) -> 0.0287801032 | X105: =IF(ISERROR(INDIRECT(CONCATENATE($B105,"!G16"))),"",INDIRECT(CONCATENATE($B105,"!G16"))) -> 98.10354418 | Y105: =IF(ISERROR(INDIRECT(CONCATENATE($B105,"!G23"))),"",INDIRECT(CONCATENATE($B105,"!G23"))) -> N/A | AB105: =IF(ISERROR(INDIRECT(CONCATENATE($B105,"!G221"))),"",INDIRECT(CONCATENATE($B105,"!G21"))) -> 0
B106: ENDESA11 | C106: 2011 | D106: 51.31291084 | E106: 100 | H106: 16.51915474 | I106: 77.47797892 | J106: 100 | M106: 5.098239787 | N106: 89.45684333 | O106: 100 | R106: 1.485738888 | S106: 95.54885312 | T106: 100 | W106: 0.3946005517 | X106: 98.08764406 | Y106: 100 | AB106: 0.1516718359
D111: =IF(ISERROR(INDIRECT(CONCATENATE($B111,"!C16"))),"",INDIRECT(CONCATENATE($B111,"!C16"))) ->  | E111: =IF(ISERROR(INDIRECT(CONCATENATE($B111,"!C23"))),"",INDIRECT(CONCATENATE($B111,"!C23"))) ->  | H111: =IF(ISERROR(INDIRECT(CONCATENATE($B111,"!C21"))),"",INDIRECT(CONCATENATE($B111,"!C21"))) ->  | I111: =IF(ISERROR(INDIRECT(CONCATENATE($B111,"!D16"))),"",INDIRECT(CONCATENATE($B111,"!D16"))) ->  | J111: =IF(ISERROR(INDIRECT(CONCATENATE($B111,"!D23"))),"",INDIRECT(CONCATENATE($B111,"!D23"))) ->  | M111: =IF(ISERROR(INDIRECT(CONCATENATE($B111,"!D21"))),"",INDIRECT(CONCATENATE($B111,"!D21"))) ->  | N111: =IF(ISERROR(INDIRECT(CONCATENATE($B111,"!E16"))),"",INDIRECT(CONCATENATE($B111,"!E16"))) ->  | O111: =IF(ISERROR(INDIRECT(CONCATENATE($B111,"!E23"))),"",INDIRECT(CONCATENATE($B111,"!E23"))) ->  | R111: =IF(ISERROR(INDIRECT(CONCATENATE($B111,"!E21"))),"",INDIRECT(CONCATENATE($B111,"!E21"))) ->  | S111: =IF(ISERROR(INDIRECT(CONCATENATE($B111,"!F16"))),"",INDIRECT(CONCATENATE($B111,"!F16"))) ->  | T111: =IF(ISERROR(INDIRECT(CONCATENATE($B111,"!F23"))),"",INDIRECT(CONCATENATE($B111,"!F23"))) ->  | W111: =IF(ISERROR(INDIRECT(CONCATENATE($B111,"!F21"))),"",INDIRECT(CONCATENATE($B111,"!F21"))) ->  | X111: =IF(ISERROR(INDIRECT(CONCATENATE($B111,"!G16"))),"",INDIRECT(CONCATENATE($B111,"!G16"))) ->  | Y111: =IF(ISERROR(INDIRECT(CONCATENATE($B111,"!G23"))),"",INDIRECT(CONCATENATE($B111,"!G23"))) ->  | AB111: =IF(ISERROR(INDIRECT(CONCATENATE($B111,"!G221"))),"",INDIRECT(CONCATENATE($B111,"!G21"))) -> 
D112: =IF(ISERROR(INDIRECT(CONCATENATE($B112,"!C16"))),"",INDIRECT(CONCATENATE($B112,"!C16"))) ->  | E112: =IF(ISERROR(INDIRECT(CONCATENATE($B112,"!C23"))),"",INDIRECT(CONCATENATE($B112,"!C23"))) ->  | H112: =IF(ISERROR(INDIRECT(CONCATENATE($B112,"!C21"))),"",INDIRECT(CONCATENATE($B112,"!C21"))) ->  | I112: =IF(ISERROR(INDIRECT(CONCATENATE($B112,"!D16"))),"",INDIRECT(CONCATENATE($B112,"!D16"))) ->  | J112: =IF(ISERROR(INDIRECT(CONCATENATE($B112,"!D23"))),"",INDIRECT(CONCATENATE($B112,"!D23"))) ->  | M112: =IF(ISERROR(INDIRECT(CONCATENATE($B112,"!D21"))),"",INDIRECT(CONCATENATE($B112,"!D21"))) ->  | N112: =IF(ISERROR(INDIRECT(CONCATENATE($B112,"!E16"))),"",INDIRECT(CONCATENATE($B112,"!E16"))) ->  | O112: =IF(ISERROR(INDIRECT(CONCATENATE($B112,"!E23"))),"",INDIRECT(CONCATENATE($B112,"!E23"))) ->  | R112: =IF(ISERROR(INDIRECT(CONCATENATE($B112,"!E21"))),"",INDIRECT(CONCATENATE($B112,"!E21"))) ->  | S112: =IF(ISERROR(INDIRECT(CONCATENATE($B112,"!F16"))),"",INDIRECT(CONCATENATE($B112,"!F16"))) ->  | T112: =IF(ISERROR(INDIRECT(CONCATENATE($B112,"!F23"))),"",INDIRECT(CONCATENATE($B112,"!F23"))) ->  | W112: =IF(ISERROR(INDIRECT(CONCATENATE($B112,"!F21"))),"",INDIRECT(CONCATENATE($B112,"!F21"))) ->  | X112: =IF(ISERROR(INDIRECT(CONCATENATE($B112,"!G16"))),"",INDIRECT(CONCATENATE($B112,"!G16"))) ->  | Y112: =IF(ISERROR(INDIRECT(CONCATENATE($B112,"!G23"))),"",INDIRECT(CONCATENATE($B112,"!G23"))) ->  | AB112: =IF(ISERROR(INDIRECT(CONCATENATE($B112,"!G221"))),"",INDIRECT(CONCATENATE($B112,"!G21"))) -> 
B118: =CONCATENATE("National use of drinking water sources, ",C99,"–",C100) -> National use of drinking water sources, 2000–2017 | S118: Data points used for regression
E153: =IF(ISERROR(INDIRECT(CONCATENATE($B153,"!M18"))),"",INDIRECT(CONCATENATE($B153,"!M18"))) ->  | F153: =IF(ISERROR(INDIRECT(CONCATENATE($B153,"!M19"))),"",INDIRECT(CONCATENATE($B153,"!M19"))) ->  | G153: =IF(ISERROR(INDIRECT(CONCATENATE($B153,"!M20"))),"",INDIRECT(CONCATENATE($B153,"!M20"))) ->  | H153: =IF(ISERROR(INDIRECT(CONCATENATE($B153,"!M21"))),"",INDIRECT(CONCATENATE($B153,"!M21"))) ->  | J153: =IF(ISERROR(INDIRECT(CONCATENATE($B153,"!N18"))),"",INDIRECT(CONCATENATE($B153,"!N18"))) ->  | K153: =IF(ISERROR(INDIRECT(CONCATENATE($B153,"!N19"))),"",INDIRECT(CONCATENATE($B153,"!N19"))) ->  | L153: =IF(ISERROR(INDIRECT(CONCATENATE($B153,"!N20"))),"",INDIRECT(CONCATENATE($B153,"!N20"))) ->  | M153: =IF(ISERROR(INDIRECT(CONCATENATE($B153,"!N21"))),"",INDIRECT(CONCATENATE($B153,"!N21"))) ->  | O153: =IF(ISERROR(INDIRECT(CONCATENATE($B153,"!O18"))),"",INDIRECT(CONCATENATE($B153,"!O18"))) ->  | P153: =IF(ISERROR(INDIRECT(CONCATENATE($B153,"!O19"))),"",INDIRECT(CONCATENATE($B153,"!O19"))) ->  | Q153: =IF(ISERROR(INDIRECT(CONCATENATE($B153,"!O20"))),"",INDIRECT(CONCATENATE($B153,"!O20"))) ->  | R153: =IF(ISERROR(INDIRECT(CONCATENATE($B153,"!O21"))),"",INDIRECT(CONCATENATE($B153,"!O21"))) ->  | T153: =IF(ISERROR(INDIRECT(CONCATENATE($B153,"!P18"))),"",INDIRECT(CONCATENATE($B153,"!P18"))) ->  | U153: =IF(ISERROR(INDIRECT(CONCATENATE($B153,"!P19"))),"",INDIRECT(CONCATENATE($B153,"!P19"))) ->  | V153: =IF(ISERROR(INDIRECT(CONCATENATE($B153,"!P20"))),"",INDIRECT(CONCATENATE($B153,"!P20"))) ->  | W153: =IF(ISERROR(INDIRECT(CONCATENATE($B153,"!P21"))),"",INDIRECT(CONCATENATE($B153,"!P21"))) ->  | Y153: =IF(ISERROR(INDIRECT(CONCATENATE($B153,"!Q18"))),"",INDIRECT(CONCATENATE($B153,"!Q18"))) ->  | Z153: =IF(ISERROR(INDIRECT(CONCATENATE($B153,"!Q19"))),"",INDIRECT(CONCATENATE($B153,"!Q19"))) ->  | AA153: =IF(ISERROR(INDIRECT(CONCATENATE($B153,"!Q20"))),"",INDIRECT(CONCATENATE($B153,"!Q20"))) ->  | AB153: =IF(ISERROR(INDIRECT(CONCATENATE($B153,"!Q21"))),"",INDIRECT(CONCATENATE($B153,"!Q1"))) -> 
A197: URBAN | D197: Poorest | I197: Poor | N197: Middle | S197: Rich | X197: Richest
D198: Improved | E198: Basic | F198: Limited | G198: Unimproved | H198: Surface water | I198: Improved | J198: Basic | K198: Limited | L198: Unimproved | M198: Surface water | N198: Improved | O198: Basic | P198: Limited | Q198: Unimproved | R198: Surface water | S198: Improved | T198: Basic | U198: Limited | V198: Unimproved | W198: Surface water | X198: Improved | Y198: Basic | Z198: Limited | AA198: Unimproved | AB198: Surface water
A199: Forecast period: | C199: =MinBase(C205:C216) -> 2000 | D199: =IF((D201+H201)>100,D201*100/(D201+H201),D201) -> 89.13748323 | E199: =D199*AVERAGEIF(E205:E216,">0")/100 -> 89.13748323 | F199: =D199*(100-AVERAGEIF(E205:E216,">0"))/100 -> 0 | G199: =100-(E199+F199+H199) -> 9.848469461 | H199: =IF((D201+H201)>100,H201*100/(D201+H201),H201) -> 1.014047309 | I199: =IF((I201+M201)>100,I201*100/(I201+M201),I201) -> 95.83084729 | J199: =I199*AVERAGEIF(J205:J216,">0")/100 -> 95.83084729 | K199: =I199*(100-AVERAGEIF(J205:J216,">0"))/100 -> 0 | L199: =100-(J199+K199+M199) -> 4.087531536 | M199: =IF((I201+M201)>100,M201*100/(I201+M201),M201) -> 0.08162116934 | N199: =IF((N201+R201)>100,N201*100/(N201+R201),N201) -> 97.0418383 | O199: =N199*AVERAGEIF(O205:O216,">0")/100 -> 97.0418383 | P199: =N199*(100-AVERAGEIF(O205:O216,">0"))/100 -> 0 | Q199: =100-(O199+P199+R199) -> 2.958161703 | R199: =IF((N201+R201)>100,R201*100/(N201+R201),R201) -> 0 | S199: =IF((S201+W201)>100,S201*100/(S201+W201),S201) -> 98.07024073 | T199: =S199*AVERAGEIF(T205:T216,">0")/100 -> 98.07024073 | U199: =S199*(100-AVERAGEIF(T205:T216,">0"))/100 -> 0 | V199: =100-(T199+U199+W199) -> 1.929759272 | W199: =IF((S201+W201)>100,W201*100/(S201+W201),W201) -> 0 | X199: =IF((X201+AB201)>100,X201*100/(X201+AB201),X201) -> 98.75497594 | Y199: =X199*AVERAGEIF(Y205:Y216,">0")/100 -> 98.75497594 | Z199: =X199*(100-AVERAGEIF(Y205:Y216,">0"))/100 -> 0 | AA199: =100-(Y199+Z199+AB199) -> 1.245024062 | AB199: =IF((X201+AB201)>100,AB201*100/(X201+AB201),AB201) -> 0
C200: =MaxTarget(C205:C216) -> 2017 | D200: =IF((D202+H202)>100,D202*100/(D202+H202),D202) -> 94.43301607 | E200: =D200*AVERAGEIF(E205:E216,">0")/100 -> 94.43301607 | F200: =D200*(100-AVERAGEIF(E205:E216,">0"))/100 -> 0 | G200: =100-(E200+F200+H200) -> 4.130755953 | H200: =IF((D202+H202)>100,H202*100/(D202+H202),H202) -> 1.436227978 | I200: =IF((I202+M202)>100,I202*100/(I202+M202),I202) -> 95.54718796 | J200: =I200*AVERAGEIF(J205:J216,">0")/100 -> 95.54718796 | K200: =I200*(100-AVERAGEIF(J205:J216,">0"))/100 -> 0 | L200: =100-(J200+K200+M200) -> 4.31152709 | M200: =IF((I202+M202)>100,M202*100/(I202+M202),M202) -> 0.1412849529 | N200: =IF((N202+R202)>100,N202*100/(N202+R202),N202) -> 97.36811632 | O200: =N200*AVERAGEIF(O205:O216,">0")/100 -> 97.36811632 | P200: =N200*(100-AVERAGEIF(O205:O216,">0"))/100 -> 0 | Q200: =100-(O200+P200+R200) -> 2.420618852 | R200: =IF((N202+R202)>100,R202*100/(N202+R202),R202) -> 0.2112648251 | S200: =IF((S202+W202)>100,S202*100/(S202+W202),S202) -> 98.58562124 | T200: =S200*AVERAGEIF(T205:T216,">0")/100 -> 98.58562124 | U200: =S200*(100-AVERAGEIF(T205:T216,">0"))/100 -> 0 | V200: =100-(T200+U200+W200) -> 1.288290023 | W200: =IF((S202+W202)>100,W202*100/(S202+W202),W202) -> 0.1260887399 | X200: =IF((X202+AB202)>100,X202*100/(X202+AB202),X202) -> 98.96949399 | Y200: =X200*AVERAGEIF(Y205:Y216,">0")/100 -> 98.96949399 | Z200: =X200*(100-AVERAGEIF(Y205:Y216,">0"))/100 -> 0 | AA200: =100-(Y200+Z200+AB200) -> 1.030506011 | AB200: =IF((X202+AB202)>100,AB202*100/(X202+AB202),AB202) -> 0
A201: Regression period: | C201: =MinRegYear(C199,C205:C216) -> 2000 | D201: =IF(MAX(C205:C216)-MIN(C205:C216)<5,AVERAGEIF(C205:C216,">0",D205:D216), IF(FORECAST($C201,D$205:D$216,$C$205:$C$216)<0,0, IF(FORECAST($C201,D$205:D$216,$C$205:$C$216)>100,100, FORECAST($C201,D$205:D$216,$C$205:$C$216)))) -> 89.13748323 | H201: =IF(MAX(C205:C216)-MIN(C205:C216)<5,AVERAGEIF(C205:C216,">0",H205:H216), IF(FORECAST($C201,H$205:H$216,$C$205:$C$216)<0,0, IF(FORECAST($C201,H$205:H$216,$C$205:$C$216)>100,100, FORECAST($C201,H$205:H$216,$C$205:$C$216)))) -> 1.014047309 | I201: =IF(MAX(C205:C216)-MIN(C205:C216)<5,AVERAGEIF(C205:C216,">0",I205:I216), IF(FORECAST($C201,I$205:I$216,$C$205:$C$216)<0,0, IF(FORECAST($C201,I$205:I$216,$C$205:$C$216)>100,100, FORECAST($C201,I$205:I$216,$C$205:$C$216)))) -> 95.83084729 | M201: =IF(MAX(C205:C216)-MIN(C205:C216)<5,AVERAGEIF(C205:C216,">0",M205:M216), IF(FORECAST($C201,M$205:M$216,$C$205:$C$216)<0,0, IF(FORECAST($C201,M$205:M$216,$C$205:$C$216)>100,100, FORECAST($C201,M$205:M$216,$C$205:$C$216)))) -> 0.08162116934 | N201: =IF(MAX(C205:C216)-MIN(C205:C216)<5,AVERAGEIF(C205:C216,">0",N205:N216), IF(FORECAST($C201,N$205:N$216,$C$205:$C$216)<0,0, IF(FORECAST($C201,N$205:N$216,$C$205:$C$216)>100,100, FORECAST($C201,N$205:N$216,$C$205:$C$216)))) -> 97.0418383 | R201: =IF(MAX(C205:C216)-MIN(C205:C216)<5,AVERAGEIF(C205:C216,">0",R205:R216), IF(FORECAST($C201,R$205:R$216,$C$205:$C$216)<0,0, IF(FORECAST($C201,R$205:R$216,$C$205:$C$216)>100,100, FORECAST($C201,R$205:R$216,$C$205:$C$216)))) -> 0 | S201: =IF(MAX(C205:C216)-MIN(C205:C216)<5,AVERAGEIF(C205:C216,">0",S205:S216), IF(FORECAST($C201,S$205:S$216,$C$205:$C$216)<0,0, IF(FORECAST($C201,S$205:S$216,$C$205:$C$216)>100,100, FORECAST($C201,S$205:S$216,$C$205:$C$216)))) -> 98.07024073 | W201: =IF(MAX(C205:C216)-MIN(C205:C216)<5,AVERAGEIF(C205:C216,">0",W205:W216), IF(FORECAST($C201,W$205:W$216,$C$205:$C$216)<0,0, IF(FORECAST($C201,W$205:W$216,$C$205:$C$216)>100,100, FORECAST($C201,W$205:W$216,$C$205:$C$216)))) -> 0 | X201: =IF(MAX(C205:C216)-MIN(C205:C216)<5,AVERAGEIF(C205:C216,">0",X205:X216), IF(FORECAST($C201,X$205:X$216,$C$205:$C$216)<0,0, IF(FORECAST($C201,X$205:X$216,$C$205:$C$216)>100,100, FORECAST($C201,X$205:X$216,$C$205:$C$216)))) -> 98.75497594 | AB201: =IF(MAX(C205:C216)-MIN(C205:C216)<5,AVERAGEIF(C205:C216,">0",AB205:AB216), IF(FORECAST($C201,AB$205:AB$216,$C$205:$C$216)<0,0, IF(FORECAST($C201,AB$205:AB$216,$C$205:$C$216)>100,100, FORECAST($C201,AB$205:AB$216,$C$205:$C$216)))) -> 0
C202: =MaxRegYear(C200,C205:C216) -> 2013 | D202: =IF(MAX(C205:C216)-MIN(C205:C216)<5,AVERAGEIF(C205:C216,">0",D205:D216), IF(FORECAST($C202,D$205:D$216,$C$205:$C$216)<0,0, IF(FORECAST($C202,D$205:D$216,$C$205:$C$216)>100,100, FORECAST($C202,D$205:D$216,$C$205:$C$216)))) -> 94.43301607 | H202: =IF(MAX(C205:C216)-MIN(C205:C216)<5,AVERAGEIF(C205:C216,">0",H205:H216), IF(FORECAST($C202,H$205:H$216,$C$205:$C$216)<0,0, IF(FORECAST($C202,H$205:H$216,$C$205:$C$216)>100,100, FORECAST($C202,H$205:H$216,$C$205:$C$216)))) -> 1.436227978 | I202: =IF(MAX(C205:C216)-MIN(C205:C216)<5,AVERAGEIF(C205:C216,">0",I205:I216), IF(FORECAST($C202,I$205:I$216,$C$205:$C$216)<0,0, IF(FORECAST($C202,I$205:I$216,$C$205:$C$216)>100,100, FORECAST($C202,I$205:I$216,$C$205:$C$216)))) -> 95.54718796 | M202: =IF(MAX(C205:C216)-MIN(C205:C216)<5,AVERAGEIF(C205:C216,">0",M205:M216), IF(FORECAST($C202,M$205:M$216,$C$205:$C$216)<0,0, IF(FORECAST($C202,M$205:M$216,$C$205:$C$216)>100,100, FORECAST($C202,M$205:M$216,$C$205:$C$216)))) -> 0.1412849529 | N202: =IF(MAX(C205:C216)-MIN(C205:C216)<5,AVERAGEIF(C205:C216,">0",N205:N216), IF(FORECAST($C202,N$205:N$216,$C$205:$C$216)<0,0, IF(FORECAST($C202,N$205:N$216,$C$205:$C$216)>100,100, FORECAST($C202,N$205:N$216,$C$205:$C$216)))) -> 97.36811632 | R202: =IF(MAX(C205:C216)-MIN(C205:C216)<5,AVERAGEIF(C205:C216,">0",R205:R216), IF(FORECAST($C202,R$205:R$216,$C$205:$C$216)<0,0, IF(FORECAST($C202,R$205:R$216,$C$205:$C$216)>100,100, FORECAST($C202,R$205:R$216,$C$205:$C$216)))) -> 0.2112648251 | S202: =IF(MAX(C205:C216)-MIN(C205:C216)<5,AVERAGEIF(C205:C216,">0",S205:S216), IF(FORECAST($C202,S$205:S$216,$C$205:$C$216)<0,0, IF(FORECAST($C202,S$205:S$216,$C$205:$C$216)>100,100, FORECAST($C202,S$205:S$216,$C$205:$C$216)))) -> 98.58562124 | W202: =IF(MAX(C205:C216)-MIN(C205:C216)<5,AVERAGEIF(C205:C216,">0",W205:W216), IF(FORECAST($C202,W$205:W$216,$C$205:$C$216)<0,0, IF(FORECAST($C202,W$205:W$216,$C$205:$C$216)>100,100, FORECAST($C202,W$205:W$216,$C$205:$C$216)))) -> 0.1260887399 | X202: =IF(MAX(C205:C216)-MIN(C205:C216)<5,AVERAGEIF(C205:C216,">0",X205:X216), IF(FORECAST($C202,X$205:X$216,$C$205:$C$216)<0,0, IF(FORECAST($C202,X$205:X$216,$C$205:$C$216)>100,100, FORECAST($C202,X$205:X$216,$C$205:$C$216)))) -> 98.96949399 | AB202: =IF(MAX(C205:C216)-MIN(C205:C216)<5,AVERAGEIF(C205:C216,">0",AB205:AB216), IF(FORECAST($C202,AB$205:AB$216,$C$205:$C$216)<0,0, IF(FORECAST($C202,AB$205:AB$216,$C$205:$C$216)>100,100, FORECAST($C202,AB$205:AB$216,$C$205:$C$216)))) -> 0
B204: Survey | C204: Year | D204: Improved | E204: % Improved < = 30min | H204: Surface water | I204: Improved | J204: % Improved < = 30min | M204: Surface water | N204: Improved | O204: % Improved < = 30min | R204: Surface water | S204: Improved | T204: % Improved < = 30min | W204: Surface water | X204: Improved | Y204: % Improved < = 30min | AB204: Surface water
B205: DHS01 | C205: 2001 | D205: =IF(ISERROR(INDIRECT(CONCATENATE($B205,"!H16"))),"",INDIRECT(CONCATENATE($B205,"!H16"))) -> 89.54483191 | E205: =IF(ISERROR(INDIRECT(CONCATENATE($B205,"!H23"))),"",INDIRECT(CONCATENATE($B205,"!H23"))) -> N/A | H205: =IF(ISERROR(INDIRECT(CONCATENATE($B205,"!H21"))),"",INDIRECT(CONCATENATE($B205,"!H21"))) -> 1.046522745 | I205: =IF(ISERROR(INDIRECT(CONCATENATE($B205,"!I16"))),"",INDIRECT(CONCATENATE($B205,"!I16"))) -> 95.80902735 | J205: =IF(ISERROR(INDIRECT(CONCATENATE($B205,"!I23"))),"",INDIRECT(CONCATENATE($B205,"!I23"))) -> N/A | M205: =IF(ISERROR(INDIRECT(CONCATENATE($B205,"!I21"))),"",INDIRECT(CONCATENATE($B205,"!I21"))) -> 0.08621069115 | N205: =IF(ISERROR(INDIRECT(CONCATENATE($B205,"!J16"))),"",INDIRECT(CONCATENATE($B205,"!J16"))) -> 97.06693661 | O205: =IF(ISERROR(INDIRECT(CONCATENATE($B205,"!J23"))),"",INDIRECT(CONCATENATE($B205,"!J23"))) -> N/A | R205: =IF(ISERROR(INDIRECT(CONCATENATE($B205,"!J21"))),"",INDIRECT(CONCATENATE($B205,"!J21"))) -> 0 | S205: =IF(ISERROR(INDIRECT(CONCATENATE($B205,"!K16"))),"",INDIRECT(CONCATENATE($B205,"!K16"))) -> 98.10988538 | T205: =IF(ISERROR(INDIRECT(CONCATENATE($B205,"!K23"))),"",INDIRECT(CONCATENATE($B205,"!K23"))) -> N/A | W205: =IF(ISERROR(INDIRECT(CONCATENATE($B205,"!K21"))),"",INDIRECT(CONCATENATE($B205,"!K21"))) -> 0 | X205: =IF(ISERROR(INDIRECT(CONCATENATE($B205,"!L16"))),"",INDIRECT(CONCATENATE($B205,"!L16"))) -> 98.77147733 | Y205: =IF(ISERROR(INDIRECT(CONCATENATE($B205,"!L23"))),"",INDIRECT(CONCATENATE($B205,"!L23"))) -> N/A | AB205: =IF(ISERROR(INDIRECT(CONCATENATE($B205,"!L221"))),"",INDIRECT(CONCATENATE($B205,"!L21"))) -> 0
B206: ENDESA11 | C206: 2011 | D206: 93.61831871 | E206: 100 | H206: 1.371277106 | I206: 95.59082785 | J206: 100 | M206: 0.1321059092 | N206: 97.3179197 | O206: 100 | R206: 0.1760540209 | S206: 98.50633193 | T206: 100 | W206: 0.1050739499 | X206: 98.93649121 | Y206: 100 | AB206: 0
B218: =CONCATENATE("Urban use of drinking water sources, ",C199,"–",C200) -> Urban use of drinking water sources, 2000–2017 | S218: Data points used for regression
E253: =IF(ISERROR(INDIRECT(CONCATENATE($B253,"!M18"))),"",INDIRECT(CONCATENATE($B253,"!M18"))) ->  | F253: =IF(ISERROR(INDIRECT(CONCATENATE($B253,"!M19"))),"",INDIRECT(CONCATENATE($B253,"!M19"))) ->  | G253: =IF(ISERROR(INDIRECT(CONCATENATE($B253,"!M20"))),"",INDIRECT(CONCATENATE($B253,"!M20"))) ->  | H253: =IF(ISERROR(INDIRECT(CONCATENATE($B253,"!M21"))),"",INDIRECT(CONCATENATE($B253,"!M21"))) ->  | J253: =IF(ISERROR(INDIRECT(CONCATENATE($B253,"!N18"))),"",INDIRECT(CONCATENATE($B253,"!N18"))) ->  | K253: =IF(ISERROR(INDIRECT(CONCATENATE($B253,"!N19"))),"",INDIRECT(CONCATENATE($B253,"!N19"))) ->  | L253: =IF(ISERROR(INDIRECT(CONCATENATE($B253,"!N20"))),"",INDIRECT(CONCATENATE($B253,"!N20"))) ->  | M253: =IF(ISERROR(INDIRECT(CONCATENATE($B253,"!N21"))),"",INDIRECT(CONCATENATE($B253,"!N21"))) ->  | O253: =IF(ISERROR(INDIRECT(CONCATENATE($B253,"!O18"))),"",INDIRECT(CONCATENATE($B253,"!O18"))) ->  | P253: =IF(ISERROR(INDIRECT(CONCATENATE($B253,"!O19"))),"",INDIRECT(CONCATENATE($B253,"!O19"))) ->  | Q253: =IF(ISERROR(INDIRECT(CONCATENATE($B253,"!O20"))),"",INDIRECT(CONCATENATE($B253,"!O20"))) ->  | R253: =IF(ISERROR(INDIRECT(CONCATENATE($B253,"!O21"))),"",INDIRECT(CONCATENATE($B253,"!O21"))) ->  | T253: =IF(ISERROR(INDIRECT(CONCATENATE($B253,"!P18"))),"",INDIRECT(CONCATENATE($B253,"!P18"))) ->  | U253: =IF(ISERROR(INDIRECT(CONCATENATE($B253,"!P19"))),"",INDIRECT(CONCATENATE($B253,"!P19"))) ->  | V253: =IF(ISERROR(INDIRECT(CONCATENATE($B253,"!P20"))),"",INDIRECT(CONCATENATE($B253,"!P20"))) ->  | W253: =IF(ISERROR(INDIRECT(CONCATENATE($B253,"!P21"))),"",INDIRECT(CONCATENATE($B253,"!P21"))) ->  | Y253: =IF(ISERROR(INDIRECT(CONCATENATE($B253,"!Q18"))),"",INDIRECT(CONCATENATE($B253,"!Q18"))) ->  | Z253: =IF(ISERROR(INDIRECT(CONCATENATE($B253,"!Q19"))),"",INDIRECT(CONCATENATE($B253,"!Q19"))) ->  | AA253: =IF(ISERROR(INDIRECT(CONCATENATE($B253,"!Q20"))),"",INDIRECT(CONCATENATE($B253,"!Q20"))) ->  | AB253: =IF(ISERROR(INDIRECT(CONCATENATE($B253,"!Q21"))),"",INDIRECT(CONCATENATE($B253,"!Q1"))) -> 
E254: =IF(ISERROR(INDIRECT(CONCATENATE($B254,"!M18"))),"",INDIRECT(CONCATENATE($B254,"!M18"))) ->  | F254: =IF(ISERROR(INDIRECT(CONCATENATE($B254,"!M19"))),"",INDIRECT(CONCATENATE($B254,"!M19"))) ->  | G254: =IF(ISERROR(INDIRECT(CONCATENATE($B254,"!M20"))),"",INDIRECT(CONCATENATE($B254,"!M20"))) ->  | H254: =IF(ISERROR(INDIRECT(CONCATENATE($B254,"!M21"))),"",INDIRECT(CONCATENATE($B254,"!M21"))) ->  | J254: =IF(ISERROR(INDIRECT(CONCATENATE($B254,"!N18"))),"",INDIRECT(CONCATENATE($B254,"!N18"))) ->  | K254: =IF(ISERROR(INDIRECT(CONCATENATE($B254,"!N19"))),"",INDIRECT(CONCATENATE($B254,"!N19"))) ->  | L254: =IF(ISERROR(INDIRECT(CONCATENATE($B254,"!N20"))),"",INDIRECT(CONCATENATE($B254,"!N20"))) ->  | M254: =IF(ISERROR(INDIRECT(CONCATENATE($B254,"!N21"))),"",INDIRECT(CONCATENATE($B254,"!N21"))) ->  | O254: =IF(ISERROR(INDIRECT(CONCATENATE($B254,"!O18"))),"",INDIRECT(CONCATENATE($B254,"!O18"))) ->  | P254: =IF(ISERROR(INDIRECT(CONCATENATE($B254,"!O19"))),"",INDIRECT(CONCATENATE($B254,"!O19"))) ->  | Q254: =IF(ISERROR(INDIRECT(CONCATENATE($B254,"!O20"))),"",INDIRECT(CONCATENATE($B254,"!O20"))) ->  | R254: =IF(ISERROR(INDIRECT(CONCATENATE($B254,"!O21"))),"",INDIRECT(CONCATENATE($B254,"!O21"))) ->  | T254: =IF(ISERROR(INDIRECT(CONCATENATE($B254,"!P18"))),"",INDIRECT(CONCATENATE($B254,"!P18"))) ->  | U254: =IF(ISERROR(INDIRECT(CONCATENATE($B254,"!P19"))),"",INDIRECT(CONCATENATE($B254,"!P19"))) ->  | V254: =IF(ISERROR(INDIRECT(CONCATENATE($B254,"!P20"))),"",INDIRECT(CONCATENATE($B254,"!P20"))) ->  | W254: =IF(ISERROR(INDIRECT(CONCATENATE($B254,"!P21"))),"",INDIRECT(CONCATENATE($B254,"!P21"))) ->  | Y254: =IF(ISERROR(INDIRECT(CONCATENATE($B254,"!Q18"))),"",INDIRECT(CONCATENATE($B254,"!Q18"))) ->  | Z254: =IF(ISERROR(INDIRECT(CONCATENATE($B254,"!Q19"))),"",INDIRECT(CONCATENATE($B254,"!Q19"))) ->  | AA254: =IF(ISERROR(INDIRECT(CONCATENATE($B254,"!Q20"))),"",INDIRECT(CONCATENATE($B254,"!Q20"))) ->  | AB254: =IF(ISERROR(INDIRECT(CONCATENATE($B254,"!Q21"))),"",INDIRECT(CONCATENATE($B254,"!Q1"))) -> 
E255: =IF(ISERROR(INDIRECT(CONCATENATE($B255,"!M18"))),"",INDIRECT(CONCATENATE($B255,"!M18"))) ->  | F255: =IF(ISERROR(INDIRECT(CONCATENATE($B255,"!M19"))),"",INDIRECT(CONCATENATE($B255,"!M19"))) ->  | G255: =IF(ISERROR(INDIRECT(CONCATENATE($B255,"!M20"))),"",INDIRECT(CONCATENATE($B255,"!M20"))) ->  | H255: =IF(ISERROR(INDIRECT(CONCATENATE($B255,"!M21"))),"",INDIRECT(CONCATENATE($B255,"!M21"))) ->  | J255: =IF(ISERROR(INDIRECT(CONCATENATE($B255,"!N18"))),"",INDIRECT(CONCATENATE($B255,"!N18"))) ->  | K255: =IF(ISERROR(INDIRECT(CONCATENATE($B255,"!N19"))),"",INDIRECT(CONCATENATE($B255,"!N19"))) ->  | L255: =IF(ISERROR(INDIRECT(CONCATENATE($B255,"!N20"))),"",INDIRECT(CONCATENATE($B255,"!N20"))) ->  | M255: =IF(ISERROR(INDIRECT(CONCATENATE($B255,"!N21"))),"",INDIRECT(CONCATENATE($B255,"!N21"))) ->  | O255: =IF(ISERROR(INDIRECT(CONCATENATE($B255,"!O18"))),"",INDIRECT(CONCATENATE($B255,"!O18"))) ->  | P255: =IF(ISERROR(INDIRECT(CONCATENATE($B255,"!O19"))),"",INDIRECT(CONCATENATE($B255,"!O19"))) ->  | Q255: =IF(ISERROR(INDIRECT(CONCATENATE($B255,"!O20"))),"",INDIRECT(CONCATENATE($B255,"!O20"))) ->  | R255: =IF(ISERROR(INDIRECT(CONCATENATE($B255,"!O21"))),"",INDIRECT(CONCATENATE($B255,"!O21"))) ->  | T255: =IF(ISERROR(INDIRECT(CONCATENATE($B255,"!P18"))),"",INDIRECT(CONCATENATE($B255,"!P18"))) ->  | U255: =IF(ISERROR(INDIRECT(CONCATENATE($B255,"!P19"))),"",INDIRECT(CONCATENATE($B255,"!P19"))) ->  | V255: =IF(ISERROR(INDIRECT(CONCATENATE($B255,"!P20"))),"",INDIRECT(CONCATENATE($B255,"!P20"))) ->  | W255: =IF(ISERROR(INDIRECT(CONCATENATE($B255,"!P21"))),"",INDIRECT(CONCATENATE($B255,"!P21"))) ->  | Y255: =IF(ISERROR(INDIRECT(CONCATENATE($B255,"!Q18"))),"",INDIRECT(CONCATENATE($B255,"!Q18"))) ->  | Z255: =IF(ISERROR(INDIRECT(CONCATENATE($B255,"!Q19"))),"",INDIRECT(CONCATENATE($B255,"!Q19"))) ->  | AA255: =IF(ISERROR(INDIRECT(CONCATENATE($B255,"!Q20"))),"",INDIRECT(CONCATENATE($B255,"!Q20"))) ->  | AB255: =IF(ISERROR(INDIRECT(CONCATENATE($B255,"!Q21"))),"",INDIRECT(CONCATENATE($B255,"!Q1"))) -> 
E256: =IF(ISERROR(INDIRECT(CONCATENATE($B256,"!M18"))),"",INDIRECT(CONCATENATE($B256,"!M18"))) ->  | F256: =IF(ISERROR(INDIRECT(CONCATENATE($B256,"!M19"))),"",INDIRECT(CONCATENATE($B256,"!M19"))) ->  | G256: =IF(ISERROR(INDIRECT(CONCATENATE($B256,"!M20"))),"",INDIRECT(CONCATENATE($B256,"!M20"))) ->  | H256: =IF(ISERROR(INDIRECT(CONCATENATE($B256,"!M21"))),"",INDIRECT(CONCATENATE($B256,"!M21"))) ->  | J256: =IF(ISERROR(INDIRECT(CONCATENATE($B256,"!N18"))),"",INDIRECT(CONCATENATE($B256,"!N18"))) ->  | K256: =IF(ISERROR(INDIRECT(CONCATENATE($B256,"!N19"))),"",INDIRECT(CONCATENATE($B256,"!N19"))) ->  | L256: =IF(ISERROR(INDIRECT(CONCATENATE($B256,"!N20"))),"",INDIRECT(CONCATENATE($B256,"!N20"))) ->  | M256: =IF(ISERROR(INDIRECT(CONCATENATE($B256,"!N21"))),"",INDIRECT(CONCATENATE($B256,"!N21"))) ->  | O256: =IF(ISERROR(INDIRECT(CONCATENATE($B256,"!O18"))),"",INDIRECT(CONCATENATE($B256,"!O18"))) ->  | P256: =IF(ISERROR(INDIRECT(CONCATENATE($B256,"!O19"))),"",INDIRECT(CONCATENATE($B256,"!O19"))) ->  | Q256: =IF(ISERROR(INDIRECT(CONCATENATE($B256,"!O20"))),"",INDIRECT(CONCATENATE($B256,"!O20"))) ->  | R256: =IF(ISERROR(INDIRECT(CONCATENATE($B256,"!O21"))),"",INDIRECT(CONCATENATE($B256,"!O21"))) ->  | T256: =IF(ISERROR(INDIRECT(CONCATENATE($B256,"!P18"))),"",INDIRECT(CONCATENATE($B256,"!P18"))) ->  | U256: =IF(ISERROR(INDIRECT(CONCATENATE($B256,"!P19"))),"",INDIRECT(CONCATENATE($B256,"!P19"))) ->  | V256: =IF(ISERROR(INDIRECT(CONCATENATE($B256,"!P20"))),"",INDIRECT(CONCATENATE($B256,"!P20"))) ->  | W256: =IF(ISERROR(INDIRECT(CONCATENATE($B256,"!P21"))),"",INDIRECT(CONCATENATE($B256,"!P21"))) ->  | Y256: =IF(ISERROR(INDIRECT(CONCATENATE($B256,"!Q18"))),"",INDIRECT(CONCATENATE($B256,"!Q18"))) ->  | Z256: =IF(ISERROR(INDIRECT(CONCATENATE($B256,"!Q19"))),"",INDIRECT(CONCATENATE($B256,"!Q19"))) ->  | AA256: =IF(ISERROR(INDIRECT(CONCATENATE($B256,"!Q20"))),"",INDIRECT(CONCATENATE($B256,"!Q20"))) ->  | AB256: =IF(ISERROR(INDIRECT(CONCATENATE($B256,"!Q21"))),"",INDIRECT(CONCATENATE($B256,"!Q1"))) -> 
E257: =IF(ISERROR(INDIRECT(CONCATENATE($B257,"!M18"))),"",INDIRECT(CONCATENATE($B257,"!M18"))) ->  | F257: =IF(ISERROR(INDIRECT(CONCATENATE($B257,"!M19"))),"",INDIRECT(CONCATENATE($B257,"!M19"))) ->  | G257: =IF(ISERROR(INDIRECT(CONCATENATE($B257,"!M20"))),"",INDIRECT(CONCATENATE($B257,"!M20"))) ->  | H257: =IF(ISERROR(INDIRECT(CONCATENATE($B257,"!M21"))),"",INDIRECT(CONCATENATE($B257,"!M21"))) ->  | J257: =IF(ISERROR(INDIRECT(CONCATENATE($B257,"!N18"))),"",INDIRECT(CONCATENATE($B257,"!N18"))) ->  | K257: =IF(ISERROR(INDIRECT(CONCATENATE($B257,"!N19"))),"",INDIRECT(CONCATENATE($B257,"!N19"))) ->  | L257: =IF(ISERROR(INDIRECT(CONCATENATE($B257,"!N20"))),"",INDIRECT(CONCATENATE($B257,"!N20"))) ->  | M257: =IF(ISERROR(INDIRECT(CONCATENATE($B257,"!N21"))),"",INDIRECT(CONCATENATE($B257,"!N21"))) ->  | O257: =IF(ISERROR(INDIRECT(CONCATENATE($B257,"!O18"))),"",INDIRECT(CONCATENATE($B257,"!O18"))) ->  | P257: =IF(ISERROR(INDIRECT(CONCATENATE($B257,"!O19"))),"",INDIRECT(CONCATENATE($B257,"!O19"))) ->  | Q257: =IF(ISERROR(INDIRECT(CONCATENATE($B257,"!O20"))),"",INDIRECT(CONCATENATE($B257,"!O20"))) ->  | R257: =IF(ISERROR(INDIRECT(CONCATENATE($B257,"!O21"))),"",INDIRECT(CONCATENATE($B257,"!O21"))) ->  | T257: =IF(ISERROR(INDIRECT(CONCATENATE($B257,"!P18"))),"",INDIRECT(CONCATENATE($B257,"!P18"))) ->  | U257: =IF(ISERROR(INDIRECT(CONCATENATE($B257,"!P19"))),"",INDIRECT(CONCATENATE($B257,"!P19"))) ->  | V257: =IF(ISERROR(INDIRECT(CONCATENATE($B257,"!P20"))),"",INDIRECT(CONCATENATE($B257,"!P20"))) ->  | W257: =IF(ISERROR(INDIRECT(CONCATENATE($B257,"!P21"))),"",INDIRECT(CONCATENATE($B257,"!P21"))) ->  | Y257: =IF(ISERROR(INDIRECT(CONCATENATE($B257,"!Q18"))),"",INDIRECT(CONCATENATE($B257,"!Q18"))) ->  | Z257: =IF(ISERROR(INDIRECT(CONCATENATE($B257,"!Q19"))),"",INDIRECT(CONCATENATE($B257,"!Q19"))) ->  | AA257: =IF(ISERROR(INDIRECT(CONCATENATE($B257,"!Q20"))),"",INDIRECT(CONCATENATE($B257,"!Q20"))) ->  | AB257: =IF(ISERROR(INDIRECT(CONCATENATE($B257,"!Q21"))),"",INDIRECT(CONCATENATE($B257,"!Q1"))) -> 
A297: RURAL | D297: Poorest | I297: Poor | N297: Middle | S297: Rich | X297: Richest
D298: Improved | E298: Basic | F298: Limited | G298: Unimproved | H298: Surface water | I298: Improved | J298: Basic | K298: Limited | L298: Unimproved | M298: Surface water | N298: Improved | O298: Basic | P298: Limited | Q298: Unimproved | R298: Surface water | S298: Improved | T298: Basic | U298: Limited | V298: Unimproved | W298: Surface water | X298: Improved | Y298: Basic | Z298: Limited | AA298: Unimproved | AB298: Surface water
A299: Forecast period: | C299: 2000 | D299: =IF((D301+H301)>100,D301*100/(D301+H301),D301) -> 48.36352816 | E299: =D299*AVERAGEIF(E305:E316,">0")/100 -> 48.36352816 | F299: =D299*(100-AVERAGEIF(E305:E316,">0"))/100 -> 0 | G299: =100-(E299+F299+H299) -> 34.00644383 | H299: =IF((D301+H301)>100,H301*100/(D301+H301),H301) -> 17.63002801 | I299: =IF((I301+M301)>100,I301*100/(I301+M301),I301) -> 51.8324521 | J299: =I299*AVERAGEIF(J305:J316,">0")/100 -> 51.8324521 | K299: =I299*(100-AVERAGEIF(J305:J316,">0"))/100 -> 0 | L299: =100-(J299+K299+M299) -> 33.36891548 | M299: =IF((I301+M301)>100,M301*100/(I301+M301),M301) -> 14.79863242 | N299: =IF((N301+R301)>100,N301*100/(N301+R301),N301) -> 57.61451371 | O299: =N299*AVERAGEIF(O305:O316,">0")/100 -> 57.61451371 | P299: =N299*(100-AVERAGEIF(O305:O316,">0"))/100 -> 0 | Q299: =100-(O299+P299+R299) -> 30.99381308 | R299: =IF((N301+R301)>100,R301*100/(N301+R301),R301) -> 11.39167321 | S299: =IF((S301+W301)>100,S301*100/(S301+W301),S301) -> 71.85015379 | T299: =S299*AVERAGEIF(T305:T316,">0")/100 -> 71.85015379 | U299: =S299*(100-AVERAGEIF(T305:T316,">0"))/100 -> 0 | V299: =100-(T299+U299+W299) -> 24.91614518 | W299: =IF((S301+W301)>100,W301*100/(S301+W301),W301) -> 3.233701031 | X299: =IF((X301+AB301)>100,X301*100/(X301+AB301),X301) -> 85.13692899 | Y299: =X299*AVERAGEIF(Y305:Y316,">0")/100 -> 85.13692899 | Z299: =X299*(100-AVERAGEIF(Y305:Y316,">0"))/100 -> 0 | AA299: =100-(Y299+Z299+AB299) -> 14.03458476 | AB299: =IF((X301+AB301)>100,AB301*100/(X301+AB301),AB301) -> 0.828486244
C300: 2017 | D300: =IF((D302+H302)>100,D302*100/(D302+H302),D302) -> 43.2909655 | E300: =D300*AVERAGEIF(E305:E316,">0")/100 -> 43.2909655 | F300: =D300*(100-AVERAGEIF(E305:E316,">0"))/100 -> 0 | G300: =100-(E300+F300+H300) -> 35.46646321 | H300: =IF((D302+H302)>100,H302*100/(D302+H302),H302) -> 21.24257129 | I300: =IF((I302+M302)>100,I302*100/(I302+M302),I302) -> 52.60630255 | J300: =I300*AVERAGEIF(J305:J316,">0")/100 -> 52.60630255 | K300: =I300*(100-AVERAGEIF(J305:J316,">0"))/100 -> 0 | L300: =100-(J300+K300+M300) -> 32.27077257 | M300: =IF((I302+M302)>100,M302*100/(I302+M302),M302) -> 15.12292489 | N300: =IF((N302+R302)>100,N302*100/(N302+R302),N302) -> 66.90689176 | O300: =N300*AVERAGEIF(O305:O316,">0")/100 -> 66.90689176 | P300: =N300*(100-AVERAGEIF(O305:O316,">0"))/100 -> 0 | Q300: =100-(O300+P300+R300) -> 25.81318362 | R300: =IF((N302+R302)>100,R302*100/(N302+R302),R302) -> 7.279924617 | S300: =IF((S302+W302)>100,S302*100/(S302+W302),S302) -> 74.54205353 | T300: =S300*AVERAGEIF(T305:T316,">0")/100 -> 74.54205353 | U300: =S300*(100-AVERAGEIF(T305:T316,">0"))/100 -> 0 | V300: =100-(T300+U300+W300) -> 19.04592653 | W300: =IF((S302+W302)>100,W302*100/(S302+W302),W302) -> 6.412019943 | X300: =IF((X302+AB302)>100,X302*100/(X302+AB302),X302) -> 79.45152383 | Y300: =X300*AVERAGEIF(Y305:Y316,">0")/100 -> 79.45152383 | Z300: =X300*(100-AVERAGEIF(Y305:Y316,">0"))/100 -> 0 | AA300: =100-(Y300+Z300+AB300) -> 17.16417659 | AB300: =IF((X302+AB302)>100,AB302*100/(X302+AB302),AB302) -> 3.38429958
A301: Regression period: | C301: =MinRegYear(C299,C305:C316) -> 2000 | D301: =IF(MAX(C305:C316)-MIN(C305:C316)<5,AVERAGEIF(C305:C316,">0",D305:D316), IF(FORECAST($C301,D$305:D$316,$C$305:$C$316)<0,0, IF(FORECAST($C301,D$305:D$316,$C$305:$C$316)>100,100, FORECAST($C301,D$305:D$316,$C$305:$C$316)))) -> 48.36352816 | H301: =IF(MAX(C305:C316)-MIN(C305:C316)<5,AVERAGEIF(C305:C316,">0",H305:H316), IF(FORECAST($C301,H$305:H$316,$C$305:$C$316)<0,0, IF(FORECAST($C301,H$305:H$316,$C$305:$C$316)>100,100, FORECAST($C301,H$305:H$316,$C$305:$C$316)))) -> 17.63002801 | I301: =IF(MAX(C305:C316)-MIN(C305:C316)<5,AVERAGEIF(C305:C316,">0",I305:I316), IF(FORECAST($C301,I$305:I$316,$C$305:$C$316)<0,0, IF(FORECAST($C301,I$305:I$316,$C$305:$C$316)>100,100, FORECAST($C301,I$305:I$316,$C$305:$C$316)))) -> 51.8324521 | M301: =IF(MAX(C305:C316)-MIN(C305:C316)<5,AVERAGEIF(C305:C316,">0",M305:M316), IF(FORECAST($C301,M$305:M$316,$C$305:$C$316)<0,0, IF(FORECAST($C301,M$305:M$316,$C$305:$C$316)>100,100, FORECAST($C301,M$305:M$316,$C$305:$C$316)))) -> 14.79863242 | N301: =IF(MAX(C305:C316)-MIN(C305:C316)<5,AVERAGEIF(C305:C316,">0",N305:N316), IF(FORECAST($C301,N$305:N$316,$C$305:$C$316)<0,0, IF(FORECAST($C301,N$305:N$316,$C$305:$C$316)>100,100, FORECAST($C301,N$305:N$316,$C$305:$C$316)))) -> 57.61451371 | R301: =IF(MAX(C305:C316)-MIN(C305:C316)<5,AVERAGEIF(C305:C316,">0",R305:R316), IF(FORECAST($C301,R$305:R$316,$C$305:$C$316)<0,0, IF(FORECAST($C301,R$305:R$316,$C$305:$C$316)>100,100, FORECAST($C301,R$305:R$316,$C$305:$C$316)))) -> 11.39167321 | S301: =IF(MAX(C305:C316)-MIN(C305:C316)<5,AVERAGEIF(C305:C316,">0",S305:S316), IF(FORECAST($C301,S$305:S$316,$C$305:$C$316)<0,0, IF(FORECAST($C301,S$305:S$316,$C$305:$C$316)>100,100, FORECAST($C301,S$305:S$316,$C$305:$C$316)))) -> 71.85015379 | W301: =IF(MAX(C305:C316)-MIN(C305:C316)<5,AVERAGEIF(C305:C316,">0",W305:W316), IF(FORECAST($C301,W$305:W$316,$C$305:$C$316)<0,0, IF(FORECAST($C301,W$305:W$316,$C$305:$C$316)>100,100, FORECAST($C301,W$305:W$316,$C$305:$C$316)))) -> 3.233701031 | X301: =IF(MAX(C305:C316)-MIN(C305:C316)<5,AVERAGEIF(C305:C316,">0",X305:X316), IF(FORECAST($C301,X$305:X$316,$C$305:$C$316)<0,0, IF(FORECAST($C301,X$305:X$316,$C$305:$C$316)>100,100, FORECAST($C301,X$305:X$316,$C$305:$C$316)))) -> 85.13692899 | AB301: =IF(MAX(C305:C316)-MIN(C305:C316)<5,AVERAGEIF(C305:C316,">0",AB305:AB316), IF(FORECAST($C301,AB$305:AB$316,$C$305:$C$316)<0,0, IF(FORECAST($C301,AB$305:AB$316,$C$305:$C$316)>100,100, FORECAST($C301,AB$305:AB$316,$C$305:$C$316)))) -> 0.828486244
C302: =MaxRegYear(C300,C305:C316) -> 2013 | D302: =IF(MAX(C305:C316)-MIN(C305:C316)<5,AVERAGEIF(C305:C316,">0",D305:D316), IF(FORECAST($C302,D$305:D$316,$C$305:$C$316)<0,0, IF(FORECAST($C302,D$305:D$316,$C$305:$C$316)>100,100, FORECAST($C302,D$305:D$316,$C$305:$C$316)))) -> 43.2909655 | H302: =IF(MAX(C305:C316)-MIN(C305:C316)<5,AVERAGEIF(C305:C316,">0",H305:H316), IF(FORECAST($C302,H$305:H$316,$C$305:$C$316)<0,0, IF(FORECAST($C302,H$305:H$316,$C$305:$C$316)>100,100, FORECAST($C302,H$305:H$316,$C$305:$C$316)))) -> 21.24257129 | I302: =IF(MAX(C305:C316)-MIN(C305:C316)<5,AVERAGEIF(C305:C316,">0",I305:I316), IF(FORECAST($C302,I$305:I$316,$C$305:$C$316)<0,0, IF(FORECAST($C302,I$305:I$316,$C$305:$C$316)>100,100, FORECAST($C302,I$305:I$316,$C$305:$C$316)))) -> 52.60630255 | M302: =IF(MAX(C305:C316)-MIN(C305:C316)<5,AVERAGEIF(C305:C316,">0",M305:M316), IF(FORECAST($C302,M$305:M$316,$C$305:$C$316)<0,0, IF(FORECAST($C302,M$305:M$316,$C$305:$C$316)>100,100, FORECAST($C302,M$305:M$316,$C$305:$C$316)))) -> 15.12292489 | N302: =IF(MAX(C305:C316)-MIN(C305:C316)<5,AVERAGEIF(C305:C316,">0",N305:N316), IF(FORECAST($C302,N$305:N$316,$C$305:$C$316)<0,0, IF(FORECAST($C302,N$305:N$316,$C$305:$C$316)>100,100, FORECAST($C302,N$305:N$316,$C$305:$C$316)))) -> 66.90689176 | R302: =IF(MAX(C305:C316)-MIN(C305:C316)<5,AVERAGEIF(C305:C316,">0",R305:R316), IF(FORECAST($C302,R$305:R$316,$C$305:$C$316)<0,0, IF(FORECAST($C302,R$305:R$316,$C$305:$C$316)>100,100, FORECAST($C302,R$305:R$316,$C$305:$C$316)))) -> 7.279924617 | S302: =IF(MAX(C305:C316)-MIN(C305:C316)<5,AVERAGEIF(C305:C316,">0",S305:S316), IF(FORECAST($C302,S$305:S$316,$C$305:$C$316)<0,0, IF(FORECAST($C302,S$305:S$316,$C$305:$C$316)>100,100, FORECAST($C302,S$305:S$316,$C$305:$C$316)))) -> 74.54205353 | W302: =IF(MAX(C305:C316)-MIN(C305:C316)<5,AVERAGEIF(C305:C316,">0",W305:W316), IF(FORECAST($C302,W$305:W$316,$C$305:$C$316)<0,0, IF(FORECAST($C302,W$305:W$316,$C$305:$C$316)>100,100, FORECAST($C302,W$305:W$316,$C$305:$C$316)))) -> 6.412019943 | X302: =IF(MAX(C305:C316)-MIN(C305:C316)<5,AVERAGEIF(C305:C316,">0",X305:X316), IF(FORECAST($C302,X$305:X$316,$C$305:$C$316)<0,0, IF(FORECAST($C302,X$305:X$316,$C$305:$C$316)>100,100, FORECAST($C302,X$305:X$316,$C$305:$C$316)))) -> 79.45152383 | AB302: =IF(MAX(C305:C316)-MIN(C305:C316)<5,AVERAGEIF(C305:C316,">0",AB305:AB316), IF(FORECAST($C302,AB$305:AB$316,$C$305:$C$316)<0,0, IF(FORECAST($C302,AB$305:AB$316,$C$305:$C$316)>100,100, FORECAST($C302,AB$305:AB$316,$C$305:$C$316)))) -> 3.38429958
B304: Survey | C304: Year | D304: Improved | E304: % Improved < = 30min | H304: Surface water | I304: Improved | J304: % Improved < = 30min | M304: Surface water | N304: Improved | O304: % Improved < = 30min | R304: Surface water | S304: Improved | T304: % Improved < = 30min | W304: Surface water | X304: Improved | Y304: % Improved < = 30min | AB304: Surface water
B305: DHS01 | C305: 2001 | D305: =IF(ISERROR(INDIRECT(CONCATENATE($B305,"!M16"))),"",INDIRECT(CONCATENATE($B305,"!M16"))) -> 47.97333103 | E305: =IF(ISERROR(INDIRECT(CONCATENATE($B305,"!M23"))),"",INDIRECT(CONCATENATE($B305,"!M23"))) -> N/A | H305: =IF(ISERROR(INDIRECT(CONCATENATE($B305,"!M21"))),"",INDIRECT(CONCATENATE($B305,"!M21"))) -> 17.90791595 | I305: =IF(ISERROR(INDIRECT(CONCATENATE($B305,"!N16"))),"",INDIRECT(CONCATENATE($B305,"!N16"))) -> 51.89197906 | J305: =IF(ISERROR(INDIRECT(CONCATENATE($B305,"!N23"))),"",INDIRECT(CONCATENATE($B305,"!N23"))) -> N/A | M305: =IF(ISERROR(INDIRECT(CONCATENATE($B305,"!N21"))),"",INDIRECT(CONCATENATE($B305,"!N21"))) -> 14.82357799 | N305: =IF(ISERROR(INDIRECT(CONCATENATE($B305,"!O16"))),"",INDIRECT(CONCATENATE($B305,"!O16"))) -> 58.32931202 | O305: =IF(ISERROR(INDIRECT(CONCATENATE($B305,"!O23"))),"",INDIRECT(CONCATENATE($B305,"!O23"))) -> N/A | R305: =IF(ISERROR(INDIRECT(CONCATENATE($B305,"!O21"))),"",INDIRECT(CONCATENATE($B305,"!O21"))) -> 11.07538486 | S305: =IF(ISERROR(INDIRECT(CONCATENATE($B305,"!P16"))),"",INDIRECT(CONCATENATE($B305,"!P16"))) -> 72.057223 | T305: =IF(ISERROR(INDIRECT(CONCATENATE($B305,"!P23"))),"",INDIRECT(CONCATENATE($B305,"!P23"))) -> N/A | W305: =IF(ISERROR(INDIRECT(CONCATENATE($B305,"!P21"))),"",INDIRECT(CONCATENATE($B305,"!P21"))) -> 3.478187101 | X305: =IF(ISERROR(INDIRECT(CONCATENATE($B305,"!Q16"))),"",INDIRECT(CONCATENATE($B305,"!Q16"))) -> 84.69959014 | Y305: =IF(ISERROR(INDIRECT(CONCATENATE($B305,"!Q23"))),"",INDIRECT(CONCATENATE($B305,"!Q23"))) -> N/A | AB305: =IF(ISERROR(INDIRECT(CONCATENATE($B305,"!Q221"))),"",INDIRECT(CONCATENATE($B305,"!Q21"))) -> 1.02508727
B306: ENDESA11 | C306: 2011 | D306: 44.07135976 | E306: 100 | H306: 20.6867954 | I306: 52.48724863 | J306: 100 | M306: 15.07303374 | N306: 65.47729514 | O306: 100 | R306: 7.912501324 | S306: 74.12791511 | T306: 100 | W306: 5.923047802 | X306: 80.32620155 | Y306: 100 | AB306: 2.991097528
B318: =CONCATENATE("Rural use of drinking water sources, ",C299,"–",C300) -> Rural use of drinking water sources, 2000–2017 | S318: Data points used for regression

Sheet Sanitation
B4: Summary of trends in use of sanitation facilities by wealth quintile (%)
B5: =IF(ISERROR(INDIRECT(CONCATENATE($B105,"!A2"))),"",INDIRECT(CONCATENATE($B105,"!A2"))) -> Nicaragua
B7: =B118 -> National use of sanitation facilities, 2000–2017 | J7: =B218 -> Urban use of sanitation facilities, 2000–2017 | R7: =B318 -> Rural use of sanitation facilities, 2000–2017
B31: =IF(ISERROR(INDIRECT(CONCATENATE($B105,"!A2"))),"",INDIRECT(CONCATENATE($B105,"!A2"))) -> Nicaragua | F31: Poorest | J31: Poor | N31: Middle | R31: Rich | V31: Richest
F32: Basic | G32: Limited | H32: Unimproved | I32: Open defecation | J32: Basic | K32: Limited | L32: Unimproved | M32: Open defecation | N32: Basic | O32: Limited | P32: Unimproved | Q32: Open defecation | R32: Basic | S32: Limited | T32: Unimproved | U32: Open defecation | V32: Basic | W32: Limited | X32: Unimproved | Y32: Open defecation
B33: NATIONAL | D33: Estimate | E33: =C99 -> 2000 | F33: =E99 -> 25.8227033 | G33: =F99 -> 1.718495448 | H33: 19.44799137 | I33: 53.01080988 | J33: =J99 -> 43.50116648 | K33: =K99 -> 4.001694955 | L33: 32.83044854 | M33: 19.66669002 | N33: =O99 -> 49.95995763 | O33: =P99 -> 5.783311301 | P33: 38.8780891 | Q33: 5.378641972 | R33: =T99 -> 62.60369015 | S33: =U99 -> 5.783656266 | T33: 30.17093546 | U33: 1.441718122 | V33: =Y99 -> 85.10379538 | W33: =Z99 -> 3.602677475 | X33: 10.88985682 | Y33: 0.4036703202
E34: =C100 -> 2017 | F34: =E100 -> 45.85017812 | G34: 3.051319664 | H34: 22.03901395 | I34: 29.05948826 | J34: =J100 -> 58.85842297 | K34: 5.414416975 | L34: 26.50312413 | M34: 9.224035927 | N34: =O100 -> 67.24734255 | O34: 7.784480503 | P34: 21.15418224 | Q34: 3.813994711 | R34: =T100 -> 78.47321243 | S34: 7.24976572 | T34: 12.56984249 | U34: 1.707179353 | V34: =Y100 -> 92.17034925 | W34: 3.901824116 | X34: 3.572884748 | Y34: 0.3549418814
B36: URBAN | D36: Estimate | E36: =C199 -> 2000 | F36: =E199 -> 44.69159956 | G36: =F199 -> 5.017387563 | H36: 39.34290121 | I36: 10.94811167 | J36: =J199 -> 53.55582881 | K36: =K199 -> 6.079238043 | L36: 37.09748729 | M36: 3.267445854 | N36: =O199 -> 62.38772049 | O36: =P199 -> 5.644210995 | P36: 30.99407763 | Q36: 0.9739908812 | R36: =T199 -> 75.47034093 | S36: =U199 -> 4.820071838 | T36: 19.09222047 | U36: 0.617366763 | V36: =Y199 -> 92.18570289 | W36: =Z199 -> 2.415797327 | X36: 5.3059519 | Y36: 0.09254787785
E37: =C200 -> 2017 | F37: =E200 -> 64.49803916 | G37: 7.240995236 | H37: 21.91716846 | I37: 6.343797148 | J37: =J200 -> 72.29345695 | K37: 8.206186768 | L37: 16.28129456 | M37: 3.219061725 | N37: =O200 -> 79.55650152 | O37: 7.197468942 | P37: 11.93175444 | Q37: 1.314275107 | R37: =T200 -> 88.98013878 | S37: 5.682903453 | T37: 4.697793828 | U37: 0.6391639389 | V37: =Y200 -> 95.4874647 | W37: 2.502322538 | X37: 1.943561884 | Y37: 0.06665087764
B39: RURAL | D39: Estimate | E39: =C299 -> 2000 | F39: =E299 -> 18.83939196 | G39: =F299 -> 1.087075083 | H39: 14.87413578 | I39: 65.19939717 | J39: =J299 -> 28.49722067 | K39: =K299 -> 1.642966442 | L39: 20.47472494 | M39: 49.38508794 | N39: =O299 -> 41.68156035 | O39: =P299 -> 2.355473984 | P39: 29.55998096 | Q39: 26.40298471 | R39: =T299 -> 45.70510939 | S39: =U299 -> 4.983959949 | T39: 32.26214379 | U39: 17.04878687 | V39: =Y299 -> 52.41563856 | W39: =Z299 -> 6.472191521 | X39: 35.25379793 | Y39: 5.858371991
E40: =C300 -> 2017 | F40: =E300 -> 36.03321285 | G40: 2.079197032 | H40: 18.13626919 | I40: 43.75132093 | J40: =J300 -> 52.45114935 | K40: 3.023995891 | L40: 26.76678408 | M40: 17.75807067 | N40: =O300 -> 55.44357685 | O40: 3.133181717 | P40: 27.70547789 | Q40: 13.71776355 | R40: =T300 -> 56.60154283 | S40: 6.172172571 | T40: 29.36211505 | U40: 7.864169547 | V40: =Y300 -> 62.70762652 | W40: 7.743028221 | X40: 25.2294713 | Y40: 4.319873964
A97: NATIONAL | D97: Poorest | I97: Poor | N97: Middle | S97: Rich | X97: Richest
D98: Improved | E98: Basic | F98: Limited | G98: Unimproved | H98: Open defecation | I98: Improved | J98: Basic | K98: Limited | L98: Unimproved | M98: Open defecation | N98: Improved | O98: Basic | P98: Limited | Q98: Unimproved | R98: Open defecation | S98: Improved | T98: Basic | U98: Limited | V98: Unimproved | W98: Open defecation | X98: Improved | Y98: Basic | Z98: Limited | AA98: Unimproved | AB98: Open defecation
A99: Forecast period: | C99: 2000 | D99: =IF((D101+H101)>100,D101*100/(D101+H101),D101) -> 27.54119875 | E99: =D99*AVERAGEIF(E105:E116,">0")/100 -> 25.8227033 | F99: =D99*(100-AVERAGEIF(E105:E116,">0"))/100 -> 1.718495448 | G99: =100-(E99+F99+H99) -> 19.44799137 | H99: =IF((D101+H101)>100,H101*100/(D101+H101),H101) -> 53.01080988 | I99: =IF((I101+M101)>100,I101*100/(I101+M101),I101) -> 47.50286143 | J99: =I99*AVERAGEIF(J105:J116,">0")/100 -> 43.50116648 | K99: =I99*(100-AVERAGEIF(J105:J116,">0"))/100 -> 4.001694955 | L99: =100-(J99+K99+M99) -> 32.83044854 | M99: =IF((I101+M101)>100,M101*100/(I101+M101),M101) -> 19.66669002 | N99: =IF((N101+R101)>100,N101*100/(N101+R101),N101) -> 55.74326893 | O99: =N99*AVERAGEIF(O105:O116,">0")/100 -> 49.95995763 | P99: =N99*(100-AVERAGEIF(O105:O116,">0"))/100 -> 5.783311301 | Q99: =100-(O99+P99+R99) -> 38.8780891 | R99: =IF((N101+R101)>100,R101*100/(N101+R101),R101) -> 5.378641972 | S99: =IF((S101+W101)>100,S101*100/(S101+W101),S101) -> 68.38734642 | T99: =S99*AVERAGEIF(T105:T116,">0")/100 -> 62.60369015 | U99: =S99*(100-AVERAGEIF(T105:T116,">0"))/100 -> 5.783656266 | V99: =100-(T99+U99+W99) -> 30.17093546 | W99: =IF((S101+W101)>100,W101*100/(S101+W101),W101) -> 1.441718122 | X99: =IF((X101+AB101)>100,X101*100/(X101+AB101),X101) -> 88.70647286 | Y99: =X99*AVERAGEIF(Y105:Y116,">0")/100 -> 85.10379538 | Z99: =X99*(100-AVERAGEIF(Y105:Y116,">0"))/100 -> 3.602677475 | AA99: =100-(Y99+Z99+AB99) -> 10.88985682 | AB99: =IF((X101+AB101)>100,AB101*100/(X101+AB101),AB101) -> 0.4036703202
C100: 2017 | D100: =IF((D102+H102)>100,D102*100/(D102+H102),D102) -> 48.90149778 | E100: =D100*AVERAGEIF(E105:E116,">0")/100 -> 45.85017812 | F100: =D100*(100-AVERAGEIF(E105:E116,">0"))/100 -> 3.051319664 | G100: =100-(E100+F100+H100) -> 22.03901395 | H100: =IF((D102+H102)>100,H102*100/(D102+H102),H102) -> 29.05948826 | I100: =IF((I102+M102)>100,I102*100/(I102+M102),I102) -> 64.27283994 | J100: =I100*AVERAGEIF(J105:J116,">0")/100 -> 58.85842297 | K100: =I100*(100-AVERAGEIF(J105:J116,">0"))/100 -> 5.414416975 | L100: =100-(J100+K100+M100) -> 26.50312413 | M100: =IF((I102+M102)>100,M102*100/(I102+M102),M102) -> 9.224035927 | N100: =IF((N102+R102)>100,N102*100/(N102+R102),N102) -> 75.03182305 | O100: =N100*AVERAGEIF(O105:O116,">0")/100 -> 67.24734255 | P100: =N100*(100-AVERAGEIF(O105:O116,">0"))/100 -> 7.784480503 | Q100: =100-(O100+P100+R100) -> 21.15418224 | R100: =IF((N102+R102)>100,R102*100/(N102+R102),R102) -> 3.813994711 | S100: =IF((S102+W102)>100,S102*100/(S102+W102),S102) -> 85.72297815 | T100: =S100*AVERAGEIF(T105:T116,">0")/100 -> 78.47321243 | U100: =S100*(100-AVERAGEIF(T105:T116,">0"))/100 -> 7.24976572 | V100: =100-(T100+U100+W100) -> 12.56984249 | W100: =IF((S102+W102)>100,W102*100/(S102+W102),W102) -> 1.707179353 | X100: =IF((X102+AB102)>100,X102*100/(X102+AB102),X102) -> 96.07217337 | Y100: =X100*AVERAGEIF(Y105:Y116,">0")/100 -> 92.17034925 | Z100: =X100*(100-AVERAGEIF(Y105:Y116,">0"))/100 -> 3.901824116 | AA100: =100-(Y100+Z100+AB100) -> 3.572884748 | AB100: =IF((X102+AB102)>100,AB102*100/(X102+AB102),AB102) -> 0.3549418814
A101: Regression period: | C101: =MinRegYear(C99,C105:C116) -> 2000 | D101: =IF(MAX(C105:C116)-MIN(C105:C116)<5,AVERAGEIF(C105:C116,">0",D105:D116), IF(FORECAST($C101,D$105:D$116,$C$105:$C$116)<0,0, IF(FORECAST($C101,D$105:D$116,$C$105:$C$116)>100,100, FORECAST($C101,D$105:D$116,$C$105:$C$116)))) -> 27.54119875 | H101: =IF(MAX(C105:C116)-MIN(C105:C116)<5,AVERAGEIF(C105:C116,">0",H105:H116), IF(FORECAST($C101,H$105:H$116,$C$105:$C$116)<0,0, IF(FORECAST($C101,H$105:H$116,$C$105:$C$116)>100,100, FORECAST($C101,H$105:H$116,$C$105:$C$116)))) -> 53.01080988 | I101: =IF(MAX(C105:C116)-MIN(C105:C116)<5,AVERAGEIF(C105:C116,">0",I105:I116), IF(FORECAST($C101,I$105:I$116,$C$105:$C$116)<0,0, IF(FORECAST($C101,I$105:I$116,$C$105:$C$116)>100,100, FORECAST($C101,I$105:I$116,$C$105:$C$116)))) -> 47.50286143 | M101: =IF(MAX(C105:C116)-MIN(C105:C116)<5,AVERAGEIF(C105:C116,">0",M105:M116), IF(FORECAST($C101,M$105:M$116,$C$105:$C$116)<0,0, IF(FORECAST($C101,M$105:M$116,$C$105:$C$116)>100,100, FORECAST($C101,M$105:M$116,$C$105:$C$116)))) -> 19.66669002 | N101: =IF(MAX(C105:C116)-MIN(C105:C116)<5,AVERAGEIF(C105:C116,">0",N105:N116), IF(FORECAST($C101,N$105:N$116,$C$105:$C$116)<0,0, IF(FORECAST($C101,N$105:N$116,$C$105:$C$116)>100,100, FORECAST($C101,N$105:N$116,$C$105:$C$116)))) -> 55.74326893 | R101: =IF(MAX(C105:C116)-MIN(C105:C116)<5,AVERAGEIF(C105:C116,">0",R105:R116), IF(FORECAST($C101,R$105:R$116,$C$105:$C$116)<0,0, IF(FORECAST($C101,R$105:R$116,$C$105:$C$116)>100,100, FORECAST($C101,R$105:R$116,$C$105:$C$116)))) -> 5.378641972 | S101: =IF(MAX(C105:C116)-MIN(C105:C116)<5,AVERAGEIF(C105:C116,">0",S105:S116), IF(FORECAST($C101,S$105:S$116,$C$105:$C$116)<0,0, IF(FORECAST($C101,S$105:S$116,$C$105:$C$116)>100,100, FORECAST($C101,S$105:S$116,$C$105:$C$116)))) -> 68.38734642 | W101: =IF(MAX(C105:C116)-MIN(C105:C116)<5,AVERAGEIF(C105:C116,">0",W105:W116), IF(FORECAST($C101,W$105:W$116,$C$105:$C$116)<0,0, IF(FORECAST($C101,W$105:W$116,$C$105:$C$116)>100,100, FORECAST($C101,W$105:W$116,$C$105:$C$116)))) -> 1.441718122 | X101: =IF(MAX(C105:C116)-MIN(C105:C116)<5,AVERAGEIF(C105:C116,">0",X105:X116), IF(FORECAST($C101,X$105:X$116,$C$105:$C$116)<0,0, IF(FORECAST($C101,X$105:X$116,$C$105:$C$116)>100,100, FORECAST($C101,X$105:X$116,$C$105:$C$116)))) -> 88.70647286 | AB101: =IF(MAX(C105:C116)-MIN(C105:C116)<5,AVERAGEIF(C105:C116,">0",AB105:AB116), IF(FORECAST($C101,AB$105:AB$116,$C$105:$C$116)<0,0, IF(FORECAST($C101,AB$105:AB$116,$C$105:$C$116)>100,100, FORECAST($C101,AB$105:AB$116,$C$105:$C$116)))) -> 0.4036703202
C102: =MaxRegYear(C100,C105:C116) -> 2013 | D102: =IF(MAX(C105:C116)-MIN(C105:C116)<5,AVERAGEIF(C105:C116,">0",D105:D116), IF(FORECAST($C102,D$105:D$116,$C$105:$C$116)<0,0, IF(FORECAST($C102,D$105:D$116,$C$105:$C$116)>100,100, FORECAST($C102,D$105:D$116,$C$105:$C$116)))) -> 48.90149778 | H102: =IF(MAX(C105:C116)-MIN(C105:C116)<5,AVERAGEIF(C105:C116,">0",H105:H116), IF(FORECAST($C102,H$105:H$116,$C$105:$C$116)<0,0, IF(FORECAST($C102,H$105:H$116,$C$105:$C$116)>100,100, FORECAST($C102,H$105:H$116,$C$105:$C$116)))) -> 29.05948826 | I102: =IF(MAX(C105:C116)-MIN(C105:C116)<5,AVERAGEIF(C105:C116,">0",I105:I116), IF(FORECAST($C102,I$105:I$116,$C$105:$C$116)<0,0, IF(FORECAST($C102,I$105:I$116,$C$105:$C$116)>100,100, FORECAST($C102,I$105:I$116,$C$105:$C$116)))) -> 64.27283994 | M102: =IF(MAX(C105:C116)-MIN(C105:C116)<5,AVERAGEIF(C105:C116,">0",M105:M116), IF(FORECAST($C102,M$105:M$116,$C$105:$C$116)<0,0, IF(FORECAST($C102,M$105:M$116,$C$105:$C$116)>100,100, FORECAST($C102,M$105:M$116,$C$105:$C$116)))) -> 9.224035927 | N102: =IF(MAX(C105:C116)-MIN(C105:C116)<5,AVERAGEIF(C105:C116,">0",N105:N116), IF(FORECAST($C102,N$105:N$116,$C$105:$C$116)<0,0, IF(FORECAST($C102,N$105:N$116,$C$105:$C$116)>100,100, FORECAST($C102,N$105:N$116,$C$105:$C$116)))) -> 75.03182305 | R102: =IF(MAX(C105:C116)-MIN(C105:C116)<5,AVERAGEIF(C105:C116,">0",R105:R116), IF(FORECAST($C102,R$105:R$116,$C$105:$C$116)<0,0, IF(FORECAST($C102,R$105:R$116,$C$105:$C$116)>100,100, FORECAST($C102,R$105:R$116,$C$105:$C$116)))) -> 3.813994711 | S102: =IF(MAX(C105:C116)-MIN(C105:C116)<5,AVERAGEIF(C105:C116,">0",S105:S116), IF(FORECAST($C102,S$105:S$116,$C$105:$C$116)<0,0, IF(FORECAST($C102,S$105:S$116,$C$105:$C$116)>100,100, FORECAST($C102,S$105:S$116,$C$105:$C$116)))) -> 85.72297815 | W102: =IF(MAX(C105:C116)-MIN(C105:C116)<5,AVERAGEIF(C105:C116,">0",W105:W116), IF(FORECAST($C102,W$105:W$116,$C$105:$C$116)<0,0, IF(FORECAST($C102,W$105:W$116,$C$105:$C$116)>100,100, FORECAST($C102,W$105:W$116,$C$105:$C$116)))) -> 1.707179353 | X102: =IF(MAX(C105:C116)-MIN(C105:C116)<5,AVERAGEIF(C105:C116,">0",X105:X116), IF(FORECAST($C102,X$105:X$116,$C$105:$C$116)<0,0, IF(FORECAST($C102,X$105:X$116,$C$105:$C$116)>100,100, FORECAST($C102,X$105:X$116,$C$105:$C$116)))) -> 96.07217337 | AB102: =IF(MAX(C105:C116)-MIN(C105:C116)<5,AVERAGEIF(C105:C116,">0",AB105:AB116), IF(FORECAST($C102,AB$105:AB$116,$C$105:$C$116)<0,0, IF(FORECAST($C102,AB$105:AB$116,$C$105:$C$116)>100,100, FORECAST($C102,AB$105:AB$116,$C$105:$C$116)))) -> 0.3549418814
B104: Survey | C104: Year | D104: Improved | E104: Not shared | H104: Open defecation | I104: Improved | J104: Not shared | M104: Open defecation | N104: Improved | O104: Not shared | R104: Open defecation | S104: Improved | T104: Not shared | W104: Open defecation | X104: Improved | Y104: Not shared | AB104: Open defecation
B105: DHS01 | C105: 2001 | D105: =IF(ISERROR(INDIRECT(CONCATENATE($B105,"!C122"))),"",INDIRECT(CONCATENATE($B105,"!C122"))) -> 29.18429868 | E105: =IF(ISERROR(INDIRECT(CONCATENATE($B105,"!C129"))),"",INDIRECT(CONCATENATE($B105,"!C129"))) -> 93.76027361 | H105: =IF(ISERROR(INDIRECT(CONCATENATE($B105,"!C127"))),"",INDIRECT(CONCATENATE($B105,"!C127"))) -> 51.16840053 | I105: =IF(ISERROR(INDIRECT(CONCATENATE($B105,"!D122"))),"",INDIRECT(CONCATENATE($B105,"!D122"))) -> 48.79285978 | J105: =IF(ISERROR(INDIRECT(CONCATENATE($B105,"!D129"))),"",INDIRECT(CONCATENATE($B105,"!D129"))) -> 91.57588652 | M105: =IF(ISERROR(INDIRECT(CONCATENATE($B105,"!D127"))),"",INDIRECT(CONCATENATE($B105,"!D127"))) -> 18.86340894 | N105: =IF(ISERROR(INDIRECT(CONCATENATE($B105,"!E122"))),"",INDIRECT(CONCATENATE($B105,"!E122"))) -> 57.22700386 | O105: =IF(ISERROR(INDIRECT(CONCATENATE($B105,"!E129"))),"",INDIRECT(CONCATENATE($B105,"!E129"))) -> 89.62509481 | R105: =IF(ISERROR(INDIRECT(CONCATENATE($B105,"!E127"))),"",INDIRECT(CONCATENATE($B105,"!E127"))) -> 5.25828449 | S105: =IF(ISERROR(INDIRECT(CONCATENATE($B105,"!F122"))),"",INDIRECT(CONCATENATE($B105,"!F122"))) -> 69.72085655 | T105: =IF(ISERROR(INDIRECT(CONCATENATE($B105,"!F129"))),"",INDIRECT(CONCATENATE($B105,"!F129"))) -> 91.54279765 | W105: =IF(ISERROR(INDIRECT(CONCATENATE($B105,"!F127"))),"",INDIRECT(CONCATENATE($B105,"!F127"))) -> 1.462138217 | X105: =IF(ISERROR(INDIRECT(CONCATENATE($B105,"!G122"))),"",INDIRECT(CONCATENATE($B105,"!G122"))) -> 89.2730652 | Y105: =IF(ISERROR(INDIRECT(CONCATENATE($B105,"!G129"))),"",INDIRECT(CONCATENATE($B105,"!G129"))) -> 95.93865322 | AB105: =IF(ISERROR(INDIRECT(CONCATENATE($B105,"!G2127"))),"",INDIRECT(CONCATENATE($B105,"!G127"))) -> 0.3999219787
B106: ENDESA11 | C106: 2011 | D106: 45.61529793 | E106: N/A | H106: 32.74430697 | I106: 61.69284325 | J106: N/A | M106: 10.8305981 | N106: 72.06435319 | O106: N/A | R106: 4.054709674 | S106: 83.05595789 | T106: N/A | W106: 1.666339163 | X106: 94.93898868 | Y106: N/A | AB106: 0.3624385642
B118: =CONCATENATE("National use of sanitation facilities, ",C99,"–",C100) -> National use of sanitation facilities, 2000–2017 | S118: Data points used for regression
A197: URBAN | D197: Poorest | I197: Poor | N197: Middle | S197: Rich | X197: Richest
D198: Improved | E198: Basic | F198: Limited | G198: Unimproved | H198: Open defecation | I198: Improved | J198: Basic | K198: Limited | L198: Unimproved | M198: Open defecation | N198: Improved | O198: Basic | P198: Limited | Q198: Unimproved | R198: Open defecation | S198: Improved | T198: Basic | U198: Limited | V198: Unimproved | W198: Open defecation | X198: Improved | Y198: Basic | Z198: Limited | AA198: Unimproved | AB198: Open defecation
A199: Forecast period: | C199: =MinBase(C205:C216) -> 2000 | D199: =IF((D201+H201)>100,D201*100/(D201+H201),D201) -> 49.70898712 | E199: =D199*AVERAGEIF(E205:E216,">0")/100 -> 44.69159956 | F199: =D199*(100-AVERAGEIF(E205:E216,">0"))/100 -> 5.017387563 | G199: =100-(E199+F199+H199) -> 39.34290121 | H199: =IF((D201+H201)>100,H201*100/(D201+H201),H201) -> 10.94811167 | I199: =IF((I201+M201)>100,I201*100/(I201+M201),I201) -> 59.63506686 | J199: =I199*AVERAGEIF(J205:J216,">0")/100 -> 53.55582881 | K199: =I199*(100-AVERAGEIF(J205:J216,">0"))/100 -> 6.079238043 | L199: =100-(J199+K199+M199) -> 37.09748729 | M199: =IF((I201+M201)>100,M201*100/(I201+M201),M201) -> 3.267445854 | N199: =IF((N201+R201)>100,N201*100/(N201+R201),N201) -> 68.03193148 | O199: =N199*AVERAGEIF(O205:O216,">0")/100 -> 62.38772049 | P199: =N199*(100-AVERAGEIF(O205:O216,">0"))/100 -> 5.644210995 | Q199: =100-(O199+P199+R199) -> 30.99407763 | R199: =IF((N201+R201)>100,R201*100/(N201+R201),R201) -> 0.9739908812 | S199: =IF((S201+W201)>100,S201*100/(S201+W201),S201) -> 80.29041277 | T199: =S199*AVERAGEIF(T205:T216,">0")/100 -> 75.47034093 | U199: =S199*(100-AVERAGEIF(T205:T216,">0"))/100 -> 4.820071838 | V199: =100-(T199+U199+W199) -> 19.09222047 | W199: =IF((S201+W201)>100,W201*100/(S201+W201),W201) -> 0.617366763 | X199: =IF((X201+AB201)>100,X201*100/(X201+AB201),X201) -> 94.60150022 | Y199: =X199*AVERAGEIF(Y205:Y216,">0")/100 -> 92.18570289 | Z199: =X199*(100-AVERAGEIF(Y205:Y216,">0"))/100 -> 2.415797327 | AA199: =100-(Y199+Z199+AB199) -> 5.3059519 | AB199: =IF((X201+AB201)>100,AB201*100/(X201+AB201),AB201) -> 0.09254787785
C200: =MaxTarget(C205:C216) -> 2017 | D200: =IF((D202+H202)>100,D202*100/(D202+H202),D202) -> 71.7390344 | E200: =D200*AVERAGEIF(E205:E216,">0")/100 -> 64.49803916 | F200: =D200*(100-AVERAGEIF(E205:E216,">0"))/100 -> 7.240995236 | G200: =100-(E200+F200+H200) -> 21.91716846 | H200: =IF((D202+H202)>100,H202*100/(D202+H202),H202) -> 6.343797148 | I200: =IF((I202+M202)>100,I202*100/(I202+M202),I202) -> 80.49964372 | J200: =I200*AVERAGEIF(J205:J216,">0")/100 -> 72.29345695 | K200: =I200*(100-AVERAGEIF(J205:J216,">0"))/100 -> 8.206186768 | L200: =100-(J200+K200+M200) -> 16.28129456 | M200: =IF((I202+M202)>100,M202*100/(I202+M202),M202) -> 3.219061725 | N200: =IF((N202+R202)>100,N202*100/(N202+R202),N202) -> 86.75397046 | O200: =N200*AVERAGEIF(O205:O216,">0")/100 -> 79.55650152 | P200: =N200*(100-AVERAGEIF(O205:O216,">0"))/100 -> 7.197468942 | Q200: =100-(O200+P200+R200) -> 11.93175444 | R200: =IF((N202+R202)>100,R202*100/(N202+R202),R202) -> 1.314275107 | S200: =IF((S202+W202)>100,S202*100/(S202+W202),S202) -> 94.66304223 | T200: =S200*AVERAGEIF(T205:T216,">0")/100 -> 88.98013878 | U200: =S200*(100-AVERAGEIF(T205:T216,">0"))/100 -> 5.682903453 | V200: =100-(T200+U200+W200) -> 4.697793828 | W200: =IF((S202+W202)>100,W202*100/(S202+W202),W202) -> 0.6391639389 | X200: =IF((X202+AB202)>100,X202*100/(X202+AB202),X202) -> 97.98978724 | Y200: =X200*AVERAGEIF(Y205:Y216,">0")/100 -> 95.4874647 | Z200: =X200*(100-AVERAGEIF(Y205:Y216,">0"))/100 -> 2.502322538 | AA200: =100-(Y200+Z200+AB200) -> 1.943561884 | AB200: =IF((X202+AB202)>100,AB202*100/(X202+AB202),AB202) -> 0.06665087764
A201: Regression period: | C201: =MinRegYear(C199,C205:C216) -> 2000 | D201: =IF(MAX(C205:C216)-MIN(C205:C216)<5,AVERAGEIF(C205:C216,">0",D205:D216), IF(FORECAST($C201,D$205:D$216,$C$205:$C$216)<0,0, IF(FORECAST($C201,D$205:D$216,$C$205:$C$216)>100,100, FORECAST($C201,D$205:D$216,$C$205:$C$216)))) -> 49.70898712 | H201: =IF(MAX(C205:C216)-MIN(C205:C216)<5,AVERAGEIF(C205:C216,">0",H205:H216), IF(FORECAST($C201,H$205:H$216,$C$205:$C$216)<0,0, IF(FORECAST($C201,H$205:H$216,$C$205:$C$216)>100,100, FORECAST($C201,H$205:H$216,$C$205:$C$216)))) -> 10.94811167 | I201: =IF(MAX(C205:C216)-MIN(C205:C216)<5,AVERAGEIF(C205:C216,">0",I205:I216), IF(FORECAST($C201,I$205:I$216,$C$205:$C$216)<0,0, IF(FORECAST($C201,I$205:I$216,$C$205:$C$216)>100,100, FORECAST($C201,I$205:I$216,$C$205:$C$216)))) -> 59.63506686 | M201: =IF(MAX(C205:C216)-MIN(C205:C216)<5,AVERAGEIF(C205:C216,">0",M205:M216), IF(FORECAST($C201,M$205:M$216,$C$205:$C$216)<0,0, IF(FORECAST($C201,M$205:M$216,$C$205:$C$216)>100,100, FORECAST($C201,M$205:M$216,$C$205:$C$216)))) -> 3.267445854 | N201: =IF(MAX(C205:C216)-MIN(C205:C216)<5,AVERAGEIF(C205:C216,">0",N205:N216), IF(FORECAST($C201,N$205:N$216,$C$205:$C$216)<0,0, IF(FORECAST($C201,N$205:N$216,$C$205:$C$216)>100,100, FORECAST($C201,N$205:N$216,$C$205:$C$216)))) -> 68.03193148 | R201: =IF(MAX(C205:C216)-MIN(C205:C216)<5,AVERAGEIF(C205:C216,">0",R205:R216), IF(FORECAST($C201,R$205:R$216,$C$205:$C$216)<0,0, IF(FORECAST($C201,R$205:R$216,$C$205:$C$216)>100,100, FORECAST($C201,R$205:R$216,$C$205:$C$216)))) -> 0.9739908812 | S201: =IF(MAX(C205:C216)-MIN(C205:C216)<5,AVERAGEIF(C205:C216,">0",S205:S216), IF(FORECAST($C201,S$205:S$216,$C$205:$C$216)<0,0, IF(FORECAST($C201,S$205:S$216,$C$205:$C$216)>100,100, FORECAST($C201,S$205:S$216,$C$205:$C$216)))) -> 80.29041277 | W201: =IF(MAX(C205:C216)-MIN(C205:C216)<5,AVERAGEIF(C205:C216,">0",W205:W216), IF(FORECAST($C201,W$205:W$216,$C$205:$C$216)<0,0, IF(FORECAST($C201,W$205:W$216,$C$205:$C$216)>100,100, FORECAST($C201,W$205:W$216,$C$205:$C$216)))) -> 0.617366763 | X201: =IF(MAX(C205:C216)-MIN(C205:C216)<5,AVERAGEIF(C205:C216,">0",X205:X216), IF(FORECAST($C201,X$205:X$216,$C$205:$C$216)<0,0, IF(FORECAST($C201,X$205:X$216,$C$205:$C$216)>100,100, FORECAST($C201,X$205:X$216,$C$205:$C$216)))) -> 94.60150022 | AB201: =IF(MAX(C205:C216)-MIN(C205:C216)<5,AVERAGEIF(C205:C216,">0",AB205:AB216), IF(FORECAST($C201,AB$205:AB$216,$C$205:$C$216)<0,0, IF(FORECAST($C201,AB$205:AB$216,$C$205:$C$216)>100,100, FORECAST($C201,AB$205:AB$216,$C$205:$C$216)))) -> 0.09254787785
C202: =MaxRegYear(C200,C205:C216) -> 2013 | D202: =IF(MAX(C205:C216)-MIN(C205:C216)<5,AVERAGEIF(C205:C216,">0",D205:D216), IF(FORECAST($C202,D$205:D$216,$C$205:$C$216)<0,0, IF(FORECAST($C202,D$205:D$216,$C$205:$C$216)>100,100, FORECAST($C202,D$205:D$216,$C$205:$C$216)))) -> 71.7390344 | H202: =IF(MAX(C205:C216)-MIN(C205:C216)<5,AVERAGEIF(C205:C216,">0",H205:H216), IF(FORECAST($C202,H$205:H$216,$C$205:$C$216)<0,0, IF(FORECAST($C202,H$205:H$216,$C$205:$C$216)>100,100, FORECAST($C202,H$205:H$216,$C$205:$C$216)))) -> 6.343797148 | I202: =IF(MAX(C205:C216)-MIN(C205:C216)<5,AVERAGEIF(C205:C216,">0",I205:I216), IF(FORECAST($C202,I$205:I$216,$C$205:$C$216)<0,0, IF(FORECAST($C202,I$205:I$216,$C$205:$C$216)>100,100, FORECAST($C202,I$205:I$216,$C$205:$C$216)))) -> 80.49964372 | M202: =IF(MAX(C205:C216)-MIN(C205:C216)<5,AVERAGEIF(C205:C216,">0",M205:M216), IF(FORECAST($C202,M$205:M$216,$C$205:$C$216)<0,0, IF(FORECAST($C202,M$205:M$216,$C$205:$C$216)>100,100, FORECAST($C202,M$205:M$216,$C$205:$C$216)))) -> 3.219061725 | N202: =IF(MAX(C205:C216)-MIN(C205:C216)<5,AVERAGEIF(C205:C216,">0",N205:N216), IF(FORECAST($C202,N$205:N$216,$C$205:$C$216)<0,0, IF(FORECAST($C202,N$205:N$216,$C$205:$C$216)>100,100, FORECAST($C202,N$205:N$216,$C$205:$C$216)))) -> 86.75397046 | R202: =IF(MAX(C205:C216)-MIN(C205:C216)<5,AVERAGEIF(C205:C216,">0",R205:R216), IF(FORECAST($C202,R$205:R$216,$C$205:$C$216)<0,0, IF(FORECAST($C202,R$205:R$216,$C$205:$C$216)>100,100, FORECAST($C202,R$205:R$216,$C$205:$C$216)))) -> 1.314275107 | S202: =IF(MAX(C205:C216)-MIN(C205:C216)<5,AVERAGEIF(C205:C216,">0",S205:S216), IF(FORECAST($C202,S$205:S$216,$C$205:$C$216)<0,0, IF(FORECAST($C202,S$205:S$216,$C$205:$C$216)>100,100, FORECAST($C202,S$205:S$216,$C$205:$C$216)))) -> 94.66304223 | W202: =IF(MAX(C205:C216)-MIN(C205:C216)<5,AVERAGEIF(C205:C216,">0",W205:W216), IF(FORECAST($C202,W$205:W$216,$C$205:$C$216)<0,0, IF(FORECAST($C202,W$205:W$216,$C$205:$C$216)>100,100, FORECAST($C202,W$205:W$216,$C$205:$C$216)))) -> 0.6391639389 | X202: =IF(MAX(C205:C216)-MIN(C205:C216)<5,AVERAGEIF(C205:C216,">0",X205:X216), IF(FORECAST($C202,X$205:X$216,$C$205:$C$216)<0,0, IF(FORECAST($C202,X$205:X$216,$C$205:$C$216)>100,100, FORECAST($C202,X$205:X$216,$C$205:$C$216)))) -> 97.98978724 | AB202: =IF(MAX(C205:C216)-MIN(C205:C216)<5,AVERAGEIF(C205:C216,">0",AB205:AB216), IF(FORECAST($C202,AB$205:AB$216,$C$205:$C$216)<0,0, IF(FORECAST($C202,AB$205:AB$216,$C$205:$C$216)>100,100, FORECAST($C202,AB$205:AB$216,$C$205:$C$216)))) -> 0.06665087764
B204: Survey | C204: Year | D204: Improved | E204: Not shared | H204: Open defecation | I204: Improved | J204: Not shared | M204: Open defecation | N204: Improved | O204: Not shared | R204: Open defecation | S204: Improved | T204: Not shared | W204: Open defecation | X204: Improved | Y204: Not shared | AB204: Open defecation
B205: DHS01 | C205: 2001 | D205: =IF(ISERROR(INDIRECT(CONCATENATE($B205,"!H122"))),"",INDIRECT(CONCATENATE($B205,"!H122"))) -> 51.40360614 | E205: =IF(ISERROR(INDIRECT(CONCATENATE($B205,"!H129"))),"",INDIRECT(CONCATENATE($B205,"!H129"))) -> 89.90647798 | H205: =IF(ISERROR(INDIRECT(CONCATENATE($B205,"!H127"))),"",INDIRECT(CONCATENATE($B205,"!H127"))) -> 10.59393363 | I205: =IF(ISERROR(INDIRECT(CONCATENATE($B205,"!I122"))),"",INDIRECT(CONCATENATE($B205,"!I122"))) -> 61.24003431 | J205: =IF(ISERROR(INDIRECT(CONCATENATE($B205,"!I129"))),"",INDIRECT(CONCATENATE($B205,"!I129"))) -> 89.80593405 | M205: =IF(ISERROR(INDIRECT(CONCATENATE($B205,"!I127"))),"",INDIRECT(CONCATENATE($B205,"!I127"))) -> 3.263723998 | N205: =IF(ISERROR(INDIRECT(CONCATENATE($B205,"!J122"))),"",INDIRECT(CONCATENATE($B205,"!J122"))) -> 69.47208833 | O205: =IF(ISERROR(INDIRECT(CONCATENATE($B205,"!J129"))),"",INDIRECT(CONCATENATE($B205,"!J129"))) -> 91.70358555 | R205: =IF(ISERROR(INDIRECT(CONCATENATE($B205,"!J127"))),"",INDIRECT(CONCATENATE($B205,"!J127"))) -> 1.000166591 | S205: =IF(ISERROR(INDIRECT(CONCATENATE($B205,"!K122"))),"",INDIRECT(CONCATENATE($B205,"!K122"))) -> 81.39599965 | T205: =IF(ISERROR(INDIRECT(CONCATENATE($B205,"!K129"))),"",INDIRECT(CONCATENATE($B205,"!K129"))) -> 93.99670313 | W205: =IF(ISERROR(INDIRECT(CONCATENATE($B205,"!K127"))),"",INDIRECT(CONCATENATE($B205,"!K127"))) -> 0.6190434688 | X205: =IF(ISERROR(INDIRECT(CONCATENATE($B205,"!L122"))),"",INDIRECT(CONCATENATE($B205,"!L122"))) -> 94.86213769 | Y205: =IF(ISERROR(INDIRECT(CONCATENATE($B205,"!L129"))),"",INDIRECT(CONCATENATE($B205,"!L129"))) -> 97.44634353 | AB205: =IF(ISERROR(INDIRECT(CONCATENATE($B205,"!L2127"))),"",INDIRECT(CONCATENATE($B205,"!L127"))) -> 0.09055580091
B206: ENDESA11 | C206: 2011 | D206: 68.34979635 | E206: N/A | H206: 7.052153228 | I206: 77.28970882 | J206: N/A | M206: 3.226505437 | N206: 83.87365677 | O206: N/A | R206: 1.261923688 | S206: 92.45186847 | T206: N/A | W206: 0.6358105272 | X206: 97.46851231 | Y206: N/A | AB206: 0.07063503152
B218: =CONCATENATE("Urban use of sanitation facilities, ",C199,"–",C200) -> Urban use of sanitation facilities, 2000–2017 | S218: Data points used for regression
A297: RURAL | D297: Poorest | I297: Poor | N297: Middle | S297: Rich | X297: Richest
D298: Improved | E298: Basic | F298: Limited | G298: Unimproved | H298: Open defecation | I298: Improved | J298: Basic | K298: Limited | L298: Unimproved | M298: Open defecation | N298: Improved | O298: Basic | P298: Limited | Q298: Unimproved | R298: Open defecation | S298: Improved | T298: Basic | U298: Limited | V298: Unimproved | W298: Open defecation | X298: Improved | Y298: Basic | Z298: Limited | AA298: Unimproved | AB298: Open defecation
A299: Forecast period: | C299: =MinBase(C305:C316) -> 2000 | D299: =IF((D301+H301)>100,D301*100/(D301+H301),D301) -> 19.92646705 | E299: =D299*AVERAGEIF(E305:E316,">0")/100 -> 18.83939196 | F299: =D299*(100-AVERAGEIF(E305:E316,">0"))/100 -> 1.087075083 | G299: =100-(E299+F299+H299) -> 14.87413578 | H299: =IF((D301+H301)>100,H301*100/(D301+H301),H301) -> 65.19939717 | I299: =IF((I301+M301)>100,I301*100/(I301+M301),I301) -> 30.14018712 | J299: =I299*AVERAGEIF(J305:J316,">0")/100 -> 28.49722067 | K299: =I299*(100-AVERAGEIF(J305:J316,">0"))/100 -> 1.642966442 | L299: =100-(J299+K299+M299) -> 20.47472494 | M299: =IF((I301+M301)>100,M301*100/(I301+M301),M301) -> 49.38508794 | N299: =IF((N301+R301)>100,N301*100/(N301+R301),N301) -> 44.03703433 | O299: =N299*AVERAGEIF(O305:O316,">0")/100 -> 41.68156035 | P299: =N299*(100-AVERAGEIF(O305:O316,">0"))/100 -> 2.355473984 | Q299: =100-(O299+P299+R299) -> 29.55998096 | R299: =IF((N301+R301)>100,R301*100/(N301+R301),R301) -> 26.40298471 | S299: =IF((S301+W301)>100,S301*100/(S301+W301),S301) -> 50.68906934 | T299: =S299*AVERAGEIF(T305:T316,">0")/100 -> 45.70510939 | U299: =S299*(100-AVERAGEIF(T305:T316,">0"))/100 -> 4.983959949 | V299: =100-(T299+U299+W299) -> 32.26214379 | W299: =IF((S301+W301)>100,W301*100/(S301+W301),W301) -> 17.04878687 | X299: =IF((X301+AB301)>100,X301*100/(X301+AB301),X301) -> 58.88783008 | Y299: =X299*AVERAGEIF(Y305:Y316,">0")/100 -> 52.41563856 | Z299: =X299*(100-AVERAGEIF(Y305:Y316,">0"))/100 -> 6.472191521 | AA299: =100-(Y299+Z299+AB299) -> 35.25379793 | AB299: =IF((X301+AB301)>100,AB301*100/(X301+AB301),AB301) -> 5.858371991
C300: =MaxTarget(C305:C316) -> 2017 | D300: =IF((D302+H302)>100,D302*100/(D302+H302),D302) -> 38.11240988 | E300: =D300*AVERAGEIF(E305:E316,">0")/100 -> 36.03321285 | F300: =D300*(100-AVERAGEIF(E305:E316,">0"))/100 -> 2.079197032 | G300: =100-(E300+F300+H300) -> 18.13626919 | H300: =IF((D302+H302)>100,H302*100/(D302+H302),H302) -> 43.75132093 | I300: =IF((I302+M302)>100,I302*100/(I302+M302),I302) -> 55.47514524 | J300: =I300*AVERAGEIF(J305:J316,">0")/100 -> 52.45114935 | K300: =I300*(100-AVERAGEIF(J305:J316,">0"))/100 -> 3.023995891 | L300: =100-(J300+K300+M300) -> 26.76678408 | M300: =IF((I302+M302)>100,M302*100/(I302+M302),M302) -> 17.75807067 | N300: =IF((N302+R302)>100,N302*100/(N302+R302),N302) -> 58.57675856 | O300: =N300*AVERAGEIF(O305:O316,">0")/100 -> 55.44357685 | P300: =N300*(100-AVERAGEIF(O305:O316,">0"))/100 -> 3.133181717 | Q300: =100-(O300+P300+R300) -> 27.70547789 | R300: =IF((N302+R302)>100,R302*100/(N302+R302),R302) -> 13.71776355 | S300: =IF((S302+W302)>100,S302*100/(S302+W302),S302) -> 62.77371541 | T300: =S300*AVERAGEIF(T305:T316,">0")/100 -> 56.60154283 | U300: =S300*(100-AVERAGEIF(T305:T316,">0"))/100 -> 6.172172571 | V300: =100-(T300+U300+W300) -> 29.36211505 | W300: =IF((S302+W302)>100,W302*100/(S302+W302),W302) -> 7.864169547 | X300: =IF((X302+AB302)>100,X302*100/(X302+AB302),X302) -> 70.45065474 | Y300: =X300*AVERAGEIF(Y305:Y316,">0")/100 -> 62.70762652 | Z300: =X300*(100-AVERAGEIF(Y305:Y316,">0"))/100 -> 7.743028221 | AA300: =100-(Y300+Z300+AB300) -> 25.2294713 | AB300: =IF((X302+AB302)>100,AB302*100/(X302+AB302),AB302) -> 4.319873964
A301: Regression period: | C301: =MinRegYear(C299,C305:C316) -> 2000 | D301: =IF(MAX(C305:C316)-MIN(C305:C316)<5,AVERAGEIF(C305:C316,">0",D305:D316), IF(FORECAST($C301,D$305:D$316,$C$305:$C$316)<0,0, IF(FORECAST($C301,D$305:D$316,$C$305:$C$316)>100,100, FORECAST($C301,D$305:D$316,$C$305:$C$316)))) -> 19.92646705 | H301: =IF(MAX(C305:C316)-MIN(C305:C316)<5,AVERAGEIF(C305:C316,">0",H305:H316), IF(FORECAST($C301,H$305:H$316,$C$305:$C$316)<0,0, IF(FORECAST($C301,H$305:H$316,$C$305:$C$316)>100,100, FORECAST($C301,H$305:H$316,$C$305:$C$316)))) -> 65.19939717 | I301: =IF(MAX(C305:C316)-MIN(C305:C316)<5,AVERAGEIF(C305:C316,">0",I305:I316), IF(FORECAST($C301,I$305:I$316,$C$305:$C$316)<0,0, IF(FORECAST($C301,I$305:I$316,$C$305:$C$316)>100,100, FORECAST($C301,I$305:I$316,$C$305:$C$316)))) -> 30.14018712 | M301: =IF(MAX(C305:C316)-MIN(C305:C316)<5,AVERAGEIF(C305:C316,">0",M305:M316), IF(FORECAST($C301,M$305:M$316,$C$305:$C$316)<0,0, IF(FORECAST($C301,M$305:M$316,$C$305:$C$316)>100,100, FORECAST($C301,M$305:M$316,$C$305:$C$316)))) -> 49.38508794 | N301: =IF(MAX(C305:C316)-MIN(C305:C316)<5,AVERAGEIF(C305:C316,">0",N305:N316), IF(FORECAST($C301,N$305:N$316,$C$305:$C$316)<0,0, IF(FORECAST($C301,N$305:N$316,$C$305:$C$316)>100,100, FORECAST($C301,N$305:N$316,$C$305:$C$316)))) -> 44.03703433 | R301: =IF(MAX(C305:C316)-MIN(C305:C316)<5,AVERAGEIF(C305:C316,">0",R305:R316), IF(FORECAST($C301,R$305:R$316,$C$305:$C$316)<0,0, IF(FORECAST($C301,R$305:R$316,$C$305:$C$316)>100,100, FORECAST($C301,R$305:R$316,$C$305:$C$316)))) -> 26.40298471 | S301: =IF(MAX(C305:C316)-MIN(C305:C316)<5,AVERAGEIF(C305:C316,">0",S305:S316), IF(FORECAST($C301,S$305:S$316,$C$305:$C$316)<0,0, IF(FORECAST($C301,S$305:S$316,$C$305:$C$316)>100,100, FORECAST($C301,S$305:S$316,$C$305:$C$316)))) -> 50.68906934 | W301: =IF(MAX(C305:C316)-MIN(C305:C316)<5,AVERAGEIF(C305:C316,">0",W305:W316), IF(FORECAST($C301,W$305:W$316,$C$305:$C$316)<0,0, IF(FORECAST($C301,W$305:W$316,$C$305:$C$316)>100,100, FORECAST($C301,W$305:W$316,$C$305:$C$316)))) -> 17.04878687 | X301: =IF(MAX(C305:C316)-MIN(C305:C316)<5,AVERAGEIF(C305:C316,">0",X305:X316), IF(FORECAST($C301,X$305:X$316,$C$305:$C$316)<0,0, IF(FORECAST($C301,X$305:X$316,$C$305:$C$316)>100,100, FORECAST($C301,X$305:X$316,$C$305:$C$316)))) -> 58.88783008 | AB301: =IF(MAX(C305:C316)-MIN(C305:C316)<5,AVERAGEIF(C305:C316,">0",AB305:AB316), IF(FORECAST($C301,AB$305:AB$316,$C$305:$C$316)<0,0, IF(FORECAST($C301,AB$305:AB$316,$C$305:$C$316)>100,100, FORECAST($C301,AB$305:AB$316,$C$305:$C$316)))) -> 5.858371991
C302: =MaxRegYear(C300,C305:C316) -> 2013 | D302: =IF(MAX(C305:C316)-MIN(C305:C316)<5,AVERAGEIF(C305:C316,">0",D305:D316), IF(FORECAST($C302,D$305:D$316,$C$305:$C$316)<0,0, IF(FORECAST($C302,D$305:D$316,$C$305:$C$316)>100,100, FORECAST($C302,D$305:D$316,$C$305:$C$316)))) -> 38.11240988 | H302: =IF(MAX(C305:C316)-MIN(C305:C316)<5,AVERAGEIF(C305:C316,">0",H305:H316), IF(FORECAST($C302,H$305:H$316,$C$305:$C$316)<0,0, IF(FORECAST($C302,H$305:H$316,$C$305:$C$316)>100,100, FORECAST($C302,H$305:H$316,$C$305:$C$316)))) -> 43.75132093 | I302: =IF(MAX(C305:C316)-MIN(C305:C316)<5,AVERAGEIF(C305:C316,">0",I305:I316), IF(FORECAST($C302,I$305:I$316,$C$305:$C$316)<0,0, IF(FORECAST($C302,I$305:I$316,$C$305:$C$316)>100,100, FORECAST($C302,I$305:I$316,$C$305:$C$316)))) -> 55.47514524 | M302: =IF(MAX(C305:C316)-MIN(C305:C316)<5,AVERAGEIF(C305:C316,">0",M305:M316), IF(FORECAST($C302,M$305:M$316,$C$305:$C$316)<0,0, IF(FORECAST($C302,M$305:M$316,$C$305:$C$316)>100,100, FORECAST($C302,M$305:M$316,$C$305:$C$316)))) -> 17.75807067 | N302: =IF(MAX(C305:C316)-MIN(C305:C316)<5,AVERAGEIF(C305:C316,">0",N305:N316), IF(FORECAST($C302,N$305:N$316,$C$305:$C$316)<0,0, IF(FORECAST($C302,N$305:N$316,$C$305:$C$316)>100,100, FORECAST($C302,N$305:N$316,$C$305:$C$316)))) -> 58.57675856 | R302: =IF(MAX(C305:C316)-MIN(C305:C316)<5,AVERAGEIF(C305:C316,">0",R305:R316), IF(FORECAST($C302,R$305:R$316,$C$305:$C$316)<0,0, IF(FORECAST($C302,R$305:R$316,$C$305:$C$316)>100,100, FORECAST($C302,R$305:R$316,$C$305:$C$316)))) -> 13.71776355 | S302: =IF(MAX(C305:C316)-MIN(C305:C316)<5,AVERAGEIF(C305:C316,">0",S305:S316), IF(FORECAST($C302,S$305:S$316,$C$305:$C$316)<0,0, IF(FORECAST($C302,S$305:S$316,$C$305:$C$316)>100,100, FORECAST($C302,S$305:S$316,$C$305:$C$316)))) -> 62.77371541 | W302: =IF(MAX(C305:C316)-MIN(C305:C316)<5,AVERAGEIF(C305:C316,">0",W305:W316), IF(FORECAST($C302,W$305:W$316,$C$305:$C$316)<0,0, IF(FORECAST($C302,W$305:W$316,$C$305:$C$316)>100,100, FORECAST($C302,W$305:W$316,$C$305:$C$316)))) -> 7.864169547 | X302: =IF(MAX(C305:C316)-MIN(C305:C316)<5,AVERAGEIF(C305:C316,">0",X305:X316), IF(FORECAST($C302,X$305:X$316,$C$305:$C$316)<0,0, IF(FORECAST($C302,X$305:X$316,$C$305:$C$316)>100,100, FORECAST($C302,X$305:X$316,$C$305:$C$316)))) -> 70.45065474 | AB302: =IF(MAX(C305:C316)-MIN(C305:C316)<5,AVERAGEIF(C305:C316,">0",AB305:AB316), IF(FORECAST($C302,AB$305:AB$316,$C$305:$C$316)<0,0, IF(FORECAST($C302,AB$305:AB$316,$C$305:$C$316)>100,100, FORECAST($C302,AB$305:AB$316,$C$305:$C$316)))) -> 4.319873964
B304: Survey | C304: Year | D304: Improved | E304: Not shared | H304: Open defecation | I304: Improved | J304: Not shared | M304: Open defecation | N304: Improved | O304: Not shared | R304: Open defecation | S304: Improved | T304: Not shared | W304: Open defecation | X304: Improved | Y304: Not shared | AB304: Open defecation
B305: DHS01 | C305: 2001 | D305: =IF(ISERROR(INDIRECT(CONCATENATE($B305,"!M122"))),"",INDIRECT(CONCATENATE($B305,"!M122"))) -> 21.32538573 | E305: =IF(ISERROR(INDIRECT(CONCATENATE($B305,"!M129"))),"",INDIRECT(CONCATENATE($B305,"!M129"))) -> 94.54456688 | H305: =IF(ISERROR(INDIRECT(CONCATENATE($B305,"!M127"))),"",INDIRECT(CONCATENATE($B305,"!M127"))) -> 63.54954515 | I305: =IF(ISERROR(INDIRECT(CONCATENATE($B305,"!N122"))),"",INDIRECT(CONCATENATE($B305,"!N122"))) -> 32.08903005 | J305: =IF(ISERROR(INDIRECT(CONCATENATE($B305,"!N129"))),"",INDIRECT(CONCATENATE($B305,"!N129"))) -> 94.54891758 | M305: =IF(ISERROR(INDIRECT(CONCATENATE($B305,"!N127"))),"",INDIRECT(CONCATENATE($B305,"!N127"))) -> 46.95224046 | N305: =IF(ISERROR(INDIRECT(CONCATENATE($B305,"!O122"))),"",INDIRECT(CONCATENATE($B305,"!O122"))) -> 45.15547466 | O305: =IF(ISERROR(INDIRECT(CONCATENATE($B305,"!O129"))),"",INDIRECT(CONCATENATE($B305,"!O129"))) -> 94.65115211 | R305: =IF(ISERROR(INDIRECT(CONCATENATE($B305,"!O127"))),"",INDIRECT(CONCATENATE($B305,"!O127"))) -> 25.42719846 | S305: =IF(ISERROR(INDIRECT(CONCATENATE($B305,"!P122"))),"",INDIRECT(CONCATENATE($B305,"!P122"))) -> 51.61865749 | T305: =IF(ISERROR(INDIRECT(CONCATENATE($B305,"!P129"))),"",INDIRECT(CONCATENATE($B305,"!P129"))) -> 90.16758442 | W305: =IF(ISERROR(INDIRECT(CONCATENATE($B305,"!P127"))),"",INDIRECT(CONCATENATE($B305,"!P127"))) -> 16.34227785 | X305: =IF(ISERROR(INDIRECT(CONCATENATE($B305,"!Q122"))),"",INDIRECT(CONCATENATE($B305,"!Q122"))) -> 59.77727813 | Y305: =IF(ISERROR(INDIRECT(CONCATENATE($B305,"!Q129"))),"",INDIRECT(CONCATENATE($B305,"!Q129"))) -> 89.00928849 | AB305: =IF(ISERROR(INDIRECT(CONCATENATE($B305,"!Q2127"))),"",INDIRECT(CONCATENATE($B305,"!Q127"))) -> 5.740025989
B306: ENDESA11 | C306: 2011 | D306: 35.31457252 | E306: N/A | H306: 47.05102497 | I306: 51.57745938 | J306: N/A | M306: 22.62376564 | N306: 56.33987791 | O306: N/A | R306: 15.66933603 | S306: 60.91453909 | T306: N/A | W306: 9.277187597 | X306: 68.67175864 | Y306: N/A | AB306: 4.556565969
B318: =CONCATENATE("Rural use of sanitation facilities, ",C299,"–",C300) -> Rural use of sanitation facilities, 2000–2017 | S318: Data points used for regression

Sheet Hygiene
B4: Access to hygiene facilities by wealth quintile (%)
B5: =IF(ISERROR(INDIRECT(CONCATENATE($E$32,"!A2"))),"",INDIRECT(CONCATENATE($E$32,"!A2"))) -> Nicaragua
B7: =CONCATENATE("National ",IF(ISERROR(INDIRECT(CONCATENATE($E$32,"!A2"))),"",INDIRECT(CONCATENATE($E$32,"!A210")))) -> National Access to hygiene facilities | K7: =CONCATENATE("Urban ",IF(ISERROR(INDIRECT(CONCATENATE($E$32,"!A2"))),"",INDIRECT(CONCATENATE($E$32,"!A210")))) -> Urban Access to hygiene facilities | S7: =CONCATENATE("Rural ",IF(ISERROR(INDIRECT(CONCATENATE($E$32,"!A2"))),"",INDIRECT(CONCATENATE($E$32,"!A210")))) -> Rural Access to hygiene facilities
E32: =INDEX(B88:B100,A88) -> ENDESA11 | G32: =IF(ISERROR(INDIRECT(CONCATENATE($E$32,"!A2"))),"",INDIRECT(CONCATENATE($E$32,"!A2"))) -> Nicaragua | K32: Poorest | N32: Poor | Q32: Middle | T32: Rich | W32: Richest
K33: Basic | L33: Limited | M33: No facility | N33: Basic | O33: Limited | P33: No facility | Q33: Basic | R33: Limited | S33: No facility | T33: Basic | U33: Limited | V33: No facility | W33: Basic | X33: Limited | Y33: No facility
B34: >>> Select Survey : | G34: NATIONAL | J34: =IF(ISERROR(INDIRECT(CONCATENATE(#REF!,"!A2"))),"",INDIRECT(CONCATENATE(#REF!,"!A210"))) ->  | K34: =IF(ISERROR(INDIRECT(CONCATENATE($E$32,"!C222"))),"",INDIRECT(CONCATENATE($E$32,"!C222"))) -> N/A | L34: =IF(ISERROR(INDIRECT(CONCATENATE($E$32,"!C223"))),"",INDIRECT(CONCATENATE($E$32,"!C223"))) -> N/A | M34: =IF(ISERROR(INDIRECT(CONCATENATE($E$32,"!C224"))),"",INDIRECT(CONCATENATE($E$32,"!C224"))) -> N/A | N34: =IF(ISERROR(INDIRECT(CONCATENATE($E$32,"!D222"))),"",INDIRECT(CONCATENATE($E$32,"!D222"))) -> N/A | O34: =IF(ISERROR(INDIRECT(CONCATENATE($E$32,"!D223"))),"",INDIRECT(CONCATENATE($E$32,"!D223"))) -> N/A | P34: =IF(ISERROR(INDIRECT(CONCATENATE($E$32,"!D224"))),"",INDIRECT(CONCATENATE($E$32,"!D224"))) -> N/A | Q34: =IF(ISERROR(INDIRECT(CONCATENATE($E$32,"!E222"))),"",INDIRECT(CONCATENATE($E$32,"!E222"))) -> N/A | R34: =IF(ISERROR(INDIRECT(CONCATENATE($E$32,"!E223"))),"",INDIRECT(CONCATENATE($E$32,"!E223"))) -> N/A | S34: =IF(ISERROR(INDIRECT(CONCATENATE($E$32,"!E224"))),"",INDIRECT(CONCATENATE($E$32,"!E224"))) -> N/A | T34: =IF(ISERROR(INDIRECT(CONCATENATE($E$32,"!F222"))),"",INDIRECT(CONCATENATE($E$32,"!F222"))) -> N/A | U34: =IF(ISERROR(INDIRECT(CONCATENATE($E$32,"!F223"))),"",INDIRECT(CONCATENATE($E$32,"!F223"))) -> N/A | V34: =IF(ISERROR(INDIRECT(CONCATENATE($E$32,"!F224"))),"",INDIRECT(CONCATENATE($E$32,"!F224"))) -> N/A | W34: =IF(ISERROR(INDIRECT(CONCATENATE($E$32,"!G222"))),"",INDIRECT(CONCATENATE($E$32,"!G222"))) -> N/A | X34: =IF(ISERROR(INDIRECT(CONCATENATE($E$32,"!G223"))),"",INDIRECT(CONCATENATE($E$32,"!G223"))) -> N/A | Y34: =IF(ISERROR(INDIRECT(CONCATENATE($E$32,"!G224"))),"",INDIRECT(CONCATENATE($E$32,"!G224"))) -> N/A
G37: URBAN | J37: =IF(ISERROR(INDIRECT(CONCATENATE(#REF!,"!A2"))),"",INDIRECT(CONCATENATE(#REF!,"!A210"))) ->  | K37: =IF(ISERROR(INDIRECT(CONCATENATE($E$32,"!H222"))),"",INDIRECT(CONCATENATE($E$32,"!H222"))) -> N/A | L37: =IF(ISERROR(INDIRECT(CONCATENATE($E$32,"!H223"))),"",INDIRECT(CONCATENATE($E$32,"!H223"))) -> N/A | M37: =IF(ISERROR(INDIRECT(CONCATENATE($E$32,"!H224"))),"",INDIRECT(CONCATENATE($E$32,"!H224"))) -> N/A | N37: =IF(ISERROR(INDIRECT(CONCATENATE($E$32,"!I222"))),"",INDIRECT(CONCATENATE($E$32,"!I222"))) -> N/A | O37: =IF(ISERROR(INDIRECT(CONCATENATE($E$32,"!I223"))),"",INDIRECT(CONCATENATE($E$32,"!I223"))) -> N/A | P37: =IF(ISERROR(INDIRECT(CONCATENATE($E$32,"!I224"))),"",INDIRECT(CONCATENATE($E$32,"!I224"))) -> N/A | Q37: =IF(ISERROR(INDIRECT(CONCATENATE($E$32,"!J222"))),"",INDIRECT(CONCATENATE($E$32,"!J222"))) -> N/A | R37: =IF(ISERROR(INDIRECT(CONCATENATE($E$32,"!J223"))),"",INDIRECT(CONCATENATE($E$32,"!J223"))) -> N/A | S37: =IF(ISERROR(INDIRECT(CONCATENATE($E$32,"!J224"))),"",INDIRECT(CONCATENATE($E$32,"!J224"))) -> N/A | T37: =IF(ISERROR(INDIRECT(CONCATENATE($E$32,"!K222"))),"",INDIRECT(CONCATENATE($E$32,"!K222"))) -> N/A | U37: =IF(ISERROR(INDIRECT(CONCATENATE($E$32,"!K223"))),"",INDIRECT(CONCATENATE($E$32,"!K223"))) -> N/A | V37: =IF(ISERROR(INDIRECT(CONCATENATE($E$32,"!K224"))),"",INDIRECT(CONCATENATE($E$32,"!K224"))) -> N/A | W37: =IF(ISERROR(INDIRECT(CONCATENATE($E$32,"!L222"))),"",INDIRECT(CONCATENATE($E$32,"!L222"))) -> N/A | X37: =IF(ISERROR(INDIRECT(CONCATENATE($E$32,"!L223"))),"",INDIRECT(CONCATENATE($E$32,"!L223"))) -> N/A | Y37: =IF(ISERROR(INDIRECT(CONCATENATE($E$32,"!L224"))),"",INDIRECT(CONCATENATE($E$32,"!L224"))) -> N/A
G40: RURAL | J40: =IF(ISERROR(INDIRECT(CONCATENATE(#REF!,"!A2"))),"",INDIRECT(CONCATENATE(#REF!,"!A210"))) ->  | K40: =IF(ISERROR(INDIRECT(CONCATENATE($E$32,"!M222"))),"",INDIRECT(CONCATENATE($E$32,"!M222"))) -> N/A | L40: =IF(ISERROR(INDIRECT(CONCATENATE($E$32,"!M223"))),"",INDIRECT(CONCATENATE($E$32,"!M223"))) -> N/A | M40: =IF(ISERROR(INDIRECT(CONCATENATE($E$32,"!M224"))),"",INDIRECT(CONCATENATE($E$32,"!M224"))) -> N/A | N40: =IF(ISERROR(INDIRECT(CONCATENATE($E$32,"!N222"))),"",INDIRECT(CONCATENATE($E$32,"!N222"))) -> N/A | O40: =IF(ISERROR(INDIRECT(CONCATENATE($E$32,"!N223"))),"",INDIRECT(CONCATENATE($E$32,"!N223"))) -> N/A | P40: =IF(ISERROR(INDIRECT(CONCATENATE($E$32,"!N224"))),"",INDIRECT(CONCATENATE($E$32,"!N224"))) -> N/A | Q40: =IF(ISERROR(INDIRECT(CONCATENATE($E$32,"!O222"))),"",INDIRECT(CONCATENATE($E$32,"!O222"))) -> N/A | R40: =IF(ISERROR(INDIRECT(CONCATENATE($E$32,"!O223"))),"",INDIRECT(CONCATENATE($E$32,"!O223"))) -> N/A | S40: =IF(ISERROR(INDIRECT(CONCATENATE($E$32,"!O224"))),"",INDIRECT(CONCATENATE($E$32,"!O224"))) -> N/A | T40: =IF(ISERROR(INDIRECT(CONCATENATE($E$32,"!P222"))),"",INDIRECT(CONCATENATE($E$32,"!P222"))) -> N/A | U40: =IF(ISERROR(INDIRECT(CONCATENATE($E$32,"!P223"))),"",INDIRECT(CONCATENATE($E$32,"!P223"))) -> N/A | V40: =IF(ISERROR(INDIRECT(CONCATENATE($E$32,"!P224"))),"",INDIRECT(CONCATENATE($E$32,"!P224"))) -> N/A | W40: =IF(ISERROR(INDIRECT(CONCATENATE($E$32,"!Q222"))),"",INDIRECT(CONCATENATE($E$32,"!Q222"))) -> N/A | X40: =IF(ISERROR(INDIRECT(CONCATENATE($E$32,"!Q223"))),"",INDIRECT(CONCATENATE($E$32,"!Q223"))) -> N/A | Y40: =IF(ISERROR(INDIRECT(CONCATENATE($E$32,"!Q224"))),"",INDIRECT(CONCATENATE($E$32,"!Q224"))) -> N/A
A88: 2 | B88: DHS01
B89: ENDESA11
B90: Template

Sheet DHS01
A2: =A1026 -> Nicaragua
A3: =A1034 -> 2001
A4: Use of drinking water sources
A5: by wealth quintile and sub-national region
A6: Notes:
A7: WHO/UNICEF JMP customised wealth index excludes water,
A8: sanitation and hygiene assets.
A9: Survey used for analysis: | B9: =A1025 -> DHS01
A10: =B1028 -> 
A11: =B1027 -> 
A14: Use of drinking water sources | C14: NATIONAL wealth index quintile | H14: URBAN wealth index quintile | M14: RURAL wealth index quintile | R14: SUB-REGIONS: | BA14: Raw numbers of respondents: | BB14: Use of drinking water sources | BC14: NATIONAL wealth index quintile | BH14: URBAN wealth index quintile | BM14: RURAL wealth index quintile | BR14: SUB-REGIONS:
A15: Weighted percentage (used in graphs) | C15: Poorest | D15: Poor | E15: Middle | F15: Rich | G15: Richest | H15: Poorest | I15: Poor | J15: Middle | K15: Rich | L15: Richest | M15: Poorest | N15: Poor | O15: Middle | P15: Rich | Q15: Richest | R15: Atl ntico Norte(Raan) | S15: Atl ntico Sur(Raas) | T15: Boaco | U15: Carazo | V15: Chinandega | W15: Chontales | X15: Estel¡ | Y15: Granada | Z15: Jinotega | AA15: Le¢n | AB15: Madriz | AC15: Managua | AD15: Masaya | AE15: Matagalpa | AF15: Nueva Segovia | AG15: R¡o San Juan | AH15: Rivas | BA15: Water data, raw numbers (weighted) | BC15: Poorest | BD15: Poor | BE15: Middle | BF15: Rich | BG15: Richest | BH15: Poorest | BI15: Poor | BJ15: Middle | BK15: Rich | BL15: Richest | BM15: Poorest | BN15: Poor | BO15: Middle | BP15: Rich | BQ15: Richest | BR15: Atl ntico Norte(Raan) | BS15: Atl ntico Sur(Raas) | BT15: Boaco | BU15: Carazo | BV15: Chinandega | BW15: Chontales | BX15: Estel¡ | BY15: Granada | BZ15: Jinotega | CA15: Le¢n | CB15: Madriz | CC15: Managua | CD15: Masaya | CE15: Matagalpa | CF15: Nueva Segovia | CG15: R¡o San Juan | CH15: Rivas
A16: Water | B16: Improved | C16: =C58+C59+C60+C61+C66+C67+(C62+C63+C65)*0.5 -> 52.97392587 | D16: 70.61824648 | E16: 90.49375909 | F16: 96.03818309 | G16: 98.10354418 | H16: 89.54483191 | I16: 95.80902735 | J16: 97.06693661 | K16: 98.10988538 | L16: 98.77147733 | M16: 47.97333103 | N16: 51.89197906 | O16: 58.32931202 | P16: 72.057223 | Q16: 84.69959014 | R16: 59.29928741 | S16: 57.38525391 | T16: 68.4057971 | U16: 95.52748378 | V16: 79.00123305 | W16: 80.84126984 | X16: 85.37215713 | Y16: 92.00454103 | Z16: 60.11117788 | AA16: 83.04404145 | AB16: 71.28099174 | AC16: 98.50990369 | AD16: 98.48531685 | AE16: 76.05079793 | AF16: 74.10744077 | AG16: 65.59436275 | AH16: 80.09883199 | BA16: Water | BB16: Improved | BC16: N/A | BD16: N/A | BE16: N/A | BF16: N/A | BG16: N/A | BH16: N/A | BI16: N/A | BJ16: N/A | BK16: N/A | BL16: N/A | BM16: N/A | BN16: N/A | BO16: N/A | BP16: N/A | BQ16: N/A | BR16: N/A | BS16: N/A | BT16: N/A | BU16: N/A | BV16: N/A | BW16: N/A | BX16: N/A | BY16: N/A | BZ16: N/A | CA16: N/A | CB16: N/A | CC16: N/A | CD16: N/A | CE16: N/A | CF16: N/A | CG16: N/A | CH16: N/A
B17: Not Improved | C17: =100-C16 -> 47.02607413 | D17: =100-D16 -> 29.38175352 | E17: 9.50624091 | F17: 3.961816909 | G17: 1.896455822 | H17: 10.45516809 | I17: 4.190972654 | J17: 2.933063394 | K17: 1.890114617 | L17: 1.228522673 | M17: 52.02666897 | N17: 48.10802094 | O17: 41.67068798 | P17: 27.942777 | Q17: 15.30040986 | R17: 40.70071259 | S17: 42.61474609 | T17: 31.5942029 | U17: 4.472516217 | V17: 20.99876695 | W17: 19.15873016 | X17: 14.62784287 | Y17: 7.995458969 | Z17: 39.88882212 | AA17: 16.95595855 | AB17: 28.71900826 | AC17: 1.490096311 | AD17: 1.514683153 | AE17: 23.94920207 | AF17: 25.89255923 | AG17: 34.40563725 | AH17: 19.90116801 | BB17: Not Improved | BC17: N/A | BD17: N/A | BE17: N/A | BF17: N/A | BG17: N/A | BH17: N/A | BI17: N/A | BJ17: N/A | BK17: N/A | BL17: N/A | BM17: N/A | BN17: N/A | BO17: N/A | BP17: N/A | BQ17: N/A | BR17: N/A | BS17: N/A | BT17: N/A | BU17: N/A | BV17: N/A | BW17: N/A | BX17: N/A | BY17: N/A | BZ17: N/A | CA17: N/A | CB17: N/A | CC17: N/A | CD17: N/A | CE17: N/A | CF17: N/A | CG17: N/A | CH17: N/A
A18: Water ladder | B18: Basic | C18: =C16*C42/100 -> 50.11633431 | D18: 68.21731672 | E18: 89.51791355 | F18: 95.70693712 | G18: 98.02627541 | H18: 88.16119601 | I18: 95.61600057 | J18: 96.87358759 | K18: 97.99532956 | L18: 98.69278134 | M18: 45.71550358 | N18: 48.70706538 | O18: 55.05303067 | P18: 69.94840474 | Q18: 83.36045635 | R18: 57.94743378 | S18: 56.3690567 | T18: 65.88181795 | U18: 95.072591 | V18: 76.92441771 | W18: 79.32021459 | X18: 83.66471399 | Y18: 90.60757943 | Z18: 57.7311414 | AA18: 82.32756549 | AB18: 67.01057814 | AC18: 98.29248253 | AD18: 97.61089937 | AE18: 73.13319872 | AF18: 68.44492861 | AG18: 64.39763255 | AH18: 78.72674469 | BA18: Water ladder | BB18: Basic | BC18: N/A | BD18: N/A | BE18: N/A | BF18: N/A | BG18: N/A | BH18: N/A | BI18: N/A | BJ18: N/A | BK18: N/A | BL18: N/A | BM18: N/A | BN18: N/A | BO18: N/A | BP18: N/A | BQ18: N/A | BR18: N/A | BS18: N/A | BT18: N/A | BU18: N/A | BV18: N/A | BW18: N/A | BX18: N/A | BY18: N/A | BZ18: N/A | CA18: N/A | CB18: N/A | CC18: N/A | CD18: N/A | CE18: N/A | CF18: N/A | CG18: N/A | CH18: N/A
B19: Limited | C19: =C16*C41/100 -> 2.857591561 | D19: 2.400929761 | E19: 0.9758455371 | F19: 0.3312459673 | G19: 0.07726876482 | H19: 1.3836359 | I19: 0.193026773 | J19: 0.1933490141 | K19: 0.1145558202 | L19: 0.07869599093 | M19: 2.257827446 | N19: 3.184913684 | O19: 3.276281352 | P19: 2.108818264 | Q19: 1.339133783 | R19: 1.351853632 | S19: 1.016197205 | T19: 2.523979149 | U19: 0.4548927799 | V19: 2.07681534 | W19: 1.521055251 | X19: 1.707443143 | Y19: 1.396961605 | Z19: 2.380036485 | AA19: 0.7164759575 | AB19: 4.270413597 | AC19: 0.2174211595 | AD19: 0.8744174794 | AE19: 2.917599209 | AF19: 5.662512166 | AG19: 1.196730198 | AH19: 1.372087296 | BB19: Limited | BC19: N/A | BD19: N/A | BE19: N/A | BF19: N/A | BG19: N/A | BH19: N/A | BI19: N/A | BJ19: N/A | BK19: N/A | BL19: N/A | BM19: N/A | BN19: N/A | BO19: N/A | BP19: N/A | BQ19: N/A | BR19: N/A | BS19: N/A | BT19: N/A | BU19: N/A | BV19: N/A | BW19: N/A | BX19: N/A | BY19: N/A | BZ19: N/A | CA19: N/A | CB19: N/A | CC19: N/A | CD19: N/A | CE19: N/A | CF19: N/A | CG19: N/A | CH19: N/A
B20: Unimproved | C20: =100-(C18+C19+C21) -> 31.88974689 | D20: =100-(D18+D19+D21) -> 23.63921752 | E20: 8.879884308 | F20: 3.933036806 | G20: 1.896455822 | H20: 9.408645345 | I20: 4.104761963 | J20: 2.933063394 | K20: 1.890114617 | L20: 1.228522673 | M20: 34.11875302 | N20: 33.28444295 | O20: 30.59530312 | P20: 24.4645899 | Q20: 14.2753226 | R20: 30.27315914 | S20: 33.11767578 | T20: 24.21607378 | U20: 2.492318197 | V20: 18.82860666 | W20: 12.9047619 | X20: 13.38731909 | Y20: 7.703535517 | Z20: 25.79627404 | AA20: 15.53108808 | AB20: 21.21741894 | AC20: 1.290205343 | AD20: 1.514683153 | AE20: 18.32996179 | AF20: 14.71471471 | AG20: 21.69117647 | AH20: 17.59508835 | BB20: Unimproved | BC20: N/A | BD20: N/A | BE20: N/A | BF20: N/A | BG20: N/A | BH20: N/A | BI20: N/A | BJ20: N/A | BK20: N/A | BL20: N/A | BM20: N/A | BN20: N/A | BO20: N/A | BP20: N/A | BQ20: N/A | BR20: N/A | BS20: N/A | BT20: N/A | BU20: N/A | BV20: N/A | BW20: N/A | BX20: N/A | BY20: N/A | BZ20: N/A | CA20: N/A | CB20: N/A | CC20: N/A | CD20: N/A | CE20: N/A | CF20: N/A | CG20: N/A | CH20: N/A
B21: Surface water | C21: =C64 -> 15.13632724 | D21: 5.742535999 | E21: 0.6263566016 | F21: 0.0287801032 | G21: 0 | H21: 1.046522745 | I21: 0.08621069115 | J21: 0 | K21: 0 | L21: 0 | M21: 17.90791595 | N21: 14.82357799 | O21: 11.07538486 | P21: 3.478187101 | Q21: 1.02508727 | R21: 10.42755344 | S21: 9.497070313 | T21: 7.378129117 | U21: 1.98019802 | V21: 2.170160296 | W21: 6.253968254 | X21: 1.240523777 | Y21: 0.2919234512 | Z21: 14.09254808 | AA21: 1.424870466 | AB21: 7.50158932 | AC21: 0.1998909686 | AD21: 0 | AE21: 5.619240279 | AF21: 11.17784451 | AG21: 12.71446078 | AH21: 2.306079665 | BB21: Surface water | BC21: N/A | BD21: N/A | BE21: N/A | BF21: N/A | BG21: N/A | BH21: N/A | BI21: N/A | BJ21: N/A | BK21: N/A | BL21: N/A | BM21: N/A | BN21: N/A | BO21: N/A | BP21: N/A | BQ21: N/A | BR21: N/A | BS21: N/A | BT21: N/A | BU21: N/A | BV21: N/A | BW21: N/A | BX21: N/A | BY21: N/A | BZ21: N/A | CA21: N/A | CB21: N/A | CC21: N/A | CD21: N/A | CE21: N/A | CF21: N/A | CG21: N/A | CH21: N/A
A22: Improved water point at more than 30 minutes | B22: Yes | C22: N/A | D22: N/A | E22: N/A | F22: N/A | G22: N/A | H22: N/A | I22: N/A | J22: N/A | K22: N/A | L22: N/A | M22: N/A | N22: N/A | O22: N/A | P22: N/A | Q22: N/A | R22: N/A | S22: N/A | T22: N/A | U22: N/A | V22: N/A | W22: N/A | X22: N/A | Y22: N/A | Z22: N/A | AA22: N/A | AB22: N/A | AC22: N/A | AD22: N/A | AE22: N/A | AF22: N/A | AG22: N/A | AH22: N/A | BA22: Improved water point at more than 30 minutes | BB22: Yes | BC22: N/A | BD22: N/A | BE22: N/A | BF22: N/A | BG22: N/A | BH22: N/A | BI22: N/A | BJ22: N/A | BK22: N/A | BL22: N/A | BM22: N/A | BN22: N/A | BO22: N/A | BP22: N/A | BQ22: N/A | BR22: N/A | BS22: N/A | BT22: N/A | BU22: N/A | BV22: N/A | BW22: N/A | BX22: N/A | BY22: N/A | BZ22: N/A | CA22: N/A | CB22: N/A | CC22: N/A | CD22: N/A | CE22: N/A | CF22: N/A | CG22: N/A | CH22: N/A
B23: No | C23: N/A | D23: N/A | E23: N/A | F23: N/A | G23: N/A | H23: N/A | I23: N/A | J23: N/A | K23: N/A | L23: N/A | M23: N/A | N23: N/A | O23: N/A | P23: N/A | Q23: N/A | R23: N/A | S23: N/A | T23: N/A | U23: N/A | V23: N/A | W23: N/A | X23: N/A | Y23: N/A | Z23: N/A | AA23: N/A | AB23: N/A | AC23: N/A | AD23: N/A | AE23: N/A | AF23: N/A | AG23: N/A | AH23: N/A | BB23: No | BC23: N/A | BD23: N/A | BE23: N/A | BF23: N/A | BG23: N/A | BH23: N/A | BI23: N/A | BJ23: N/A | BK23: N/A | BL23: N/A | BM23: N/A | BN23: N/A | BO23: N/A | BP23: N/A | BQ23: N/A | BR23: N/A | BS23: N/A | BT23: N/A | BU23: N/A | BV23: N/A | BW23: N/A | BX23: N/A | BY23: N/A | BZ23: N/A | CA23: N/A | CB23: N/A | CC23: N/A | CD23: N/A | CE23: N/A | CF23: N/A | CG23: N/A | CH23: N/A
A24: Manually calculated ratios | B24: Improved wells
B25: Improved springs
B26: Other
C27: NATIONAL wealth index quintile | H27: URBAN wealth index quintile | M27: RURAL wealth index quintile | R27: SUB-REGIONS: | BA27: Raw numbers of respondents: | BB27: Use of drinking water sources | BC27: NATIONAL wealth index quintile | BH27: URBAN wealth index quintile | BM27: RURAL wealth index quintile | BR27: SUB-REGIONS:
A28: Percentage based on weighted population | C28: Poorest | D28: Poor | E28: Middle | F28: Rich | G28: Richest | H28: Poorest | I28: Poor | J28: Middle | K28: Rich | L28: Richest | M28: Poorest | N28: Poor | O28: Middle | P28: Rich | Q28: Richest | R28: Atl ntico Norte(Raan) | S28: Atl ntico Sur(Raas) | T28: Boaco | U28: Carazo | V28: Chinandega | W28: Chontales | X28: Estel¡ | Y28: Granada | Z28: Jinotega | AA28: Le¢n | AB28: Madriz | AC28: Managua | AD28: Masaya | AE28: Matagalpa | AF28: Nueva Segovia | AG28: R¡o San Juan | AH28: Rivas | BA28: Water data, raw numbers (weighted) | BC28: Poorest | BD28: Poor | BE28: Middle | BF28: Rich | BG28: Richest | BH28: Poorest | BI28: Poor | BJ28: Middle | BK28: Rich | BL28: Richest | BM28: Poorest | BN28: Poor | BO28: Middle | BP28: Rich | BQ28: Richest | BR28: Atl ntico Norte(Raan) | BS28: Atl ntico Sur(Raas) | BT28: Boaco | BU28: Carazo | BV28: Chinandega | BW28: Chontales | BX28: Estel¡ | BY28: Granada | BZ28: Jinotega | CA28: Le¢n | CB28: Madriz | CC28: Managua | CD28: Masaya | CE28: Matagalpa | CF28: Nueva Segovia | CG28: R¡o San Juan | CH28: Rivas
A29: Piped water | B29: Yes | C29: 20.82251324 | D29: 46.68270833 | E29: 81.48198862 | F29: 92.09810182 | G29: 95.84399939 | H29: 80.16496822 | I29: 91.54517066 | J29: 94.1688209 | K29: 95.84231791 | L29: 97.26620163 | M29: 13.73604763 | N29: 18.09352288 | O29: 27.21215083 | P29: 47.33217035 | Q29: 70.36968964 | R29: 28.36104513 | S29: 23.07128906 | T29: 44.03162055 | U29: 93.82041652 | V29: 60.02466091 | W29: 67.93650794 | X29: 71.6402481 | Y29: 84.13882582 | Z29: 33.22338831 | AA29: 67.30569948 | AB29: 50.06357279 | AC29: 97.3832455 | AD29: 96.59969088 | AE29: 57.61455526 | AF29: 59.55955956 | AG29: 43.90318627 | AH29: 61.72506739 | BA29: Piped water | BB29: Yes | BC29: N/A | BD29: N/A | BE29: N/A | BF29: N/A | BG29: N/A | BH29: N/A | BI29: N/A | BJ29: N/A | BK29: N/A | BL29: N/A | BM29: N/A | BN29: N/A | BO29: N/A | BP29: N/A | BQ29: N/A | BR29: N/A | BS29: N/A | BT29: N/A | BU29: N/A | BV29: N/A | BW29: N/A | BX29: N/A | BY29: N/A | BZ29: N/A | CA29: N/A | CB29: N/A | CC29: N/A | CD29: N/A | CE29: N/A | CF29: N/A | CG29: N/A | CH29: N/A
B30: No | C30: 79.17748676 | D30: 53.31729167 | E30: 18.51801138 | F30: 7.90189818 | G30: 4.156000606 | H30: 19.83503178 | I30: 8.454829338 | J30: 5.831179097 | K30: 4.157682093 | L30: 2.733798372 | M30: 86.26395237 | N30: 81.90647712 | O30: 72.78784917 | P30: 52.66782965 | Q30: 29.63031036 | R30: 71.63895487 | S30: 76.92871094 | T30: 55.96837945 | U30: 6.179583476 | V30: 39.97533909 | W30: 32.06349206 | X30: 28.3597519 | Y30: 15.86117418 | Z30: 66.77661169 | AA30: 32.69430052 | AB30: 49.93642721 | AC30: 2.616754498 | AD30: 3.400309119 | AE30: 42.38544474 | AF30: 40.44044044 | AG30: 56.09681373 | AH30: 38.27493261 | BB30: No | BC30: N/A | BD30: N/A | BE30: N/A | BF30: N/A | BG30: N/A | BH30: N/A | BI30: N/A | BJ30: N/A | BK30: N/A | BL30: N/A | BM30: N/A | BN30: N/A | BO30: N/A | BP30: N/A | BQ30: N/A | BR30: N/A | BS30: N/A | BT30: N/A | BU30: N/A | BV30: N/A | BW30: N/A | BX30: N/A | BY30: N/A | BZ30: N/A | CA30: N/A | CB30: N/A | CC30: N/A | CD30: N/A | CE30: N/A | CF30: N/A | CG30: N/A | CH30: N/A
A31: Piped water on premises | B31: Yes | C31: 10.08629087 | D31: 35.80537168 | E31: 75.7289379 | F31: 89.35369825 | G31: 95.29186761 | H31: 69.00506514 | I31: 88.87182889 | J31: 91.47077264 | K31: 95.37536723 | L31: 97.02814688 | M31: 5.811737533 | N31: 7.847315555 | O31: 16.14627536 | P31: 36.97032539 | Q31: 61.69369755 | R31: 21.99524941 | S31: 17.01660156 | T31: 34.96706192 | U31: 87.2994196 | V31: 55.28976572 | W31: 59.17460317 | X31: 58.51137147 | Y31: 77.19753487 | Z31: 23.26836582 | AA31: 63.39378238 | AB31: 35.37825811 | AC31: 96.40196257 | AD31: 91.00463679 | AE31: 46.22641509 | AF31: 51.18451785 | AG31: 33.82352941 | AH31: 56.42407907 | BA31: Piped water on premises | BB31: Yes | BC31: N/A | BD31: N/A | BE31: N/A | BF31: N/A | BG31: N/A | BH31: N/A | BI31: N/A | BJ31: N/A | BK31: N/A | BL31: N/A | BM31: N/A | BN31: N/A | BO31: N/A | BP31: N/A | BQ31: N/A | BR31: N/A | BS31: N/A | BT31: N/A | BU31: N/A | BV31: N/A | BW31: N/A | BX31: N/A | BY31: N/A | BZ31: N/A | CA31: N/A | CB31: N/A | CC31: N/A | CD31: N/A | CE31: N/A | CF31: N/A | CG31: N/A | CH31: N/A
B32: No | C32: 89.91370913 | D32: 64.19462832 | E32: 24.2710621 | F32: 10.64630175 | G32: 4.708132385 | H32: 30.99493486 | I32: 11.12817111 | J32: 8.529227359 | K32: 4.624632767 | L32: 2.971853121 | M32: 94.18826247 | N32: 92.15268445 | O32: 83.85372464 | P32: 63.02967461 | Q32: 38.30630245 | R32: 78.00475059 | S32: 82.98339844 | T32: 65.03293808 | U32: 12.7005804 | V32: 44.71023428 | W32: 40.82539683 | X32: 41.48862853 | Y32: 22.80246513 | Z32: 76.73163418 | AA32: 36.60621762 | AB32: 64.62174189 | AC32: 3.598037434 | AD32: 8.995363215 | AE32: 53.77358491 | AF32: 48.81548215 | AG32: 66.17647059 | AH32: 43.57592093 | BB32: No | BC32: N/A | BD32: N/A | BE32: N/A | BF32: N/A | BG32: N/A | BH32: N/A | BI32: N/A | BJ32: N/A | BK32: N/A | BL32: N/A | BM32: N/A | BN32: N/A | BO32: N/A | BP32: N/A | BQ32: N/A | BR32: N/A | BS32: N/A | BT32: N/A | BU32: N/A | BV32: N/A | BW32: N/A | BX32: N/A | BY32: N/A | BZ32: N/A | CA32: N/A | CB32: N/A | CC32: N/A | CD32: N/A | CE32: N/A | CF32: N/A | CG32: N/A | CH32: N/A
A33: Piped water into dwelling | B33: Yes | C33: N/A | D33: N/A | E33: N/A | F33: N/A | G33: N/A | H33: N/A | I33: N/A | J33: N/A | K33: N/A | L33: N/A | M33: N/A | N33: N/A | O33: N/A | P33: N/A | Q33: N/A | R33: N/A | S33: N/A | T33: N/A | U33: N/A | V33: N/A | W33: N/A | X33: N/A | Y33: N/A | Z33: N/A | AA33: N/A | AB33: N/A | AC33: N/A | AD33: N/A | AE33: N/A | AF33: N/A | AG33: N/A | AH33: N/A | BA33: Piped water into dwelling | BB33: Yes | BC33: N/A | BD33: N/A | BE33: N/A | BF33: N/A | BG33: N/A | BH33: N/A | BI33: N/A | BJ33: N/A | BK33: N/A | BL33: N/A | BM33: N/A | BN33: N/A | BO33: N/A | BP33: N/A | BQ33: N/A | BR33: N/A | BS33: N/A | BT33: N/A | BU33: N/A | BV33: N/A | BW33: N/A | BX33: N/A | BY33: N/A | BZ33: N/A | CA33: N/A | CB33: N/A | CC33: N/A | CD33: N/A | CE33: N/A | CF33: N/A | CG33: N/A | CH33: N/A
B34: No | C34: N/A | D34: N/A | E34: N/A | F34: N/A | G34: N/A | H34: N/A | I34: N/A | J34: N/A | K34: N/A | L34: N/A | M34: N/A | N34: N/A | O34: N/A | P34: N/A | Q34: N/A | R34: N/A | S34: N/A | T34: N/A | U34: N/A | V34: N/A | W34: N/A | X34: N/A | Y34: N/A | Z34: N/A | AA34: N/A | AB34: N/A | AC34: N/A | AD34: N/A | AE34: N/A | AF34: N/A | AG34: N/A | AH34: N/A | BB34: No | BC34: N/A | BD34: N/A | BE34: N/A | BF34: N/A | BG34: N/A | BH34: N/A | BI34: N/A | BJ34: N/A | BK34: N/A | BL34: N/A | BM34: N/A | BN34: N/A | BO34: N/A | BP34: N/A | BQ34: N/A | BR34: N/A | BS34: N/A | BT34: N/A | BU34: N/A | BV34: N/A | BW34: N/A | BX34: N/A | BY34: N/A | BZ34: N/A | CA34: N/A | CB34: N/A | CC34: N/A | CD34: N/A | CE34: N/A | CF34: N/A | CG34: N/A | CH34: N/A
A35: Water source on premises | B35: Yes | C35: 23.57933789 | D35: 46.69586364 | E35: 81.67903004 | F35: 92.81153638 | G35: 97.29428825 | H35: 74.18585179 | I35: 92.55099735 | J35: 93.68152158 | K35: 97.15811725 | L35: 98.51960977 | M35: 19.94087093 | N35: 22.0505557 | O35: 27.86204118 | P35: 49.89311834 | Q35: 72.66381189 | R35: 40.35629454 | S35: 37.57324219 | T35: 44.53227931 | U35: 87.6066917 | V35: 69.56843403 | W35: 64.76190476 | X35: 63.81805651 | Y35: 83.55497892 | Z35: 35.44227886 | AA35: 71.01036269 | AB35: 37.41258741 | AC35: 96.47465019 | AD35: 91.80834621 | AE35: 53.21203953 | AF35: 53.62028695 | AG35: 40.80882353 | AH35: 75.98083258 | BA35: Water source on premises | BB35: Yes | BC35: N/A | BD35: N/A | BE35: N/A | BF35: N/A | BG35: N/A | BH35: N/A | BI35: N/A | BJ35: N/A | BK35: N/A | BL35: N/A | BM35: N/A | BN35: N/A | BO35: N/A | BP35: N/A | BQ35: N/A | BR35: N/A | BS35: N/A | BT35: N/A | BU35: N/A | BV35: N/A | BW35: N/A | BX35: N/A | BY35: N/A | BZ35: N/A | CA35: N/A | CB35: N/A | CC35: N/A | CD35: N/A | CE35: N/A | CF35: N/A | CG35: N/A | CH35: N/A
B36: No | C36: 76.42066211 | D36: 53.30413636 | E36: 18.32096996 | F36: 7.188463618 | G36: 2.705711752 | H36: 25.81414821 | I36: 7.449002654 | J36: 6.318478417 | K36: 2.841882746 | L36: 1.480390229 | M36: 80.05912907 | N36: 77.9494443 | O36: 72.13795882 | P36: 50.10688166 | Q36: 27.33618811 | R36: 59.64370546 | S36: 62.42675781 | T36: 55.46772069 | U36: 12.3933083 | V36: 30.43156597 | W36: 35.23809524 | X36: 36.18194349 | Y36: 16.44502108 | Z36: 64.55772114 | AA36: 28.98963731 | AB36: 62.58741259 | AC36: 3.525349809 | AD36: 8.191653787 | AE36: 46.78796047 | AF36: 46.37971305 | AG36: 59.19117647 | AH36: 24.01916742 | BB36: No | BC36: N/A | BD36: N/A | BE36: N/A | BF36: N/A | BG36: N/A | BH36: N/A | BI36: N/A | BJ36: N/A | BK36: N/A | BL36: N/A | BM36: N/A | BN36: N/A | BO36: N/A | BP36: N/A | BQ36: N/A | BR36: N/A | BS36: N/A | BT36: N/A | BU36: N/A | BV36: N/A | BW36: N/A | BX36: N/A | BY36: N/A | BZ36: N/A | CA36: N/A | CB36: N/A | CC36: N/A | CD36: N/A | CE36: N/A | CF36: N/A | CG36: N/A | CH36: N/A
A37: Improved Water source on premises | B37: Yes | C37: N/A | D37: N/A | E37: N/A | F37: N/A | G37: N/A | H37: N/A | I37: N/A | J37: N/A | K37: N/A | L37: N/A | M37: N/A | N37: N/A | O37: N/A | P37: N/A | Q37: N/A | R37: N/A | S37: N/A | T37: N/A | U37: N/A | V37: N/A | W37: N/A | X37: N/A | Y37: N/A | Z37: N/A | AA37: N/A | AB37: N/A | AC37: N/A | AD37: N/A | AE37: N/A | AF37: N/A | AG37: N/A | AH37: N/A | BA37: Improved water source on premises | BB37: Yes | BC37: N/A | BD37: N/A | BE37: N/A | BF37: N/A | BG37: N/A | BH37: N/A | BI37: N/A | BJ37: N/A | BK37: N/A | BL37: N/A | BM37: N/A | BN37: N/A | BO37: N/A | BP37: N/A | BQ37: N/A | BR37: N/A | BS37: N/A | BT37: N/A | BU37: N/A | BV37: N/A | BW37: N/A | BX37: N/A | BY37: N/A | BZ37: N/A | CA37: N/A | CB37: N/A | CC37: N/A | CD37: N/A | CE37: N/A | CF37: N/A | CG37: N/A | CH37: N/A
B38: No | C38: N/A | D38: N/A | E38: N/A | F38: N/A | G38: N/A | H38: N/A | I38: N/A | J38: N/A | K38: N/A | L38: N/A | M38: N/A | N38: N/A | O38: N/A | P38: N/A | Q38: N/A | R38: N/A | S38: N/A | T38: N/A | U38: N/A | V38: N/A | W38: N/A | X38: N/A | Y38: N/A | Z38: N/A | AA38: N/A | AB38: N/A | AC38: N/A | AD38: N/A | AE38: N/A | AF38: N/A | AG38: N/A | AH38: N/A | BB38: No | BC38: N/A | BD38: N/A | BE38: N/A | BF38: N/A | BG38: N/A | BH38: N/A | BI38: N/A | BJ38: N/A | BK38: N/A | BL38: N/A | BM38: N/A | BN38: N/A | BO38: N/A | BP38: N/A | BQ38: N/A | BR38: N/A | BS38: N/A | BT38: N/A | BU38: N/A | BV38: N/A | BW38: N/A | BX38: N/A | BY38: N/A | BZ38: N/A | CA38: N/A | CB38: N/A | CC38: N/A | CD38: N/A | CE38: N/A | CF38: N/A | CG38: N/A | CH38: N/A
A39: Piped water on premises available when needed | B39: Yes | C39: N/A | D39: N/A | E39: N/A | F39: N/A | G39: N/A | H39: N/A | I39: N/A | J39: N/A | K39: N/A | L39: N/A | M39: N/A | N39: N/A | O39: N/A | P39: N/A | Q39: N/A | R39: N/A | S39: N/A | T39: N/A | U39: N/A | V39: N/A | W39: N/A | X39: N/A | Y39: N/A | Z39: N/A | AA39: N/A | AB39: N/A | AC39: N/A | AD39: N/A | AE39: N/A | AF39: N/A | AG39: N/A | AH39: N/A | BA39: Piped water on premises available when needed | BB39: Yes | BC39: N/A | BD39: N/A | BE39: N/A | BF39: N/A | BG39: N/A | BH39: N/A | BI39: N/A | BJ39: N/A | BK39: N/A | BL39: N/A | BM39: N/A | BN39: N/A | BO39: N/A | BP39: N/A | BQ39: N/A | BR39: N/A | BS39: N/A | BT39: N/A | BU39: N/A | BV39: N/A | BW39: N/A | BX39: N/A | BY39: N/A | BZ39: N/A | CA39: N/A | CB39: N/A | CC39: N/A | CD39: N/A | CE39: N/A | CF39: N/A | CG39: N/A | CH39: N/A
B40: No | C40: N/A | D40: N/A | E40: N/A | F40: N/A | G40: N/A | H40: N/A | I40: N/A | J40: N/A | K40: N/A | L40: N/A | M40: N/A | N40: N/A | O40: N/A | P40: N/A | Q40: N/A | R40: N/A | S40: N/A | T40: N/A | U40: N/A | V40: N/A | W40: N/A | X40: N/A | Y40: N/A | Z40: N/A | AA40: N/A | AB40: N/A | AC40: N/A | AD40: N/A | AE40: N/A | AF40: N/A | AG40: N/A | AH40: N/A | BB40: No | BC40: N/A | BD40: N/A | BE40: N/A | BF40: N/A | BG40: N/A | BH40: N/A | BI40: N/A | BJ40: N/A | BK40: N/A | BL40: N/A | BM40: N/A | BN40: N/A | BO40: N/A | BP40: N/A | BQ40: N/A | BR40: N/A | BS40: N/A | BT40: N/A | BU40: N/A | BV40: N/A | BW40: N/A | BX40: N/A | BY40: N/A | BZ40: N/A | CA40: N/A | CB40: N/A | CC40: N/A | CD40: N/A | CE40: N/A | CF40: N/A | CG40: N/A | CH40: N/A
A41: Water point at more than 30 minutes | B41: Yes | C41: 5.394336015 | D41: 3.399871677 | E41: 1.078356725 | F41: 0.3449106976 | G41: 0.07876246008 | H41: 1.545187891 | I41: 0.2014703398 | J41: 0.1991914249 | K41: 0.1167627704 | L41: 0.07967481409 | M41: 4.706422085 | N41: 6.137583768 | O41: 5.616869527 | P41: 2.926588309 | Q41: 1.581039272 | R41: 2.279713115 | S41: 1.770833333 | T41: 3.689715282 | U41: 0.4761904762 | V41: 2.628839146 | W41: 1.881533101 | X41: 2 | Y41: 1.518361582 | Z41: 3.959390863 | AA41: 0.8627662443 | AB41: 5.990957046 | AC41: 0.2207099503 | AD41: 0.8878658336 | AE41: 3.836382114 | AF41: 7.640949555 | AG41: 1.82444062 | AH41: 1.712992889 | BA41: Water point at more than 30 minutes | BB41: Yes | BC41: N/A | BD41: N/A | BE41: N/A | BF41: N/A | BG41: N/A | BH41: N/A | BI41: N/A | BJ41: N/A | BK41: N/A | BL41: N/A | BM41: N/A | BN41: N/A | BO41: N/A | BP41: N/A | BQ41: N/A | BR41: N/A | BS41: N/A | BT41: N/A | BU41: N/A | BV41: N/A | BW41: N/A | BX41: N/A | BY41: N/A | BZ41: N/A | CA41: N/A | CB41: N/A | CC41: N/A | CD41: N/A | CE41: N/A | CF41: N/A | CG41: N/A | CH41: N/A
B42: No | C42: 94.60566399 | D42: 96.60012832 | E42: 98.92164327 | F42: 99.6550893 | G42: 99.92123754 | H42: 98.45481211 | I42: 99.79852966 | J42: 99.80080858 | K42: 99.88323723 | L42: 99.92032519 | M42: 95.29357792 | N42: 93.86241623 | O42: 94.38313047 | P42: 97.07341169 | Q42: 98.41896073 | R42: 97.72028689 | S42: 98.22916667 | T42: 96.31028472 | U42: 99.52380952 | V42: 97.37116085 | W42: 98.1184669 | X42: 98 | Y42: 98.48163842 | Z42: 96.04060914 | AA42: 99.13723376 | AB42: 94.00904295 | AC42: 99.77929005 | AD42: 99.11213417 | AE42: 96.16361789 | AF42: 92.35905045 | AG42: 98.17555938 | AH42: 98.28700711 | BB42: No | BC42: N/A | BD42: N/A | BE42: N/A | BF42: N/A | BG42: N/A | BH42: N/A | BI42: N/A | BJ42: N/A | BK42: N/A | BL42: N/A | BM42: N/A | BN42: N/A | BO42: N/A | BP42: N/A | BQ42: N/A | BR42: N/A | BS42: N/A | BT42: N/A | BU42: N/A | BV42: N/A | BW42: N/A | BX42: N/A | BY42: N/A | BZ42: N/A | CA42: N/A | CB42: N/A | CC42: N/A | CD42: N/A | CE42: N/A | CF42: N/A | CG42: N/A | CH42: N/A
A43: Water source available when needed | B43: Yes | C43: N/A | D43: N/A | E43: N/A | F43: N/A | G43: N/A | H43: N/A | I43: N/A | J43: N/A | K43: N/A | L43: N/A | M43: N/A | N43: N/A | O43: N/A | P43: N/A | Q43: N/A | R43: N/A | S43: N/A | T43: N/A | U43: N/A | V43: N/A | W43: N/A | X43: N/A | Y43: N/A | Z43: N/A | AA43: N/A | AB43: N/A | AC43: N/A | AD43: N/A | AE43: N/A | AF43: N/A | AG43: N/A | AH43: N/A | BA43: Water source available when needed | BB43: Yes | BC43: N/A | BD43: N/A | BE43: N/A | BF43: N/A | BG43: N/A | BH43: N/A | BI43: N/A | BJ43: N/A | BK43: N/A | BL43: N/A | BM43: N/A | BN43: N/A | BO43: N/A | BP43: N/A | BQ43: N/A | BR43: N/A | BS43: N/A | BT43: N/A | BU43: N/A | BV43: N/A | BW43: N/A | BX43: N/A | BY43: N/A | BZ43: N/A | CA43: N/A | CB43: N/A | CC43: N/A | CD43: N/A | CE43: N/A | CF43: N/A | CG43: N/A | CH43: N/A
B44: No | C44: N/A | D44: N/A | E44: N/A | F44: N/A | G44: N/A | H44: N/A | I44: N/A | J44: N/A | K44: N/A | L44: N/A | M44: N/A | N44: N/A | O44: N/A | P44: N/A | Q44: N/A | R44: N/A | S44: N/A | T44: N/A | U44: N/A | V44: N/A | W44: N/A | X44: N/A | Y44: N/A | Z44: N/A | AA44: N/A | AB44: N/A | AC44: N/A | AD44: N/A | AE44: N/A | AF44: N/A | AG44: N/A | AH44: N/A | BB44: No | BC44: N/A | BD44: N/A | BE44: N/A | BF44: N/A | BG44: N/A | BH44: N/A | BI44: N/A | BJ44: N/A | BK44: N/A | BL44: N/A | BM44: N/A | BN44: N/A | BO44: N/A | BP44: N/A | BQ44: N/A | BR44: N/A | BS44: N/A | BT44: N/A | BU44: N/A | BV44: N/A | BW44: N/A | BX44: N/A | BY44: N/A | BZ44: N/A | CA44: N/A | CB44: N/A | CC44: N/A | CD44: N/A | CE44: N/A | CF44: N/A | CG44: N/A | CH44: N/A
A45: Improved water source available when needed | B45: Yes | C45: N/A | D45: N/A | E45: N/A | F45: N/A | G45: N/A | H45: N/A | I45: N/A | J45: N/A | K45: N/A | L45: N/A | M45: N/A | N45: N/A | O45: N/A | P45: N/A | Q45: N/A | R45: N/A | S45: N/A | T45: N/A | U45: N/A | V45: N/A | W45: N/A | X45: N/A | Y45: N/A | Z45: N/A | AA45: N/A | AB45: N/A | AC45: N/A | AD45: N/A | AE45: N/A | AF45: N/A | AG45: N/A | AH45: N/A | BA45: Improved water source available when needed | BB45: Yes | BC45: N/A | BD45: N/A | BE45: N/A | BF45: N/A | BG45: N/A | BH45: N/A | BI45: N/A | BJ45: N/A | BK45: N/A | BL45: N/A | BM45: N/A | BN45: N/A | BO45: N/A | BP45: N/A | BQ45: N/A | BR45: N/A | BS45: N/A | BT45: N/A | BU45: N/A | BV45: N/A | BW45: N/A | BX45: N/A | BY45: N/A | BZ45: N/A | CA45: N/A | CB45: N/A | CC45: N/A | CD45: N/A | CE45: N/A | CF45: N/A | CG45: N/A | CH45: N/A
B46: No | C46: N/A | D46: N/A | E46: N/A | F46: N/A | G46: N/A | H46: N/A | I46: N/A | J46: N/A | K46: N/A | L46: N/A | M46: N/A | N46: N/A | O46: N/A | P46: N/A | Q46: N/A | R46: N/A | S46: N/A | T46: N/A | U46: N/A | V46: N/A | W46: N/A | X46: N/A | Y46: N/A | Z46: N/A | AA46: N/A | AB46: N/A | AC46: N/A | AD46: N/A | AE46: N/A | AF46: N/A | AG46: N/A | AH46: N/A | BB46: No | BC46: N/A | BD46: N/A | BE46: N/A | BF46: N/A | BG46: N/A | BH46: N/A | BI46: N/A | BJ46: N/A | BK46: N/A | BL46: N/A | BM46: N/A | BN46: N/A | BO46: N/A | BP46: N/A | BQ46: N/A | BR46: N/A | BS46: N/A | BT46: N/A | BU46: N/A | BV46: N/A | BW46: N/A | BX46: N/A | BY46: N/A | BZ46: N/A | CA46: N/A | CB46: N/A | CC46: N/A | CD46: N/A | CE46: N/A | CF46: N/A | CG46: N/A | CH46: N/A
A47: Microbiological quality at point of collection | B47: Not contaminated (No E. coli in 100 mL) | C47: N/A | D47: N/A | E47: N/A | F47: N/A | G47: N/A | H47: N/A | I47: N/A | J47: N/A | K47: N/A | L47: N/A | M47: N/A | N47: N/A | O47: N/A | P47: N/A | Q47: N/A | R47: N/A | S47: N/A | T47: N/A | U47: N/A | V47: N/A | W47: N/A | X47: N/A | Y47: N/A | Z47: N/A | AA47: N/A | AB47: N/A | AC47: N/A | AD47: N/A | AE47: N/A | AF47: N/A | AG47: N/A | AH47: N/A | BA47: Microbiological quality at point of collection | BB47: Not contaminated (No E. coli in 100 mL) | BC47: N/A | BD47: N/A | BE47: N/A | BF47: N/A | BG47: N/A | BH47: N/A | BI47: N/A | BJ47: N/A | BK47: N/A | BL47: N/A | BM47: N/A | BN47: N/A | BO47: N/A | BP47: N/A | BQ47: N/A | BR47: N/A | BS47: N/A | BT47: N/A | BU47: N/A | BV47: N/A | BW47: N/A | BX47: N/A | BY47: N/A | BZ47: N/A | CA47: N/A | CB47: N/A | CC47: N/A | CD47: N/A | CE47: N/A | CF47: N/A | CG47: N/A | CH47: N/A
B48: Contaminated (E. coli detected in 100 mL) | C48: N/A | D48: N/A | E48: N/A | F48: N/A | G48: N/A | H48: N/A | I48: N/A | J48: N/A | K48: N/A | L48: N/A | M48: N/A | N48: N/A | O48: N/A | P48: N/A | Q48: N/A | R48: N/A | S48: N/A | T48: N/A | U48: N/A | V48: N/A | W48: N/A | X48: N/A | Y48: N/A | Z48: N/A | AA48: N/A | AB48: N/A | AC48: N/A | AD48: N/A | AE48: N/A | AF48: N/A | AG48: N/A | AH48: N/A | BB48: Contaminated (E. coli detected in 100 mL) | BC48: N/A | BD48: N/A | BE48: N/A | BF48: N/A | BG48: N/A | BH48: N/A | BI48: N/A | BJ48: N/A | BK48: N/A | BL48: N/A | BM48: N/A | BN48: N/A | BO48: N/A | BP48: N/A | BQ48: N/A | BR48: N/A | BS48: N/A | BT48: N/A | BU48: N/A | BV48: N/A | BW48: N/A | BX48: N/A | BY48: N/A | BZ48: N/A | CA48: N/A | CB48: N/A | CC48: N/A | CD48: N/A | CE48: N/A | CF48: N/A | CG48: N/A | CH48: N/A
B49: Highly contaminated (>100 CFU/100 mL) | C49: N/A | D49: N/A | E49: N/A | F49: N/A | G49: N/A | H49: N/A | I49: N/A | J49: N/A | K49: N/A | L49: N/A | M49: N/A | N49: N/A | O49: N/A | P49: N/A | Q49: N/A | R49: N/A | S49: N/A | T49: N/A | U49: N/A | V49: N/A | W49: N/A | X49: N/A | Y49: N/A | Z49: N/A | AA49: N/A | AB49: N/A | AC49: N/A | AD49: N/A | AE49: N/A | AF49: N/A | AG49: N/A | AH49: N/A | BB49: Highly contaminated (>100 CFU/100 mL) | BC49: N/A | BD49: N/A | BE49: N/A | BF49: N/A | BG49: N/A | BH49: N/A | BI49: N/A | BJ49: N/A | BK49: N/A | BL49: N/A | BM49: N/A | BN49: N/A | BO49: N/A | BP49: N/A | BQ49: N/A | BR49: N/A | BS49: N/A | BT49: N/A | BU49: N/A | BV49: N/A | BW49: N/A | BX49: N/A | BY49: N/A | BZ49: N/A | CA49: N/A | CB49: N/A | CC49: N/A | CD49: N/A | CE49: N/A | CF49: N/A | CG49: N/A | CH49: N/A
A50: Microbiological quality of improved water sources at point of collection | B50: Not contaminated (No E. coli in 100 mL) | C50: N/A | D50: N/A | E50: N/A | F50: N/A | G50: N/A | H50: N/A | I50: N/A | J50: N/A | K50: N/A | L50: N/A | M50: N/A | N50: N/A | O50: N/A | P50: N/A | Q50: N/A | R50: N/A | S50: N/A | T50: N/A | U50: N/A | V50: N/A | W50: N/A | X50: N/A | Y50: N/A | Z50: N/A | AA50: N/A | AB50: N/A | AC50: N/A | AD50: N/A | AE50: N/A | AF50: N/A | AG50: N/A | AH50: N/A | BA50: Microbiological quality of improved water sources at point of collection | BB50: Not contaminated (No E. coli in 100 mL) | BC50: N/A | BD50: N/A | BE50: N/A | BF50: N/A | BG50: N/A | BH50: N/A | BI50: N/A | BJ50: N/A | BK50: N/A | BL50: N/A | BM50: N/A | BN50: N/A | BO50: N/A | BP50: N/A | BQ50: N/A | BR50: N/A | BS50: N/A | BT50: N/A | BU50: N/A | BV50: N/A | BW50: N/A | BX50: N/A | BY50: N/A | BZ50: N/A | CA50: N/A | CB50: N/A | CC50: N/A | CD50: N/A | CE50: N/A | CF50: N/A | CG50: N/A | CH50: N/A
B51: Contaminated (E. coli detected in 100 mL) | C51: N/A | D51: N/A | E51: N/A | F51: N/A | G51: N/A | H51: N/A | I51: N/A | J51: N/A | K51: N/A | L51: N/A | M51: N/A | N51: N/A | O51: N/A | P51: N/A | Q51: N/A | R51: N/A | S51: N/A | T51: N/A | U51: N/A | V51: N/A | W51: N/A | X51: N/A | Y51: N/A | Z51: N/A | AA51: N/A | AB51: N/A | AC51: N/A | AD51: N/A | AE51: N/A | AF51: N/A | AG51: N/A | AH51: N/A | BB51: Contaminated (E. coli detected in 100 mL) | BC51: N/A | BD51: N/A | BE51: N/A | BF51: N/A | BG51: N/A | BH51: N/A | BI51: N/A | BJ51: N/A | BK51: N/A | BL51: N/A | BM51: N/A | BN51: N/A | BO51: N/A | BP51: N/A | BQ51: N/A | BR51: N/A | BS51: N/A | BT51: N/A | BU51: N/A | BV51: N/A | BW51: N/A | BX51: N/A | BY51: N/A | BZ51: N/A | CA51: N/A | CB51: N/A | CC51: N/A | CD51: N/A | CE51: N/A | CF51: N/A | CG51: N/A | CH51: N/A
B52: Highly contaminated (>100 CFU/100 mL) | C52: N/A | D52: N/A | E52: N/A | F52: N/A | G52: N/A | H52: N/A | I52: N/A | J52: N/A | K52: N/A | L52: N/A | M52: N/A | N52: N/A | O52: N/A | P52: N/A | Q52: N/A | R52: N/A | S52: N/A | T52: N/A | U52: N/A | V52: N/A | W52: N/A | X52: N/A | Y52: N/A | Z52: N/A | AA52: N/A | AB52: N/A | AC52: N/A | AD52: N/A | AE52: N/A | AF52: N/A | AG52: N/A | AH52: N/A | BB52: Highly contaminated (>100 CFU/100 mL) | BC52: N/A | BD52: N/A | BE52: N/A | BF52: N/A | BG52: N/A | BH52: N/A | BI52: N/A | BJ52: N/A | BK52: N/A | BL52: N/A | BM52: N/A | BN52: N/A | BO52: N/A | BP52: N/A | BQ52: N/A | BR52: N/A | BS52: N/A | BT52: N/A | BU52: N/A | BV52: N/A | BW52: N/A | BX52: N/A | BY52: N/A | BZ52: N/A | CA52: N/A | CB52: N/A | CC52: N/A | CD52: N/A | CE52: N/A | CF52: N/A | CG52: N/A | CH52: N/A
A53: Microbiological quality of piped on premises at point of collection | B53: Not contaminated (No E. coli in 100 mL) | C53: N/A | D53: N/A | E53: N/A | F53: N/A | G53: N/A | H53: N/A | I53: N/A | J53: N/A | K53: N/A | L53: N/A | M53: N/A | N53: N/A | O53: N/A | P53: N/A | Q53: N/A | R53: N/A | S53: N/A | T53: N/A | U53: N/A | V53: N/A | W53: N/A | X53: N/A | Y53: N/A | Z53: N/A | AA53: N/A | AB53: N/A | AC53: N/A | AD53: N/A | AE53: N/A | AF53: N/A | AG53: N/A | AH53: N/A | BA53: Microbiological quality of piped on premises at point of collection | BB53: Not contaminated (No E. coli in 100 mL) | BC53: N/A | BD53: N/A | BE53: N/A | BF53: N/A | BG53: N/A | BH53: N/A | BI53: N/A | BJ53: N/A | BK53: N/A | BL53: N/A | BM53: N/A | BN53: N/A | BO53: N/A | BP53: N/A | BQ53: N/A | BR53: N/A | BS53: N/A | BT53: N/A | BU53: N/A | BV53: N/A | BW53: N/A | BX53: N/A | BY53: N/A | BZ53: N/A | CA53: N/A | CB53: N/A | CC53: N/A | CD53: N/A | CE53: N/A | CF53: N/A | CG53: N/A | CH53: N/A
B54: Contaminated (E. coli detected in 100 mL) | C54: N/A | D54: N/A | E54: N/A | F54: N/A | G54: N/A | H54: N/A | I54: N/A | J54: N/A | K54: N/A | L54: N/A | M54: N/A | N54: N/A | O54: N/A | P54: N/A | Q54: N/A | R54: N/A | S54: N/A | T54: N/A | U54: N/A | V54: N/A | W54: N/A | X54: N/A | Y54: N/A | Z54: N/A | AA54: N/A | AB54: N/A | AC54: N/A | AD54: N/A | AE54: N/A | AF54: N/A | AG54: N/A | AH54: N/A | BB54: Contaminated (E. coli detected in 100 mL) | BC54: N/A | BD54: N/A | BE54: N/A | BF54: N/A | BG54: N/A | BH54: N/A | BI54: N/A | BJ54: N/A | BK54: N/A | BL54: N/A | BM54: N/A | BN54: N/A | BO54: N/A | BP54: N/A | BQ54: N/A | BR54: N/A | BS54: N/A | BT54: N/A | BU54: N/A | BV54: N/A | BW54: N/A | BX54: N/A | BY54: N/A | BZ54: N/A | CA54: N/A | CB54: N/A | CC54: N/A | CD54: N/A | CE54: N/A | CF54: N/A | CG54: N/A | CH54: N/A
B55: Highly contaminated (>100 CFU/100 mL) | C55: N/A | D55: N/A | E55: N/A | F55: N/A | G55: N/A | H55: N/A | I55: N/A | J55: N/A | K55: N/A | L55: N/A | M55: N/A | N55: N/A | O55: N/A | P55: N/A | Q55: N/A | R55: N/A | S55: N/A | T55: N/A | U55: N/A | V55: N/A | W55: N/A | X55: N/A | Y55: N/A | Z55: N/A | AA55: N/A | AB55: N/A | AC55: N/A | AD55: N/A | AE55: N/A | AF55: N/A | AG55: N/A | AH55: N/A | BB55: Highly contaminated (>100 CFU/100 mL) | BC55: N/A | BD55: N/A | BE55: N/A | BF55: N/A | BG55: N/A | BH55: N/A | BI55: N/A | BJ55: N/A | BK55: N/A | BL55: N/A | BM55: N/A | BN55: N/A | BO55: N/A | BP55: N/A | BQ55: N/A | BR55: N/A | BS55: N/A | BT55: N/A | BU55: N/A | BV55: N/A | BW55: N/A | BX55: N/A | BY55: N/A | BZ55: N/A | CA55: N/A | CB55: N/A | CC55: N/A | CD55: N/A | CE55: N/A | CF55: N/A | CG55: N/A | CH55: N/A
C56: NATIONAL wealth index quintile | H56: URBAN wealth index quintile | M56: RURAL wealth index quintile | R56: SUB-REGIONS: | BA56: Raw numbers of respondents: | BB56: Use of drinking water sources | BC56: NATIONAL wealth index quintile | BH56: URBAN wealth index quintile | BM56: RURAL wealth index quintile | BR56: SUB-REGIONS:
A57: Percentage based on weighted population | C57: Poorest | D57: Poor | E57: Middle | F57: Rich | G57: Richest | H57: Poorest | I57: Poor | J57: Middle | K57: Rich | L57: Richest | M57: Poorest | N57: Poor | O57: Middle | P57: Rich | Q57: Richest | R57: Atl ntico Norte(Raan) | S57: Atl ntico Sur(Raas) | T57: Boaco | U57: Carazo | V57: Chinandega | W57: Chontales | X57: Estel¡ | Y57: Granada | Z57: Jinotega | AA57: Le¢n | AB57: Madriz | AC57: Managua | AD57: Masaya | AE57: Matagalpa | AF57: Nueva Segovia | AG57: R¡o San Juan | AH57: Rivas | BA57: Water data, raw numbers (weighted) | BC57: Poorest | BD57: Poor | BE57: Middle | BF57: Rich | BG57: Richest | BH57: Poorest | BI57: Poor | BJ57: Middle | BK57: Rich | BL57: Richest | BM57: Poorest | BN57: Poor | BO57: Middle | BP57: Rich | BQ57: Richest | BR57: Atl ntico Norte(Raan) | BS57: Atl ntico Sur(Raas) | BT57: Boaco | BU57: Carazo | BV57: Chinandega | BW57: Chontales | BX57: Estel¡ | BY57: Granada | BZ57: Jinotega | CA57: Le¢n | CB57: Madriz | CC57: Managua | CD57: Masaya | CE57: Matagalpa | CF57: Nueva Segovia | CG57: R¡o San Juan | CH57: Rivas
A58: Source of drinking water | B58: Inside dwelling | C58: 2.086777916 | D58: 6.360599627 | E58: 21.08759507 | F58: 43.45321187 | G58: 70.90041724 | H58: 14.90156826 | I58: 31.35007596 | J58: 41.01938994 | K58: 63.58288817 | L58: 76.48940601 | M58: 0.4857545067 | N58: 1.846447083 | O58: 2.169045778 | P58: 5.738480958 | Q58: 24.1586257 | R58: 5.961995249 | S58: 10.62011719 | T58: 23.10935441 | U58: 37.17992489 | V58: 22.19482121 | W58: 40.03174603 | X58: 21.95037905 | Y58: 37.04184236 | Z58: 7.001201923 | AA58: 29.89637306 | AB58: 16.14748887 | AC58: 50.91768126 | AD58: 25.25502318 | AE58: 21.35311306 | AF58: 19.91991992 | AG58: 18.99509804 | AH58: 29.49985025
B59: Outside dwelling / within resinct | C59: 7.99951295 | D59: 29.4684021 | E59: 54.58500718 | F59: 45.50019005 | G59: 20.69636386 | H59: 54.05349858 | I59: 57.47251935 | J59: 49.97301988 | K59: 30.36593174 | L59: 15.28157275 | M59: 5.325983026 | N59: 6.000868471 | O59: 13.97722958 | P59: 31.28829578 | Q59: 37.46256709 | R59: 16.03325416 | S59: 5.810546875 | T59: 9.670619236 | U59: 49.94878798 | V59: 32.74969174 | W59: 18.79365079 | X59: 36.25086147 | Y59: 39.50697373 | Z59: 15.95552885 | AA59: 33.41968912 | AB59: 18.94469167 | AC59: 44.24859168 | AD59: 65.53323029 | AE59: 22.43200719 | AF59: 29.92992993 | AG59: 14.55269608 | AH59: 25.81611261
B60: Public | C60: 6.41464229 | D60: 6.757753223 | E60: 2.34047106 | F60: 1.222462756 | G60: 0.190723286 | H60: 3.912946121 | I60: 0.6957938289 | J60: 1.172791291 | K60: 0.02058370025 | L60: 0 | M60: 5.523584454 | N60: 5.876041446 | O60: 8.502391915 | P60: 6.382201396 | Q60: 5.236644265 | R60: 2.114014252 | S60: 3.833007813 | T60: 4.927536232 | U60: 3.175145101 | V60: 0.8384710234 | W60: 3.777777778 | X60: 10.26878015 | Y60: 1.881284463 | Z60: 5.258413462 | AA60: 0.725388601 | AB60: 12.46026701 | AC60: 0.4906414683 | AD60: 2.163833076 | AE60: 9.125646213 | AF60: 4.904904905 | AG60: 6.954656863 | AH60: 0.3893381252
B61: Private | C61: 4.321580085 | D61: 4.126762011 | E61: 3.412579661 | F61: 1.522746434 | G61: 0.3222589695 | H61: 7.246956964 | I61: 1.977547941 | J61: 1.526653229 | K61: 0.4463669744 | L61: 0.2380547486 | M61: 2.400725647 | N61: 4.370165878 | O61: 2.563483548 | P61: 3.99546545 | Q61: 3.348842022 | R61: 4.251781473 | S61: 2.221679688 | T61: 4.137022398 | U61: 3.345851827 | V61: 3.896424168 | W61: 4.984126984 | X61: 2.860096485 | Y61: 5.060006487 | Z61: 4.717548077 | AA61: 3.186528497 | AB61: 2.22504768 | AC61: 0.4906414683 | AD61: 3.43122102 | AE61: 2.180265228 | AF61: 3.470136803 | AG61: 3.125 | AH61: 4.911650195
B62: Public well | C62: 14.48327276 | D62: 14.49792539 | E62: 4.675822684 | F62: 1.435572532 | G62: 0.4364109509 | H62: 6.146684741 | I62: 1.381130401 | J62: 0.652527998 | K62: 0.559998647 | L62: 0.1955574355 | M62: 14.61635859 | N62: 15.75862896 | O62: 15.47704733 | P62: 17.55310285 | Q62: 7.021601203 | R62: 18.62232779 | S62: 10.42480469 | T62: 18.2345191 | U62: 1.536360533 | V62: 8.23674476 | W62: 8.984126984 | X62: 10.0275672 | Y62: 3.892312682 | Z62: 5.258413462 | AA62: 6.062176166 | AB62: 23.14049587 | AC62: 0.7268762493 | AD62: 0.8346213292 | AE62: 11.41829625 | AF62: 10.11011011 | AG62: 8.486519608 | AH62: 3.653788559
B63: Private well | C63: 20.43981886 | D63: 20.95869362 | E63: 11.59989073 | F63: 5.531472328 | G63: 3.056643341 | H63: 11.00570137 | I63: 6.595872337 | J63: 4.561353998 | K63: 3.07591686 | L63: 1.857145921 | M63: 20.47806107 | N63: 20.38116689 | O63: 24.29888228 | P63: 23.63289415 | Q63: 18.05551013 | R63: 26.152019 | S63: 32.88574219 | T63: 14.25559947 | U63: 1.0583817 | V63: 27.00369914 | W63: 7.365079365 | X63: 6.409372846 | Y63: 9.341550438 | Z63: 14.24278846 | AA63: 22.07253886 | AB63: 6.293706294 | AC63: 1.526440124 | AD63: 1.761978362 | AE63: 8.608676107 | AF63: 11.01101101 | AG63: 16.45220588 | AH63: 29.43995208
B64: River | C64: 15.13632724 | D64: 5.742535999 | E64: 0.6263566016 | F64: 0.0287801032 | G64: 0 | H64: 1.046522745 | I64: 0.08621069115 | J64: 0 | K64: 0 | L64: 0 | M64: 17.90791595 | N64: 14.82357799 | O64: 11.07538486 | P64: 3.478187101 | Q64: 1.02508727 | R64: 10.42755344 | S64: 9.497070313 | T64: 7.378129117 | U64: 1.98019802 | V64: 2.170160296 | W64: 6.253968254 | X64: 1.240523777 | Y64: 0.2919234512 | Z64: 14.09254808 | AA64: 1.424870466 | AB64: 7.50158932 | AC64: 0.1998909686 | AD64: 0 | AE64: 5.619240279 | AF64: 11.17784451 | AG64: 12.71446078 | AH64: 2.306079665
B65: Spring | C65: 28.74279318 | D65: 11.81044842 | E65: 1.18235143 | F65: 0.56454746 | G65: 0.05055951922 | H65: 1.256273123 | I65: 0.08874801003 | J65: 0.1640562383 | K65: 0.1091995678 | L65: 0 | M65: 33.14308638 | N65: 30.29849007 | O65: 21.41467664 | P65: 7.743182798 | Q65: 3.20974848 | R65: 15.58194774 | S65: 22.92480469 | T65: 15.94202899 | U65: 0.8193922841 | V65: 2.41676942 | W65: 9.46031746 | X65: 9.993108201 | Y65: 1.97859228 | Z65: 31.73076923 | AA65: 2.92746114 | AB65: 13.00063573 | AC65: 0 | AD65: 0.4327666151 | AE65: 16.63295122 | AF65: 7.974641308 | AG65: 18.44362745 | AH65: 2.096436059
B66: Rainwater | C66: 0.3184702292 | D66: 0.2711958113 | E66: 0.1757216412 | F66: 0.09099335382 | G66: 0.176202465 | H66: 0.09259973498 | I66: 0.1254046555 | J66: 0.1604136196 | K66: 0.07604896166 | L66: 0.234506304 | M66: 0.1185303804 | N66: 0.5793132201 | O66: 0.5218580739 | P66: 0.1881895145 | Q66: 0.07537607762 | R66: 0.7600950119 | S66: 0.9765625 | T66: 0.02635046113 | U66: 0 | V66: 0 | W66: 0 | X66: 0.516884907 | Y66: 0.2594875122 | Z66: 0.3004807692 | AA66: 0.1554404145 | AB66: 0 | AC66: 0 | AD66: 0.370942813 | AE66: 0 | AF66: 0 | AG66: 0 | AH66: 0.7786762504
B67: Purified water | C67: 0 | D67: 0 | E67: 0.1633520606 | F67: 0.4827824687 | G67: 4.045771454 | H67: 0.132932634 | I67: 0.1548102355 | J67: 0.5256995266 | K67: 1.745508296 | L67: 5.501585838 | M67: 0 | N67: 0 | O67: 0 | P67: 0 | Q67: 0.2741050707 | R67: 0 | S67: 0.8056640625 | T67: 2.31884058 | U67: 0.1707067258 | V67: 0.4932182491 | W67: 0.3492063492 | X67: 0.3101309442 | Y67: 0.6487187804 | Z67: 1.262019231 | AA67: 0.1295336788 | AB67: 0.2860775588 | AC67: 1.235689624 | AD67: 0.2163833076 | AE67: 2.62980445 | AF67: 1.334668001 | AG67: 0.2757352941 | AH67: 1.108116202
B68: Other | C68: 0.05680449592 | D68: 0.00568380409 | E68: 0.1508518883 | F68: 0.167240646 | G68: 0.1246489166 | H68: 0.2043157272 | I68: 0.07188658935 | J68: 0.2440942764 | K68: 0.0175570796 | L68: 0.2021709951 | M68: 0 | N68: 0.06529998728 | O68: 0 | P68: 0 | Q68: 0.131892689 | R68: 0.09501187648 | S68: 0 | T68: 0 | U68: 0.7852509389 | V68: 0 | W68: 0 | X68: 0.172294969 | Y68: 0.09730781706 | Z68: 0.1802884615 | AA68: 0 | AB68: 0 | AC68: 0.1635471561 | AD68: 0 | AE68: 0 | AF68: 0.1668335002 | AG68: 0 | AH68: 0
A108: =A1026 -> Nicaragua
A109: =A1034 -> 2001
A110: Use of sanitation facilities
A111: by wealth quintile and sub-national region
A112: Notes:
A113: WHO/UNICEF JMP customised wealth index excludes water,
A114: sanitation and hygiene assets.
A115: Survey used for analysis: | B115: =A1025 -> DHS01
A116: =B1030 -> Ratio of Improved latrines based on:
A117: =B1029 -> Ratio of Shared improved based on: | B117: all shared
A120: Use of sanitation facilities | C120: NATIONAL wealth index quintile | H120: URBAN wealth index quintile | M120: RURAL wealth index quintile | R120: SUB-REGIONS: | BA120: Raw numbers of respondents: | BB120: Use of sanitation facilities | BC120: NATIONAL wealth index quintile | BH120: URBAN wealth index quintile | BM120: RURAL wealth index quintile | BR120: SUB-REGIONS:
A121: Weighted percentage (used in graphs) | C121: Poorest | D121: Poor | E121: Middle | F121: Rich | G121: Richest | H121: Poorest | I121: Poor | J121: Middle | K121: Rich | L121: Richest | M121: Poorest | N121: Poor | O121: Middle | P121: Rich | Q121: Richest | R121: Atl ntico Norte(Raan) | S121: Atl ntico Sur(Raas) | T121: Boaco | U121: Carazo | V121: Chinandega | W121: Chontales | X121: Estel¡ | Y121: Granada | Z121: Jinotega | AA121: Le¢n | AB121: Madriz | AC121: Managua | AD121: Masaya | AE121: Matagalpa | AF121: Nueva Segovia | AG121: R¡o San Juan | AH121: Rivas | BA121: Sanitation data, raw numbers (weighted) | BC121: Poorest | BD121: Poor | BE121: Middle | BF121: Rich | BG121: Richest | BH121: Poorest | BI121: Poor | BJ121: Middle | BK121: Rich | BL121: Richest | BM121: Poorest | BN121: Poor | BO121: Middle | BP121: Rich | BQ121: Richest | BR121: Atl ntico Norte(Raan) | BS121: Atl ntico Sur(Raas) | BT121: Boaco | BU121: Carazo | BV121: Chinandega | BW121: Chontales | BX121: Estel¡ | BY121: Granada | BZ121: Jinotega | CA121: Le¢n | CB121: Madriz | CC121: Managua | CD121: Masaya | CE121: Matagalpa | CF121: Nueva Segovia | CG121: R¡o San Juan | CH121: Rivas
A122: Sanitation | B122: Improved | C122: =C153+C154+C155+C159+C158*0.5 -> 29.18429868 | D122: =D153+D154+D155+D159+D158*0.5 -> 48.79285978 | E122: 57.22700386 | F122: 69.72085655 | G122: 89.2730652 | H122: 51.40360614 | I122: 61.24003431 | J122: 69.47208833 | K122: 81.39599965 | L122: 94.86213769 | M122: 21.32538573 | N122: 32.08903005 | O122: 45.15547466 | P122: 51.61865749 | Q122: 59.77727813 | R122: 35.36962206 | S122: 42.3255814 | T122: 42.7140975 | U122: 62.64936839 | V122: 58.20379965 | W122: 53.87301587 | X122: 58.20947114 | Y122: 62.09808379 | Z122: 34.26372963 | AA122: 63.45355475 | AB122: 55.31100478 | AC122: 79.26141532 | AD122: 61.65378671 | AE122: 54.46569179 | AF122: 51.95195195 | AG122: 41.48284314 | AH122: 52.96940612 | BA122: Sanitation | BB122: Improved | BC122: N/A | BD122: N/A | BE122: N/A | BF122: N/A | BG122: N/A | BH122: N/A | BI122: N/A | BJ122: N/A | BK122: N/A | BL122: N/A | BM122: N/A | BN122: N/A | BO122: N/A | BP122: N/A | BQ122: N/A | BR122: N/A | BS122: N/A | BT122: N/A | BU122: N/A | BV122: N/A | BW122: N/A | BX122: N/A | BY122: N/A | BZ122: N/A | CA122: N/A | CB122: N/A | CC122: N/A | CD122: N/A | CE122: N/A | CF122: N/A | CG122: N/A | CH122: N/A
B123: Not Improved | C123: =100-C122 -> 70.81570132 | D123: =100-D122 -> 51.20714022 | E123: 42.77299614 | F123: 30.27914345 | G123: 10.7269348 | H123: 48.59639386 | I123: 38.75996569 | J123: 30.52791167 | K123: 18.60400035 | L123: 5.137862315 | M123: 78.67461427 | N123: 67.91096995 | O123: 54.84452534 | P123: 48.38134251 | Q123: 40.22272187 | R123: 64.63037794 | S123: 57.6744186 | T123: 57.2859025 | U123: 37.35063161 | V123: 41.79620035 | W123: 46.12698413 | X123: 41.79052886 | Y123: 37.90191621 | Z123: 65.73627037 | AA123: 36.54644525 | AB123: 44.68899522 | AC123: 20.73858468 | AD123: 38.34621329 | AE123: 45.53430821 | AF123: 48.04804805 | AG123: 58.51715686 | AH123: 47.03059388 | BB123: Not Improved | BC123: N/A | BD123: N/A | BE123: N/A | BF123: N/A | BG123: N/A | BH123: N/A | BI123: N/A | BJ123: N/A | BK123: N/A | BL123: N/A | BM123: N/A | BN123: N/A | BO123: N/A | BP123: N/A | BQ123: N/A | BR123: N/A | BS123: N/A | BT123: N/A | BU123: N/A | BV123: N/A | BW123: N/A | BX123: N/A | BY123: N/A | BZ123: N/A | CA123: N/A | CB123: N/A | CC123: N/A | CD123: N/A | CE123: N/A | CF123: N/A | CG123: N/A | CH123: N/A
A124: Sanitation ladder | B124: Basic | C124: =C122*C129/100 -> 27.36327829 | D124: =D122*D129/100 -> 44.6824939 | E124: 51.28975647 | F124: 63.82442263 | G124: 85.64737645 | H124: 46.21517184 | I124: 54.99718482 | J124: 63.70839595 | K124: 76.50955615 | L124: 92.43968457 | M124: 20.16199357 | N124: 30.33983057 | O124: 42.740177 | P124: 46.54329658 | Q124: 53.20732994 | R124: 32.16503631 | S124: 40.69528571 | T124: 40.85696282 | U124: 58.46654705 | V124: 53.07104577 | W124: 50.76495726 | X124: 56.02688879 | Y124: 54.95581218 | Z124: 32.29454977 | AA124: 57.29010064 | AB124: 51.87080449 | AC124: 72.33966407 | AD124: 52.80010977 | AE124: 52.73977391 | AF124: 49.33236512 | AG124: 39.81432379 | AH124: 48.86703314 | BA124: Sanitation ladder | BB124: Basic | BC124: N/A | BD124: N/A | BE124: N/A | BF124: N/A | BG124: N/A | BH124: N/A | BI124: N/A | BJ124: N/A | BK124: N/A | BL124: N/A | BM124: N/A | BN124: N/A | BO124: N/A | BP124: N/A | BQ124: N/A | BR124: N/A | BS124: N/A | BT124: N/A | BU124: N/A | BV124: N/A | BW124: N/A | BX124: N/A | BY124: N/A | BZ124: N/A | CA124: N/A | CB124: N/A | CC124: N/A | CD124: N/A | CE124: N/A | CF124: N/A | CG124: N/A | CH124: N/A
B125: Limited | C125: =C122*C128/100 -> 1.821020387 | D125: =D122*D128/100 -> 4.110365879 | E125: 5.937247394 | F125: 5.896433916 | G125: 3.625688755 | H125: 5.188434307 | I125: 6.242849484 | J125: 5.763692375 | K125: 4.886443501 | L125: 2.422453113 | M125: 1.163392156 | N125: 1.749199477 | O125: 2.415297656 | P125: 5.07536092 | Q125: 6.56994819 | R125: 3.20458575 | S125: 1.630295688 | T125: 1.857134674 | U125: 4.182821331 | V125: 5.132753889 | W125: 3.108058608 | X125: 2.182582345 | Y125: 7.142271618 | Z125: 1.969179864 | AA125: 6.163454107 | AB125: 3.440200298 | AC125: 6.921751245 | AD125: 8.853676942 | AE125: 1.725917883 | AF125: 2.61958683 | AG125: 1.668519349 | AH125: 4.102372975 | BB125: Limited | BC125: N/A | BD125: N/A | BE125: N/A | BF125: N/A | BG125: N/A | BH125: N/A | BI125: N/A | BJ125: N/A | BK125: N/A | BL125: N/A | BM125: N/A | BN125: N/A | BO125: N/A | BP125: N/A | BQ125: N/A | BR125: N/A | BS125: N/A | BT125: N/A | BU125: N/A | BV125: N/A | BW125: N/A | BX125: N/A | BY125: N/A | BZ125: N/A | CA125: N/A | CB125: N/A | CC125: N/A | CD125: N/A | CE125: N/A | CF125: N/A | CG125: N/A | CH125: N/A
B126: Unimproved | C126: =100-(C124+C125+C127) -> 19.6473008 | D126: =100-(D124+D125+D127) -> 32.34373128 | E126: 37.51471165 | F126: 28.81700523 | G126: 10.32701282 | H126: 38.00246023 | I126: 35.4962417 | J126: 29.52774508 | K126: 17.98495688 | L126: 5.047306514 | M126: 15.12506912 | N126: 20.95872949 | O126: 29.41732688 | P126: 32.03906466 | Q126: 34.48269588 | R126: 27.43047302 | S126: 23.5250918 | T126: 28.2740448 | U126: 29.39569819 | V126: 28.34937084 | W126: 28.50793651 | X126: 33.66747321 | Y126: 29.26274765 | Z126: 18.05974653 | AA126: 29.17747794 | AB126: 29.85645933 | AC126: 18.50100055 | AD126: 32.7202473 | AE126: 24.97187852 | AF126: 38.70537204 | AG126: 24.54044118 | AH126: 35.0029994 | BB126: Unimproved | BC126: N/A | BD126: N/A | BE126: N/A | BF126: N/A | BG126: N/A | BH126: N/A | BI126: N/A | BJ126: N/A | BK126: N/A | BL126: N/A | BM126: N/A | BN126: N/A | BO126: N/A | BP126: N/A | BQ126: N/A | BR126: N/A | BS126: N/A | BT126: N/A | BU126: N/A | BV126: N/A | BW126: N/A | BX126: N/A | BY126: N/A | BZ126: N/A | CA126: N/A | CB126: N/A | CC126: N/A | CD126: N/A | CE126: N/A | CF126: N/A | CG126: N/A | CH126: N/A
B127: Open defecation | C127: =C160+C161 -> 51.16840053 | D127: =D160+D161 -> 18.86340894 | E127: 5.25828449 | F127: 1.462138217 | G127: 0.3999219787 | H127: 10.59393363 | I127: 3.263723998 | J127: 1.000166591 | K127: 0.6190434688 | L127: 0.09055580091 | M127: 63.54954515 | N127: 46.95224046 | O127: 25.42719846 | P127: 16.34227785 | Q127: 5.740025989 | R127: 37.19990492 | S127: 34.14932681 | T127: 29.01185771 | U127: 7.954933424 | V127: 13.44682951 | W127: 17.61904762 | X127: 8.123055652 | Y127: 8.639168561 | Z127: 47.67652384 | AA127: 7.368967307 | AB127: 14.83253589 | AC127: 2.237584137 | AD127: 5.625965997 | AE127: 20.5624297 | AF127: 9.342676009 | AG127: 33.97671569 | AH127: 12.02759448 | BB127: Open defecation | BC127: N/A | BD127: N/A | BE127: N/A | BF127: N/A | BG127: N/A | BH127: N/A | BI127: N/A | BJ127: N/A | BK127: N/A | BL127: N/A | BM127: N/A | BN127: N/A | BO127: N/A | BP127: N/A | BQ127: N/A | BR127: N/A | BS127: N/A | BT127: N/A | BU127: N/A | BV127: N/A | BW127: N/A | BX127: N/A | BY127: N/A | BZ127: N/A | CA127: N/A | CB127: N/A | CC127: N/A | CD127: N/A | CE127: N/A | CF127: N/A | CG127: N/A | CH127: N/A
A128: Shared among Improved Sanitation | B128: Yes | C128: 6.239726394 | D128: 8.424113482 | E128: 10.37490519 | F128: 8.457202346 | G128: 4.061346776 | H128: 10.09352202 | I128: 10.19406595 | J128: 8.296414451 | K128: 6.003296872 | L128: 2.553656466 | M128: 5.455433123 | N128: 5.451082423 | O128: 5.348847894 | P128: 9.832415576 | Q128: 10.99071151 | R128: 9.06027705 | S128: 3.851797506 | T128: 4.347826087 | U128: 6.676557864 | V128: 8.818589026 | W128: 5.769230769 | X128: 3.749531309 | Y128: 11.50159744 | Z128: 5.747126437 | AA128: 9.713331478 | AB128: 6.219739292 | AC128: 8.732813081 | AD128: 14.36031332 | AE128: 3.168816601 | AF128: 5.042326095 | AG128: 4.022191401 | AH128: 7.744796998 | BA128: Shared among improved sanitation facilities | BB128: Yes | BC128: N/A | BD128: N/A | BE128: N/A | BF128: N/A | BG128: N/A | BH128: N/A | BI128: N/A | BJ128: N/A | BK128: N/A | BL128: N/A | BM128: N/A | BN128: N/A | BO128: N/A | BP128: N/A | BQ128: N/A | BR128: N/A | BS128: N/A | BT128: N/A | BU128: N/A | BV128: N/A | BW128: N/A | BX128: N/A | BY128: N/A | BZ128: N/A | CA128: N/A | CB128: N/A | CC128: N/A | CD128: N/A | CE128: N/A | CF128: N/A | CG128: N/A | CH128: N/A
B129: No | C129: 93.76027361 | D129: 91.57588652 | E129: 89.62509481 | F129: 91.54279765 | G129: 95.93865322 | H129: 89.90647798 | I129: 89.80593405 | J129: 91.70358555 | K129: 93.99670313 | L129: 97.44634353 | M129: 94.54456688 | N129: 94.54891758 | O129: 94.65115211 | P129: 90.16758442 | Q129: 89.00928849 | R129: 90.93972295 | S129: 96.14820249 | T129: 95.65217391 | U129: 93.32344214 | V129: 91.18141097 | W129: 94.23076923 | X129: 96.25046869 | Y129: 88.49840256 | Z129: 94.25287356 | AA129: 90.28666852 | AB129: 93.78026071 | AC129: 91.26718692 | AD129: 85.63968668 | AE129: 96.8311834 | AF129: 94.95767391 | AG129: 95.9778086 | AH129: 92.255203 | BB129: No | BC129: N/A | BD129: N/A | BE129: N/A | BF129: N/A | BG129: N/A | BH129: N/A | BI129: N/A | BJ129: N/A | BK129: N/A | BL129: N/A | BM129: N/A | BN129: N/A | BO129: N/A | BP129: N/A | BQ129: N/A | BR129: N/A | BS129: N/A | BT129: N/A | BU129: N/A | BV129: N/A | BW129: N/A | BX129: N/A | BY129: N/A | BZ129: N/A | CA129: N/A | CB129: N/A | CC129: N/A | CD129: N/A | CE129: N/A | CF129: N/A | CG129: N/A | CH129: N/A
A130: Manually calculated ratios | B130: Improved latrines
B131: Other
B132: Other
C133: NATIONAL wealth index quintile | H133: URBAN wealth index quintile | M133: RURAL wealth index quintile | R133: SUB-REGIONS: | BA133: Raw numbers of respondents: | BB133: Use of sanitation facilities | BC133: NATIONAL wealth index quintile | BH133: URBAN wealth index quintile | BM133: RURAL wealth index quintile | BR133: SUB-REGIONS:
A134: Percentage based on weighted population | C134: Poorest | D134: Poor | E134: Middle | F134: Rich | G134: Richest | H134: Poorest | I134: Poor | J134: Middle | K134: Rich | L134: Richest | M134: Poorest | N134: Poor | O134: Middle | P134: Rich | Q134: Richest | R134: Atl ntico Norte(Raan) | S134: Atl ntico Sur(Raas) | T134: Boaco | U134: Carazo | V134: Chinandega | W134: Chontales | X134: Estel¡ | Y134: Granada | Z134: Jinotega | AA134: Le¢n | AB134: Madriz | AC134: Managua | AD134: Masaya | AE134: Matagalpa | AF134: Nueva Segovia | AG134: R¡o San Juan | AH134: Rivas | BA134: Sanitation data, raw numbers (weighted) | BC134: Poorest | BD134: Poor | BE134: Middle | BF134: Rich | BG134: Richest | BH134: Poorest | BI134: Poor | BJ134: Middle | BK134: Rich | BL134: Richest | BM134: Poorest | BN134: Poor | BO134: Middle | BP134: Rich | BQ134: Richest | BR134: Atl ntico Norte(Raan) | BS134: Atl ntico Sur(Raas) | BT134: Boaco | BU134: Carazo | BV134: Chinandega | BW134: Chontales | BX134: Estel¡ | BY134: Granada | BZ134: Jinotega | CA134: Le¢n | CB134: Madriz | CC134: Managua | CD134: Masaya | CE134: Matagalpa | CF134: Nueva Segovia | CG134: R¡o San Juan | CH134: Rivas
A135: Sanitation type | B135: Sewer connection | C135: =C153 -> 0.004247312274 | D135: =D153 -> 0.6571810393 | E135: 5.546923624 | F135: 22.18658847 | G135: 54.90116203 | H135: 2.70924309 | I135: 11.21732031 | J135: 22.09917398 | K135: 43.90849643 | L135: 66.48601342 | M135: 0 | N135: 0 | O135: 0 | P135: 0.07214040375 | Q135: 0.4281833261 | R135: 0.2614689803 | S135: 1.272949816 | T135: 8.959156785 | U135: 2.389894162 | V135: 8.339501604 | W135: 1.174603175 | X135: 15.0362945 | Y135: 12.08184475 | Z135: 5.009052505 | AA135: 19.51219512 | AB135: 3.827751196 | AC135: 44.67891577 | AD135: 10.10819165 | AE135: 6.096737908 | AF135: 3.269936603 | AG135: 3.278186275 | AH135: 6.088782244 | BA135: Sanitation type | BB135: Sewer connection | BC135: N/A | BD135: N/A | BE135: N/A | BF135: N/A | BG135: N/A | BH135: N/A | BI135: N/A | BJ135: N/A | BK135: N/A | BL135: N/A | BM135: N/A | BN135: N/A | BO135: N/A | BP135: N/A | BQ135: N/A | BR135: N/A | BS135: N/A | BT135: N/A | BU135: N/A | BV135: N/A | BW135: N/A | BX135: N/A | BY135: N/A | BZ135: N/A | CA135: N/A | CB135: N/A | CC135: N/A | CD135: N/A | CE135: N/A | CF135: N/A | CG135: N/A | CH135: N/A
B136: Septic tank connection | C136: =C154 -> 0.02123656137 | D136: 0.02463014619 | E136: 0.5220335795 | F136: 1.867799776 | G136: 4.367550387 | H136: 0.09747963493 | I136: 1.022237122 | J136: 1.962725334 | K136: 2.787178418 | L136: 4.667352895 | M136: 0.0492457938 | N136: 0 | O136: 0.01537316521 | P136: 0.04155773495 | Q136: 1.797739469 | R136: 1.212265272 | S136: 5.82619339 | T136: 0.6060606061 | U136: 1.024240355 | V136: 1.159634838 | W136: 1.301587302 | X136: 0.3802281369 | Y136: 2.176031179 | Z136: 0.6336753168 | AA136: 1.816294759 | AB136: 0.2232854864 | AC136: 1.018737493 | AD136: 1.174652241 | AE136: 1.844769404 | AF136: 0.4671338005 | AG136: 0.7965686275 | AH136: 0.5698860228 | BB136: Septic tank connection | BC136: N/A | BD136: N/A | BE136: N/A | BF136: N/A | BG136: N/A | BH136: N/A | BI136: N/A | BJ136: N/A | BK136: N/A | BL136: N/A | BM136: N/A | BN136: N/A | BO136: N/A | BP136: N/A | BQ136: N/A | BR136: N/A | BS136: N/A | BT136: N/A | BU136: N/A | BV136: N/A | BW136: N/A | BX136: N/A | BY136: N/A | BZ136: N/A | CA136: N/A | CB136: N/A | CC136: N/A | CD136: N/A | CE136: N/A | CF136: N/A | CG136: N/A | CH136: N/A
B137: Improved latrines | C137: N/A | D137: N/A | E137: N/A | F137: N/A | G137: N/A | H137: N/A | I137: N/A | J137: N/A | K137: N/A | L137: N/A | M137: N/A | N137: N/A | O137: N/A | P137: N/A | Q137: N/A | R137: N/A | S137: N/A | T137: N/A | U137: N/A | V137: N/A | W137: N/A | X137: N/A | Y137: N/A | Z137: N/A | AA137: N/A | AB137: N/A | AC137: N/A | AD137: N/A | AE137: N/A | AF137: N/A | AG137: N/A | AH137: N/A | BB137: Improved latrines | BC137: N/A | BD137: N/A | BE137: N/A | BF137: N/A | BG137: N/A | BH137: N/A | BI137: N/A | BJ137: N/A | BK137: N/A | BL137: N/A | BM137: N/A | BN137: N/A | BO137: N/A | BP137: N/A | BQ137: N/A | BR137: N/A | BS137: N/A | BT137: N/A | BU137: N/A | BV137: N/A | BW137: N/A | BX137: N/A | BY137: N/A | BZ137: N/A | CA137: N/A | CB137: N/A | CC137: N/A | CD137: N/A | CE137: N/A | CF137: N/A | CG137: N/A | CH137: N/A
B138: Unimproved facilities | C138: N/A | D138: N/A | E138: N/A | F138: N/A | G138: N/A | H138: N/A | I138: N/A | J138: N/A | K138: N/A | L138: N/A | M138: N/A | N138: N/A | O138: N/A | P138: N/A | Q138: N/A | R138: N/A | S138: N/A | T138: N/A | U138: N/A | V138: N/A | W138: N/A | X138: N/A | Y138: N/A | Z138: N/A | AA138: N/A | AB138: N/A | AC138: N/A | AD138: N/A | AE138: N/A | AF138: N/A | AG138: N/A | AH138: N/A | BB138: Unimproved facilities | BC138: N/A | BD138: N/A | BE138: N/A | BF138: N/A | BG138: N/A | BH138: N/A | BI138: N/A | BJ138: N/A | BK138: N/A | BL138: N/A | BM138: N/A | BN138: N/A | BO138: N/A | BP138: N/A | BQ138: N/A | BR138: N/A | BS138: N/A | BT138: N/A | BU138: N/A | BV138: N/A | BW138: N/A | BX138: N/A | BY138: N/A | BZ138: N/A | CA138: N/A | CB138: N/A | CC138: N/A | CD138: N/A | CE138: N/A | CF138: N/A | CG138: N/A | CH138: N/A
B139: Open defecation | C139: =C160+C161 -> 51.16840053 | D139: =D160+D161 -> 18.86340894 | E139: 5.25828449 | F139: 1.462138217 | G139: 0.3999219787 | H139: 10.59393363 | I139: 3.263723998 | J139: 1.000166591 | K139: 0.6190434688 | L139: 0.09055580091 | M139: 63.54954515 | N139: 46.95224046 | O139: 25.42719846 | P139: 16.34227785 | Q139: 5.740025989 | R139: 37.19990492 | S139: 34.14932681 | T139: 29.01185771 | U139: 7.954933424 | V139: 13.44682951 | W139: 17.61904762 | X139: 8.123055652 | Y139: 8.639168561 | Z139: 47.67652384 | AA139: 7.368967307 | AB139: 14.83253589 | AC139: 2.237584137 | AD139: 5.625965997 | AE139: 20.5624297 | AF139: 9.342676009 | AG139: 33.97671569 | AH139: 12.02759448 | BB139: Open defecation | BC139: N/A | BD139: N/A | BE139: N/A | BF139: N/A | BG139: N/A | BH139: N/A | BI139: N/A | BJ139: N/A | BK139: N/A | BL139: N/A | BM139: N/A | BN139: N/A | BO139: N/A | BP139: N/A | BQ139: N/A | BR139: N/A | BS139: N/A | BT139: N/A | BU139: N/A | BV139: N/A | BW139: N/A | BX139: N/A | BY139: N/A | BZ139: N/A | CA139: N/A | CB139: N/A | CC139: N/A | CD139: N/A | CE139: N/A | CF139: N/A | CG139: N/A | CH139: N/A
A140: Septic tank emptying practices | B140: Not emptied/treated and disposed in situ | C140: N/A | D140: N/A | E140: N/A | F140: N/A | G140: N/A | H140: N/A | I140: N/A | J140: N/A | K140: N/A | L140: N/A | M140: N/A | N140: N/A | O140: N/A | P140: N/A | Q140: N/A | R140: N/A | S140: N/A | T140: N/A | U140: N/A | V140: N/A | W140: N/A | X140: N/A | Y140: N/A | Z140: N/A | AA140: N/A | AB140: N/A | AC140: N/A | AD140: N/A | AE140: N/A | AF140: N/A | AG140: N/A | AH140: N/A | BA140: Septic tank emptying practices | BB140: Not emptied/treated and disposed in situ | BC140: N/A | BD140: N/A | BE140: N/A | BF140: N/A | BG140: N/A | BH140: N/A | BI140: N/A | BJ140: N/A | BK140: N/A | BL140: N/A | BM140: N/A | BN140: N/A | BO140: N/A | BP140: N/A | BQ140: N/A | BR140: N/A | BS140: N/A | BT140: N/A | BU140: N/A | BV140: N/A | BW140: N/A | BX140: N/A | BY140: N/A | BZ140: N/A | CA140: N/A | CB140: N/A | CC140: N/A | CD140: N/A | CE140: N/A | CF140: N/A | CG140: N/A | CH140: N/A
B141: Emptied and buried on site | C141: N/A | D141: N/A | E141: N/A | F141: N/A | G141: N/A | H141: N/A | I141: N/A | J141: N/A | K141: N/A | L141: N/A | M141: N/A | N141: N/A | O141: N/A | P141: N/A | Q141: N/A | R141: N/A | S141: N/A | T141: N/A | U141: N/A | V141: N/A | W141: N/A | X141: N/A | Y141: N/A | Z141: N/A | AA141: N/A | AB141: N/A | AC141: N/A | AD141: N/A | AE141: N/A | AF141: N/A | AG141: N/A | AH141: N/A | BB141: Emptied and buried on site | BC141: N/A | BD141: N/A | BE141: N/A | BF141: N/A | BG141: N/A | BH141: N/A | BI141: N/A | BJ141: N/A | BK141: N/A | BL141: N/A | BM141: N/A | BN141: N/A | BO141: N/A | BP141: N/A | BQ141: N/A | BR141: N/A | BS141: N/A | BT141: N/A | BU141: N/A | BV141: N/A | BW141: N/A | BX141: N/A | BY141: N/A | BZ141: N/A | CA141: N/A | CB141: N/A | CC141: N/A | CD141: N/A | CE141: N/A | CF141: N/A | CG141: N/A | CH141: N/A
B142: Emptied and discharged locally | C142: N/A | D142: N/A | E142: N/A | F142: N/A | G142: N/A | H142: N/A | I142: N/A | J142: N/A | K142: N/A | L142: N/A | M142: N/A | N142: N/A | O142: N/A | P142: N/A | Q142: N/A | R142: N/A | S142: N/A | T142: N/A | U142: N/A | V142: N/A | W142: N/A | X142: N/A | Y142: N/A | Z142: N/A | AA142: N/A | AB142: N/A | AC142: N/A | AD142: N/A | AE142: N/A | AF142: N/A | AG142: N/A | AH142: N/A | BB142: Emptied and discharged locally | BC142: N/A | BD142: N/A | BE142: N/A | BF142: N/A | BG142: N/A | BH142: N/A | BI142: N/A | BJ142: N/A | BK142: N/A | BL142: N/A | BM142: N/A | BN142: N/A | BO142: N/A | BP142: N/A | BQ142: N/A | BR142: N/A | BS142: N/A | BT142: N/A | BU142: N/A | BV142: N/A | BW142: N/A | BX142: N/A | BY142: N/A | BZ142: N/A | CA142: N/A | CB142: N/A | CC142: N/A | CD142: N/A | CE142: N/A | CF142: N/A | CG142: N/A | CH142: N/A
B143: Emptied and removed offsite | C143: N/A | D143: N/A | E143: N/A | F143: N/A | G143: N/A | H143: N/A | I143: N/A | J143: N/A | K143: N/A | L143: N/A | M143: N/A | N143: N/A | O143: N/A | P143: N/A | Q143: N/A | R143: N/A | S143: N/A | T143: N/A | U143: N/A | V143: N/A | W143: N/A | X143: N/A | Y143: N/A | Z143: N/A | AA143: N/A | AB143: N/A | AC143: N/A | AD143: N/A | AE143: N/A | AF143: N/A | AG143: N/A | AH143: N/A | BB143: Emptied and removed offsite | BC143: N/A | BD143: N/A | BE143: N/A | BF143: N/A | BG143: N/A | BH143: N/A | BI143: N/A | BJ143: N/A | BK143: N/A | BL143: N/A | BM143: N/A | BN143: N/A | BO143: N/A | BP143: N/A | BQ143: N/A | BR143: N/A | BS143: N/A | BT143: N/A | BU143: N/A | BV143: N/A | BW143: N/A | BX143: N/A | BY143: N/A | BZ143: N/A | CA143: N/A | CB143: N/A | CC143: N/A | CD143: N/A | CE143: N/A | CF143: N/A | CG143: N/A | CH143: N/A
A144: Latrine emptying practices | B144: Not emptied/treated and disposed in situ | C144: N/A | D144: N/A | E144: N/A | F144: N/A | G144: N/A | H144: N/A | I144: N/A | J144: N/A | K144: N/A | L144: N/A | M144: N/A | N144: N/A | O144: N/A | P144: N/A | Q144: N/A | R144: N/A | S144: N/A | T144: N/A | U144: N/A | V144: N/A | W144: N/A | X144: N/A | Y144: N/A | Z144: N/A | AA144: N/A | AB144: N/A | AC144: N/A | AD144: N/A | AE144: N/A | AF144: N/A | AG144: N/A | AH144: N/A | BA144: Latrine emptying practices | BB144: Not emptied/treated and disposed in situ | BC144: N/A | BD144: N/A | BE144: N/A | BF144: N/A | BG144: N/A | BH144: N/A | BI144: N/A | BJ144: N/A | BK144: N/A | BL144: N/A | BM144: N/A | BN144: N/A | BO144: N/A | BP144: N/A | BQ144: N/A | BR144: N/A | BS144: N/A | BT144: N/A | BU144: N/A | BV144: N/A | BW144: N/A | BX144: N/A | BY144: N/A | BZ144: N/A | CA144: N/A | CB144: N/A | CC144: N/A | CD144: N/A | CE144: N/A | CF144: N/A | CG144: N/A | CH144: N/A
B145: Emptied and buried on site | C145: N/A | D145: N/A | E145: N/A | F145: N/A | G145: N/A | H145: N/A | I145: N/A | J145: N/A | K145: N/A | L145: N/A | M145: N/A | N145: N/A | O145: N/A | P145: N/A | Q145: N/A | R145: N/A | S145: N/A | T145: N/A | U145: N/A | V145: N/A | W145: N/A | X145: N/A | Y145: N/A | Z145: N/A | AA145: N/A | AB145: N/A | AC145: N/A | AD145: N/A | AE145: N/A | AF145: N/A | AG145: N/A | AH145: N/A | BB145: Emptied and buried on site | BC145: N/A | BD145: N/A | BE145: N/A | BF145: N/A | BG145: N/A | BH145: N/A | BI145: N/A | BJ145: N/A | BK145: N/A | BL145: N/A | BM145: N/A | BN145: N/A | BO145: N/A | BP145: N/A | BQ145: N/A | BR145: N/A | BS145: N/A | BT145: N/A | BU145: N/A | BV145: N/A | BW145: N/A | BX145: N/A | BY145: N/A | BZ145: N/A | CA145: N/A | CB145: N/A | CC145: N/A | CD145: N/A | CE145: N/A | CF145: N/A | CG145: N/A | CH145: N/A
B146: Emptied and discharged locally | C146: N/A | D146: N/A | E146: N/A | F146: N/A | G146: N/A | H146: N/A | I146: N/A | J146: N/A | K146: N/A | L146: N/A | M146: N/A | N146: N/A | O146: N/A | P146: N/A | Q146: N/A | R146: N/A | S146: N/A | T146: N/A | U146: N/A | V146: N/A | W146: N/A | X146: N/A | Y146: N/A | Z146: N/A | AA146: N/A | AB146: N/A | AC146: N/A | AD146: N/A | AE146: N/A | AF146: N/A | AG146: N/A | AH146: N/A | BB146: Emptied and discharged locally | BC146: N/A | BD146: N/A | BE146: N/A | BF146: N/A | BG146: N/A | BH146: N/A | BI146: N/A | BJ146: N/A | BK146: N/A | BL146: N/A | BM146: N/A | BN146: N/A | BO146: N/A | BP146: N/A | BQ146: N/A | BR146: N/A | BS146: N/A | BT146: N/A | BU146: N/A | BV146: N/A | BW146: N/A | BX146: N/A | BY146: N/A | BZ146: N/A | CA146: N/A | CB146: N/A | CC146: N/A | CD146: N/A | CE146: N/A | CF146: N/A | CG146: N/A | CH146: N/A
B147: Emptied and removed offsite | C147: N/A | D147: N/A | E147: N/A | F147: N/A | G147: N/A | H147: N/A | I147: N/A | J147: N/A | K147: N/A | L147: N/A | M147: N/A | N147: N/A | O147: N/A | P147: N/A | Q147: N/A | R147: N/A | S147: N/A | T147: N/A | U147: N/A | V147: N/A | W147: N/A | X147: N/A | Y147: N/A | Z147: N/A | AA147: N/A | AB147: N/A | AC147: N/A | AD147: N/A | AE147: N/A | AF147: N/A | AG147: N/A | AH147: N/A | BB147: Emptied and removed offsite | BC147: N/A | BD147: N/A | BE147: N/A | BF147: N/A | BG147: N/A | BH147: N/A | BI147: N/A | BJ147: N/A | BK147: N/A | BL147: N/A | BM147: N/A | BN147: N/A | BO147: N/A | BP147: N/A | BQ147: N/A | BR147: N/A | BS147: N/A | BT147: N/A | BU147: N/A | BV147: N/A | BW147: N/A | BX147: N/A | BY147: N/A | BZ147: N/A | CA147: N/A | CB147: N/A | CC147: N/A | CD147: N/A | CE147: N/A | CF147: N/A | CG147: N/A | CH147: N/A
A148: Shared among improved sanitation facilities | B148: Yes | C148: N/A | D148: N/A | E148: N/A | F148: N/A | G148: N/A | H148: N/A | I148: N/A | J148: N/A | K148: N/A | L148: N/A | M148: N/A | N148: N/A | O148: N/A | P148: N/A | Q148: N/A | R148: N/A | S148: N/A | T148: N/A | U148: N/A | V148: N/A | W148: N/A | X148: N/A | Y148: N/A | Z148: N/A | AA148: N/A | AB148: N/A | AC148: N/A | AD148: N/A | AE148: N/A | AF148: N/A | AG148: N/A | AH148: N/A | BA148: Shared among improved sanitation facilities | BB148: Yes | BC148: N/A | BD148: N/A | BE148: N/A | BF148: N/A | BG148: N/A | BH148: N/A | BI148: N/A | BJ148: N/A | BK148: N/A | BL148: N/A | BM148: N/A | BN148: N/A | BO148: N/A | BP148: N/A | BQ148: N/A | BR148: N/A | BS148: N/A | BT148: N/A | BU148: N/A | BV148: N/A | BW148: N/A | BX148: N/A | BY148: N/A | BZ148: N/A | CA148: N/A | CB148: N/A | CC148: N/A | CD148: N/A | CE148: N/A | CF148: N/A | CG148: N/A | CH148: N/A
B149: No | C149: N/A | D149: N/A | E149: N/A | F149: N/A | G149: N/A | H149: N/A | I149: N/A | J149: N/A | K149: N/A | L149: N/A | M149: N/A | N149: N/A | O149: N/A | P149: N/A | Q149: N/A | R149: N/A | S149: N/A | T149: N/A | U149: N/A | V149: N/A | W149: N/A | X149: N/A | Y149: N/A | Z149: N/A | AA149: N/A | AB149: N/A | AC149: N/A | AD149: N/A | AE149: N/A | AF149: N/A | AG149: N/A | AH149: N/A | BB149: No | BC149: N/A | BD149: N/A | BE149: N/A | BF149: N/A | BG149: N/A | BH149: N/A | BI149: N/A | BJ149: N/A | BK149: N/A | BL149: N/A | BM149: N/A | BN149: N/A | BO149: N/A | BP149: N/A | BQ149: N/A | BR149: N/A | BS149: N/A | BT149: N/A | BU149: N/A | BV149: N/A | BW149: N/A | BX149: N/A | BY149: N/A | BZ149: N/A | CA149: N/A | CB149: N/A | CC149: N/A | CD149: N/A | CE149: N/A | CF149: N/A | CG149: N/A | CH149: N/A
B150: DK/missing | C150: N/A | D150: N/A | E150: N/A | F150: N/A | G150: N/A | H150: N/A | I150: N/A | J150: N/A | K150: N/A | L150: N/A | M150: N/A | N150: N/A | O150: N/A | P150: N/A | Q150: N/A | R150: N/A | S150: N/A | T150: N/A | U150: N/A | V150: N/A | W150: N/A | X150: N/A | Y150: N/A | Z150: N/A | AA150: N/A | AB150: N/A | AC150: N/A | AD150: N/A | AE150: N/A | AF150: N/A | AG150: N/A | AH150: N/A | BB150: DK/missing | BC150: N/A | BD150: N/A | BE150: N/A | BF150: N/A | BG150: N/A | BH150: N/A | BI150: N/A | BJ150: N/A | BK150: N/A | BL150: N/A | BM150: N/A | BN150: N/A | BO150: N/A | BP150: N/A | BQ150: N/A | BR150: N/A | BS150: N/A | BT150: N/A | BU150: N/A | BV150: N/A | BW150: N/A | BX150: N/A | BY150: N/A | BZ150: N/A | CA150: N/A | CB150: N/A | CC150: N/A | CD150: N/A | CE150: N/A | CF150: N/A | CG150: N/A | CH150: N/A
A151: Shared among all sanitation facilities | B151: Yes | C151: 6.232634996 | D151: 8.416387843 | E151: 10.37490519 | F151: 8.451302053 | G151: 4.058802397 | H151: 10.09352202 | I151: 10.19406595 | J151: 8.286273899 | K151: 6.003296872 | L151: 2.551591365 | M151: 5.455433123 | N151: 5.437972785 | O151: 5.338575311 | P151: 9.829033071 | Q151: 10.98628641 | R151: 9.06027705 | S151: 3.839122486 | T151: 4.34298441 | U151: 6.676557864 | V151: 8.818589026 | W151: 5.769230769 | X151: 3.749531309 | Y151: 11.48121899 | Z151: 5.747126437 | AA151: 9.713331478 | AB151: 6.219739292 | AC151: 8.724707629 | AD151: 14.36031332 | AE151: 3.168816601 | AF151: 5.042326095 | AG151: 4.022191401 | AH151: 7.713217805 | BA151: Shared among all sanitation facilities | BB151: Yes | BC151: N/A | BD151: N/A | BE151: N/A | BF151: N/A | BG151: N/A | BH151: N/A | BI151: N/A | BJ151: N/A | BK151: N/A | BL151: N/A | BM151: N/A | BN151: N/A | BO151: N/A | BP151: N/A | BQ151: N/A | BR151: N/A | BS151: N/A | BT151: N/A | BU151: N/A | BV151: N/A | BW151: N/A | BX151: N/A | BY151: N/A | BZ151: N/A | CA151: N/A | CB151: N/A | CC151: N/A | CD151: N/A | CE151: N/A | CF151: N/A | CG151: N/A | CH151: N/A
B152: No | C152: 93.65371582 | D152: 91.49190352 | E152: 89.62509481 | F152: 91.47893145 | G152: 95.87854894 | H152: 89.90647798 | I152: 89.80593405 | J152: 91.59149798 | K152: 93.99670313 | L152: 97.36754024 | M152: 94.54456688 | N152: 94.32153116 | O152: 94.46937243 | P152: 90.13656536 | Q152: 88.97345135 | R152: 90.93972295 | S152: 95.83180987 | T152: 95.54565702 | U152: 93.32344214 | V152: 91.18141097 | W152: 94.23076923 | X152: 96.25046869 | Y152: 88.3416017 | Z152: 94.25287356 | AA152: 90.28666852 | AB152: 93.78026071 | AC152: 91.18247633 | AD152: 85.63968668 | AE152: 96.8311834 | AF152: 94.95767391 | AG152: 95.9778086 | AH152: 91.879035 | BB152: No | BC152: N/A | BD152: N/A | BE152: N/A | BF152: N/A | BG152: N/A | BH152: N/A | BI152: N/A | BJ152: N/A | BK152: N/A | BL152: N/A | BM152: N/A | BN152: N/A | BO152: N/A | BP152: N/A | BQ152: N/A | BR152: N/A | BS152: N/A | BT152: N/A | BU152: N/A | BV152: N/A | BW152: N/A | BX152: N/A | BY152: N/A | BZ152: N/A | CA152: N/A | CB152: N/A | CC152: N/A | CD152: N/A | CE152: N/A | CF152: N/A | CG152: N/A | CH152: N/A
A153: Type of toilet facility | B153: Flush toilet (sewer) | C153: 0.004247312274 | D153: 0.6571810393 | E153: 5.546923624 | F153: 22.18658847 | G153: 54.90116203 | H153: 2.70924309 | I153: 11.21732031 | J153: 22.09917398 | K153: 43.90849643 | L153: 66.48601342 | M153: 0 | N153: 0 | O153: 0 | P153: 0.07214040375 | Q153: 0.4281833261 | R153: 0.2614689803 | S153: 1.272949816 | T153: 8.959156785 | U153: 2.389894162 | V153: 8.339501604 | W153: 1.174603175 | X153: 15.0362945 | Y153: 12.08184475 | Z153: 5.009052505 | AA153: 19.51219512 | AB153: 3.827751196 | AC153: 44.67891577 | AD153: 10.10819165 | AE153: 6.096737908 | AF153: 3.269936603 | AG153: 3.278186275 | AH153: 6.088782244 | BA153: Type of toilet facility | BB153: Flush toilet (sewer) | BC153: 0.511554 | BD153: 79.187177 | BE153: 669.252546 | BF153: 2673.3864 | BG153: 6614.722494 | BH153: 185.450941 | BI153: 766.675924 | BJ153: 1512.158893 | BK153: 3002.449339 | BL153: 4544.216235 | BM153: 0 | BN153: 0 | BO153: 0 | BP153: 3.759784 | BQ153: 22.349055 | BR153: 9.552301 | BS153: 43.929132 | BT153: 173.92836 | BU153: 49.35882 | BV153: 407.369092 | BW153: 21.110017 | BX153: 428.372775 | BY153: 149.158236 | BZ153: 188.718926 | CA153: 848.112368 | CB153: 66.3558 | CC153: 6797.129816 | CD153: 320.958675 | CE153: 320.048019 | CF153: 67.16675 | CG153: 31.697573 | CH153: 114.093511
B154: Flust toilet (septic tank) | C154: 0.02123656137 | D154: 0.02463014619 | E154: 0.5220335795 | F154: 1.867799776 | G154: 4.367550387 | H154: 0.09747963493 | I154: 1.022237122 | J154: 1.962725334 | K154: 2.787178418 | L154: 4.667352895 | M154: 0.0492457938 | N154: 0 | O154: 0.01537316521 | P154: 0.04155773495 | Q154: 1.797739469 | R154: 1.212265272 | S154: 5.82619339 | T154: 0.6060606061 | U154: 1.024240355 | V154: 1.159634838 | W154: 1.301587302 | X154: 0.3802281369 | Y154: 2.176031179 | Z154: 0.6336753168 | AA154: 1.816294759 | AB154: 0.2232854864 | AC154: 1.018737493 | AD154: 1.174652241 | AE154: 1.844769404 | AF154: 0.4671338005 | AG154: 0.7965686275 | AH154: 0.5698860228 | BB154: Flust toilet (septic tank) | BC154: 2.55777 | BD154: 2.967815 | BE154: 62.984877 | BF154: 225.061664 | BG154: 526.220807 | BH154: 6.672598 | BI154: 69.867363 | BJ154: 134.301516 | BK154: 190.586394 | BL154: 319.006355 | BM154: 2.55777 | BN154: 0 | BO154: 0.801926 | BP154: 2.165889 | BQ154: 93.833122 | BR154: 44.287941 | BS154: 201.060258 | BT154: 11.765742 | BU154: 21.15378 | BV154: 56.645998 | BW154: 23.392181 | BX154: 10.832415 | BY154: 26.864521 | BZ154: 23.874081 | CA154: 78.94663 | CB154: 3.870755 | CC154: 154.983416 | CD154: 37.29795 | CE154: 96.841098 | CF154: 9.59525 | CG154: 7.702214 | CH154: 10.678703
B155: Flush toilet (sink-sumidero) | C155: 0.04672043502 | D155: 0.3957019634 | E155: 1.585502473 | F155: 7.202004637 | G155: 16.13941123 | H155: 0.2966300512 | I155: 2.955677345 | J155: 6.906313733 | K155: 11.421655 | L155: 16.76664525 | M155: 0.06894411131 | N155: 0 | O155: 0.1746285679 | P155: 0.5956075842 | Q155: 7.497870994 | R155: 1.711433325 | S155: 1.615667075 | T155: 3.636363636 | U155: 14.8173438 | V155: 3.725635332 | W155: 7.492063492 | X155: 3.698582786 | Y155: 9.158817798 | Z155: 1.297525649 | AA155: 3.009859886 | AB155: 1.339712919 | AC155: 8.295433873 | AD155: 7.542503864 | AE155: 3.577052868 | AF155: 2.035368702 | AG155: 1.011029412 | AH155: 4.439112178 | BB155: Flush toilet (sink-sumidero) | BC155: 5.627094 | BD155: 47.680197 | BE155: 191.295507 | BF155: 867.809906 | BG155: 1944.544023 | BH155: 20.304683 | BI155: 202.01319 | BJ155: 472.571678 | BK155: 781.009219 | BL155: 1145.974283 | BM155: 3.580878 | BN155: 0 | BO155: 9.109327 | BP155: 31.041632 | BQ155: 391.351837 | BR155: 62.524152 | BS155: 55.756206 | BT155: 70.594452 | BU155: 306.024684 | BV155: 181.990334 | BW155: 134.647676 | BX155: 105.369855 | BY155: 113.071566 | BZ155: 48.885023 | CA155: 130.825844 | CB155: 23.22453 | CC155: 1262.007816 | CD155: 239.4921 | CE155: 187.777251 | CF155: 41.807875 | CG155: 9.775887 | CH155: 83.181476
B156: Flush toilet (rivers) | C156: 0.02123656137 | D156: 0.1501636438 | E156: 0.7282849615 | F156: 0.6572736574 | G156: 0.8588820977 | H156: 0.8988998567 | I156: 0.7735076697 | J156: 0.7520851326 | K156: 0.7624522956 | L156: 0.7178555632 | M156: 0 | N156: 0.0489981515 | O156: 0.03922658278 | P156: 0.08331073986 | Q156: 0.2911190367 | R156: 1.735203233 | S156: 0.5140758874 | T156: 4.901185771 | U156: 0 | V156: 0 | W156: 0.06349206349 | X156: 0 | Y156: 0 | Z156: 1.357875679 | AA156: 0.3632589517 | AB156: 0.06379585327 | AC156: 0.09095870475 | AD156: 0 | AE156: 0.607424072 | AF156: 0 | AG156: 0 | AH156: 0 | BB156: Flush toilet (rivers) | BC156: 2.55777 | BD156: 18.094002 | BE156: 87.869709 | BF156: 79.198587 | BG156: 103.481721 | BH156: 61.530774 | BI156: 52.867324 | BJ156: 51.462205 | BK156: 52.136251 | BL156: 49.064318 | BM156: 0 | BN156: 2.55777 | BO156: 2.046216 | BP156: 4.341955 | BQ156: 15.194976 | BR156: 63.392543 | BS156: 17.740611 | BT156: 95.149044 | BU156: 0 | BV156: 0 | BW156: 1.141082 | BX156: 0 | BY156: 0 | BZ156: 51.158745 | CA156: 15.789326 | CB156: 1.10593 | CC156: 13.837805 | CD156: 0 | CE156: 31.886703 | CF156: 0 | CG156: 0 | CH156: 0
B157: Flush toilet (rain water sewer) | C157: 0 | D157: 0 | E157: 0.0575794424 | F157: 0 | G157: 0.06861416779 | H157: 0.1014902293 | I157: 0 | J157: 0 | K157: 0.1208973468 | L157: 0 | M157: 0 | N157: 0 | O157: 0 | P157: 0 | Q157: 0 | R157: 0.1901592584 | S157: 0 | T157: 0 | U157: 0 | V157: 0 | W157: 0 | X157: 0 | Y157: 0 | Z157: 0 | AA157: 0 | AB157: 0 | AC157: 0 | AD157: 0 | AE157: 0.157480315 | AF157: 0 | AG157: 0 | AH157: 0 | BB157: Flush toilet (rain water sewer) | BC157: 0 | BD157: 0 | BE157: 6.947128 | BF157: 0 | BG157: 8.266923 | BH157: 6.947128 | BI157: 0 | BJ157: 0 | BK157: 8.266923 | BL157: 0 | BM157: 0 | BN157: 0 | BO157: 0 | BP157: 0 | BQ157: 0 | BR157: 6.947128 | BS157: 0 | BT157: 0 | BU157: 0 | BV157: 0 | BW157: 0 | BX157: 0 | BY157: 0 | BZ157: 0 | CA157: 0 | CB157: 0 | CC157: 0 | CD157: 0 | CE157: 8.266923 | CF157: 0 | CG157: 0 | CH157: 0
B158: Traditional pit toilet | C158: 38.76032828 | D158: 63.96728477 | E158: 73.45769448 | F158: 56.1873749 | G158: 18.7990331 | H158: 74.00414029 | I158: 69.44546805 | J158: 57.31871759 | K158: 34.20321448 | L158: 8.658901902 | M158: 29.67221153 | N158: 41.7606649 | O158: 57.28512678 | P158: 63.91150783 | Q158: 68.38315369 | R158: 51.01022106 | S158: 45.67931457 | T158: 45.79710145 | U158: 58.79139638 | V158: 56.69874167 | W158: 56.88888889 | X158: 67.33494642 | Y158: 58.52549529 | Z158: 30.86904043 | AA158: 57.62843799 | AB158: 59.58532695 | AC158: 36.82008368 | AD158: 65.44049459 | AE158: 48.41394826 | AF158: 77.41074408 | AG158: 49.08088235 | AH158: 70.0059988 | BB158: Traditional pit toilet | BC158: 4668.364295 | BD158: 7707.752353 | BE158: 8862.885518 | BF158: 6770.331732 | BG158: 2264.986433 | BH158: 5065.672218 | BI158: 4746.424895 | BJ158: 3922.092682 | BK158: 2338.805176 | BL158: 591.822559 | BM158: 1541.140606 | BN158: 2179.963378 | BO158: 2988.222136 | BP158: 3330.913775 | BQ158: 3569.262906 | BR158: 1863.567086 | BS158: 1576.380006 | BT158: 889.080852 | BU158: 1214.226972 | BV158: 2769.627732 | BW158: 1022.409472 | BX158: 1918.32222 | BY158: 722.535326 | BZ158: 1163.008803 | CA158: 2504.863789 | CB158: 1032.93862 | CC158: 5601.543464 | CD158: 2077.888425 | CE158: 2541.488328 | CF158: 1590.07 | CG158: 474.574878 | CH158: 1311.794358
B159: Ventilated improved pit toilet | C159: 9.731930228 | D159: 15.73170424 | E159: 12.84369695 | F159: 10.37077622 | G159: 4.465425014 | H159: 11.29818322 | I159: 11.3220655 | J159: 9.844516488 | K159: 6.17706256 | L159: 2.612675172 | M159: 6.371090055 | N159: 11.2086976 | O159: 16.32290954 | P159: 18.95359785 | Q159: 15.8619075 | R159: 6.679343951 | S159: 10.77111383 | T159: 6.613965744 | U159: 15.02219187 | V159: 16.62965704 | W159: 15.46031746 | X159: 5.426892499 | Y159: 9.418642416 | Z159: 11.88895594 | AA159: 10.30098599 | AB159: 20.12759171 | AC159: 6.858286338 | AD159: 10.10819165 | AE159: 18.74015748 | AF159: 7.474140807 | AG159: 11.85661765 | AH159: 6.868626275 | BB159: Ventilated improved pit toilet | BC159: 1172.131342 | BD159: 1895.595238 | BE159: 1549.629572 | BF159: 1249.632955 | BG159: 538.013153 | BH159: 773.374201 | BI159: 773.834997 | BJ159: 673.621248 | BK159: 422.385618 | BL159: 178.572309 | BM159: 330.907104 | BN159: 585.109225 | BO159: 851.468476 | BP159: 987.815846 | BQ159: 827.913236 | BR159: 244.017871 | BS159: 371.70804 | BT159: 128.400054 | BU159: 310.25544 | BV159: 812.327716 | BW159: 277.853467 | BX159: 154.608105 | BY159: 116.27927 | BZ159: 447.923234 | CA159: 447.740173 | CB159: 348.920915 | CC159: 1043.370497 | CD159: 320.958675 | CE159: 983.763837 | CF159: 153.524 | CG159: 114.644493 | CH159: 128.706473
B160: NO FACILITY | C160: 50.823199 | D160: 17.38208812 | E160: 4.520965807 | F160: 1.337171692 | G160: 0.2587373982 | H160: 10.15375362 | I160: 2.939418918 | J160: 0.8329463991 | K160: 0.4607923547 | L160: 0 | M160: 63.52634029 | N160: 46.33130951 | O160: 24.15700391 | P160: 14.40465426 | Q160: 4.600330903 | R160: 36.58188733 | S160: 33.31701346 | T160: 29.01185771 | U160: 7.954933424 | V160: 11.86775228 | W160: 17.46031746 | X160: 8.123055652 | Y160: 8.379343943 | Z160: 44.87024744 | AA160: 6.927867151 | AB160: 14.70494418 | AC160: 2.037474986 | AD160: 5.285935085 | AE160: 19.93250844 | AF160: 9.342676009 | AG160: 33.73161765 | AH160: 11.87762448 | BB160: NO FACILITY | BC160: 6121.238341 | BD160: 2094.458614 | BE160: 545.467737 | BF160: 161.123312 | BG160: 31.173768 | BH160: 695.036621 | BI160: 200.901967 | BJ160: 56.995221 | BK160: 31.508838 | BL160: 0 | BM160: 3299.485192 | BN160: 2418.557229 | BO160: 1260.126282 | BP160: 750.735868 | BQ160: 240.114554 | BR160: 1336.453749 | BS160: 1149.760551 | BT160: 563.220954 | BU160: 164.294358 | BV160: 579.717554 | BW160: 313.79755 | BX160: 231.419775 | BY160: 103.448454 | BZ160: 1690.512307 | CA160: 301.125003 | CB160: 254.916865 | CC160: 309.966832 | CD160: 167.840775 | CE160: 1046.356254 | CF160: 191.905 | CG160: 326.159139 | CH160: 222.566652
B161: Bush/field (Abonera) | C161: 0.345201531 | D161: 1.481320819 | E161: 0.7373186838 | F161: 0.1249665247 | G161: 0.1411845805 | H161: 0.4401800106 | I161: 0.3243050794 | J161: 0.1672201917 | K161: 0.1582511141 | L161: 0.09055580091 | M161: 0.02320486402 | N161: 0.6209309461 | O161: 1.270194553 | P161: 1.937623585 | Q161: 1.139695086 | R161: 0.6180175897 | S161: 0.8323133415 | T161: 0 | U161: 0 | V161: 1.579077227 | W161: 0.1587301587 | X161: 0 | Y161: 0.2598246184 | Z161: 2.806276403 | AA161: 0.4411001557 | AB161: 0.1275917065 | AC161: 0.2001091504 | AD161: 0.3400309119 | AE161: 0.6299212598 | AF161: 0 | AG161: 0.2450980392 | AH161: 0.149970006 | BB161: Bush/field (Abonera) | BC161: 41.576699 | BD161: 178.492085 | BE161: 88.959654 | BF161: 15.057917 | BG161: 17.010511 | BH161: 30.13085 | BI161: 22.165445 | BJ161: 11.442215 | BK161: 10.821162 | BL161: 6.189349 | BM161: 1.205234 | BN161: 32.413438 | BO161: 66.258446 | BP161: 100.984272 | BQ161: 59.486455 | BR161: 22.578166 | BS161: 28.722894 | BT161: 0 | BU161: 0 | BV161: 77.134976 | BW161: 2.852705 | BX161: 0 | BY161: 3.207704 | BZ161: 105.728073 | CA161: 19.172753 | CB161: 2.21186 | CC161: 30.443171 | CD161: 10.796775 | CE161: 33.067692 | CF161: 0 | CG161: 2.369912 | CH161: 2.810185
B162: Hanging letrine (colgante) | C162: 0.2459000967 | D162: 0.2099252486 | E162: 0 | F162: 0.06604412667 | G162: 0 | H162: 0 | I162: 0 | J162: 0.1163011533 | K162: 0 | L162: 0 | M162: 0.2889633559 | N162: 0.0293988909 | O162: 0.7355369019 | P162: 0 | Q162: 0 | R162: 0 | S162: 0.1713586291 | T162: 0.4743083004 | U162: 0 | V162: 0 | W162: 0 | X162: 0 | Y162: 0 | Z162: 1.267350634 | AA162: 0 | AB162: 0 | AC162: 0 | AD162: 0 | AE162: 0 | AF162: 0 | AG162: 0 | AH162: 0 | BB162: Hanging letrine (colgante) | BC162: 29.616654 | BD162: 25.29499 | BE162: 0 | BF162: 7.958027 | BG162: 0 | BH162: 0 | BI162: 0 | BJ162: 7.958027 | BK162: 0 | BL162: 0 | BM162: 15.008425 | BN162: 1.534662 | BO162: 38.368557 | BP162: 0 | BQ162: 0 | BR162: 0 | BS162: 5.913537 | BT162: 9.207972 | BU162: 0 | BV162: 0 | BW162: 0 | BX162: 0 | BY162: 0 | BZ162: 47.748162 | CA162: 0 | CB162: 0 | CC162: 0 | CD162: 0 | CE162: 0 | CF162: 0 | CG162: 0 | CH162: 0
BB163: Total | BC163: 12044.18152 | BD163: 12049.52247 | BE163: 12065.29225 | BF163: 12049.5605 | BG163: 12048.41983 | BH163: 6845.120014 | BI163: 6834.751105 | BJ163: 6842.603685 | BK163: 6837.96892 | BL163: 6834.845408 | BM163: 5193.885209 | BN163: 5220.135702 | BO163: 5216.401366 | BP163: 5211.759021 | BQ163: 5219.506141 | BR163: 3653.320937 | BS163: 3450.971235 | BT163: 1941.34743 | BU163: 2065.314054 | BV163: 4884.813402 | BW163: 1797.20415 | BX163: 2848.925145 | BY163: 1234.565077 | BZ163: 3767.557354 | CA163: 4346.575886 | CB163: 1733.545275 | CC163: 15213.28282 | CD163: 3175.233375 | CE163: 5249.496105 | CF163: 2054.068875 | CG163: 966.924096 | CH163: 1873.831358
A208: =A1026 -> Nicaragua
A209: =A1034 -> 2001
A210: Access to hygiene facilities
A211: by wealth quintile and sub-national region
A212: Notes:
A213: WHO/UNICEF JMP customised wealth index excludes water,
A214: sanitation and hygiene assets.
A215: Survey used for analysis: | B215: =A1025 -> DHS01
A220: Access to handwashing | C220: NATIONAL wealth index quintile | H220: URBAN wealth index quintile | M220: RURAL wealth index quintile | R220: SUB-REGIONS: | BA220: Raw numbers of respondents: | BB220: Access to handwashing | BC220: NATIONAL wealth index quintile | BH220: URBAN wealth index quintile | BM220: RURAL wealth index quintile | BR220: SUB-REGIONS:
A221: Weighted percentage (used in graphs) | C221: Poorest | D221: Poor | E221: Middle | F221: Rich | G221: Richest | H221: Poorest | I221: Poor | J221: Middle | K221: Rich | L221: Richest | M221: Poorest | N221: Poor | O221: Middle | P221: Rich | Q221: Richest | R221: Atl ntico Norte(Raan) | S221: Atl ntico Sur(Raas) | T221: Boaco | U221: Carazo | V221: Chinandega | W221: Chontales | X221: Estel¡ | Y221: Granada | Z221: Jinotega | AA221: Le¢n | AB221: Madriz | AC221: Managua | AD221: Masaya | AE221: Matagalpa | AF221: Nueva Segovia | AG221: R¡o San Juan | AH221: Rivas | BA221: Hygiene data, raw numbers (weighted) | BC221: Poorest | BD221: Poor | BE221: Middle | BF221: Rich | BG221: Richest | BH221: Poorest | BI221: Poor | BJ221: Middle | BK221: Rich | BL221: Richest | BM221: Poorest | BN221: Poor | BO221: Middle | BP221: Rich | BQ221: Richest | BR221: Atl ntico Norte(Raan) | BS221: Atl ntico Sur(Raas) | BT221: Boaco | BU221: Carazo | BV221: Chinandega | BW221: Chontales | BX221: Estel¡ | BY221: Granada | BZ221: Jinotega | CA221: Le¢n | CB221: Madriz | CC221: Managua | CD221: Masaya | CE221: Matagalpa | CF221: Nueva Segovia | CG221: R¡o San Juan | CH221: Rivas
A222: Hygiene ladder | B222: Basic | C222: N/A | D222: N/A | E222: N/A | F222: N/A | G222: N/A | H222: N/A | I222: N/A | J222: N/A | K222: N/A | L222: N/A | M222: N/A | N222: N/A | O222: N/A | P222: N/A | Q222: N/A | R222: N/A | S222: N/A | T222: N/A | U222: N/A | V222: N/A | W222: N/A | X222: N/A | Y222: N/A | Z222: N/A | AA222: N/A | AB222: N/A | AC222: N/A | AD222: N/A | AE222: N/A | AF222: N/A | AG222: N/A | AH222: N/A | BA222: Hygiene ladder | BB222: Basic | BC222: N/A | BD222: N/A | BE222: N/A | BF222: N/A | BG222: N/A | BH222: N/A | BI222: N/A | BJ222: N/A | BK222: N/A | BL222: N/A | BM222: N/A | BN222: N/A | BO222: N/A | BP222: N/A | BQ222: N/A | BR222: N/A | BS222: N/A | BT222: N/A | BU222: N/A | BV222: N/A | BW222: N/A | BX222: N/A | BY222: N/A | BZ222: N/A | CA222: N/A | CB222: N/A | CC222: N/A | CD222: N/A | CE222: N/A | CF222: N/A | CG222: N/A | CH222: N/A
B223: Limited | C223: N/A | D223: N/A | E223: N/A | F223: N/A | G223: N/A | H223: N/A | I223: N/A | J223: N/A | K223: N/A | L223: N/A | M223: N/A | N223: N/A | O223: N/A | P223: N/A | Q223: N/A | R223: N/A | S223: N/A | T223: N/A | U223: N/A | V223: N/A | W223: N/A | X223: N/A | Y223: N/A | Z223: N/A | AA223: N/A | AB223: N/A | AC223: N/A | AD223: N/A | AE223: N/A | AF223: N/A | AG223: N/A | AH223: N/A | BB223: Limited | BC223: N/A | BD223: N/A | BE223: N/A | BF223: N/A | BG223: N/A | BH223: N/A | BI223: N/A | BJ223: N/A | BK223: N/A | BL223: N/A | BM223: N/A | BN223: N/A | BO223: N/A | BP223: N/A | BQ223: N/A | BR223: N/A | BS223: N/A | BT223: N/A | BU223: N/A | BV223: N/A | BW223: N/A | BX223: N/A | BY223: N/A | BZ223: N/A | CA223: N/A | CB223: N/A | CC223: N/A | CD223: N/A | CE223: N/A | CF223: N/A | CG223: N/A | CH223: N/A
B224: No facility | C224: N/A | D224: N/A | E224: N/A | F224: N/A | G224: N/A | H224: N/A | I224: N/A | J224: N/A | K224: N/A | L224: N/A | M224: N/A | N224: N/A | O224: N/A | P224: N/A | Q224: N/A | R224: N/A | S224: N/A | T224: N/A | U224: N/A | V224: N/A | W224: N/A | X224: N/A | Y224: N/A | Z224: N/A | AA224: N/A | AB224: N/A | AC224: N/A | AD224: N/A | AE224: N/A | AF224: N/A | AG224: N/A | AH224: N/A | BB224: No facility | BC224: N/A | BD224: N/A | BE224: N/A | BF224: N/A | BG224: N/A | BH224: N/A | BI224: N/A | BJ224: N/A | BK224: N/A | BL224: N/A | BM224: N/A | BN224: N/A | BO224: N/A | BP224: N/A | BQ224: N/A | BR224: N/A | BS224: N/A | BT224: N/A | BU224: N/A | BV224: N/A | BW224: N/A | BX224: N/A | BY224: N/A | BZ224: N/A | CA224: N/A | CB224: N/A | CC224: N/A | CD224: N/A | CE224: N/A | CF224: N/A | CG224: N/A | CH224: N/A
BA225: Observed handwashing place | BB225: Fixed | BC225: N/A | BD225: N/A | BE225: N/A | BF225: N/A | BG225: N/A | BH225: N/A | BI225: N/A | BJ225: N/A | BK225: N/A | BL225: N/A | BM225: N/A | BN225: N/A | BO225: N/A | BP225: N/A | BQ225: N/A | BR225: N/A | BS225: N/A | BT225: N/A | BU225: N/A | BV225: N/A | BW225: N/A | BX225: N/A | BY225: N/A | BZ225: N/A | CA225: N/A | CB225: N/A | CC225: N/A | CD225: N/A | CE225: N/A | CF225: N/A | CG225: N/A | CH225: N/A
BB226: Mobile | BC226: N/A | BD226: N/A | BE226: N/A | BF226: N/A | BG226: N/A | BH226: N/A | BI226: N/A | BJ226: N/A | BK226: N/A | BL226: N/A | BM226: N/A | BN226: N/A | BO226: N/A | BP226: N/A | BQ226: N/A | BR226: N/A | BS226: N/A | BT226: N/A | BU226: N/A | BV226: N/A | BW226: N/A | BX226: N/A | BY226: N/A | BZ226: N/A | CA226: N/A | CB226: N/A | CC226: N/A | CD226: N/A | CE226: N/A | CF226: N/A | CG226: N/A | CH226: N/A
BA227: Water / Soap | BB227: Water and soap | BC227: N/A | BD227: N/A | BE227: N/A | BF227: N/A | BG227: N/A | BH227: N/A | BI227: N/A | BJ227: N/A | BK227: N/A | BL227: N/A | BM227: N/A | BN227: N/A | BO227: N/A | BP227: N/A | BQ227: N/A | BR227: N/A | BS227: N/A | BT227: N/A | BU227: N/A | BV227: N/A | BW227: N/A | BX227: N/A | BY227: N/A | BZ227: N/A | CA227: N/A | CB227: N/A | CC227: N/A | CD227: N/A | CE227: N/A | CF227: N/A | CG227: N/A | CH227: N/A
BB228: Water only | BC228: N/A | BD228: N/A | BE228: N/A | BF228: N/A | BG228: N/A | BH228: N/A | BI228: N/A | BJ228: N/A | BK228: N/A | BL228: N/A | BM228: N/A | BN228: N/A | BO228: N/A | BP228: N/A | BQ228: N/A | BR228: N/A | BS228: N/A | BT228: N/A | BU228: N/A | BV228: N/A | BW228: N/A | BX228: N/A | BY228: N/A | BZ228: N/A | CA228: N/A | CB228: N/A | CC228: N/A | CD228: N/A | CE228: N/A | CF228: N/A | CG228: N/A | CH228: N/A
BB229: Soap only | BC229: N/A | BD229: N/A | BE229: N/A | BF229: N/A | BG229: N/A | BH229: N/A | BI229: N/A | BJ229: N/A | BK229: N/A | BL229: N/A | BM229: N/A | BN229: N/A | BO229: N/A | BP229: N/A | BQ229: N/A | BR229: N/A | BS229: N/A | BT229: N/A | BU229: N/A | BV229: N/A | BW229: N/A | BX229: N/A | BY229: N/A | BZ229: N/A | CA229: N/A | CB229: N/A | CC229: N/A | CD229: N/A | CE229: N/A | CF229: N/A | CG229: N/A | CH229: N/A
BB230: Neither | BC230: N/A | BD230: N/A | BE230: N/A | BF230: N/A | BG230: N/A | BH230: N/A | BI230: N/A | BJ230: N/A | BK230: N/A | BL230: N/A | BM230: N/A | BN230: N/A | BO230: N/A | BP230: N/A | BQ230: N/A | BR230: N/A | BS230: N/A | BT230: N/A | BU230: N/A | BV230: N/A | BW230: N/A | BX230: N/A | BY230: N/A | BZ230: N/A | CA230: N/A | CB230: N/A | CC230: N/A | CD230: N/A | CE230: N/A | CF230: N/A | CG230: N/A | CH230: N/A
BA259: Raw numbers of respondents: | BB259: Menstrual health and hygiene | BC259: NATIONAL wealth index quintile | BH259: URBAN wealth index quintile | BM259: RURAL wealth index quintile | BR259: SUB-REGIONS:
BA260: MHH data, raw numbers (weighted) | BC260: Poorest | BD260: Poor | BE260: Middle | BF260: Rich | BG260: Richest | BH260: Poorest | BI260: Poor | BJ260: Middle | BK260: Rich | BL260: Richest | BM260: Poorest | BN260: Poor | BO260: Middle | BP260: Rich | BQ260: Richest | BR260: Atl ntico Norte(Raan) | BS260: Atl ntico Sur(Raas) | BT260: Boaco | BU260: Carazo | BV260: Chinandega | BW260: Chontales | BX260: Estel¡ | BY260: Granada | BZ260: Jinotega | CA260: Le¢n | CB260: Madriz | CC260: Managua | CD260: Masaya | CE260: Matagalpa | CF260: Nueva Segovia | CG260: R¡o San Juan | CH260: Rivas
BA261: Private place to wash and change | BB261: Yes | BC261: N/A | BD261: N/A | BE261: N/A | BF261: N/A | BG261: N/A | BH261: N/A | BI261: N/A | BJ261: N/A | BK261: N/A | BL261: N/A | BM261: N/A | BN261: N/A | BO261: N/A | BP261: N/A | BQ261: N/A | BR261: N/A | BS261: N/A | BT261: N/A | BU261: N/A | BV261: N/A | BW261: N/A | BX261: N/A | BY261: N/A | BZ261: N/A | CA261: N/A | CB261: N/A | CC261: N/A | CD261: N/A | CE261: N/A | CF261: N/A | CG261: N/A | CH261: N/A
BB262: No | BC262: N/A | BD262: N/A | BE262: N/A | BF262: N/A | BG262: N/A | BH262: N/A | BI262: N/A | BJ262: N/A | BK262: N/A | BL262: N/A | BM262: N/A | BN262: N/A | BO262: N/A | BP262: N/A | BQ262: N/A | BR262: N/A | BS262: N/A | BT262: N/A | BU262: N/A | BV262: N/A | BW262: N/A | BX262: N/A | BY262: N/A | BZ262: N/A | CA262: N/A | CB262: N/A | CC262: N/A | CD262: N/A | CE262: N/A | CF262: N/A | CG262: N/A | CH262: N/A
BB263: DK/not sure/missing | BC263: N/A | BD263: N/A | BE263: N/A | BF263: N/A | BG263: N/A | BH263: N/A | BI263: N/A | BJ263: N/A | BK263: N/A | BL263: N/A | BM263: N/A | BN263: N/A | BO263: N/A | BP263: N/A | BQ263: N/A | BR263: N/A | BS263: N/A | BT263: N/A | BU263: N/A | BV263: N/A | BW263: N/A | BX263: N/A | BY263: N/A | BZ263: N/A | CA263: N/A | CB263: N/A | CC263: N/A | CD263: N/A | CE263: N/A | CF263: N/A | CG263: N/A | CH263: N/A
BA264: Use of menstrual materials | BB264: Materials reusable | BC264: N/A | BD264: N/A | BE264: N/A | BF264: N/A | BG264: N/A | BH264: N/A | BI264: N/A | BJ264: N/A | BK264: N/A | BL264: N/A | BM264: N/A | BN264: N/A | BO264: N/A | BP264: N/A | BQ264: N/A | BR264: N/A | BS264: N/A | BT264: N/A | BU264: N/A | BV264: N/A | BW264: N/A | BX264: N/A | BY264: N/A | BZ264: N/A | CA264: N/A | CB264: N/A | CC264: N/A | CD264: N/A | CE264: N/A | CF264: N/A | CG264: N/A | CH264: N/A
BB265: Materials not reusable | BC265: N/A | BD265: N/A | BE265: N/A | BF265: N/A | BG265: N/A | BH265: N/A | BI265: N/A | BJ265: N/A | BK265: N/A | BL265: N/A | BM265: N/A | BN265: N/A | BO265: N/A | BP265: N/A | BQ265: N/A | BR265: N/A | BS265: N/A | BT265: N/A | BU265: N/A | BV265: N/A | BW265: N/A | BX265: N/A | BY265: N/A | BZ265: N/A | CA265: N/A | CB265: N/A | CC265: N/A | CD265: N/A | CE265: N/A | CF265: N/A | CG265: N/A | CH265: N/A
BB266: No materials used | BC266: N/A | BD266: N/A | BE266: N/A | BF266: N/A | BG266: N/A | BH266: N/A | BI266: N/A | BJ266: N/A | BK266: N/A | BL266: N/A | BM266: N/A | BN266: N/A | BO266: N/A | BP266: N/A | BQ266: N/A | BR266: N/A | BS266: N/A | BT266: N/A | BU266: N/A | BV266: N/A | BW266: N/A | BX266: N/A | BY266: N/A | BZ266: N/A | CA266: N/A | CB266: N/A | CC266: N/A | CD266: N/A | CE266: N/A | CF266: N/A | CG266: N/A | CH266: N/A
BB267: DK/not sure/missing | BC267: N/A | BD267: N/A | BE267: N/A | BF267: N/A | BG267: N/A | BH267: N/A | BI267: N/A | BJ267: N/A | BK267: N/A | BL267: N/A | BM267: N/A | BN267: N/A | BO267: N/A | BP267: N/A | BQ267: N/A | BR267: N/A | BS267: N/A | BT267: N/A | BU267: N/A | BV267: N/A | BW267: N/A | BX267: N/A | BY267: N/A | BZ267: N/A | CA267: N/A | CB267: N/A | CC267: N/A | CD267: N/A | CE267: N/A | CF267: N/A | CG267: N/A | CH267: N/A
BA268: Use of menstrual materials with private place to wash and change | BB268: Materials reusable | BC268: N/A | BD268: N/A | BE268: N/A | BF268: N/A | BG268: N/A | BH268: N/A | BI268: N/A | BJ268: N/A | BK268: N/A | BL268: N/A | BM268: N/A | BN268: N/A | BO268: N/A | BP268: N/A | BQ268: N/A | BR268: N/A | BS268: N/A | BT268: N/A | BU268: N/A | BV268: N/A | BW268: N/A | BX268: N/A | BY268: N/A | BZ268: N/A | CA268: N/A | CB268: N/A | CC268: N/A | CD268: N/A | CE268: N/A | CF268: N/A | CG268: N/A | CH268: N/A
BB269: Materials not reusable | BC269: N/A | BD269: N/A | BE269: N/A | BF269: N/A | BG269: N/A | BH269: N/A | BI269: N/A | BJ269: N/A | BK269: N/A | BL269: N/A | BM269: N/A | BN269: N/A | BO269: N/A | BP269: N/A | BQ269: N/A | BR269: N/A | BS269: N/A | BT269: N/A | BU269: N/A | BV269: N/A | BW269: N/A | BX269: N/A | BY269: N/A | BZ269: N/A | CA269: N/A | CB269: N/A | CC269: N/A | CD269: N/A | CE269: N/A | CF269: N/A | CG269: N/A | CH269: N/A
BB270: No materials used | BC270: N/A | BD270: N/A | BE270: N/A | BF270: N/A | BG270: N/A | BH270: N/A | BI270: N/A | BJ270: N/A | BK270: N/A | BL270: N/A | BM270: N/A | BN270: N/A | BO270: N/A | BP270: N/A | BQ270: N/A | BR270: N/A | BS270: N/A | BT270: N/A | BU270: N/A | BV270: N/A | BW270: N/A | BX270: N/A | BY270: N/A | BZ270: N/A | CA270: N/A | CB270: N/A | CC270: N/A | CD270: N/A | CE270: N/A | CF270: N/A | CG270: N/A | CH270: N/A
BA271: Awareness of menstruation before menarche | BB271: Yes | BC271: N/A | BD271: N/A | BE271: N/A | BF271: N/A | BG271: N/A | BH271: N/A | BI271: N/A | BJ271: N/A | BK271: N/A | BL271: N/A | BM271: N/A | BN271: N/A | BO271: N/A | BP271: N/A | BQ271: N/A | BR271: N/A | BS271: N/A | BT271: N/A | BU271: N/A | BV271: N/A | BW271: N/A | BX271: N/A | BY271: N/A | BZ271: N/A | CA271: N/A | CB271: N/A | CC271: N/A | CD271: N/A | CE271: N/A | CF271: N/A | CG271: N/A | CH271: N/A
BB272: No | BC272: N/A | BD272: N/A | BE272: N/A | BF272: N/A | BG272: N/A | BH272: N/A | BI272: N/A | BJ272: N/A | BK272: N/A | BL272: N/A | BM272: N/A | BN272: N/A | BO272: N/A | BP272: N/A | BQ272: N/A | BR272: N/A | BS272: N/A | BT272: N/A | BU272: N/A | BV272: N/A | BW272: N/A | BX272: N/A | BY272: N/A | BZ272: N/A | CA272: N/A | CB272: N/A | CC272: N/A | CD272: N/A | CE272: N/A | CF272: N/A | CG272: N/A | CH272: N/A
BB273: DK/not sure/missing | BC273: N/A | BD273: N/A | BE273: N/A | BF273: N/A | BG273: N/A | BH273: N/A | BI273: N/A | BJ273: N/A | BK273: N/A | BL273: N/A | BM273: N/A | BN273: N/A | BO273: N/A | BP273: N/A | BQ273: N/A | BR273: N/A | BS273: N/A | BT273: N/A | BU273: N/A | BV273: N/A | BW273: N/A | BX273: N/A | BY273: N/A | BZ273: N/A | CA273: N/A | CB273: N/A | CC273: N/A | CD273: N/A | CE273: N/A | CF273: N/A | CG273: N/A | CH273: N/A
BA274: Participation in (all) activities during menstruation | BB274: Yes | BC274: N/A | BD274: N/A | BE274: N/A | BF274: N/A | BG274: N/A | BH274: N/A | BI274: N/A | BJ274: N/A | BK274: N/A | BL274: N/A | BM274: N/A | BN274: N/A | BO274: N/A | BP274: N/A | BQ274: N/A | BR274: N/A | BS274: N/A | BT274: N/A | BU274: N/A | BV274: N/A | BW274: N/A | BX274: N/A | BY274: N/A | BZ274: N/A | CA274: N/A | CB274: N/A | CC274: N/A | CD274: N/A | CE274: N/A | CF274: N/A | CG274: N/A | CH274: N/A
BB275: No | BC275: N/A | BD275: N/A | BE275: N/A | BF275: N/A | BG275: N/A | BH275: N/A | BI275: N/A | BJ275: N/A | BK275: N/A | BL275: N/A | BM275: N/A | BN275: N/A | BO275: N/A | BP275: N/A | BQ275: N/A | BR275: N/A | BS275: N/A | BT275: N/A | BU275: N/A | BV275: N/A | BW275: N/A | BX275: N/A | BY275: N/A | BZ275: N/A | CA275: N/A | CB275: N/A | CC275: N/A | CD275: N/A | CE275: N/A | CF275: N/A | CG275: N/A | CH275: N/A
BB276: DK/not sure/missing/no such activity | BC276: N/A | BD276: N/A | BE276: N/A | BF276: N/A | BG276: N/A | BH276: N/A | BI276: N/A | BJ276: N/A | BK276: N/A | BL276: N/A | BM276: N/A | BN276: N/A | BO276: N/A | BP276: N/A | BQ276: N/A | BR276: N/A | BS276: N/A | BT276: N/A | BU276: N/A | BV276: N/A | BW276: N/A | BX276: N/A | BY276: N/A | BZ276: N/A | CA276: N/A | CB276: N/A | CC276: N/A | CD276: N/A | CE276: N/A | CF276: N/A | CG276: N/A | CH276: N/A
BA277: Participation in specific activities during menstruation | BB277: Did not go to school (amongst those usually attending school) | BC277: N/A | BD277: N/A | BE277: N/A | BF277: N/A | BG277: N/A | BH277: N/A | BI277: N/A | BJ277: N/A | BK277: N/A | BL277: N/A | BM277: N/A | BN277: N/A | BO277: N/A | BP277: N/A | BQ277: N/A | BR277: N/A | BS277: N/A | BT277: N/A | BU277: N/A | BV277: N/A | BW277: N/A | BX277: N/A | BY277: N/A | BZ277: N/A | CA277: N/A | CB277: N/A | CC277: N/A | CD277: N/A | CE277: N/A | CF277: N/A | CG277: N/A | CH277: N/A
BB278: Did not go to work (amongst those who usually work) | BC278: N/A | BD278: N/A | BE278: N/A | BF278: N/A | BG278: N/A | BH278: N/A | BI278: N/A | BJ278: N/A | BK278: N/A | BL278: N/A | BM278: N/A | BN278: N/A | BO278: N/A | BP278: N/A | BQ278: N/A | BR278: N/A | BS278: N/A | BT278: N/A | BU278: N/A | BV278: N/A | BW278: N/A | BX278: N/A | BY278: N/A | BZ278: N/A | CA278: N/A | CB278: N/A | CC278: N/A | CD278: N/A | CE278: N/A | CF278: N/A | CG278: N/A | CH278: N/A
BB279: Did not participate in social activities | BC279: N/A | BD279: N/A | BE279: N/A | BF279: N/A | BG279: N/A | BH279: N/A | BI279: N/A | BJ279: N/A | BK279: N/A | BL279: N/A | BM279: N/A | BN279: N/A | BO279: N/A | BP279: N/A | BQ279: N/A | BR279: N/A | BS279: N/A | BT279: N/A | BU279: N/A | BV279: N/A | BW279: N/A | BX279: N/A | BY279: N/A | BZ279: N/A | CA279: N/A | CB279: N/A | CC279: N/A | CD279: N/A | CE279: N/A | CF279: N/A | CG279: N/A | CH279: N/A
BB280: Did not cook food | BC280: N/A | BD280: N/A | BE280: N/A | BF280: N/A | BG280: N/A | BH280: N/A | BI280: N/A | BJ280: N/A | BK280: N/A | BL280: N/A | BM280: N/A | BN280: N/A | BO280: N/A | BP280: N/A | BQ280: N/A | BR280: N/A | BS280: N/A | BT280: N/A | BU280: N/A | BV280: N/A | BW280: N/A | BX280: N/A | BY280: N/A | BZ280: N/A | CA280: N/A | CB280: N/A | CC280: N/A | CD280: N/A | CE280: N/A | CF280: N/A | CG280: N/A | CH280: N/A
BB281: Did not eat with others | BC281: N/A | BD281: N/A | BE281: N/A | BF281: N/A | BG281: N/A | BH281: N/A | BI281: N/A | BJ281: N/A | BK281: N/A | BL281: N/A | BM281: N/A | BN281: N/A | BO281: N/A | BP281: N/A | BQ281: N/A | BR281: N/A | BS281: N/A | BT281: N/A | BU281: N/A | BV281: N/A | BW281: N/A | BX281: N/A | BY281: N/A | BZ281: N/A | CA281: N/A | CB281: N/A | CC281: N/A | CD281: N/A | CE281: N/A | CF281: N/A | CG281: N/A | CH281: N/A
BB282: Did not bathe in regular place | BC282: N/A | BD282: N/A | BE282: N/A | BF282: N/A | BG282: N/A | BH282: N/A | BI282: N/A | BJ282: N/A | BK282: N/A | BL282: N/A | BM282: N/A | BN282: N/A | BO282: N/A | BP282: N/A | BQ282: N/A | BR282: N/A | BS282: N/A | BT282: N/A | BU282: N/A | BV282: N/A | BW282: N/A | BX282: N/A | BY282: N/A | BZ282: N/A | CA282: N/A | CB282: N/A | CC282: N/A | CD282: N/A | CE282: N/A | CF282: N/A | CG282: N/A | CH282: N/A
BB283: Did not participate in other activities | BC283: N/A | BD283: N/A | BE283: N/A | BF283: N/A | BG283: N/A | BH283: N/A | BI283: N/A | BJ283: N/A | BK283: N/A | BL283: N/A | BM283: N/A | BN283: N/A | BO283: N/A | BP283: N/A | BQ283: N/A | BR283: N/A | BS283: N/A | BT283: N/A | BU283: N/A | BV283: N/A | BW283: N/A | BX283: N/A | BY283: N/A | BZ283: N/A | CA283: N/A | CB283: N/A | CC283: N/A | CD283: N/A | CE283: N/A | CF283: N/A | CG283: N/A | CH283: N/A
BB284: DK/not sure/missing/no such activity | BC284: N/A | BD284: N/A | BE284: N/A | BF284: N/A | BG284: N/A | BH284: N/A | BI284: N/A | BJ284: N/A | BK284: N/A | BL284: N/A | BM284: N/A | BN284: N/A | BO284: N/A | BP284: N/A | BQ284: N/A | BR284: N/A | BS284: N/A | BT284: N/A | BU284: N/A | BV284: N/A | BW284: N/A | BX284: N/A | BY284: N/A | BZ284: N/A | CA284: N/A | CB284: N/A | CC284: N/A | CD284: N/A | CE284: N/A | CF284: N/A | CG284: N/A | CH284: N/A
BA339: Raw numbers of respondents: | BB339: Basic water, sanitation and hygiene | BC339: NATIONAL wealth index quintile | BH339: URBAN wealth index quintile | BM339: RURAL wealth index quintile | BR339: SUB-REGIONS:
BA340: WatSan data, raw numbers (weighted) | BC340: Poorest | BD340: Poor | BE340: Middle | BF340: Rich | BG340: Richest | BH340: Poorest | BI340: Poor | BJ340: Middle | BK340: Rich | BL340: Richest | BM340: Poorest | BN340: Poor | BO340: Middle | BP340: Rich | BQ340: Richest | BR340: Atl ntico Norte(Raan) | BS340: Atl ntico Sur(Raas) | BT340: Boaco | BU340: Carazo | BV340: Chinandega | BW340: Chontales | BX340: Estel¡ | BY340: Granada | BZ340: Jinotega | CA340: Le¢n | CB340: Madriz | CC340: Managua | CD340: Masaya | CE340: Matagalpa | CF340: Nueva Segovia | CG340: R¡o San Juan | CH340: Rivas
BA341: Use of Basic Water Sanitation and Hygiene | BB341: Yes | BC341: N/A | BD341: N/A | BE341: N/A | BF341: N/A | BG341: N/A | BH341: N/A | BI341: N/A | BJ341: N/A | BK341: N/A | BL341: N/A | BM341: N/A | BN341: N/A | BO341: N/A | BP341: N/A | BQ341: N/A | BR341: N/A | BS341: N/A | BT341: N/A | BU341: N/A | BV341: N/A | BW341: N/A | BX341: N/A | BY341: N/A | BZ341: N/A | CA341: N/A | CB341: N/A | CC341: N/A | CD341: N/A | CE341: N/A | CF341: N/A | CG341: N/A | CH341: N/A
BB342: No | BC342: N/A | BD342: N/A | BE342: N/A | BF342: N/A | BG342: N/A | BH342: N/A | BI342: N/A | BJ342: N/A | BK342: N/A | BL342: N/A | BM342: N/A | BN342: N/A | BO342: N/A | BP342: N/A | BQ342: N/A | BR342: N/A | BS342: N/A | BT342: N/A | BU342: N/A | BV342: N/A | BW342: N/A | BX342: N/A | BY342: N/A | BZ342: N/A | CA342: N/A | CB342: N/A | CC342: N/A | CD342: N/A | CE342: N/A | CF342: N/A | CG342: N/A | CH342: N/A
BA343: Use of Basic Water and Sanitation | BB343: Yes | BC343: N/A | BD343: N/A | BE343: N/A | BF343: N/A | BG343: N/A | BH343: N/A | BI343: N/A | BJ343: N/A | BK343: N/A | BL343: N/A | BM343: N/A | BN343: N/A | BO343: N/A | BP343: N/A | BQ343: N/A | BR343: N/A | BS343: N/A | BT343: N/A | BU343: N/A | BV343: N/A | BW343: N/A | BX343: N/A | BY343: N/A | BZ343: N/A | CA343: N/A | CB343: N/A | CC343: N/A | CD343: N/A | CE343: N/A | CF343: N/A | CG343: N/A | CH343: N/A
BB344: No | BC344: N/A | BD344: N/A | BE344: N/A | BF344: N/A | BG344: N/A | BH344: N/A | BI344: N/A | BJ344: N/A | BK344: N/A | BL344: N/A | BM344: N/A | BN344: N/A | BO344: N/A | BP344: N/A | BQ344: N/A | BR344: N/A | BS344: N/A | BT344: N/A | BU344: N/A | BV344: N/A | BW344: N/A | BX344: N/A | BY344: N/A | BZ344: N/A | CA344: N/A | CB344: N/A | CC344: N/A | CD344: N/A | CE344: N/A | CF344: N/A | CG344: N/A | CH344: N/A
BA345: Use of Basic Water and Hygiene | BB345: Yes | BC345: N/A | BD345: N/A | BE345: N/A | BF345: N/A | BG345: N/A | BH345: N/A | BI345: N/A | BJ345: N/A | BK345: N/A | BL345: N/A | BM345: N/A | BN345: N/A | BO345: N/A | BP345: N/A | BQ345: N/A | BR345: N/A | BS345: N/A | BT345: N/A | BU345: N/A | BV345: N/A | BW345: N/A | BX345: N/A | BY345: N/A | BZ345: N/A | CA345: N/A | CB345: N/A | CC345: N/A | CD345: N/A | CE345: N/A | CF345: N/A | CG345: N/A | CH345: N/A
BB346: No | BC346: N/A | BD346: N/A | BE346: N/A | BF346: N/A | BG346: N/A | BH346: N/A | BI346: N/A | BJ346: N/A | BK346: N/A | BL346: N/A | BM346: N/A | BN346: N/A | BO346: N/A | BP346: N/A | BQ346: N/A | BR346: N/A | BS346: N/A | BT346: N/A | BU346: N/A | BV346: N/A | BW346: N/A | BX346: N/A | BY346: N/A | BZ346: N/A | CA346: N/A | CB346: N/A | CC346: N/A | CD346: N/A | CE346: N/A | CF346: N/A | CG346: N/A | CH346: N/A
BA347: Use of Basic Sanitation and Hygiene | BB347: Yes | BC347: N/A | BD347: N/A | BE347: N/A | BF347: N/A | BG347: N/A | BH347: N/A | BI347: N/A | BJ347: N/A | BK347: N/A | BL347: N/A | BM347: N/A | BN347: N/A | BO347: N/A | BP347: N/A | BQ347: N/A | BR347: N/A | BS347: N/A | BT347: N/A | BU347: N/A | BV347: N/A | BW347: N/A | BX347: N/A | BY347: N/A | BZ347: N/A | CA347: N/A | CB347: N/A | CC347: N/A | CD347: N/A | CE347: N/A | CF347: N/A | CG347: N/A | CH347: N/A
BB348: No | BC348: N/A | BD348: N/A | BE348: N/A | BF348: N/A | BG348: N/A | BH348: N/A | BI348: N/A | BJ348: N/A | BK348: N/A | BL348: N/A | BM348: N/A | BN348: N/A | BO348: N/A | BP348: N/A | BQ348: N/A | BR348: N/A | BS348: N/A | BT348: N/A | BU348: N/A | BV348: N/A | BW348: N/A | BX348: N/A | BY348: N/A | BZ348: N/A | CA348: N/A | CB348: N/A | CC348: N/A | CD348: N/A | CE348: N/A | CF348: N/A | CG348: N/A | CH348: N/A
BA349: Use of Basic Water | BB349: Yes | BC349: N/A | BD349: N/A | BE349: N/A | BF349: N/A | BG349: N/A | BH349: N/A | BI349: N/A | BJ349: N/A | BK349: N/A | BL349: N/A | BM349: N/A | BN349: N/A | BO349: N/A | BP349: N/A | BQ349: N/A | BR349: N/A | BS349: N/A | BT349: N/A | BU349: N/A | BV349: N/A | BW349: N/A | BX349: N/A | BY349: N/A | BZ349: N/A | CA349: N/A | CB349: N/A | CC349: N/A | CD349: N/A | CE349: N/A | CF349: N/A | CG349: N/A | CH349: N/A
BB350: No | BC350: N/A | BD350: N/A | BE350: N/A | BF350: N/A | BG350: N/A | BH350: N/A | BI350: N/A | BJ350: N/A | BK350: N/A | BL350: N/A | BM350: N/A | BN350: N/A | BO350: N/A | BP350: N/A | BQ350: N/A | BR350: N/A | BS350: N/A | BT350: N/A | BU350: N/A | BV350: N/A | BW350: N/A | BX350: N/A | BY350: N/A | BZ350: N/A | CA350: N/A | CB350: N/A | CC350: N/A | CD350: N/A | CE350: N/A | CF350: N/A | CG350: N/A | CH350: N/A
BA351: Use of Basic Sanitation | BB351: Yes | BC351: N/A | BD351: N/A | BE351: N/A | BF351: N/A | BG351: N/A | BH351: N/A | BI351: N/A | BJ351: N/A | BK351: N/A | BL351: N/A | BM351: N/A | BN351: N/A | BO351: N/A | BP351: N/A | BQ351: N/A | BR351: N/A | BS351: N/A | BT351: N/A | BU351: N/A | BV351: N/A | BW351: N/A | BX351: N/A | BY351: N/A | BZ351: N/A | CA351: N/A | CB351: N/A | CC351: N/A | CD351: N/A | CE351: N/A | CF351: N/A | CG351: N/A | CH351: N/A
BB352: No | BC352: N/A | BD352: N/A | BE352: N/A | BF352: N/A | BG352: N/A | BH352: N/A | BI352: N/A | BJ352: N/A | BK352: N/A | BL352: N/A | BM352: N/A | BN352: N/A | BO352: N/A | BP352: N/A | BQ352: N/A | BR352: N/A | BS352: N/A | BT352: N/A | BU352: N/A | BV352: N/A | BW352: N/A | BX352: N/A | BY352: N/A | BZ352: N/A | CA352: N/A | CB352: N/A | CC352: N/A | CD352: N/A | CE352: N/A | CF352: N/A | CG352: N/A | CH352: N/A
BA353: Access to Basic Hygiene | BB353: Yes | BC353: N/A | BD353: N/A | BE353: N/A | BF353: N/A | BG353: N/A | BH353: N/A | BI353: N/A | BJ353: N/A | BK353: N/A | BL353: N/A | BM353: N/A | BN353: N/A | BO353: N/A | BP353: N/A | BQ353: N/A | BR353: N/A | BS353: N/A | BT353: N/A | BU353: N/A | BV353: N/A | BW353: N/A | BX353: N/A | BY353: N/A | BZ353: N/A | CA353: N/A | CB353: N/A | CC353: N/A | CD353: N/A | CE353: N/A | CF353: N/A | CG353: N/A | CH353: N/A
BB354: No | BC354: N/A | BD354: N/A | BE354: N/A | BF354: N/A | BG354: N/A | BH354: N/A | BI354: N/A | BJ354: N/A | BK354: N/A | BL354: N/A | BM354: N/A | BN354: N/A | BO354: N/A | BP354: N/A | BQ354: N/A | BR354: N/A | BS354: N/A | BT354: N/A | BU354: N/A | BV354: N/A | BW354: N/A | BX354: N/A | BY354: N/A | BZ354: N/A | CA354: N/A | CB354: N/A | CC354: N/A | CD354: N/A | CE354: N/A | CF354: N/A | CG354: N/A | CH354: N/A
C399: INITIAL (national) Wealth Index | H399: URBAN Wealth Index | M399: RURAL Wealth Index
C400: Component Matrix | H400: Component Matrix | M400: Component Matrix
E401: Component | J401: Component | O401: Component
B402: Note: The INITIAL (national) Wealth Index is based on the first component of the Principal Component Analysis (PCA) which has been obtained at national level. The final national-level (NATIONAL) Wealth Index is based on the URBAN and RURAL specific wealth indexes. Regression procedures are used to establish the relationships between the two sets of scores (urban and rural) and the initial (national) wealth factors. This allows best use of the available information for each area and a better precision of the FINAL (NATIONAL) Wealth Index. For dependency reasons, all WASH variables (contained in the generic MICS and DHS scripts) have been excluded from the sets of asset variables used in the PCAs. The PCA can extracts as many components as there are asset variables in the input. Only the first of the components is used to represent the Wealth Index. The scores represent the weights of the asset variables on the Wealth Index (correlations between the variables and the component). The communalities are the proportion of each variable's variance that can be explained by the component. Proportion of explained variance is the part of the model's total variance that is explained by the component. For more information on the procedure used: The DHS Wealth Index, DHS Comparative Reports No. 6, Shea Oscar Rutstein, Kiersten Johnson, ORC Macro International Inc., 2004. The DHS Wealth Index: Approaches for Rural and Urban Areas, Shea O. Rutstein, ORC Macro International Inc., 2008. MICS Methodological Paper No. 4, Review of options for reporting water, sanitation and hygiene coverage by wealth quintile, UNICEF, 2016. | E402: 1 | J402: 1 | O402: 1
C403: HH has cooking machine | E403: 0.8064579574 | H403: HH has cooking machine | J403: 0.7620446689 | M403: Has electricity | O403: 0.7818152373
C404: light1 | E404: 0.7920962367 | H404: fuel2 | J404: 0.7441317081 | M404: light1 | O404: 0.7801677286
C405: Has electricity | E405: 0.7893886083 | H405: fuel7 | J405: -0.729348939 | M405: light3 | O405: -0.7790258758
C406: light3 | E406: -0.7879269029 | H406: HH has iron | J406: 0.6408450313 | M406: Has television | O406: 0.7338041335
C407: fuel7 | E407: -0.7778942519 | H407: Has electricity | J407: 0.6298223853 | M407: HH has cooking machine | O407: 0.6897900242
C408: fuel2 | E408: 0.7766737928 | H408: light1 | J408: 0.6281144557 | M408: HH has fan | O408: 0.6581813264
C409: Has television | E409: 0.7641435481 | H409: light3 | J409: -0.6274290589 | M409: HH has iron | O409: 0.6568374507
C410: HH has iron | E410: 0.7423268182 | H410: Has television | J410: 0.6245955373 | M410: fuel2 | O410: 0.6389353452
C411: HH has fan | E411: 0.708502081 | H411: HH has fan | J411: 0.6139092707 | M411: fuel7 | O411: -0.6254601301
C412: floor9 | E412: 0.6563818478 | H412: floor9 | J412: 0.6078770511 | M412: Has refrigerator | O412: 0.6127539161
C413: Has refrigerator | E413: 0.6455283009 | H413: Has refrigerator | J413: 0.6056620151 | M413: floor9 | O413: 0.5032379856
C414: floor1 | E414: -0.6302675701 | H414: floor1 | J414: -0.6028816562 | M414: wall8 | O414: 0.469607153
C415: wall8 | E415: 0.5357788702 | H415: Has telephone | J415: 0.5130226124 | M415: floor1 | O415: -0.4519684624
C416: Has telephone | E416: 0.5067504002 | H416: wall8 | J416: 0.4193335197 | M416: Has bicycle | O416: 0.3993039655
C417: wall5 | E417: -0.4398233412 | H417: Number of members per sleeping room | J417: -0.4154140114 | M417: Has car/truck | O417: 0.3923965886
C418: Number of members per sleeping room | E418: -0.4282994523 | H418: Has car/truck | J418: 0.4006239765 | M418: HH has cellular phone | O418: 0.373201341
... 207 more rows

Sheet ENDESA11
A2: =A1026 -> Nicaragua
A3: =A1034 -> 2011
A4: Use of drinking water sources
A5: by wealth quintile and sub-national region
A6: Notes:
A7: WHO/UNICEF JMP customised wealth index excludes water,
A8: sanitation and hygiene assets.
A9: Survey used for analysis: | B9: =A1025 -> ENDESA11
A10: Improved wells, springs based on: | B10: 50% Rule
A11: =B1027 -> 
A14: Use of drinking water sources | C14: NATIONAL wealth index quintile | H14: URBAN wealth index quintile | M14: RURAL wealth index quintile | R14: SUB-REGIONS: | BA14: Raw numbers of respondents: | BB14: Use of drinking water sources | BC14: NATIONAL wealth index quintile | BH14: URBAN wealth index quintile | BM14: RURAL wealth index quintile | BR14: SUB-REGIONS:
A15: Weighted percentage (used in graphs) | C15: Poorest | D15: Poor | E15: Middle | F15: Rich | G15: Richest | H15: Poorest | I15: Poor | J15: Middle | K15: Rich | L15: Richest | M15: Poorest | N15: Poor | O15: Middle | P15: Rich | Q15: Richest | R15: Atlántico | S15: Central | T15: Pácifico | BA15: Water data, raw numbers (weighted) | BC15: Poorest | BD15: Poor | BE15: Middle | BF15: Rich | BG15: Richest | BH15: Poorest | BI15: Poor | BJ15: Middle | BK15: Rich | BL15: Richest | BM15: Poorest | BN15: Poor | BO15: Middle | BP15: Rich | BQ15: Richest | BR15: Atlántico | BS15: Central | BT15: Pácifico
A16: Water | B16: Improved | C16: =C58+C59+C60+C61+C67+C68+C69+(C62+C63+C65)*0.5 -> 51.31291084 | D16: 77.47797892 | E16: 89.45684333 | F16: 95.54885312 | G16: 98.08764406 | H16: 93.61831871 | I16: 95.59082785 | J16: 97.3179197 | K16: 98.50633193 | L16: 98.93649121 | M16: 44.07135976 | N16: 52.48724863 | O16: 65.47729514 | P16: 74.12791511 | Q16: 80.32620155 | R16: 56.78346613 | S16: 73.8892614 | T16: 93.47297951 | BA16: Water | BB16: Improved | BC16: N/A | BD16: N/A | BE16: N/A | BF16: N/A | BG16: N/A | BH16: N/A | BI16: N/A | BJ16: N/A | BK16: N/A | BL16: N/A | BM16: N/A | BN16: N/A | BO16: N/A | BP16: N/A | BQ16: N/A | BR16: N/A | BS16: N/A | BT16: N/A
B17: Not Improved | C17: =100-C16 -> 48.68708916 | D17: =100-D16 -> 22.52202108 | E17: 10.54315667 | F17: 4.451146882 | G17: 1.912355939 | H17: 6.381681291 | I17: 4.409172145 | J17: 2.682080297 | K17: 1.493668072 | L17: 1.063508788 | M17: 55.92864024 | N17: 47.51275137 | O17: 34.52270486 | P17: 25.87208489 | Q17: 19.67379845 | R17: 43.21653387 | S17: 26.1107386 | T17: 6.527020485 | BB17: Not Improved | BC17: N/A | BD17: N/A | BE17: N/A | BF17: N/A | BG17: N/A | BH17: N/A | BI17: N/A | BJ17: N/A | BK17: N/A | BL17: N/A | BM17: N/A | BN17: N/A | BO17: N/A | BP17: N/A | BQ17: N/A | BR17: N/A | BS17: N/A | BT17: N/A
A18: Water ladder | B18: Basic | C18: =C16 -> 51.31291084 | D18: =D16 -> 77.47797892 | E18: 89.45684333 | F18: 95.54885312 | G18: 98.08764406 | H18: 93.61831871 | I18: 95.59082785 | J18: 97.3179197 | K18: 98.50633193 | L18: 98.93649121 | M18: 44.07135976 | N18: 52.48724863 | O18: 65.47729514 | P18: 74.12791511 | Q18: 80.32620155 | R18: 56.78346613 | S18: 73.8892614 | T18: 93.47297951 | BA18: Water ladder | BB18: Basic | BC18: N/A | BD18: N/A | BE18: N/A | BF18: N/A | BG18: N/A | BH18: N/A | BI18: N/A | BJ18: N/A | BK18: N/A | BL18: N/A | BM18: N/A | BN18: N/A | BO18: N/A | BP18: N/A | BQ18: N/A | BR18: N/A | BS18: N/A | BT18: N/A
B19: Limited | C19: 0 | D19: 0 | E19: 0 | F19: 0 | G19: 0 | H19: 0 | I19: 0 | J19: 0 | K19: 0 | L19: 0 | M19: 0 | N19: 0 | O19: 0 | P19: 0 | Q19: 0 | R19: 0 | S19: 0 | T19: 0 | BB19: Limited | BC19: N/A | BD19: N/A | BE19: N/A | BF19: N/A | BG19: N/A | BH19: N/A | BI19: N/A | BJ19: N/A | BK19: N/A | BL19: N/A | BM19: N/A | BN19: N/A | BO19: N/A | BP19: N/A | BQ19: N/A | BR19: N/A | BS19: N/A | BT19: N/A
B20: Unimproved | C20: =100-(C18+C19+C21) -> 32.16793443 | D20: =100-(D18+D19+D21) -> 17.42378129 | E20: 9.057417782 | F20: 4.05654633 | G20: 1.760684103 | H20: 5.010404185 | I20: 4.277066236 | J20: 2.506026276 | K20: 1.388594122 | L20: 1.063508788 | M20: 35.24184484 | N20: 32.43971763 | O20: 26.61020354 | P20: 19.94903709 | Q20: 16.68270092 | R20: 31.85217329 | S20: 17.12540944 | T20: 5.873981593 | BB20: Unimproved | BC20: N/A | BD20: N/A | BE20: N/A | BF20: N/A | BG20: N/A | BH20: N/A | BI20: N/A | BJ20: N/A | BK20: N/A | BL20: N/A | BM20: N/A | BN20: N/A | BO20: N/A | BP20: N/A | BQ20: N/A | BR20: N/A | BS20: N/A | BT20: N/A
B21: Surface water | C21: =C64+C66 -> 16.51915474 | D21: 5.098239787 | E21: 1.485738888 | F21: 0.3946005517 | G21: 0.1516718359 | H21: 1.371277106 | I21: 0.1321059092 | J21: 0.1760540209 | K21: 0.1050739499 | L21: 0 | M21: 20.6867954 | N21: 15.07303374 | O21: 7.912501324 | P21: 5.923047802 | Q21: 2.991097528 | R21: 11.36436058 | S21: 8.985329153 | T21: 0.6530388923 | BB21: Surface water | BC21: N/A | BD21: N/A | BE21: N/A | BF21: N/A | BG21: N/A | BH21: N/A | BI21: N/A | BJ21: N/A | BK21: N/A | BL21: N/A | BM21: N/A | BN21: N/A | BO21: N/A | BP21: N/A | BQ21: N/A | BR21: N/A | BS21: N/A | BT21: N/A
A22: Improved water point at more than 30 minutes | B22: Yes | C22: 0 | D22: 0 | E22: 0 | F22: 0 | G22: 0 | H22: 0 | I22: 0 | J22: 0 | K22: 0 | L22: 0 | M22: 0 | N22: 0 | O22: 0 | P22: 0 | Q22: 0 | R22: 0 | S22: 0 | T22: 0 | BA22: Improved water point at more than 30 minutes | BB22: Yes | BC22: N/A | BD22: N/A | BE22: N/A | BF22: N/A | BG22: N/A | BH22: N/A | BI22: N/A | BJ22: N/A | BK22: N/A | BL22: N/A | BM22: N/A | BN22: N/A | BO22: N/A | BP22: N/A | BQ22: N/A | BR22: N/A | BS22: N/A | BT22: N/A
B23: No | C23: 100 | D23: 100 | E23: 100 | F23: 100 | G23: 100 | H23: 100 | I23: 100 | J23: 100 | K23: 100 | L23: 100 | M23: 100 | N23: 100 | O23: 100 | P23: 100 | Q23: 100 | R23: 100 | S23: 100 | T23: 100 | BB23: No | BC23: N/A | BD23: N/A | BE23: N/A | BF23: N/A | BG23: N/A | BH23: N/A | BI23: N/A | BJ23: N/A | BK23: N/A | BL23: N/A | BM23: N/A | BN23: N/A | BO23: N/A | BP23: N/A | BQ23: N/A | BR23: N/A | BS23: N/A | BT23: N/A
A24: Manually calculated ratios | B24: Improved wells
B25: Improved springs
B26: Other
C27: NATIONAL wealth index quintile | H27: URBAN wealth index quintile | M27: RURAL wealth index quintile | R27: SUB-REGIONS: | BA27: Raw numbers of respondents: | BB27: Use of drinking water sources | BC27: NATIONAL wealth index quintile | BH27: URBAN wealth index quintile | BM27: RURAL wealth index quintile | BR27: SUB-REGIONS:
A28: Percentage based on weighted population | C28: Poorest | D28: Poor | E28: Middle | F28: Rich | G28: Richest | H28: Poorest | I28: Poor | J28: Middle | K28: Rich | L28: Richest | M28: Poorest | N28: Poor | O28: Middle | P28: Rich | Q28: Richest | R28: Atlántico | S28: Central | T28: Pácifico | BA28: Water data, raw numbers (weighted) | BC28: Poorest | BD28: Poor | BE28: Middle | BF28: Rich | BG28: Richest | BH28: Poorest | BI28: Poor | BJ28: Middle | BK28: Rich | BL28: Richest | BM28: Poorest | BN28: Poor | BO28: Middle | BP28: Rich | BQ28: Richest | BR28: Atlántico | BS28: Central | BT28: Pácifico
A29: Piped water | B29: Yes | C29: 17.2608047 | D29: 56.84970551 | E29: 77.74873983 | F29: 89.88113903 | G29: 96.11040395 | H29: 83.12932381 | I29: 89.20195124 | J29: 92.91277179 | K29: 96.68364949 | L29: 97.71129332 | M29: 8.577585952 | N29: 17.68121069 | O29: 36.73415115 | P29: 52.19052267 | Q29: 61.50121617 | R29: 21.38237547 | S29: 55.35343997 | T29: 85.78403912 | BA29: Piped water | BB29: Yes | BC29: N/A | BD29: N/A | BE29: N/A | BF29: N/A | BG29: N/A | BH29: N/A | BI29: N/A | BJ29: N/A | BK29: N/A | BL29: N/A | BM29: N/A | BN29: N/A | BO29: N/A | BP29: N/A | BQ29: N/A | BR29: N/A | BS29: N/A | BT29: N/A
B30: No | C30: 82.7391953 | D30: 43.15029449 | E30: 22.25126017 | F30: 10.11886097 | G30: 3.889596047 | H30: 16.87067619 | I30: 10.79804876 | J30: 7.087228212 | K30: 3.316350506 | L30: 2.288706684 | M30: 91.42241405 | N30: 82.31878931 | O30: 63.26584885 | P30: 47.80947733 | Q30: 38.49878383 | R30: 78.61762453 | S30: 44.64656003 | T30: 14.21596088 | BB30: No | BC30: N/A | BD30: N/A | BE30: N/A | BF30: N/A | BG30: N/A | BH30: N/A | BI30: N/A | BJ30: N/A | BK30: N/A | BL30: N/A | BM30: N/A | BN30: N/A | BO30: N/A | BP30: N/A | BQ30: N/A | BR30: N/A | BS30: N/A | BT30: N/A
A31: Piped water on premises | B31: Yes | C31: 11.44373381 | D31: 50.25442426 | E31: 75.21775285 | F31: 88.50261038 | G31: 95.64305852 | H31: 80.42676554 | I31: 87.17178809 | J31: 92.37031226 | K31: 96.15489911 | L31: 97.46356081 | M31: 5.14430588 | N31: 9.897789732 | O31: 27.759891 | P31: 45.53287399 | Q31: 57.35378575 | R31: 16.53306512 | S31: 49.71755485 | T31: 84.11477668 | BA31: Piped water on premises | BB31: Yes | BC31: N/A | BD31: N/A | BE31: N/A | BF31: N/A | BG31: N/A | BH31: N/A | BI31: N/A | BJ31: N/A | BK31: N/A | BL31: N/A | BM31: N/A | BN31: N/A | BO31: N/A | BP31: N/A | BQ31: N/A | BR31: N/A | BS31: N/A | BT31: N/A
B32: No | C32: 88.55626619 | D32: 49.74557574 | E32: 24.78224715 | F32: 11.49738962 | G32: 4.356941475 | H32: 19.57323446 | I32: 12.82821191 | J32: 7.629687739 | K32: 3.845100894 | L32: 2.536439185 | M32: 94.85569412 | N32: 90.10221027 | O32: 72.240109 | P32: 54.46712601 | Q32: 42.64621425 | R32: 83.46693488 | S32: 50.28244515 | T32: 15.88522332 | BB32: No | BC32: N/A | BD32: N/A | BE32: N/A | BF32: N/A | BG32: N/A | BH32: N/A | BI32: N/A | BJ32: N/A | BK32: N/A | BL32: N/A | BM32: N/A | BN32: N/A | BO32: N/A | BP32: N/A | BQ32: N/A | BR32: N/A | BS32: N/A | BT32: N/A
A33: Piped water into dwelling | B33: Yes | C33: N/A | D33: N/A | E33: N/A | F33: N/A | G33: N/A | H33: N/A | I33: N/A | J33: N/A | K33: N/A | L33: N/A | M33: N/A | N33: N/A | O33: N/A | P33: N/A | Q33: N/A | R33: N/A | S33: N/A | T33: N/A | BA33: Piped water into dwelling | BB33: Yes | BC33: N/A | BD33: N/A | BE33: N/A | BF33: N/A | BG33: N/A | BH33: N/A | BI33: N/A | BJ33: N/A | BK33: N/A | BL33: N/A | BM33: N/A | BN33: N/A | BO33: N/A | BP33: N/A | BQ33: N/A | BR33: N/A | BS33: N/A | BT33: N/A
B34: No | C34: N/A | D34: N/A | E34: N/A | F34: N/A | G34: N/A | H34: N/A | I34: N/A | J34: N/A | K34: N/A | L34: N/A | M34: N/A | N34: N/A | O34: N/A | P34: N/A | Q34: N/A | R34: N/A | S34: N/A | T34: N/A | BB34: No | BC34: N/A | BD34: N/A | BE34: N/A | BF34: N/A | BG34: N/A | BH34: N/A | BI34: N/A | BJ34: N/A | BK34: N/A | BL34: N/A | BM34: N/A | BN34: N/A | BO34: N/A | BP34: N/A | BQ34: N/A | BR34: N/A | BS34: N/A | BT34: N/A
A35: Water source on premises | B35: Yes | C35: 92.78589926 | D35: 94.55113244 | E35: 98.15137586 | F35: 99.12941534 | G35: 99.6820518 | H35: 98.15014513 | I35: 99.40327656 | J35: 99.442027 | K35: 99.70591801 | L35: 99.87266155 | M35: 92.21245794 | N35: 92.94045257 | O35: 92.01776607 | P35: 93.97869887 | Q35: 96.90901205 | R35: 95.52234765 | S35: 93.29148311 | T35: 99.26543609 | BA35: Water source on premises | BB35: Yes | BC35: N/A | BD35: N/A | BE35: N/A | BF35: N/A | BG35: N/A | BH35: N/A | BI35: N/A | BJ35: N/A | BK35: N/A | BL35: N/A | BM35: N/A | BN35: N/A | BO35: N/A | BP35: N/A | BQ35: N/A | BR35: N/A | BS35: N/A | BT35: N/A
B36: No | C36: 7.214100735 | D36: 5.448867555 | E36: 1.848624139 | F36: 0.8705846559 | G36: 0.3179481983 | H36: 1.84985487 | I36: 0.5967234394 | J36: 0.5579729972 | K36: 0.2940819905 | L36: 0.1273384486 | M36: 7.787542061 | N36: 7.059547427 | O36: 7.982233927 | P36: 6.021301129 | Q36: 3.09098795 | R36: 4.477652349 | S36: 6.708516888 | T36: 0.7345639117 | BB36: No | BC36: N/A | BD36: N/A | BE36: N/A | BF36: N/A | BG36: N/A | BH36: N/A | BI36: N/A | BJ36: N/A | BK36: N/A | BL36: N/A | BM36: N/A | BN36: N/A | BO36: N/A | BP36: N/A | BQ36: N/A | BR36: N/A | BS36: N/A | BT36: N/A
A37: Improved Water source on premises | B37: Yes | C37: N/A | D37: N/A | E37: N/A | F37: N/A | G37: N/A | H37: N/A | I37: N/A | J37: N/A | K37: N/A | L37: N/A | M37: N/A | N37: N/A | O37: N/A | P37: N/A | Q37: N/A | R37: N/A | S37: N/A | T37: N/A | BA37: Improved water source on premises | BB37: Yes | BC37: N/A | BD37: N/A | BE37: N/A | BF37: N/A | BG37: N/A | BH37: N/A | BI37: N/A | BJ37: N/A | BK37: N/A | BL37: N/A | BM37: N/A | BN37: N/A | BO37: N/A | BP37: N/A | BQ37: N/A | BR37: N/A | BS37: N/A | BT37: N/A
B38: No | C38: N/A | D38: N/A | E38: N/A | F38: N/A | G38: N/A | H38: N/A | I38: N/A | J38: N/A | K38: N/A | L38: N/A | M38: N/A | N38: N/A | O38: N/A | P38: N/A | Q38: N/A | R38: N/A | S38: N/A | T38: N/A | BB38: No | BC38: N/A | BD38: N/A | BE38: N/A | BF38: N/A | BG38: N/A | BH38: N/A | BI38: N/A | BJ38: N/A | BK38: N/A | BL38: N/A | BM38: N/A | BN38: N/A | BO38: N/A | BP38: N/A | BQ38: N/A | BR38: N/A | BS38: N/A | BT38: N/A
A39: Piped water on premises available when needed | B39: Yes | C39: N/A | D39: N/A | E39: N/A | F39: N/A | G39: N/A | H39: N/A | I39: N/A | J39: N/A | K39: N/A | L39: N/A | M39: N/A | N39: N/A | O39: N/A | P39: N/A | Q39: N/A | R39: N/A | S39: N/A | T39: N/A | BA39: Piped water on premises available when needed | BB39: Yes | BC39: N/A | BD39: N/A | BE39: N/A | BF39: N/A | BG39: N/A | BH39: N/A | BI39: N/A | BJ39: N/A | BK39: N/A | BL39: N/A | BM39: N/A | BN39: N/A | BO39: N/A | BP39: N/A | BQ39: N/A | BR39: N/A | BS39: N/A | BT39: N/A
B40: No | C40: N/A | D40: N/A | E40: N/A | F40: N/A | G40: N/A | H40: N/A | I40: N/A | J40: N/A | K40: N/A | L40: N/A | M40: N/A | N40: N/A | O40: N/A | P40: N/A | Q40: N/A | R40: N/A | S40: N/A | T40: N/A | BB40: No | BC40: N/A | BD40: N/A | BE40: N/A | BF40: N/A | BG40: N/A | BH40: N/A | BI40: N/A | BJ40: N/A | BK40: N/A | BL40: N/A | BM40: N/A | BN40: N/A | BO40: N/A | BP40: N/A | BQ40: N/A | BR40: N/A | BS40: N/A | BT40: N/A
A41: Water point at more than 30 minutes | B41: Yes | C41: 0 | D41: 0 | E41: 0 | F41: 0 | G41: 0 | H41: 0 | I41: 0 | J41: 0 | K41: 0 | L41: 0 | M41: 0 | N41: 0 | O41: 0 | P41: 0 | Q41: 0 | R41: 0 | S41: 0 | T41: 0 | BA41: Water point at more than 30 minutes | BB41: Yes | BC41: N/A | BD41: N/A | BE41: N/A | BF41: N/A | BG41: N/A | BH41: N/A | BI41: N/A | BJ41: N/A | BK41: N/A | BL41: N/A | BM41: N/A | BN41: N/A | BO41: N/A | BP41: N/A | BQ41: N/A | BR41: N/A | BS41: N/A | BT41: N/A
B42: No | C42: 100 | D42: 100 | E42: 100 | F42: 100 | G42: 100 | H42: 100 | I42: 100 | J42: 100 | K42: 100 | L42: 100 | M42: 100 | N42: 100 | O42: 100 | P42: 100 | Q42: 100 | R42: 100 | S42: 100 | T42: 100 | BB42: No | BC42: N/A | BD42: N/A | BE42: N/A | BF42: N/A | BG42: N/A | BH42: N/A | BI42: N/A | BJ42: N/A | BK42: N/A | BL42: N/A | BM42: N/A | BN42: N/A | BO42: N/A | BP42: N/A | BQ42: N/A | BR42: N/A | BS42: N/A | BT42: N/A
A43: Water source available when needed | B43: Yes | C43: N/A | D43: N/A | E43: N/A | F43: N/A | G43: N/A | H43: N/A | I43: N/A | J43: N/A | K43: N/A | L43: N/A | M43: N/A | N43: N/A | O43: N/A | P43: N/A | Q43: N/A | R43: N/A | S43: N/A | T43: N/A | BA43: Water source available when needed | BB43: Yes | BC43: N/A | BD43: N/A | BE43: N/A | BF43: N/A | BG43: N/A | BH43: N/A | BI43: N/A | BJ43: N/A | BK43: N/A | BL43: N/A | BM43: N/A | BN43: N/A | BO43: N/A | BP43: N/A | BQ43: N/A | BR43: N/A | BS43: N/A | BT43: N/A
B44: No | C44: N/A | D44: N/A | E44: N/A | F44: N/A | G44: N/A | H44: N/A | I44: N/A | J44: N/A | K44: N/A | L44: N/A | M44: N/A | N44: N/A | O44: N/A | P44: N/A | Q44: N/A | R44: N/A | S44: N/A | T44: N/A | BB44: No | BC44: N/A | BD44: N/A | BE44: N/A | BF44: N/A | BG44: N/A | BH44: N/A | BI44: N/A | BJ44: N/A | BK44: N/A | BL44: N/A | BM44: N/A | BN44: N/A | BO44: N/A | BP44: N/A | BQ44: N/A | BR44: N/A | BS44: N/A | BT44: N/A
A45: Improved water source available when needed | B45: Yes | C45: N/A | D45: N/A | E45: N/A | F45: N/A | G45: N/A | H45: N/A | I45: N/A | J45: N/A | K45: N/A | L45: N/A | M45: N/A | N45: N/A | O45: N/A | P45: N/A | Q45: N/A | R45: N/A | S45: N/A | T45: N/A | BA45: Improved water source available when needed | BB45: Yes | BC45: N/A | BD45: N/A | BE45: N/A | BF45: N/A | BG45: N/A | BH45: N/A | BI45: N/A | BJ45: N/A | BK45: N/A | BL45: N/A | BM45: N/A | BN45: N/A | BO45: N/A | BP45: N/A | BQ45: N/A | BR45: N/A | BS45: N/A | BT45: N/A
B46: No | C46: N/A | D46: N/A | E46: N/A | F46: N/A | G46: N/A | H46: N/A | I46: N/A | J46: N/A | K46: N/A | L46: N/A | M46: N/A | N46: N/A | O46: N/A | P46: N/A | Q46: N/A | R46: N/A | S46: N/A | T46: N/A | BB46: No | BC46: N/A | BD46: N/A | BE46: N/A | BF46: N/A | BG46: N/A | BH46: N/A | BI46: N/A | BJ46: N/A | BK46: N/A | BL46: N/A | BM46: N/A | BN46: N/A | BO46: N/A | BP46: N/A | BQ46: N/A | BR46: N/A | BS46: N/A | BT46: N/A
A47: Microbiological quality at point of collection | B47: Not contaminated (No E. coli in 100 mL) | C47: N/A | D47: N/A | E47: N/A | F47: N/A | G47: N/A | H47: N/A | I47: N/A | J47: N/A | K47: N/A | L47: N/A | M47: N/A | N47: N/A | O47: N/A | P47: N/A | Q47: N/A | R47: N/A | S47: N/A | T47: N/A | BA47: Microbiological quality at point of collection | BB47: Not contaminated (No E. coli in 100 mL) | BC47: N/A | BD47: N/A | BE47: N/A | BF47: N/A | BG47: N/A | BH47: N/A | BI47: N/A | BJ47: N/A | BK47: N/A | BL47: N/A | BM47: N/A | BN47: N/A | BO47: N/A | BP47: N/A | BQ47: N/A | BR47: N/A | BS47: N/A | BT47: N/A
B48: Contaminated (E. coli detected in 100 mL) | C48: N/A | D48: N/A | E48: N/A | F48: N/A | G48: N/A | H48: N/A | I48: N/A | J48: N/A | K48: N/A | L48: N/A | M48: N/A | N48: N/A | O48: N/A | P48: N/A | Q48: N/A | R48: N/A | S48: N/A | T48: N/A | BB48: Contaminated (E. coli detected in 100 mL) | BC48: N/A | BD48: N/A | BE48: N/A | BF48: N/A | BG48: N/A | BH48: N/A | BI48: N/A | BJ48: N/A | BK48: N/A | BL48: N/A | BM48: N/A | BN48: N/A | BO48: N/A | BP48: N/A | BQ48: N/A | BR48: N/A | BS48: N/A | BT48: N/A
B49: Highly contaminated (>100 CFU/100 mL) | C49: N/A | D49: N/A | E49: N/A | F49: N/A | G49: N/A | H49: N/A | I49: N/A | J49: N/A | K49: N/A | L49: N/A | M49: N/A | N49: N/A | O49: N/A | P49: N/A | Q49: N/A | R49: N/A | S49: N/A | T49: N/A | BB49: Highly contaminated (>100 CFU/100 mL) | BC49: N/A | BD49: N/A | BE49: N/A | BF49: N/A | BG49: N/A | BH49: N/A | BI49: N/A | BJ49: N/A | BK49: N/A | BL49: N/A | BM49: N/A | BN49: N/A | BO49: N/A | BP49: N/A | BQ49: N/A | BR49: N/A | BS49: N/A | BT49: N/A
A50: Microbiological quality of improved water sources at point of collection | B50: Not contaminated (No E. coli in 100 mL) | C50: N/A | D50: N/A | E50: N/A | F50: N/A | G50: N/A | H50: N/A | I50: N/A | J50: N/A | K50: N/A | L50: N/A | M50: N/A | N50: N/A | O50: N/A | P50: N/A | Q50: N/A | R50: N/A | S50: N/A | T50: N/A | BA50: Microbiological quality of improved water sources at point of collection | BB50: Not contaminated (No E. coli in 100 mL) | BC50: N/A | BD50: N/A | BE50: N/A | BF50: N/A | BG50: N/A | BH50: N/A | BI50: N/A | BJ50: N/A | BK50: N/A | BL50: N/A | BM50: N/A | BN50: N/A | BO50: N/A | BP50: N/A | BQ50: N/A | BR50: N/A | BS50: N/A | BT50: N/A
B51: Contaminated (E. coli detected in 100 mL) | C51: N/A | D51: N/A | E51: N/A | F51: N/A | G51: N/A | H51: N/A | I51: N/A | J51: N/A | K51: N/A | L51: N/A | M51: N/A | N51: N/A | O51: N/A | P51: N/A | Q51: N/A | R51: N/A | S51: N/A | T51: N/A | BB51: Contaminated (E. coli detected in 100 mL) | BC51: N/A | BD51: N/A | BE51: N/A | BF51: N/A | BG51: N/A | BH51: N/A | BI51: N/A | BJ51: N/A | BK51: N/A | BL51: N/A | BM51: N/A | BN51: N/A | BO51: N/A | BP51: N/A | BQ51: N/A | BR51: N/A | BS51: N/A | BT51: N/A
B52: Highly contaminated (>100 CFU/100 mL) | C52: N/A | D52: N/A | E52: N/A | F52: N/A | G52: N/A | H52: N/A | I52: N/A | J52: N/A | K52: N/A | L52: N/A | M52: N/A | N52: N/A | O52: N/A | P52: N/A | Q52: N/A | R52: N/A | S52: N/A | T52: N/A | BB52: Highly contaminated (>100 CFU/100 mL) | BC52: N/A | BD52: N/A | BE52: N/A | BF52: N/A | BG52: N/A | BH52: N/A | BI52: N/A | BJ52: N/A | BK52: N/A | BL52: N/A | BM52: N/A | BN52: N/A | BO52: N/A | BP52: N/A | BQ52: N/A | BR52: N/A | BS52: N/A | BT52: N/A
A53: Microbiological quality of piped on premises at point of collection | B53: Not contaminated (No E. coli in 100 mL) | C53: N/A | D53: N/A | E53: N/A | F53: N/A | G53: N/A | H53: N/A | I53: N/A | J53: N/A | K53: N/A | L53: N/A | M53: N/A | N53: N/A | O53: N/A | P53: N/A | Q53: N/A | R53: N/A | S53: N/A | T53: N/A | BA53: Microbiological quality of piped on premises at point of collection | BB53: Not contaminated (No E. coli in 100 mL) | BC53: N/A | BD53: N/A | BE53: N/A | BF53: N/A | BG53: N/A | BH53: N/A | BI53: N/A | BJ53: N/A | BK53: N/A | BL53: N/A | BM53: N/A | BN53: N/A | BO53: N/A | BP53: N/A | BQ53: N/A | BR53: N/A | BS53: N/A | BT53: N/A
B54: Contaminated (E. coli detected in 100 mL) | C54: N/A | D54: N/A | E54: N/A | F54: N/A | G54: N/A | H54: N/A | I54: N/A | J54: N/A | K54: N/A | L54: N/A | M54: N/A | N54: N/A | O54: N/A | P54: N/A | Q54: N/A | R54: N/A | S54: N/A | T54: N/A | BB54: Contaminated (E. coli detected in 100 mL) | BC54: N/A | BD54: N/A | BE54: N/A | BF54: N/A | BG54: N/A | BH54: N/A | BI54: N/A | BJ54: N/A | BK54: N/A | BL54: N/A | BM54: N/A | BN54: N/A | BO54: N/A | BP54: N/A | BQ54: N/A | BR54: N/A | BS54: N/A | BT54: N/A
B55: Highly contaminated (>100 CFU/100 mL) | C55: N/A | D55: N/A | E55: N/A | F55: N/A | G55: N/A | H55: N/A | I55: N/A | J55: N/A | K55: N/A | L55: N/A | M55: N/A | N55: N/A | O55: N/A | P55: N/A | Q55: N/A | R55: N/A | S55: N/A | T55: N/A | BB55: Highly contaminated (>100 CFU/100 mL) | BC55: N/A | BD55: N/A | BE55: N/A | BF55: N/A | BG55: N/A | BH55: N/A | BI55: N/A | BJ55: N/A | BK55: N/A | BL55: N/A | BM55: N/A | BN55: N/A | BO55: N/A | BP55: N/A | BQ55: N/A | BR55: N/A | BS55: N/A | BT55: N/A
C56: NATIONAL wealth index quintile | H56: URBAN wealth index quintile | M56: RURAL wealth index quintile | R56: SUB-REGIONS: | BA56: Raw numbers of respondents: | BB56: Use of drinking water sources | BC56: NATIONAL wealth index quintile | BH56: URBAN wealth index quintile | BM56: RURAL wealth index quintile | BR56: SUB-REGIONS:
A57: Percentage based on weighted population | C57: Poorest | D57: Poor | E57: Middle | F57: Rich | G57: Richest | H57: Poorest | I57: Poor | J57: Middle | K57: Rich | L57: Richest | M57: Poorest | N57: Poor | O57: Middle | P57: Rich | Q57: Richest | R57: Atlántico | S57: Central | T57: Pácifico | BA57: Water data, raw numbers (weighted) | BC57: Poorest | BD57: Poor | BE57: Middle | BF57: Rich | BG57: Richest | BH57: Poorest | BI57: Poor | BJ57: Middle | BK57: Rich | BL57: Richest | BM57: Poorest | BN57: Poor | BO57: Middle | BP57: Rich | BQ57: Richest | BR57: Atlántico | BS57: Central | BT57: Pácifico
A58: Esta vivienda se abastece de agua por | B58: Dentro de la vivienda | C58: 0.870922916 | D58: 7.365614297 | E58: 19.34557667 | F58: 41.3460746 | G58: 70.65610985 | H58: 16.39600932 | I58: 28.04383186 | J58: 44.0722453 | K58: 60.35923278 | L58: 78.33917324 | M58: 0.5599553185 | N58: 0.676315339 | O58: 1.646156731 | P58: 6.113879852 | Q58: 14.62542739 | R58: 6.981644311 | S58: 18.73826314 | T58: 38.29859679
B59: Fuera de la vivi. dentro del terreno | C59: 10.57281089 | D59: 42.88880997 | E59: 55.87217617 | F59: 47.15653579 | G59: 24.98694868 | H59: 64.03075622 | I59: 59.12795623 | J59: 48.29806696 | K59: 35.79566633 | L59: 19.12438757 | M59: 4.584350562 | N59: 9.221474393 | O59: 26.11373427 | P59: 39.41899414 | Q59: 42.72835836 | R59: 9.551420809 | S59: 30.97929171 | T59: 45.81617989
B60: Puesto público | C60: 4.047378804 | D60: 4.478031874 | E60: 1.463955631 | F60: 0.8462269339 | G60: 0.1192212745 | H60: 2.179260694 | I60: 0.7109506397 | J60: 0.3233035297 | K60: 0.2327209135 | L60: 0.1497144428 | M60: 2.226977547 | N60: 5.17474554 | O60: 6.156414013 | P60: 4.744833457 | Q60: 2.388272013 | R60: 2.026692098 | S60: 4.506366249 | T60: 0.8777430099
B61: Puesto privado | C61: 1.769692088 | D61: 2.117249372 | E61: 1.06703135 | F61: 0.5323017156 | G61: 0.3481241533 | H61: 0.5232975762 | I61: 1.319212516 | J61: 0.2191559973 | K61: 0.2960294749 | L61: 0.09801805863 | M61: 1.206302525 | N61: 2.608675423 | O61: 2.817846134 | P61: 1.912815228 | Q61: 1.759158411 | R61: 2.822618251 | S61: 1.129518872 | T61: 0.7915194285
B62: Pozo público | C62: 10.50582705 | D62: 9.688140763 | E62: 5.605737032 | F62: 1.5642859 | G62: 0.3549184104 | H62: 2.398935415 | I62: 2.655432232 | J62: 0.3547359404 | K62: 0.3569918613 | L62: 0 | M62: 8.210606052 | N62: 13.16060831 | O62: 14.13013892 | P62: 11.35057957 | Q62: 9.913666086 | R62: 9.865191329 | S62: 7.768146187 | T62: 3.207824486
B63: Pozo privado | C63: 16.14885799 | D63: 13.23376449 | E63: 9.031562723 | F63: 5.83070973 | G63: 2.873375227 | H63: 6.910151775 | I63: 5.151383111 | J63: 4.571720494 | K63: 2.370475247 | L63: 2.089700663 | M63: 13.66032559 | N63: 18.56758564 | O63: 17.38945867 | P63: 15.50313019 | Q63: 16.4333091 | R63: 25.15462787 | S63: 6.451910211 | T63: 7.386568011
B64: Río, quebrada o arroyo | C64: 16.12563123 | D64: 4.781884661 | E64: 1.451769036 | F64: 0.3946005517 | G64: 0.1516718359 | H64: 1.348377804 | I64: 0.1321059092 | J64: 0.1760540209 | K64: 0.1050739499 | L64: 0 | M64: 20.27436632 | N64: 14.79394976 | O64: 7.363820095 | P64: 5.512779983 | Q64: 2.943749925 | R64: 11.19193521 | S64: 8.900223676 | T64: 0.4727337006
B65: Manantial o ojo de agua | C65: 34.36581411 | D65: 9.573682482 | E65: 2.459494957 | F65: 0.5101779756 | G65: 0.2183062213 | H65: 0.4700867899 | I65: 0.5320909514 | J65: 0.08559611684 | K65: 0.04972113561 | L65: 0.03731691297 | M65: 43.9817362 | N65: 31.07077293 | O65: 17.17591516 | P65: 10.47924827 | Q65: 5.235714558 | R65: 25.78073716 | S65: 17.06782983 | T65: 1.038977571
B66: Lago, laguna | C66: 0.3935235059 | D66: 0.3163551266 | E66: 0.03396985133 | F66: 0 | G66: 0 | H66: 0.0228993017 | I66: 0 | J66: 0 | K66: 0 | L66: 0 | M66: 0.4124290822 | N66: 0.2790839761 | O66: 0.5486812288 | P66: 0.4102678199 | Q66: 0.04734760359 | R66: 0.1724253656 | S66: 0.08510547656 | T66: 0.1803051917
B67: De otra vivienda/vecino/empresa | C67: 3.369211093 | D67: 4.09761541 | E67: 2.832980633 | F67: 1.482594235 | G67: 0.1814856803 | H67: 4.650534649 | I67: 2.015568887 | J67: 1.544622934 | K67: 0.2743663704 | L67: 0.1616891081 | M67: 2.473847013 | N67: 3.244671868 | O67: 4.36538786 | P67: 3.236190954 | Q67: 3.033640503 | R67: 4.677704701 | S67: 2.474786439 | T67: 1.796799095
B68: Agua de lluvia | C68: 0.04538592119 | D68: 0.03265253339 | E68: 0 | F68: 0.1339512905 | G68: 0.01058017674 | H68: 0.05733616323 | I68: 0 | J68: 0.2350900813 | K68: 0.01856675317 | L68: 0 | M68: 0.05607296238 | N68: 0.04938790631 | O68: 0 | P68: 0 | Q68: 0 | R68: 0.2052501146 | S68: 0.05183808126 | T68: 0.001683210756
B69: Camión, carreta o pipa | C69: 0.1272595445 | D69: 0.2502116047 | E69: 0.3267255154 | F69: 0.09858175618 | G69: 0.06187432207 | H69: 0.8915370958 | I69: 0.2038545765 | J69: 0.1194086242 | K69: 0.1411551888 | L69: 0 | M69: 0.03751990573 | N69: 0.1124947263 | O69: 0.02999975678 | P69: 0.03472246475 | Q69: 0 | R69: 0.1178576636 | S69: 0.3652538008 | T69: 0.07377305309
B70: Otro | C70: 1.657684849 | D70: 1.129297154 | E70: 0.5090204256 | F70: 0.1039595279 | G70: 0.03738417399 | H70: 0.1208171954 | I70: 0.1076130887 | J70: 0 | K70: 0 | L70: 0 | M70: 2.315510919 | N70: 1.040234193 | O70: 2.15401882 | P70: 1.282558071 | Q70: 0.8913560537 | R70: 1.451895106 | S70: 1.452313941 | T70: 0.05729655879
B71: No hay dato | C71: 0 | D71: 0.04669026786 | E71: 0 | F71: 0 | G71: 0 | H71: 0 | I71: 0 | J71: 0 | K71: 0 | L71: 0 | M71: 0 | N71: 0 | O71: 0.1084283435 | P71: 0 | Q71: 0 | R71: 0 | S71: 0.0291523869 | T71: 0
A108: =A1026 -> Nicaragua
A109: =A1034 -> 2011
A110: Use of sanitation facilities
A111: by wealth quintile and sub-national region
A112: Notes:
A113: WHO/UNICEF JMP customised wealth index excludes water,
A114: sanitation and hygiene assets.
A115: Survey used for analysis: | B115: =A1025 -> ENDESA11
A116: =B1030 -> Ratio of Improved latrines based on:
A117: =B1029 -> Ratio of Shared improved based on: | B117: DHS01
A120: Use of sanitation facilities | C120: NATIONAL wealth index quintile | H120: URBAN wealth index quintile | M120: RURAL wealth index quintile | R120: SUB-REGIONS: | BA120: Raw numbers of respondents: | BB120: Use of sanitation facilities | BC120: NATIONAL wealth index quintile | BH120: URBAN wealth index quintile | BM120: RURAL wealth index quintile | BR120: SUB-REGIONS:
A121: Weighted percentage (used in graphs) | C121: Poorest | D121: Poor | E121: Middle | F121: Rich | G121: Richest | H121: Poorest | I121: Poor | J121: Middle | K121: Rich | L121: Richest | M121: Poorest | N121: Poor | O121: Middle | P121: Rich | Q121: Richest | R121: Atlántico | S121: Central | T121: Pácifico | BA121: Sanitation data, raw numbers (weighted) | BC121: Poorest | BD121: Poor | BE121: Middle | BF121: Rich | BG121: Richest | BH121: Poorest | BI121: Poor | BJ121: Middle | BK121: Rich | BL121: Richest | BM121: Poorest | BN121: Poor | BO121: Middle | BP121: Rich | BQ121: Richest | BR121: Atlántico | BS121: Central | BT121: Pácifico
A122: Sanitation | B122: Improved | C122: =C154+C155+C153*0.35+C153*0.65*0.5 -> 45.61529793 | D122: =D154+D155+D153*0.35+D153*0.65*0.5 -> 61.69284325 | E122: 72.06435319 | F122: 83.05595789 | G122: 94.93898868 | H122: =H154+H155+H153*0.36+H153*0.64*0.5 -> 68.34979635 | I122: =I154+I155+I153*0.36+I153*0.64*0.5 -> 77.28970882 | J122: 83.87365677 | K122: 92.45186847 | L122: 97.46851231 | M122: =M154+M155+M153*0.33+M153*0.67*0.5 -> 35.31457252 | N122: =N154+N155+N153*0.33+N153*0.67*0.5 -> 51.57745938 | O122: 56.33987791 | P122: 60.91453909 | Q122: 68.67175864 | R122: 53.91207254 | S122: 63.53480859 | T122: 79.28371304 | BA122: Sanitation | BB122: Improved | BC122: N/A | BD122: N/A | BE122: N/A | BF122: N/A | BG122: N/A | BH122: N/A | BI122: N/A | BJ122: N/A | BK122: N/A | BL122: N/A | BM122: N/A | BN122: N/A | BO122: N/A | BP122: N/A | BQ122: N/A | BR122: N/A | BS122: N/A | BT122: N/A
B123: Not Improved | C123: =100-C122 -> 54.38470207 | D123: =100-D122 -> 38.30715675 | E123: 27.93564681 | F123: 16.94404211 | G123: 5.061011324 | H123: 31.65020365 | I123: 22.71029118 | J123: 16.12634323 | K123: 7.548131531 | L123: 2.531487687 | M123: 64.68542748 | N123: 48.42254062 | O123: 43.66012209 | P123: 39.08546091 | Q123: 31.32824136 | R123: 46.08792746 | S123: 36.46519141 | T123: 20.71628696 | BB123: Not Improved | BC123: N/A | BD123: N/A | BE123: N/A | BF123: N/A | BG123: N/A | BH123: N/A | BI123: N/A | BJ123: N/A | BK123: N/A | BL123: N/A | BM123: N/A | BN123: N/A | BO123: N/A | BP123: N/A | BQ123: N/A | BR123: N/A | BS123: N/A | BT123: N/A
A124: Sanitation ladder | B124: Basic | C124: =C122*'DHS01'!C129/100 -> 42.76902815 | D124: =D122*'DHS01'!D129/100 -> 56.49576812 | E124: =E122*'DHS01'!E129/100 -> 64.58774487 | F124: =F122*'DHS01'!F129/100 -> 76.03174747 | G124: =G122*'DHS01'!G129/100 -> 91.08318712 | H124: =H122*'DHS01'!H129/100 -> 61.45089461 | I124: =I122*'DHS01'!I129/100 -> 69.41074493 | J124: =J122*'DHS01'!J129/100 -> 76.91515059 | K124: =K122*'DHS01'!K129/100 -> 86.90170834 | L124: =L122*'DHS01'!L129/100 -> 94.97950135 | M124: =M122*'DHS01'!M129/100 -> 33.38800963 | N124: =N122*'DHS01'!N129/100 -> 48.76592955 | O124: =O122*'DHS01'!O129/100 -> 53.32634354 | P124: =P122*'DHS01'!P129/100 -> 54.92516846 | Q124: =Q122*'DHS01'!Q129/100 -> 61.12424375 | R124: N/A | S124: N/A | T124: N/A | BA124: Sanitation ladder | BB124: Basic | BC124: N/A | BD124: N/A | BE124: N/A | BF124: N/A | BG124: N/A | BH124: N/A | BI124: N/A | BJ124: N/A | BK124: N/A | BL124: N/A | BM124: N/A | BN124: N/A | BO124: N/A | BP124: N/A | BQ124: N/A | BR124: N/A | BS124: N/A | BT124: N/A
B125: Limited | C125: =C122*'DHS01'!C128/100 -> 2.846269785 | D125: =D122*'DHS01'!D128/100 -> 5.197075126 | E125: =E122*'DHS01'!E128/100 -> 7.476608319 | F125: =F122*'DHS01'!F128/100 -> 7.024210419 | G125: =G122*'DHS01'!G128/100 -> 3.855801556 | H125: =H122*'DHS01'!H128/100 -> 6.898901748 | I125: =I122*'DHS01'!I128/100 -> 7.878963887 | J125: =J122*'DHS01'!J128/100 -> 6.958506181 | K125: =K122*'DHS01'!K128/100 -> 5.550160128 | L125: =L122*'DHS01'!L128/100 -> 2.489010967 | M125: =M122*'DHS01'!M128/100 -> 1.926562886 | N125: =N122*'DHS01'!N128/100 -> 2.811529822 | O125: =O122*'DHS01'!O128/100 -> 3.013534373 | P125: =P122*'DHS01'!P128/100 -> 5.989370629 | Q125: =Q122*'DHS01'!Q128/100 -> 7.547514883 | R125: N/A | S125: N/A | T125: N/A | BB125: Limited | BC125: N/A | BD125: N/A | BE125: N/A | BF125: N/A | BG125: N/A | BH125: N/A | BI125: N/A | BJ125: N/A | BK125: N/A | BL125: N/A | BM125: N/A | BN125: N/A | BO125: N/A | BP125: N/A | BQ125: N/A | BR125: N/A | BS125: N/A | BT125: N/A
B126: Unimproved | C126: =100-(C124+C125+C127) -> 21.64039509 | D126: =100-(D124+D125+D127) -> 27.47655865 | E126: 23.88093714 | F126: 15.27770295 | G126: 4.69857276 | H126: 24.59805042 | I126: 19.48378575 | J126: 14.86441954 | K126: 6.912321004 | L126: 2.460852656 | M126: 17.63440251 | N126: 25.79877499 | O126: 27.99078606 | P126: 29.80827332 | Q126: 26.77167539 | R126: N/A | S126: N/A | T126: N/A | BB126: Unimproved | BC126: N/A | BD126: N/A | BE126: N/A | BF126: N/A | BG126: N/A | BH126: N/A | BI126: N/A | BJ126: N/A | BK126: N/A | BL126: N/A | BM126: N/A | BN126: N/A | BO126: N/A | BP126: N/A | BQ126: N/A | BR126: N/A | BS126: N/A | BT126: N/A
B127: Open defecation | C127: =C157 -> 32.74430697 | D127: =D157 -> 10.8305981 | E127: 4.054709674 | F127: 1.666339163 | G127: 0.3624385642 | H127: 7.052153228 | I127: 3.226505437 | J127: 1.261923688 | K127: 0.6358105272 | L127: 0.07063503152 | M127: 47.05102497 | N127: 22.62376564 | O127: 15.66933603 | P127: 9.277187597 | Q127: 4.556565969 | R127: N/A | S127: N/A | T127: N/A | BB127: Open defecation | BC127: N/A | BD127: N/A | BE127: N/A | BF127: N/A | BG127: N/A | BH127: N/A | BI127: N/A | BJ127: N/A | BK127: N/A | BL127: N/A | BM127: N/A | BN127: N/A | BO127: N/A | BP127: N/A | BQ127: N/A | BR127: N/A | BS127: N/A | BT127: N/A
A128: Shared among Improved Sanitation | B128: Yes | C128: N/A | D128: N/A | E128: N/A | F128: N/A | G128: N/A | H128: N/A | I128: N/A | J128: N/A | K128: N/A | L128: N/A | M128: N/A | N128: N/A | O128: N/A | P128: N/A | Q128: N/A | R128: N/A | S128: N/A | T128: N/A | BA128: Shared among improved sanitation facilities | BB128: Yes | BC128: N/A | BD128: N/A | BE128: N/A | BF128: N/A | BG128: N/A | BH128: N/A | BI128: N/A | BJ128: N/A | BK128: N/A | BL128: N/A | BM128: N/A | BN128: N/A | BO128: N/A | BP128: N/A | BQ128: N/A | BR128: N/A | BS128: N/A | BT128: N/A
B129: No | C129: N/A | D129: N/A | E129: N/A | F129: N/A | G129: N/A | H129: N/A | I129: N/A | J129: N/A | K129: N/A | L129: N/A | M129: N/A | N129: N/A | O129: N/A | P129: N/A | Q129: N/A | R129: N/A | S129: N/A | T129: N/A | BB129: No | BC129: N/A | BD129: N/A | BE129: N/A | BF129: N/A | BG129: N/A | BH129: N/A | BI129: N/A | BJ129: N/A | BK129: N/A | BL129: N/A | BM129: N/A | BN129: N/A | BO129: N/A | BP129: N/A | BQ129: N/A | BR129: N/A | BS129: N/A | BT129: N/A
A130: Manually calculated ratios | B130: Improved latrines
B131: Other
B132: Other
C133: NATIONAL wealth index quintile | H133: URBAN wealth index quintile | M133: RURAL wealth index quintile | R133: SUB-REGIONS: | BA133: Raw numbers of respondents: | BB133: Use of sanitation facilities | BC133: NATIONAL wealth index quintile | BH133: URBAN wealth index quintile | BM133: RURAL wealth index quintile | BR133: SUB-REGIONS:
A134: Percentage based on weighted population | C134: Poorest | D134: Poor | E134: Middle | F134: Rich | G134: Richest | H134: Poorest | I134: Poor | J134: Middle | K134: Rich | L134: Richest | M134: Poorest | N134: Poor | O134: Middle | P134: Rich | Q134: Richest | R134: Atlántico | S134: Central | T134: Pácifico | BA134: Sanitation data, raw numbers (weighted) | BC134: Poorest | BD134: Poor | BE134: Middle | BF134: Rich | BG134: Richest | BH134: Poorest | BI134: Poor | BJ134: Middle | BK134: Rich | BL134: Richest | BM134: Poorest | BN134: Poor | BO134: Middle | BP134: Rich | BQ134: Richest | BR134: Atlántico | BS134: Central | BT134: Pácifico
A135: Sanitation type | B135: Sewer connection | C135: =C154 -> 0.3237230415 | D135: =D154 -> 3.16281385 | E135: 16.07152877 | F135: 35.50003039 | G135: 58.95477638 | H135: 13.40193611 | I135: 27.16595863 | J135: 37.51273716 | K135: 54.71412503 | L135: 66.01976355 | M135: 0.01042366326 | N135: 0.01447810784 | O135: 0.02469463585 | P135: 0.1208739615 | Q135: 1.621298867 | R135: 0.9639232427 | S135: 12.78009818 | T135: 33.89475862 | BA135: Sanitation type | BB135: Sewer connection | BC135: N/A | BD135: N/A | BE135: N/A | BF135: N/A | BG135: N/A | BH135: N/A | BI135: N/A | BJ135: N/A | BK135: N/A | BL135: N/A | BM135: N/A | BN135: N/A | BO135: N/A | BP135: N/A | BQ135: N/A | BR135: N/A | BS135: N/A | BT135: N/A
B136: Septic tank connection | C136: =C155 -> 0.4565054086 | D136: 1.657942895 | E136: 6.487505559 | F136: 16.06009937 | G136: 26.56985732 | H136: 2.7570983 | I136: 8.720705469 | J136: 15.07619441 | K136: 23.51280608 | L136: 26.4260806 | M136: 0.3711722125 | N136: 0.3504876411 | O136: 1.26510483 | P136: 1.712745756 | Q136: 14.09857542 | R136: 6.890542912 | S136: 6.668204123 | T136: 13.14088039 | BB136: Septic tank connection | BC136: N/A | BD136: N/A | BE136: N/A | BF136: N/A | BG136: N/A | BH136: N/A | BI136: N/A | BJ136: N/A | BK136: N/A | BL136: N/A | BM136: N/A | BN136: N/A | BO136: N/A | BP136: N/A | BQ136: N/A | BR136: N/A | BS136: N/A | BT136: N/A
B137: Improved latrines | C137: N/A | D137: N/A | E137: N/A | F137: N/A | G137: N/A | H137: N/A | I137: N/A | J137: N/A | K137: N/A | L137: N/A | M137: N/A | N137: N/A | O137: N/A | P137: N/A | Q137: N/A | R137: N/A | S137: N/A | T137: N/A | BB137: Improved latrines | BC137: N/A | BD137: N/A | BE137: N/A | BF137: N/A | BG137: N/A | BH137: N/A | BI137: N/A | BJ137: N/A | BK137: N/A | BL137: N/A | BM137: N/A | BN137: N/A | BO137: N/A | BP137: N/A | BQ137: N/A | BR137: N/A | BS137: N/A | BT137: N/A
B138: Unimproved facilities | C138: N/A | D138: N/A | E138: N/A | F138: N/A | G138: N/A | H138: N/A | I138: N/A | J138: N/A | K138: N/A | L138: N/A | M138: N/A | N138: N/A | O138: N/A | P138: N/A | Q138: N/A | R138: N/A | S138: N/A | T138: N/A | BB138: Unimproved facilities | BC138: N/A | BD138: N/A | BE138: N/A | BF138: N/A | BG138: N/A | BH138: N/A | BI138: N/A | BJ138: N/A | BK138: N/A | BL138: N/A | BM138: N/A | BN138: N/A | BO138: N/A | BP138: N/A | BQ138: N/A | BR138: N/A | BS138: N/A | BT138: N/A
B139: Open defecation | C139: =C157 -> 32.74430697 | D139: =D157 -> 10.8305981 | E139: 4.054709674 | F139: 1.666339163 | G139: 0.3624385642 | H139: 7.052153228 | I139: 3.226505437 | J139: 1.261923688 | K139: 0.6358105272 | L139: 0.07063503152 | M139: 47.05102497 | N139: 22.62376564 | O139: 15.66933603 | P139: 9.277187597 | Q139: 4.556565969 | R139: 22.88597536 | S139: 14.09509831 | T139: 4.393432436 | BB139: Open defecation | BC139: N/A | BD139: N/A | BE139: N/A | BF139: N/A | BG139: N/A | BH139: N/A | BI139: N/A | BJ139: N/A | BK139: N/A | BL139: N/A | BM139: N/A | BN139: N/A | BO139: N/A | BP139: N/A | BQ139: N/A | BR139: N/A | BS139: N/A | BT139: N/A
A140: Septic tank emptying practices | B140: Not emptied/treated and disposed in situ | C140: N/A | D140: N/A | E140: N/A | F140: N/A | G140: N/A | H140: N/A | I140: N/A | J140: N/A | K140: N/A | L140: N/A | M140: N/A | N140: N/A | O140: N/A | P140: N/A | Q140: N/A | R140: N/A | S140: N/A | T140: N/A | BA140: Septic tank emptying practices | BB140: Not emptied/treated and disposed in situ | BC140: N/A | BD140: N/A | BE140: N/A | BF140: N/A | BG140: N/A | BH140: N/A | BI140: N/A | BJ140: N/A | BK140: N/A | BL140: N/A | BM140: N/A | BN140: N/A | BO140: N/A | BP140: N/A | BQ140: N/A | BR140: N/A | BS140: N/A | BT140: N/A
B141: Emptied and buried on site | C141: N/A | D141: N/A | E141: N/A | F141: N/A | G141: N/A | H141: N/A | I141: N/A | J141: N/A | K141: N/A | L141: N/A | M141: N/A | N141: N/A | O141: N/A | P141: N/A | Q141: N/A | R141: N/A | S141: N/A | T141: N/A | BB141: Emptied and buried on site | BC141: N/A | BD141: N/A | BE141: N/A | BF141: N/A | BG141: N/A | BH141: N/A | BI141: N/A | BJ141: N/A | BK141: N/A | BL141: N/A | BM141: N/A | BN141: N/A | BO141: N/A | BP141: N/A | BQ141: N/A | BR141: N/A | BS141: N/A | BT141: N/A
B142: Emptied and discharged locally | C142: N/A | D142: N/A | E142: N/A | F142: N/A | G142: N/A | H142: N/A | I142: N/A | J142: N/A | K142: N/A | L142: N/A | M142: N/A | N142: N/A | O142: N/A | P142: N/A | Q142: N/A | R142: N/A | S142: N/A | T142: N/A | BB142: Emptied and discharged locally | BC142: N/A | BD142: N/A | BE142: N/A | BF142: N/A | BG142: N/A | BH142: N/A | BI142: N/A | BJ142: N/A | BK142: N/A | BL142: N/A | BM142: N/A | BN142: N/A | BO142: N/A | BP142: N/A | BQ142: N/A | BR142: N/A | BS142: N/A | BT142: N/A
B143: Emptied and removed offsite | C143: N/A | D143: N/A | E143: N/A | F143: N/A | G143: N/A | H143: N/A | I143: N/A | J143: N/A | K143: N/A | L143: N/A | M143: N/A | N143: N/A | O143: N/A | P143: N/A | Q143: N/A | R143: N/A | S143: N/A | T143: N/A | BB143: Emptied and removed offsite | BC143: N/A | BD143: N/A | BE143: N/A | BF143: N/A | BG143: N/A | BH143: N/A | BI143: N/A | BJ143: N/A | BK143: N/A | BL143: N/A | BM143: N/A | BN143: N/A | BO143: N/A | BP143: N/A | BQ143: N/A | BR143: N/A | BS143: N/A | BT143: N/A
A144: Latrine emptying practices | B144: Not emptied/treated and disposed in situ | C144: N/A | D144: N/A | E144: N/A | F144: N/A | G144: N/A | H144: N/A | I144: N/A | J144: N/A | K144: N/A | L144: N/A | M144: N/A | N144: N/A | O144: N/A | P144: N/A | Q144: N/A | R144: N/A | S144: N/A | T144: N/A | BA144: Latrine emptying practices | BB144: Not emptied/treated and disposed in situ | BC144: N/A | BD144: N/A | BE144: N/A | BF144: N/A | BG144: N/A | BH144: N/A | BI144: N/A | BJ144: N/A | BK144: N/A | BL144: N/A | BM144: N/A | BN144: N/A | BO144: N/A | BP144: N/A | BQ144: N/A | BR144: N/A | BS144: N/A | BT144: N/A
B145: Emptied and buried on site | C145: N/A | D145: N/A | E145: N/A | F145: N/A | G145: N/A | H145: N/A | I145: N/A | J145: N/A | K145: N/A | L145: N/A | M145: N/A | N145: N/A | O145: N/A | P145: N/A | Q145: N/A | R145: N/A | S145: N/A | T145: N/A | BB145: Emptied and buried on site | BC145: N/A | BD145: N/A | BE145: N/A | BF145: N/A | BG145: N/A | BH145: N/A | BI145: N/A | BJ145: N/A | BK145: N/A | BL145: N/A | BM145: N/A | BN145: N/A | BO145: N/A | BP145: N/A | BQ145: N/A | BR145: N/A | BS145: N/A | BT145: N/A
B146: Emptied and discharged locally | C146: N/A | D146: N/A | E146: N/A | F146: N/A | G146: N/A | H146: N/A | I146: N/A | J146: N/A | K146: N/A | L146: N/A | M146: N/A | N146: N/A | O146: N/A | P146: N/A | Q146: N/A | R146: N/A | S146: N/A | T146: N/A | BB146: Emptied and discharged locally | BC146: N/A | BD146: N/A | BE146: N/A | BF146: N/A | BG146: N/A | BH146: N/A | BI146: N/A | BJ146: N/A | BK146: N/A | BL146: N/A | BM146: N/A | BN146: N/A | BO146: N/A | BP146: N/A | BQ146: N/A | BR146: N/A | BS146: N/A | BT146: N/A
B147: Emptied and removed offsite | C147: N/A | D147: N/A | E147: N/A | F147: N/A | G147: N/A | H147: N/A | I147: N/A | J147: N/A | K147: N/A | L147: N/A | M147: N/A | N147: N/A | O147: N/A | P147: N/A | Q147: N/A | R147: N/A | S147: N/A | T147: N/A | BB147: Emptied and removed offsite | BC147: N/A | BD147: N/A | BE147: N/A | BF147: N/A | BG147: N/A | BH147: N/A | BI147: N/A | BJ147: N/A | BK147: N/A | BL147: N/A | BM147: N/A | BN147: N/A | BO147: N/A | BP147: N/A | BQ147: N/A | BR147: N/A | BS147: N/A | BT147: N/A
A148: Shared among improved sanitation facilities | B148: Yes | C148: N/A | D148: N/A | E148: N/A | F148: N/A | G148: N/A | H148: N/A | I148: N/A | J148: N/A | K148: N/A | L148: N/A | M148: N/A | N148: N/A | O148: N/A | P148: N/A | Q148: N/A | R148: N/A | S148: N/A | T148: N/A | BA148: Shared among improved sanitation facilities | BB148: Yes | BC148: N/A | BD148: N/A | BE148: N/A | BF148: N/A | BG148: N/A | BH148: N/A | BI148: N/A | BJ148: N/A | BK148: N/A | BL148: N/A | BM148: N/A | BN148: N/A | BO148: N/A | BP148: N/A | BQ148: N/A | BR148: N/A | BS148: N/A | BT148: N/A
B149: No | C149: N/A | D149: N/A | E149: N/A | F149: N/A | G149: N/A | H149: N/A | I149: N/A | J149: N/A | K149: N/A | L149: N/A | M149: N/A | N149: N/A | O149: N/A | P149: N/A | Q149: N/A | R149: N/A | S149: N/A | T149: N/A | BB149: No | BC149: N/A | BD149: N/A | BE149: N/A | BF149: N/A | BG149: N/A | BH149: N/A | BI149: N/A | BJ149: N/A | BK149: N/A | BL149: N/A | BM149: N/A | BN149: N/A | BO149: N/A | BP149: N/A | BQ149: N/A | BR149: N/A | BS149: N/A | BT149: N/A
B150: DK/missing | C150: N/A | D150: N/A | E150: N/A | F150: N/A | G150: N/A | H150: N/A | I150: N/A | J150: N/A | K150: N/A | L150: N/A | M150: N/A | N150: N/A | O150: N/A | P150: N/A | Q150: N/A | R150: N/A | S150: N/A | T150: N/A | BB150: DK/missing | BC150: N/A | BD150: N/A | BE150: N/A | BF150: N/A | BG150: N/A | BH150: N/A | BI150: N/A | BJ150: N/A | BK150: N/A | BL150: N/A | BM150: N/A | BN150: N/A | BO150: N/A | BP150: N/A | BQ150: N/A | BR150: N/A | BS150: N/A | BT150: N/A
A151: Shared among all sanitation facilities | B151: Yes | C151: N/A | D151: N/A | E151: N/A | F151: N/A | G151: N/A | H151: N/A | I151: N/A | J151: N/A | K151: N/A | L151: N/A | M151: N/A | N151: N/A | O151: N/A | P151: N/A | Q151: N/A | R151: N/A | S151: N/A | T151: N/A | BA151: Shared among all sanitation facilities | BB151: Yes | BC151: N/A | BD151: N/A | BE151: N/A | BF151: N/A | BG151: N/A | BH151: N/A | BI151: N/A | BJ151: N/A | BK151: N/A | BL151: N/A | BM151: N/A | BN151: N/A | BO151: N/A | BP151: N/A | BQ151: N/A | BR151: N/A | BS151: N/A | BT151: N/A
B152: No | C152: N/A | D152: N/A | E152: N/A | F152: N/A | G152: N/A | H152: N/A | I152: N/A | J152: N/A | K152: N/A | L152: N/A | M152: N/A | N152: N/A | O152: N/A | P152: N/A | Q152: N/A | R152: N/A | S152: N/A | T152: N/A | BB152: No | BC152: N/A | BD152: N/A | BE152: N/A | BF152: N/A | BG152: N/A | BH152: N/A | BI152: N/A | BJ152: N/A | BK152: N/A | BL152: N/A | BM152: N/A | BN152: N/A | BO152: N/A | BP152: N/A | BQ152: N/A | BR152: N/A | BS152: N/A | BT152: N/A
A153: El tipo de servicio higienico de la vivienda | B153: Excusado o letrina | C153: 66.42232516 | D153: 84.25494297 | E153: 73.34121312 | F153: 46.66048611 | G153: 13.94719256 | H153: 76.75112051 | I153: 60.88683046 | J153: 46.00694882 | K153: 20.91902553 | L153: 7.386276711 | M153: 52.53079195 | N153: 77.01126861 | O153: 82.78207285 | P153: 88.84348777 | Q153: 79.62689376 | R153: 69.25955848 | S153: 66.29549818 | T153: 48.49334442 | BA153: El tipo de servicio higienico de la vivienda | BB153: Excusado o letrina | BC153: 11892.46935 | BD153: 15080.51357 | BE153: 13127.81004 | BF153: 8353.914904 | BG153: 2496.161824 | BH153: 7823.367325 | BI153: 6204.859443 | BJ153: 4693.283791 | BK153: 2133.459231 | BL153: 752.7747873 | BM153: 4046.543766 | BN153: 5935.747268 | BO153: 6380.292401 | BP153: 6845.028933 | BQ153: 6135.512742 | BR153: 8152.581725 | BS153: 19004.52537 | BT153: 23793.76259
B154: Tubería de aguas negra | C154: 0.3237230415 | D154: 3.16281385 | E154: 16.07152877 | F154: 35.50003039 | G154: 58.95477638 | H154: 13.40193611 | I154: 27.16595863 | J154: 37.51273716 | K154: 54.71412503 | L154: 66.01976355 | M154: 0.01042366326 | N154: 0.01447810784 | O154: 0.02469463585 | P154: 0.1208739615 | Q154: 1.621298867 | R154: 0.9639232427 | S154: 12.78009818 | T154: 33.89475862 | BB154: Tubería de aguas negra | BC154: 57.9604273 | BD154: 566.1015901 | BE154: 2876.745118 | BF154: 6355.789614 | BG154: 10551.27485 | BH154: 1366.081282 | BI154: 2768.430441 | BJ154: 3826.768039 | BK154: 5580.104817 | BL154: 6728.42562 | BM154: 0.802954001 | BN154: 1.115919665 | BO154: 1.903298529 | BP154: 9.312846496 | BQ154: 124.9263833 | BR154: 113.463949 | BS154: 3663.592654 | BT154: 16630.815
B155: Sumidero o pozo septico | C155: 0.4565054086 | D155: 1.657942895 | E155: 6.487505559 | F155: 16.06009937 | G155: 26.56985732 | H155: 2.7570983 | I155: 8.720705469 | J155: 15.07619441 | K155: 23.51280608 | L155: 26.4260806 | M155: 0.3711722125 | N155: 0.3504876411 | O155: 1.26510483 | P155: 1.712745756 | Q155: 14.09857542 | R155: 6.890542912 | S155: 6.668204123 | T155: 13.14088039 | BB155: Sumidero o pozo septico | BC155: 81.73421461 | BD155: 296.7497153 | BE155: 1161.239867 | BF155: 2875.338743 | BG155: 4755.269794 | BH155: 281.035542 | BI155: 888.7102722 | BJ155: 1537.960257 | BK155: 2397.98996 | BL155: 2693.222578 | BM155: 28.59207994 | BN155: 27.01430707 | BO155: 97.50587849 | BP155: 131.9600857 | BQ155: 1086.341373 | BR155: 811.0896959 | BS155: 1911.53333 | BT155: 6447.709308
B156: Río / Quebrada | C156: 0 | D156: 0.01967396158 | E156: 0.009125900614 | F156: 0.1130449643 | G156: 0.06071318747 | H156: 0.01602547577 | I156: 0 | J156: 0.142195921 | K156: 0.1627602721 | L156: 0 | M156: 0 | N156: 0 | O156: 0 | P156: 0.0457049116 | Q156: 0 | R156: 0 | S156: 0.09066116034 | T156: 0.02093244051 | BB156: Río / Quebrada | BC156: 0 | BD156: 3.521377314 | BE156: 1.633502973 | BF156: 20.23913788 | BG156: 10.86598182 | BH156: 1.633502973 | BI156: 0 | BJ156: 14.50576115 | BK156: 16.59935854 | BL156: 0 | BM156: 0 | BN156: 0 | BO156: 0 | BP156: 3.521377314 | BQ156: 0 | BR156: 0 | BS156: 25.98928086 | BT156: 10.27071913
B157: No tiene | C157: 32.74430697 | D157: 10.8305981 | E157: 4.054709674 | F157: 1.666339163 | G157: 0.3624385642 | H157: 7.052153228 | I157: 3.226505437 | J157: 1.261923688 | K157: 0.6358105272 | L157: 0.07063503152 | M157: 47.05102497 | N157: 22.62376564 | O157: 15.66933603 | P157: 9.277187597 | Q157: 4.556565969 | R157: 22.88597536 | S157: 14.09509831 | T157: 4.393432436 | BB157: No tiene | BC157: 5862.647327 | BD157: 1938.532932 | BE157: 725.7782643 | BF157: 298.3349882 | BG157: 64.86648145 | BH157: 718.8375202 | BI157: 328.8069452 | BJ157: 128.7319881 | BK157: 64.84412177 | BL157: 7.198792152 | BM157: 3624.427212 | BN157: 1743.757212 | BO157: 1207.688358 | BP157: 714.7695246 | BQ157: 351.0983192 | BR157: 2693.921079 | BS157: 4040.555705 | BT157: 2155.683209
B158: No hay dato | C158: 0.05313941588 | D158: 0.07402822804 | E158: 0.03591697528 | F158: 0 | G158: 0.1050219901 | H158: 0.02166638005 | I158: 0 | J158: 0 | K158: 0.05547256284 | L158: 0.09724410823 | M158: 0.03658720711 | N158: 0 | O158: 0.2587916501 | P158: 0 | Q158: 0.09666598402 | R158: 0 | S158: 0.07044004841 | T158: 0.05665169827 | BB158: No hay dato | BC158: 9.514254027 | BD158: 13.25006769 | BE158: 6.429007763 | BF158: 0 | BG158: 18.79603233 | BH158: 2.208489579 | BI158: 0 | BJ158: 0 | BK158: 5.657455273 | BL158: 9.910664838 | BM158: 2.818380028 | BN158: 0 | BO158: 19.94594169 | BP158: 0 | BQ158: 7.448430407 | BR158: 0 | BS158: 20.19261826 | BT158: 27.79674356
BB159: Total | BC159: 17904.32557 | BD159: 17898.66926 | BE159: 17899.6358 | BF159: 17903.61739 | BG159: 17897.23496 | BH159: 10193.16366 | BI159: 10190.8071 | BJ159: 10201.24984 | BK159: 10198.65494 | BL159: 10191.53244 | BM159: 7703.184392 | BN159: 7707.634707 | BO159: 7707.335878 | BP159: 7704.592767 | BQ159: 7705.327248 | BR159: 11771.05645 | BS159: 28666.38896 | BT159: 49066.03757
A208: =A1026 -> Nicaragua
A209: =A1034 -> 2011
A210: Access to hygiene facilities
A211: by wealth quintile and sub-national region
A212: Notes:
A213: WHO/UNICEF JMP customised wealth index excludes water,
A214: sanitation and hygiene assets.
A215: Survey used for analysis: | B215: =A1025 -> ENDESA11
A220: Access to handwashing | C220: NATIONAL wealth index quintile | H220: URBAN wealth index quintile | M220: RURAL wealth index quintile | R220: SUB-REGIONS: | BA220: Raw numbers of respondents: | BB220: Access to handwashing | BC220: NATIONAL wealth index quintile | BH220: URBAN wealth index quintile | BM220: RURAL wealth index quintile | BR220: SUB-REGIONS:
A221: Weighted percentage (used in graphs) | C221: Poorest | D221: Poor | E221: Middle | F221: Rich | G221: Richest | H221: Poorest | I221: Poor | J221: Middle | K221: Rich | L221: Richest | M221: Poorest | N221: Poor | O221: Middle | P221: Rich | Q221: Richest | R221: Atlántico | S221: Central | T221: Pácifico | BA221: Hygiene data, raw numbers (weighted) | BC221: Poorest | BD221: Poor | BE221: Middle | BF221: Rich | BG221: Richest | BH221: Poorest | BI221: Poor | BJ221: Middle | BK221: Rich | BL221: Richest | BM221: Poorest | BN221: Poor | BO221: Middle | BP221: Rich | BQ221: Richest | BR221: Atlántico | BS221: Central | BT221: Pácifico
A222: Hygiene ladder | B222: Basic | C222: N/A | D222: N/A | E222: N/A | F222: N/A | G222: N/A | H222: N/A | I222: N/A | J222: N/A | K222: N/A | L222: N/A | M222: N/A | N222: N/A | O222: N/A | P222: N/A | Q222: N/A | R222: N/A | S222: N/A | T222: N/A | BA222: Hygiene ladder | BB222: Basic | BC222: N/A | BD222: N/A | BE222: N/A | BF222: N/A | BG222: N/A | BH222: N/A | BI222: N/A | BJ222: N/A | BK222: N/A | BL222: N/A | BM222: N/A | BN222: N/A | BO222: N/A | BP222: N/A | BQ222: N/A | BR222: N/A | BS222: N/A | BT222: N/A
B223: Limited | C223: N/A | D223: N/A | E223: N/A | F223: N/A | G223: N/A | H223: N/A | I223: N/A | J223: N/A | K223: N/A | L223: N/A | M223: N/A | N223: N/A | O223: N/A | P223: N/A | Q223: N/A | R223: N/A | S223: N/A | T223: N/A | BB223: Limited | BC223: N/A | BD223: N/A | BE223: N/A | BF223: N/A | BG223: N/A | BH223: N/A | BI223: N/A | BJ223: N/A | BK223: N/A | BL223: N/A | BM223: N/A | BN223: N/A | BO223: N/A | BP223: N/A | BQ223: N/A | BR223: N/A | BS223: N/A | BT223: N/A
B224: No facility | C224: N/A | D224: N/A | E224: N/A | F224: N/A | G224: N/A | H224: N/A | I224: N/A | J224: N/A | K224: N/A | L224: N/A | M224: N/A | N224: N/A | O224: N/A | P224: N/A | Q224: N/A | R224: N/A | S224: N/A | T224: N/A | BB224: No facility | BC224: N/A | BD224: N/A | BE224: N/A | BF224: N/A | BG224: N/A | BH224: N/A | BI224: N/A | BJ224: N/A | BK224: N/A | BL224: N/A | BM224: N/A | BN224: N/A | BO224: N/A | BP224: N/A | BQ224: N/A | BR224: N/A | BS224: N/A | BT224: N/A
BA225: Observed handwashing place | BB225: Fixed | BC225: N/A | BD225: N/A | BE225: N/A | BF225: N/A | BG225: N/A | BH225: N/A | BI225: N/A | BJ225: N/A | BK225: N/A | BL225: N/A | BM225: N/A | BN225: N/A | BO225: N/A | BP225: N/A | BQ225: N/A | BR225: N/A | BS225: N/A | BT225: N/A
BB226: Mobile | BC226: N/A | BD226: N/A | BE226: N/A | BF226: N/A | BG226: N/A | BH226: N/A | BI226: N/A | BJ226: N/A | BK226: N/A | BL226: N/A | BM226: N/A | BN226: N/A | BO226: N/A | BP226: N/A | BQ226: N/A | BR226: N/A | BS226: N/A | BT226: N/A
BA227: Water / Soap | BB227: Water and soap | BC227: N/A | BD227: N/A | BE227: N/A | BF227: N/A | BG227: N/A | BH227: N/A | BI227: N/A | BJ227: N/A | BK227: N/A | BL227: N/A | BM227: N/A | BN227: N/A | BO227: N/A | BP227: N/A | BQ227: N/A | BR227: N/A | BS227: N/A | BT227: N/A
BB228: Water only | BC228: N/A | BD228: N/A | BE228: N/A | BF228: N/A | BG228: N/A | BH228: N/A | BI228: N/A | BJ228: N/A | BK228: N/A | BL228: N/A | BM228: N/A | BN228: N/A | BO228: N/A | BP228: N/A | BQ228: N/A | BR228: N/A | BS228: N/A | BT228: N/A
BB229: Soap only | BC229: N/A | BD229: N/A | BE229: N/A | BF229: N/A | BG229: N/A | BH229: N/A | BI229: N/A | BJ229: N/A | BK229: N/A | BL229: N/A | BM229: N/A | BN229: N/A | BO229: N/A | BP229: N/A | BQ229: N/A | BR229: N/A | BS229: N/A | BT229: N/A
BB230: Neither | BC230: N/A | BD230: N/A | BE230: N/A | BF230: N/A | BG230: N/A | BH230: N/A | BI230: N/A | BJ230: N/A | BK230: N/A | BL230: N/A | BM230: N/A | BN230: N/A | BO230: N/A | BP230: N/A | BQ230: N/A | BR230: N/A | BS230: N/A | BT230: N/A
BA259: Raw numbers of respondents: | BB259: Menstrual health and hygiene | BC259: NATIONAL wealth index quintile | BH259: URBAN wealth index quintile | BM259: RURAL wealth index quintile | BR259: SUB-REGIONS:
BA260: MHH data, raw numbers (weighted) | BC260: Poorest | BD260: Poor | BE260: Middle | BF260: Rich | BG260: Richest | BH260: Poorest | BI260: Poor | BJ260: Middle | BK260: Rich | BL260: Richest | BM260: Poorest | BN260: Poor | BO260: Middle | BP260: Rich | BQ260: Richest | BR260: Atlántico | BS260: Central | BT260: Pácifico
BA261: Private place to wash and change | BB261: Yes | BC261: N/A | BD261: N/A | BE261: N/A | BF261: N/A | BG261: N/A | BH261: N/A | BI261: N/A | BJ261: N/A | BK261: N/A | BL261: N/A | BM261: N/A | BN261: N/A | BO261: N/A | BP261: N/A | BQ261: N/A | BR261: N/A | BS261: N/A | BT261: N/A
BB262: No | BC262: N/A | BD262: N/A | BE262: N/A | BF262: N/A | BG262: N/A | BH262: N/A | BI262: N/A | BJ262: N/A | BK262: N/A | BL262: N/A | BM262: N/A | BN262: N/A | BO262: N/A | BP262: N/A | BQ262: N/A | BR262: N/A | BS262: N/A | BT262: N/A
BB263: DK/not sure/missing | BC263: N/A | BD263: N/A | BE263: N/A | BF263: N/A | BG263: N/A | BH263: N/A | BI263: N/A | BJ263: N/A | BK263: N/A | BL263: N/A | BM263: N/A | BN263: N/A | BO263: N/A | BP263: N/A | BQ263: N/A | BR263: N/A | BS263: N/A | BT263: N/A
BA264: Use of menstrual materials | BB264: Materials reusable | BC264: N/A | BD264: N/A | BE264: N/A | BF264: N/A | BG264: N/A | BH264: N/A | BI264: N/A | BJ264: N/A | BK264: N/A | BL264: N/A | BM264: N/A | BN264: N/A | BO264: N/A | BP264: N/A | BQ264: N/A | BR264: N/A | BS264: N/A | BT264: N/A
BB265: Materials not reusable | BC265: N/A | BD265: N/A | BE265: N/A | BF265: N/A | BG265: N/A | BH265: N/A | BI265: N/A | BJ265: N/A | BK265: N/A | BL265: N/A | BM265: N/A | BN265: N/A | BO265: N/A | BP265: N/A | BQ265: N/A | BR265: N/A | BS265: N/A | BT265: N/A
BB266: No materials used | BC266: N/A | BD266: N/A | BE266: N/A | BF266: N/A | BG266: N/A | BH266: N/A | BI266: N/A | BJ266: N/A | BK266: N/A | BL266: N/A | BM266: N/A | BN266: N/A | BO266: N/A | BP266: N/A | BQ266: N/A | BR266: N/A | BS266: N/A | BT266: N/A
BB267: DK/not sure/missing | BC267: N/A | BD267: N/A | BE267: N/A | BF267: N/A | BG267: N/A | BH267: N/A | BI267: N/A | BJ267: N/A | BK267: N/A | BL267: N/A | BM267: N/A | BN267: N/A | BO267: N/A | BP267: N/A | BQ267: N/A | BR267: N/A | BS267: N/A | BT267: N/A
BA268: Use of menstrual materials with private place to wash and change | BB268: Materials reusable | BC268: N/A | BD268: N/A | BE268: N/A | BF268: N/A | BG268: N/A | BH268: N/A | BI268: N/A | BJ268: N/A | BK268: N/A | BL268: N/A | BM268: N/A | BN268: N/A | BO268: N/A | BP268: N/A | BQ268: N/A | BR268: N/A | BS268: N/A | BT268: N/A
BB269: Materials not reusable | BC269: N/A | BD269: N/A | BE269: N/A | BF269: N/A | BG269: N/A | BH269: N/A | BI269: N/A | BJ269: N/A | BK269: N/A | BL269: N/A | BM269: N/A | BN269: N/A | BO269: N/A | BP269: N/A | BQ269: N/A | BR269: N/A | BS269: N/A | BT269: N/A
BB270: No materials used | BC270: N/A | BD270: N/A | BE270: N/A | BF270: N/A | BG270: N/A | BH270: N/A | BI270: N/A | BJ270: N/A | BK270: N/A | BL270: N/A | BM270: N/A | BN270: N/A | BO270: N/A | BP270: N/A | BQ270: N/A | BR270: N/A | BS270: N/A | BT270: N/A
BA271: Awareness of menstruation before menarche | BB271: Yes | BC271: N/A | BD271: N/A | BE271: N/A | BF271: N/A | BG271: N/A | BH271: N/A | BI271: N/A | BJ271: N/A | BK271: N/A | BL271: N/A | BM271: N/A | BN271: N/A | BO271: N/A | BP271: N/A | BQ271: N/A | BR271: N/A | BS271: N/A | BT271: N/A
BB272: No | BC272: N/A | BD272: N/A | BE272: N/A | BF272: N/A | BG272: N/A | BH272: N/A | BI272: N/A | BJ272: N/A | BK272: N/A | BL272: N/A | BM272: N/A | BN272: N/A | BO272: N/A | BP272: N/A | BQ272: N/A | BR272: N/A | BS272: N/A | BT272: N/A
BB273: DK/not sure/missing | BC273: N/A | BD273: N/A | BE273: N/A | BF273: N/A | BG273: N/A | BH273: N/A | BI273: N/A | BJ273: N/A | BK273: N/A | BL273: N/A | BM273: N/A | BN273: N/A | BO273: N/A | BP273: N/A | BQ273: N/A | BR273: N/A | BS273: N/A | BT273: N/A
BA274: Participation in (all) activities during menstruation | BB274: Yes | BC274: N/A | BD274: N/A | BE274: N/A | BF274: N/A | BG274: N/A | BH274: N/A | BI274: N/A | BJ274: N/A | BK274: N/A | BL274: N/A | BM274: N/A | BN274: N/A | BO274: N/A | BP274: N/A | BQ274: N/A | BR274: N/A | BS274: N/A | BT274: N/A
BB275: No | BC275: N/A | BD275: N/A | BE275: N/A | BF275: N/A | BG275: N/A | BH275: N/A | BI275: N/A | BJ275: N/A | BK275: N/A | BL275: N/A | BM275: N/A | BN275: N/A | BO275: N/A | BP275: N/A | BQ275: N/A | BR275: N/A | BS275: N/A | BT275: N/A
BB276: DK/not sure/missing/no such activity | BC276: N/A | BD276: N/A | BE276: N/A | BF276: N/A | BG276: N/A | BH276: N/A | BI276: N/A | BJ276: N/A | BK276: N/A | BL276: N/A | BM276: N/A | BN276: N/A | BO276: N/A | BP276: N/A | BQ276: N/A | BR276: N/A | BS276: N/A | BT276: N/A
BA277: Participation in specific activities during menstruation | BB277: Did not go to school (amongst those usually attending school) | BC277: N/A | BD277: N/A | BE277: N/A | BF277: N/A | BG277: N/A | BH277: N/A | BI277: N/A | BJ277: N/A | BK277: N/A | BL277: N/A | BM277: N/A | BN277: N/A | BO277: N/A | BP277: N/A | BQ277: N/A | BR277: N/A | BS277: N/A | BT277: N/A
BB278: Did not go to work (amongst those who usually work) | BC278: N/A | BD278: N/A | BE278: N/A | BF278: N/A | BG278: N/A | BH278: N/A | BI278: N/A | BJ278: N/A | BK278: N/A | BL278: N/A | BM278: N/A | BN278: N/A | BO278: N/A | BP278: N/A | BQ278: N/A | BR278: N/A | BS278: N/A | BT278: N/A
BB279: Did not participate in social activities | BC279: N/A | BD279: N/A | BE279: N/A | BF279: N/A | BG279: N/A | BH279: N/A | BI279: N/A | BJ279: N/A | BK279: N/A | BL279: N/A | BM279: N/A | BN279: N/A | BO279: N/A | BP279: N/A | BQ279: N/A | BR279: N/A | BS279: N/A | BT279: N/A
BB280: Did not cook food | BC280: N/A | BD280: N/A | BE280: N/A | BF280: N/A | BG280: N/A | BH280: N/A | BI280: N/A | BJ280: N/A | BK280: N/A | BL280: N/A | BM280: N/A | BN280: N/A | BO280: N/A | BP280: N/A | BQ280: N/A | BR280: N/A | BS280: N/A | BT280: N/A
BB281: Did not eat with others | BC281: N/A | BD281: N/A | BE281: N/A | BF281: N/A | BG281: N/A | BH281: N/A | BI281: N/A | BJ281: N/A | BK281: N/A | BL281: N/A | BM281: N/A | BN281: N/A | BO281: N/A | BP281: N/A | BQ281: N/A | BR281: N/A | BS281: N/A | BT281: N/A
BB282: Did not bathe in regular place | BC282: N/A | BD282: N/A | BE282: N/A | BF282: N/A | BG282: N/A | BH282: N/A | BI282: N/A | BJ282: N/A | BK282: N/A | BL282: N/A | BM282: N/A | BN282: N/A | BO282: N/A | BP282: N/A | BQ282: N/A | BR282: N/A | BS282: N/A | BT282: N/A
BB283: Did not participate in other activities | BC283: N/A | BD283: N/A | BE283: N/A | BF283: N/A | BG283: N/A | BH283: N/A | BI283: N/A | BJ283: N/A | BK283: N/A | BL283: N/A | BM283: N/A | BN283: N/A | BO283: N/A | BP283: N/A | BQ283: N/A | BR283: N/A | BS283: N/A | BT283: N/A
BB284: DK/not sure/missing/no such activity | BC284: N/A | BD284: N/A | BE284: N/A | BF284: N/A | BG284: N/A | BH284: N/A | BI284: N/A | BJ284: N/A | BK284: N/A | BL284: N/A | BM284: N/A | BN284: N/A | BO284: N/A | BP284: N/A | BQ284: N/A | BR284: N/A | BS284: N/A | BT284: N/A
BA339: Raw numbers of respondents: | BB339: Basic water, sanitation and hygiene | BC339: NATIONAL wealth index quintile | BH339: URBAN wealth index quintile | BM339: RURAL wealth index quintile | BR339: SUB-REGIONS:
BA340: WatSan data, raw numbers (weighted) | BC340: Poorest | BD340: Poor | BE340: Middle | BF340: Rich | BG340: Richest | BH340: Poorest | BI340: Poor | BJ340: Middle | BK340: Rich | BL340: Richest | BM340: Poorest | BN340: Poor | BO340: Middle | BP340: Rich | BQ340: Richest | BR340: Atlántico | BS340: Central | BT340: Pácifico
BA341: Use of Basic Water Sanitation and Hygiene | BB341: Yes | BC341: N/A | BD341: N/A | BE341: N/A | BF341: N/A | BG341: N/A | BH341: N/A | BI341: N/A | BJ341: N/A | BK341: N/A | BL341: N/A | BM341: N/A | BN341: N/A | BO341: N/A | BP341: N/A | BQ341: N/A | BR341: N/A | BS341: N/A | BT341: N/A
BB342: No | BC342: N/A | BD342: N/A | BE342: N/A | BF342: N/A | BG342: N/A | BH342: N/A | BI342: N/A | BJ342: N/A | BK342: N/A | BL342: N/A | BM342: N/A | BN342: N/A | BO342: N/A | BP342: N/A | BQ342: N/A | BR342: N/A | BS342: N/A | BT342: N/A
BA343: Use of Basic Water and Sanitation | BB343: Yes | BC343: N/A | BD343: N/A | BE343: N/A | BF343: N/A | BG343: N/A | BH343: N/A | BI343: N/A | BJ343: N/A | BK343: N/A | BL343: N/A | BM343: N/A | BN343: N/A | BO343: N/A | BP343: N/A | BQ343: N/A | BR343: N/A | BS343: N/A | BT343: N/A
BB344: No | BC344: N/A | BD344: N/A | BE344: N/A | BF344: N/A | BG344: N/A | BH344: N/A | BI344: N/A | BJ344: N/A | BK344: N/A | BL344: N/A | BM344: N/A | BN344: N/A | BO344: N/A | BP344: N/A | BQ344: N/A | BR344: N/A | BS344: N/A | BT344: N/A
BA345: Use of Basic Water and Hygiene | BB345: Yes | BC345: N/A | BD345: N/A | BE345: N/A | BF345: N/A | BG345: N/A | BH345: N/A | BI345: N/A | BJ345: N/A | BK345: N/A | BL345: N/A | BM345: N/A | BN345: N/A | BO345: N/A | BP345: N/A | BQ345: N/A | BR345: N/A | BS345: N/A | BT345: N/A
BB346: No | BC346: N/A | BD346: N/A | BE346: N/A | BF346: N/A | BG346: N/A | BH346: N/A | BI346: N/A | BJ346: N/A | BK346: N/A | BL346: N/A | BM346: N/A | BN346: N/A | BO346: N/A | BP346: N/A | BQ346: N/A | BR346: N/A | BS346: N/A | BT346: N/A
BA347: Use of Basic Sanitation and Hygiene | BB347: Yes | BC347: N/A | BD347: N/A | BE347: N/A | BF347: N/A | BG347: N/A | BH347: N/A | BI347: N/A | BJ347: N/A | BK347: N/A | BL347: N/A | BM347: N/A | BN347: N/A | BO347: N/A | BP347: N/A | BQ347: N/A | BR347: N/A | BS347: N/A | BT347: N/A
BB348: No | BC348: N/A | BD348: N/A | BE348: N/A | BF348: N/A | BG348: N/A | BH348: N/A | BI348: N/A | BJ348: N/A | BK348: N/A | BL348: N/A | BM348: N/A | BN348: N/A | BO348: N/A | BP348: N/A | BQ348: N/A | BR348: N/A | BS348: N/A | BT348: N/A
BA349: Use of Basic Water | BB349: Yes | BC349: N/A | BD349: N/A | BE349: N/A | BF349: N/A | BG349: N/A | BH349: N/A | BI349: N/A | BJ349: N/A | BK349: N/A | BL349: N/A | BM349: N/A | BN349: N/A | BO349: N/A | BP349: N/A | BQ349: N/A | BR349: N/A | BS349: N/A | BT349: N/A
BB350: No | BC350: N/A | BD350: N/A | BE350: N/A | BF350: N/A | BG350: N/A | BH350: N/A | BI350: N/A | BJ350: N/A | BK350: N/A | BL350: N/A | BM350: N/A | BN350: N/A | BO350: N/A | BP350: N/A | BQ350: N/A | BR350: N/A | BS350: N/A | BT350: N/A
BA351: Use of Basic Sanitation | BB351: Yes | BC351: N/A | BD351: N/A | BE351: N/A | BF351: N/A | BG351: N/A | BH351: N/A | BI351: N/A | BJ351: N/A | BK351: N/A | BL351: N/A | BM351: N/A | BN351: N/A | BO351: N/A | BP351: N/A | BQ351: N/A | BR351: N/A | BS351: N/A | BT351: N/A
BB352: No | BC352: N/A | BD352: N/A | BE352: N/A | BF352: N/A | BG352: N/A | BH352: N/A | BI352: N/A | BJ352: N/A | BK352: N/A | BL352: N/A | BM352: N/A | BN352: N/A | BO352: N/A | BP352: N/A | BQ352: N/A | BR352: N/A | BS352: N/A | BT352: N/A
BA353: Access to Basic Hygiene | BB353: Yes | BC353: N/A | BD353: N/A | BE353: N/A | BF353: N/A | BG353: N/A | BH353: N/A | BI353: N/A | BJ353: N/A | BK353: N/A | BL353: N/A | BM353: N/A | BN353: N/A | BO353: N/A | BP353: N/A | BQ353: N/A | BR353: N/A | BS353: N/A | BT353: N/A
BB354: No | BC354: N/A | BD354: N/A | BE354: N/A | BF354: N/A | BG354: N/A | BH354: N/A | BI354: N/A | BJ354: N/A | BK354: N/A | BL354: N/A | BM354: N/A | BN354: N/A | BO354: N/A | BP354: N/A | BQ354: N/A | BR354: N/A | BS354: N/A | BT354: N/A
C399: INITIAL (national) Wealth Index | H399: URBAN Wealth Index | M399: RURAL Wealth Index
C400: Component Matrix | H400: Component Matrix | M400: Component Matrix
E401: Component | J401: Component | O401: Component
B402: Note: The INITIAL (national) Wealth Index is based on the first component of the Principal Component Analysis (PCA) which has been obtained at national level. The final national-level (NATIONAL) Wealth Index is based on the URBAN and RURAL specific wealth indexes. Regression procedures are used to establish the relationships between the two sets of scores (urban and rural) and the initial (national) wealth factors. This allows best use of the available information for each area and a better precision of the FINAL (NATIONAL) Wealth Index. For dependency reasons, all WASH variables (contained in the generic MICS and DHS scripts) have been excluded from the sets of asset variables used in the PCAs. The PCA can extracts as many components as there are asset variables in the input. Only the first of the components is used to represent the Wealth Index. The scores represent the weights of the asset variables on the Wealth Index (correlations between the variables and the component). The communalities are the proportion of each variable's variance that can be explained by the component. Proportion of explained variance is the part of the model's total variance that is explained by the component. For more information on the procedure used: The DHS Wealth Index, DHS Comparative Reports No. 6, Shea Oscar Rutstein, Kiersten Johnson, ORC Macro International Inc., 2004. The DHS Wealth Index: Approaches for Rural and Urban Areas, Shea O. Rutstein, ORC Macro International Inc., 2008. MICS Methodological Paper No. 4, Review of options for reporting water, sanitation and hygiene coverage by wealth quintile, UNICEF, 2016. | E402: 1 | J402: 1 | O402: 1
C403: El hogar tiene cocina | E403: 0.8064227867 | H403: fuel1 | J403: -0.7286924765 | M403: El hogar tiene cocina | O403: 0.701051341
C404: fuel1 | E404: -0.796490321 | H404: El hogar tiene cocina | J404: 0.6968282737 | M404: El hogar tiene plancha electrica | O404: 0.6884145564
C405: fuel2 | E405: 0.7839994573 | H405: fuel2 | J405: 0.6903694326 | M405: El hogar tiene refrigerador | O405: 0.6726300054
C406: El hogar tiene refrigerador | E406: 0.7224443024 | H406: El hogar tiene refrigerador | J406: 0.6499195424 | M406: El hogar tiene televisor | O406: 0.6679441734
C407: El hogar tiene plancha electrica | E407: 0.7217255008 | H407: floor1 | J407: -0.6146618328 | M407: fuel1 | O407: -0.6514626584
C408: El hogar tiene televisor | E408: 0.6798256385 | H408: El hogar tiene servicios de telef. convencional | J408: 0.5620415922 | M408: fuel2 | O408: 0.6301266264
C409: El hogar tiene abanico | E409: 0.6694685263 | H409: floor5 | J409: 0.5582019233 | M409: El hogar tiene abanico | O409: 0.6043882537
C410: floor1 | E410: -0.6539339539 | H410: El hogar tiene servicios de cable TV/SKY/Direct TV | J410: 0.5413350658 | M410: light1 | O410: -0.5761772047
C411: floor5 | E411: 0.6378195575 | H411: El hogar tiene computadora | J411: 0.5401550402 | M411: El hogar tiene DVD/CD player/teatro en casa | O411: 0.5761093044
C412: El hogar tiene servicios de cable TV/SKY/Direct TV | E412: 0.6246076181 | H412: El hogar tiene abanico | J412: 0.5292252711 | M412: El hogar tiene equipo de sonido | O412: 0.5336862346
C413: light1 | E413: -0.5870329271 | H413: El hogar tiene micronda | J413: 0.5240258785 | M413: floor1 | O413: -0.5174354129
C414: El hogar tiene equipo de sonido | E414: 0.5862154312 | H414: El hogar tiene plancha electrica | J414: 0.4953842303 | M414: floor5 | O414: 0.5109136724
C415: El hogar tiene DVD/CD player/teatro en casa | E415: 0.5552814886 | H415: El hogar tiene equipo de sonido | J415: 0.4762039084 | M415: El hogar tiene micronda | O415: 0.4625028496
C416: wall1 | E416: -0.5502411564 | H416: El hogar tiene lavadora de ropa | J416: 0.4613161935 | M416: El hogar tiene servicios de cable TV/SKY/Direct TV | O416: 0.4595572868
C417: El hogar tiene servicios de telef. convencional | E417: 0.5407926602 | H417: El hogar tiene DVD/CD player/teatro en casa | J417: 0.4576646549 | M417: wall1 | O417: -0.4394817944
C418: El hogar tiene micronda | E418: 0.5309803941 | H418: El hogar tiene servicios de internet | J418: 0.4549841418 | M418: light5 | O418: 0.4271893522
C419: El hogar tiene computadora | E419: 0.5115989023 | H419: wall1 | J419: -0.4490071624 | M419: El hogar tiene servicios de celular | O419: 0.4248853731
... 277 more rows

Sheet data_summary
A1: iso3 | B1: year | C1: data_source | D1: row | E1: var1 | F1: var2 | G1: varname | H1: total_q1 | I1: total_q2 | J1: total_q3 | K1: total_q4 | L1: total_q5 | M1: urban_q1 | N1: urban_q2 | O1: urban_q3 | P1: urban_q4 | Q1: urban_q5 | R1: rural_q1 | S1: rural_q2 | T1: rural_q3 | U1: rural_q4 | V1: rural_q5 | W1: region_1_name | X1: region_2_name | Y1: region_3_name | Z1: region_4_name | AA1: region_5_name | AB1: region_6_name | AC1: region_7_name | AD1: region_8_name | AE1: region_9_name | AF1: region_10_name | AG1: region_11_name | AH1: region_12_name | AI1: region_13_name | AJ1: region_14_name | AK1: region_15_name | AL1: region_16_name | AM1: region_17_name | AN1: region_1 | AO1: region_2 | AP1: region_3 | AQ1: region_4 | AR1: region_5 | AS1: region_6 | AT1: region_7 | AU1: region_8 | AV1: region_9 | AW1: region_10 | AX1: region_11 | AY1: region_12 | AZ1: region_13 | BA1: region_14 | BB1: region_15 | BC1: region_16 | BD1: region_17 | BE1: n_total_q1 | BF1: n_total_q2 | BG1: n_total_q3 | BH1: n_total_q4 | BI1: n_total_q5 | BJ1: n_urban_q1 | BK1: n_urban_q2 | BL1: n_urban_q3 | BM1: n_urban_q4 | BN1: n_urban_q5 | BO1: n_rural_q1 | BP1: n_rural_q2 | BQ1: n_rural_q3 | BR1: n_rural_q4 | BS1: n_rural_q5 | BT1: n_region_1 | BU1: n_region_2 | BV1: n_region_3 | BW1: n_region_4 | BX1: n_region_5 | BY1: n_region_6 | BZ1: n_region_7 | CA1: n_region_8 | CB1: n_region_9 | CC1: n_region_10 | CD1: n_region_11 | CE1: n_region_12 | CF1: n_region_13 | CG1: n_region_14 | CH1: n_region_15 | CI1: n_region_16 | CJ1: n_region_17
A2: NIC | B2: 2001 | C2: NIC_2001_DHS | D2: 16 | E2: Water | F2: Improved | G2: w_imp | H2: 52.97392587 | I2: 70.61824648 | J2: 90.49375909 | K2: 96.03818309 | L2: 98.10354418 | M2: 89.54483191 | N2: 95.80902735 | O2: 97.06693661 | P2: 98.10988538 | Q2: 98.77147733 | R2: 47.97333103 | S2: 51.89197906 | T2: 58.32931202 | U2: 72.057223 | V2: 84.69959014 | W2: Atl ntico Norte(Raan) | X2: Atl ntico Sur(Raas) | Y2: Boaco | Z2: Carazo | AA2: Chinandega | AB2: Chontales | AC2: Estel¡ | AD2: Granada | AE2: Jinotega | AF2: Le¢n | AG2: Madriz | AH2: Managua | AI2: Masaya | AJ2: Matagalpa | AK2: Nueva Segovia | AL2: R¡o San Juan | AM2: Rivas | AN2: 59.29928741 | AO2: 57.38525391 | AP2: 68.4057971 | AQ2: 95.52748378 | AR2: 79.00123305 | AS2: 80.84126984 | AT2: 85.37215713 | AU2: 92.00454103 | AV2: 60.11117788 | AW2: 83.04404145 | AX2: 71.28099174 | AY2: 98.50990369 | AZ2: 98.48531685 | BA2: 76.05079793 | BB2: 74.10744077 | BC2: 65.59436275 | BD2: 80.09883199
A3: NIC | B3: 2001 | C3: NIC_2001_DHS | D3: 17 | E3: Water | F3: Not Improved | H3: 47.02607413 | I3: 29.38175352 | J3: 9.50624091 | K3: 3.961816909 | L3: 1.896455822 | M3: 10.45516809 | N3: 4.190972654 | O3: 2.933063394 | P3: 1.890114617 | Q3: 1.228522673 | R3: 52.02666897 | S3: 48.10802094 | T3: 41.67068798 | U3: 27.942777 | V3: 15.30040986 | W3: Atl ntico Norte(Raan) | X3: Atl ntico Sur(Raas) | Y3: Boaco | Z3: Carazo | AA3: Chinandega | AB3: Chontales | AC3: Estel¡ | AD3: Granada | AE3: Jinotega | AF3: Le¢n | AG3: Madriz | AH3: Managua | AI3: Masaya | AJ3: Matagalpa | AK3: Nueva Segovia | AL3: R¡o San Juan | AM3: Rivas | AN3: 40.70071259 | AO3: 42.61474609 | AP3: 31.5942029 | AQ3: 4.472516217 | AR3: 20.99876695 | AS3: 19.15873016 | AT3: 14.62784287 | AU3: 7.995458969 | AV3: 39.88882212 | AW3: 16.95595855 | AX3: 28.71900826 | AY3: 1.490096311 | AZ3: 1.514683153 | BA3: 23.94920207 | BB3: 25.89255923 | BC3: 34.40563725 | BD3: 19.90116801
A4: NIC | B4: 2001 | C4: NIC_2001_DHS | D4: 18 | E4: Water ladder | F4: Basic | G4: w_bas | H4: 50.11633431 | I4: 68.21731672 | J4: 89.51791355 | K4: 95.70693712 | L4: 98.02627541 | M4: 88.16119601 | N4: 95.61600057 | O4: 96.87358759 | P4: 97.99532956 | Q4: 98.69278134 | R4: 45.71550358 | S4: 48.70706538 | T4: 55.05303067 | U4: 69.94840474 | V4: 83.36045635 | W4: Atl ntico Norte(Raan) | X4: Atl ntico Sur(Raas) | Y4: Boaco | Z4: Carazo | AA4: Chinandega | AB4: Chontales | AC4: Estel¡ | AD4: Granada | AE4: Jinotega | AF4: Le¢n | AG4: Madriz | AH4: Managua | AI4: Masaya | AJ4: Matagalpa | AK4: Nueva Segovia | AL4: R¡o San Juan | AM4: Rivas | AN4: 57.94743378 | AO4: 56.3690567 | AP4: 65.88181795 | AQ4: 95.072591 | AR4: 76.92441771 | AS4: 79.32021459 | AT4: 83.66471399 | AU4: 90.60757943 | AV4: 57.7311414 | AW4: 82.32756549 | AX4: 67.01057814 | AY4: 98.29248253 | AZ4: 97.61089937 | BA4: 73.13319872 | BB4: 68.44492861 | BC4: 64.39763255 | BD4: 78.72674469
A5: NIC | B5: 2001 | C5: NIC_2001_DHS | D5: 19 | E5: Water ladder | F5: Limited | G5: w_lim | H5: 2.857591561 | I5: 2.400929761 | J5: 0.9758455371 | K5: 0.3312459673 | L5: 0.07726876482 | M5: 1.3836359 | N5: 0.193026773 | O5: 0.1933490141 | P5: 0.1145558202 | Q5: 0.07869599093 | R5: 2.257827446 | S5: 3.184913684 | T5: 3.276281352 | U5: 2.108818264 | V5: 1.339133783 | W5: Atl ntico Norte(Raan) | X5: Atl ntico Sur(Raas) | Y5: Boaco | Z5: Carazo | AA5: Chinandega | AB5: Chontales | AC5: Estel¡ | AD5: Granada | AE5: Jinotega | AF5: Le¢n | AG5: Madriz | AH5: Managua | AI5: Masaya | AJ5: Matagalpa | AK5: Nueva Segovia | AL5: R¡o San Juan | AM5: Rivas | AN5: 1.351853632 | AO5: 1.016197205 | AP5: 2.523979149 | AQ5: 0.4548927799 | AR5: 2.07681534 | AS5: 1.521055251 | AT5: 1.707443143 | AU5: 1.396961605 | AV5: 2.380036485 | AW5: 0.7164759575 | AX5: 4.270413597 | AY5: 0.2174211595 | AZ5: 0.8744174794 | BA5: 2.917599209 | BB5: 5.662512166 | BC5: 1.196730198 | BD5: 1.372087296
A6: NIC | B6: 2001 | C6: NIC_2001_DHS | D6: 20 | E6: Water ladder | F6: Unimproved | G6: w_unimp | H6: 31.88974689 | I6: 23.63921752 | J6: 8.879884308 | K6: 3.933036806 | L6: 1.896455822 | M6: 9.408645345 | N6: 4.104761963 | O6: 2.933063394 | P6: 1.890114617 | Q6: 1.228522673 | R6: 34.11875302 | S6: 33.28444295 | T6: 30.59530312 | U6: 24.4645899 | V6: 14.2753226 | W6: Atl ntico Norte(Raan) | X6: Atl ntico Sur(Raas) | Y6: Boaco | Z6: Carazo | AA6: Chinandega | AB6: Chontales | AC6: Estel¡ | AD6: Granada | AE6: Jinotega | AF6: Le¢n | AG6: Madriz | AH6: Managua | AI6: Masaya | AJ6: Matagalpa | AK6: Nueva Segovia | AL6: R¡o San Juan | AM6: Rivas | AN6: 30.27315914 | AO6: 33.11767578 | AP6: 24.21607378 | AQ6: 2.492318197 | AR6: 18.82860666 | AS6: 12.9047619 | AT6: 13.38731909 | AU6: 7.703535517 | AV6: 25.79627404 | AW6: 15.53108808 | AX6: 21.21741894 | AY6: 1.290205343 | AZ6: 1.514683153 | BA6: 18.32996179 | BB6: 14.71471471 | BC6: 21.69117647 | BD6: 17.59508835
A7: NIC | B7: 2001 | C7: NIC_2001_DHS | D7: 21 | E7: Water ladder | F7: Surface water | G7: w_sur | H7: 15.13632724 | I7: 5.742535999 | J7: 0.6263566016 | K7: 0.0287801032 | L7: 0 | M7: 1.046522745 | N7: 0.08621069115 | O7: 0 | P7: 0 | Q7: 0 | R7: 17.90791595 | S7: 14.82357799 | T7: 11.07538486 | U7: 3.478187101 | V7: 1.02508727 | W7: Atl ntico Norte(Raan) | X7: Atl ntico Sur(Raas) | Y7: Boaco | Z7: Carazo | AA7: Chinandega | AB7: Chontales | AC7: Estel¡ | AD7: Granada | AE7: Jinotega | AF7: Le¢n | AG7: Madriz | AH7: Managua | AI7: Masaya | AJ7: Matagalpa | AK7: Nueva Segovia | AL7: R¡o San Juan | AM7: Rivas | AN7: 10.42755344 | AO7: 9.497070313 | AP7: 7.378129117 | AQ7: 1.98019802 | AR7: 2.170160296 | AS7: 6.253968254 | AT7: 1.240523777 | AU7: 0.2919234512 | AV7: 14.09254808 | AW7: 1.424870466 | AX7: 7.50158932 | AY7: 0.1998909686 | AZ7: 0 | BA7: 5.619240279 | BB7: 11.17784451 | BC7: 12.71446078 | BD7: 2.306079665
A8: NIC | B8: 2001 | C8: NIC_2001_DHS | D8: 29 | E8: Piped water | F8: Yes | G8: w_pip | H8: 20.82251324 | I8: 46.68270833 | J8: 81.48198862 | K8: 92.09810182 | L8: 95.84399939 | M8: 80.16496822 | N8: 91.54517066 | O8: 94.1688209 | P8: 95.84231791 | Q8: 97.26620163 | R8: 13.73604763 | S8: 18.09352288 | T8: 27.21215083 | U8: 47.33217035 | V8: 70.36968964 | W8: Atl ntico Norte(Raan) | X8: Atl ntico Sur(Raas) | Y8: Boaco | Z8: Carazo | AA8: Chinandega | AB8: Chontales | AC8: Estel¡ | AD8: Granada | AE8: Jinotega | AF8: Le¢n | AG8: Madriz | AH8: Managua | AI8: Masaya | AJ8: Matagalpa | AK8: Nueva Segovia | AL8: R¡o San Juan | AM8: Rivas | AN8: 28.36104513 | AO8: 23.07128906 | AP8: 44.03162055 | AQ8: 93.82041652 | AR8: 60.02466091 | AS8: 67.93650794 | AT8: 71.6402481 | AU8: 84.13882582 | AV8: 33.22338831 | AW8: 67.30569948 | AX8: 50.06357279 | AY8: 97.3832455 | AZ8: 96.59969088 | BA8: 57.61455526 | BB8: 59.55955956 | BC8: 43.90318627 | BD8: 61.72506739
A9: NIC | B9: 2001 | C9: NIC_2001_DHS | D9: 30 | E9: Piped water | F9: No | H9: 79.17748676 | I9: 53.31729167 | J9: 18.51801138 | K9: 7.90189818 | L9: 4.156000606 | M9: 19.83503178 | N9: 8.454829338 | O9: 5.831179097 | P9: 4.157682093 | Q9: 2.733798372 | R9: 86.26395237 | S9: 81.90647712 | T9: 72.78784917 | U9: 52.66782965 | V9: 29.63031036 | W9: Atl ntico Norte(Raan) | X9: Atl ntico Sur(Raas) | Y9: Boaco | Z9: Carazo | AA9: Chinandega | AB9: Chontales | AC9: Estel¡ | AD9: Granada | AE9: Jinotega | AF9: Le¢n | AG9: Madriz | AH9: Managua | AI9: Masaya | AJ9: Matagalpa | AK9: Nueva Segovia | AL9: R¡o San Juan | AM9: Rivas | AN9: 71.63895487 | AO9: 76.92871094 | AP9: 55.96837945 | AQ9: 6.179583476 | AR9: 39.97533909 | AS9: 32.06349206 | AT9: 28.3597519 | AU9: 15.86117418 | AV9: 66.77661169 | AW9: 32.69430052 | AX9: 49.93642721 | AY9: 2.616754498 | AZ9: 3.400309119 | BA9: 42.38544474 | BB9: 40.44044044 | BC9: 56.09681373 | BD9: 38.27493261
A10: NIC | B10: 2001 | C10: NIC_2001_DHS | D10: 31 | E10: Piped water on premises | F10: Yes | G10: w_pop | H10: 10.08629087 | I10: 35.80537168 | J10: 75.7289379 | K10: 89.35369825 | L10: 95.29186761 | M10: 69.00506514 | N10: 88.87182889 | O10: 91.47077264 | P10: 95.37536723 | Q10: 97.02814688 | R10: 5.811737533 | S10: 7.847315555 | T10: 16.14627536 | U10: 36.97032539 | V10: 61.69369755 | W10: Atl ntico Norte(Raan) | X10: Atl ntico Sur(Raas) | Y10: Boaco | Z10: Carazo | AA10: Chinandega | AB10: Chontales | AC10: Estel¡ | AD10: Granada | AE10: Jinotega | AF10: Le¢n | AG10: Madriz | AH10: Managua | AI10: Masaya | AJ10: Matagalpa | AK10: Nueva Segovia | AL10: R¡o San Juan | AM10: Rivas | AN10: 21.99524941 | AO10: 17.01660156 | AP10: 34.96706192 | AQ10: 87.2994196 | AR10: 55.28976572 | AS10: 59.17460317 | AT10: 58.51137147 | AU10: 77.19753487 | AV10: 23.26836582 | AW10: 63.39378238 | AX10: 35.37825811 | AY10: 96.40196257 | AZ10: 91.00463679 | BA10: 46.22641509 | BB10: 51.18451785 | BC10: 33.82352941 | BD10: 56.42407907
A11: NIC | B11: 2001 | C11: NIC_2001_DHS | D11: 32 | E11: Piped water on premises | F11: No | H11: 89.91370913 | I11: 64.19462832 | J11: 24.2710621 | K11: 10.64630175 | L11: 4.708132385 | M11: 30.99493486 | N11: 11.12817111 | O11: 8.529227359 | P11: 4.624632767 | Q11: 2.971853121 | R11: 94.18826247 | S11: 92.15268445 | T11: 83.85372464 | U11: 63.02967461 | V11: 38.30630245 | W11: Atl ntico Norte(Raan) | X11: Atl ntico Sur(Raas) | Y11: Boaco | Z11: Carazo | AA11: Chinandega | AB11: Chontales | AC11: Estel¡ | AD11: Granada | AE11: Jinotega | AF11: Le¢n | AG11: Madriz | AH11: Managua | AI11: Masaya | AJ11: Matagalpa | AK11: Nueva Segovia | AL11: R¡o San Juan | AM11: Rivas | AN11: 78.00475059 | AO11: 82.98339844 | AP11: 65.03293808 | AQ11: 12.7005804 | AR11: 44.71023428 | AS11: 40.82539683 | AT11: 41.48862853 | AU11: 22.80246513 | AV11: 76.73163418 | AW11: 36.60621762 | AX11: 64.62174189 | AY11: 3.598037434 | AZ11: 8.995363215 | BA11: 53.77358491 | BB11: 48.81548215 | BC11: 66.17647059 | BD11: 43.57592093
A12: NIC | B12: 2001 | C12: NIC_2001_DHS | D12: 35 | E12: Water source on premises | F12: Yes | H12: 23.57933789 | I12: 46.69586364 | J12: 81.67903004 | K12: 92.81153638 | L12: 97.29428825 | M12: 74.18585179 | N12: 92.55099735 | O12: 93.68152158 | P12: 97.15811725 | Q12: 98.51960977 | R12: 19.94087093 | S12: 22.0505557 | T12: 27.86204118 | U12: 49.89311834 | V12: 72.66381189 | W12: Atl ntico Norte(Raan) | X12: Atl ntico Sur(Raas) | Y12: Boaco | Z12: Carazo | AA12: Chinandega | AB12: Chontales | AC12: Estel¡ | AD12: Granada | AE12: Jinotega | AF12: Le¢n | AG12: Madriz | AH12: Managua | AI12: Masaya | AJ12: Matagalpa | AK12: Nueva Segovia | AL12: R¡o San Juan | AM12: Rivas | AN12: 40.35629454 | AO12: 37.57324219 | AP12: 44.53227931 | AQ12: 87.6066917 | AR12: 69.56843403 | AS12: 64.76190476 | AT12: 63.81805651 | AU12: 83.55497892 | AV12: 35.44227886 | AW12: 71.01036269 | AX12: 37.41258741 | AY12: 96.47465019 | AZ12: 91.80834621 | BA12: 53.21203953 | BB12: 53.62028695 | BC12: 40.80882353 | BD12: 75.98083258
A13: NIC | B13: 2001 | C13: NIC_2001_DHS | D13: 36 | E13: Water source on premises | F13: No | H13: 76.42066211 | I13: 53.30413636 | J13: 18.32096996 | K13: 7.188463618 | L13: 2.705711752 | M13: 25.81414821 | N13: 7.449002654 | O13: 6.318478417 | P13: 2.841882746 | Q13: 1.480390229 | R13: 80.05912907 | S13: 77.9494443 | T13: 72.13795882 | U13: 50.10688166 | V13: 27.33618811 | W13: Atl ntico Norte(Raan) | X13: Atl ntico Sur(Raas) | Y13: Boaco | Z13: Carazo | AA13: Chinandega | AB13: Chontales | AC13: Estel¡ | AD13: Granada | AE13: Jinotega | AF13: Le¢n | AG13: Madriz | AH13: Managua | AI13: Masaya | AJ13: Matagalpa | AK13: Nueva Segovia | AL13: R¡o San Juan | AM13: Rivas | AN13: 59.64370546 | AO13: 62.42675781 | AP13: 55.46772069 | AQ13: 12.3933083 | AR13: 30.43156597 | AS13: 35.23809524 | AT13: 36.18194349 | AU13: 16.44502108 | AV13: 64.55772114 | AW13: 28.98963731 | AX13: 62.58741259 | AY13: 3.525349809 | AZ13: 8.191653787 | BA13: 46.78796047 | BB13: 46.37971305 | BC13: 59.19117647 | BD13: 24.01916742
A14: NIC | B14: 2001 | C14: NIC_2001_DHS | D14: 41 | E14: Water point at more than 30 minutes | F14: Yes | H14: 5.394336015 | I14: 3.399871677 | J14: 1.078356725 | K14: 0.3449106976 | L14: 0.07876246008 | M14: 1.545187891 | N14: 0.2014703398 | O14: 0.1991914249 | P14: 0.1167627704 | Q14: 0.07967481409 | R14: 4.706422085 | S14: 6.137583768 | T14: 5.616869527 | U14: 2.926588309 | V14: 1.581039272 | W14: Atl ntico Norte(Raan) | X14: Atl ntico Sur(Raas) | Y14: Boaco | Z14: Carazo | AA14: Chinandega | AB14: Chontales | AC14: Estel¡ | AD14: Granada | AE14: Jinotega | AF14: Le¢n | AG14: Madriz | AH14: Managua | AI14: Masaya | AJ14: Matagalpa | AK14: Nueva Segovia | AL14: R¡o San Juan | AM14: Rivas | AN14: 2.279713115 | AO14: 1.770833333 | AP14: 3.689715282 | AQ14: 0.4761904762 | AR14: 2.628839146 | AS14: 1.881533101 | AT14: 2 | AU14: 1.518361582 | AV14: 3.959390863 | AW14: 0.8627662443 | AX14: 5.990957046 | AY14: 0.2207099503 | AZ14: 0.8878658336 | BA14: 3.836382114 | BB14: 7.640949555 | BC14: 1.82444062 | BD14: 1.712992889
